Workbook

Sheet Mensaje
C10: ACTIVAR MACRO PARA ACCEDER AL CONTENIDO

Sheet PARAMETROS (hidden)
B2: Legenda | C2: Dato de entrada
C3: Celda llave
C4: Error
C5: Dato calculado
A7: Generalidades
B9: Horizonte 1 | C9: 2020
B10: Horizonte 2 | C10: 2025
B11: Horizonte 3 | C11: 2030
B12: Horizonte 4 | C12: 2035
B13: Horizonte 5 | C13: 2040
B15: Ano puesta en servicio | C15: =C9-1 -> 2019
B16: Ano base | C16: 2015
B17: Periodo de evaluacion | C17: 30 | D17: anos
B18: Ultimo ano | C18: =C15+C17 -> 2049
A21: Parametros de modelacion de trafico
B23: Coeficiente de pasaje [Periodo de modelacion => HPS] | C23: 1
B25: Coeficiente [HPS => JOB] | C25: 0.09
A27: Costos generales y provisiones para imprevistos
D29: Ratio | E29: Provisiones para imprevistos
B30: Estudios y diseños | C30: % costo de la obra | D30: 0.08 | E30: 0.1
B31: Supervision de obras | C31: % costo de la obra | D31: 0.04 | E31: 0.1
B32: Fiscalizacion del proyecto | C32: % costo de obra | D32: 0.05 | E32: 0.1
B33: % gastos de Gestión externalizados (auditores, seguros) | C33: % costo de la obra | D33: 0.03 | E33: 0.1
B34: Tramites administrativos | C34: U | D34: 600000 | E34: 0.25
B36: Capex Category Code | C36: INFRA | D36: EQUIP | E36: VEH | F36: PRED | H36: Liste: "Capex_Category_Code"
B37: Capex Category Name | C37: Infraestructura | D37: Equipamientos | E37: Vehiculos | F37: Predios
B38: % provisiones imprevistos | C38: 0.25 | D38: 0.25 | E38: 0.15 | F38: 0.25
B39: Estudios, Diseños y Supervisión | C39: Aplica | D39: Aplica | E39: Aplica | F39: No aplica
B41: Tarifa electricidad | D41: 0.084 | E41: USD / kWh | F41: Tarifa industrial maxima aplicada en Ecuador en el 2014
B43: Costo de operacion de busetas | D43: =0.05*14 -> 0.7 | E43: USD /km recorrido
B45: Costos de mantenancia (100% parte extranjera)
D46: EURO 2015 | F46: USD 2015
D47: Telecabinas | E47: 3S | F47: Telecabinas | G47: 3S
B48: Costo de materia anual | C48: Costo/m | D48: 85 | E48: 65 | F48: =D48*C83 -> 95.2 | G48: =E48*C83 -> 72.8
B49: Costo de materia para mantenancia preventiva cada 5 años | C49: Costo/m | D49: 375 | E49: 285 | F49: =375*C83 -> 420 | G49: =285*C83 -> 319.2
B51: Cambio preventivo del cable de soporte/traccion cada 5 años | C51: Costo/m | D51: 225 | E51: - | F51: =D51*C83 -> 252 | G51: -
B52: Cambio preventivo del cable de traccion cada 10 años | C52: Costo/m | D52: - | E52: 195 | F52: - | G52: =E52*C83 -> 218.4
B54: IVA | C54: 0.12
B56: Suministro | C56: LOCAL | D56: EUROPA | H56: Liste:"Suministro"
A58: Escenarios de Evaluacion socio-economica y financiera
B60: Worst case | E60: RESULTATS BSE | F60: 2
B61: Coeficiente sobre demanda | C61: 0.7 | E61: WORST CASE | F61: 1
B62: Inflacion local | C62: =B88 -> Hipotesis baja | E62: BEST CASE | F62: 2
B63: Contingencias aplicadas sobre CAPEX | C63: SI
B64: Contingencias aplicadas sobre OPEX | C64: 0.25
B66: Base case
B67: Coeficiente sobre demanda | C67: 0.8
B68: Inflacion local | C68: =B88 -> Hipotesis baja
B69: Contingencias aplicadas sobre CAPEX | C69: NO
B70: Contingencias aplicadas sobre OPEX | C70: 0
B72: Best case
B73: Coeficiente sobre demanda | C73: 1
B74: Inflacion local | C74: =B89 -> Hipotesis alta
B75: Contingencias aplicadas sobre CAPEX | C75: NO
B76: Contingencias aplicada sobre OPEX | C76: 0
A78: Parametros de Evaluacion socio-economica y financiera
B80: Año de referencia (primer año de la simulacion) | C80: =C16 -> 2015 | E80: ACTUALIZACION | F80: 0.07
B81: Divisa del modelo | C81: USD
B83: Tasa de cambio Euro/USD (2015) | C83: 1.12 | F83: el 01/03/2015
B84: Tasa de cambio Euro/USD (2012) | C84: 1.32 | F84: el 01/03/2012
B86: Tasa de inflacion anual de Ecuador
B87: Año | C87: 2015 | D87: 2016 | E87: 2017 | F87: 2018 | G87: 2019 | H87: 2020-2050
B88: Hipotesis baja | C88: 0.0255 | D88: 0.025 | E88: 0.025 | F88: 0.025 | G88: 0.025 | H88: 0.02
B89: Hipotesis alta | C89: =C88 -> 0.0255 | D89: =D88+0.02 -> 0.045 | E89: =E88+0.02 -> 0.045 | F89: 0.045 | G89: 0.045 | H89: =H88+0.02 -> 0.04
B91: Tasa de inflacion anual para el internacional (Union Europea)
B92: Año | C92: 2015 | D92: 2016 | E92: 2017 | F92: 2018 | G92: 2019 | H92: 2020
B93: Hipotesis unica | C93: 0.0117 | D93: 0.015 | E93: 0.015 | F93: 0.015 | G93: 0.015 | H93: 0.019
B96: Aumentacion anual de los salarios en Ecuador
B97: Año | C97: 2015 | D97: 2016 | E97: 2017 | F97: 2018 | G97: 2019 | H97: 2020
B98: Hipotesis baja | C98: =C88+0.005 -> 0.0305 | D98: 0.03 | E98: 0.03 | F98: 0.03 | G98: 0.03 | H98: 0.025
B99: Hipotesis alta | C99: =C89+0.005 -> 0.0305 | D99: 0.05 | E99: 0.05 | F99: 0.05 | G99: 0.05 | H99: 0.045
B101: Aumentacion anual de las tarifas de electricidad en Ecuador
B102: Año | C102: 2015 | D102: 2016 | E102: 2017 | F102: 2018 | G102: 2019 | H102: 2020
B103: Hipotesis baja | C103: =C88+0.01 -> 0.0355 | D103: 0.035 | E103: 0.035 | F103: 0.035 | G103: 0.035 | H103: 0.03
B104: Hipotesis alta | C104: =C89+0.01 -> 0.0355 | D104: 0.055 | E104: 0.055 | F104: 0.055 | G104: 0.055 | H104: 0.05

Sheet CASH_FLOWS_RECAP (hidden)
D3: MONOCABLE
D4: Tasa de Rentabilidad Interna (TRI) - 30 años
D5: Tarifa (USD 2019)
B6: Alternativa | C6: Escenario | D6: 0.6 | E6: 0.75
B7: A | C7: Best case | D7: =#REF! ->  | E7: =#REF! -> 
B8: 23 | C8: Worst case | D8: ='11_CASH_FLOW_TC_23_WORST_CASE'!C31 -> -0.01142559537 | E8: ='11_CASH_FLOW_TC_23_WORST_CASE'!D31 -> 0.003911506978
B9: 23 | C9: Base case | D9: ='7_CASH_FLOW_TC_23_BASE'!C31 -> 0.01441513656 | E9: ='7_CASH_FLOW_TC_23_BASE'!D31 -> 0.02914725127
B10: B | C10: Best case | D10: =#REF! ->  | E10: =#REF! -> 
B11: C | C11: Best case | D11: =#REF! ->  | E11: =#REF! -> 
B12: 21 | C12: Worst case | D12: ='23_CASH_FLOW_TC_21_WORST_CASE'!C31 -> -0.03768498172 | E12: ='23_CASH_FLOW_TC_21_WORST_CASE'!D31 -> -0.0208273752
B13: 21 | C13: Base | D13: ='19_CASH_FLOW_TC_21_BASE'!C31 -> -0.009585180112 | E13: ='19_CASH_FLOW_TC_21_BASE'!D31 -> 0.005751429297
B14: D | C14: Best case | D14: =#REF! ->  | E14: =#REF! -> 
D17: MONOCABLE
D18: Tasa de Rentabilidad Interna (TRI) - 40 años
D19: Tarifa (USD 2019)
B20: Alternativa | C20: Escenario | D20: 0.5 | E20: 0.75
B21: A | C21: Worst case | D21: =#REF! ->  | E21: =#REF! -> 
B22: A | C22: Base case | D22: =#REF! ->  | E22: =#REF! -> 
B23: A | C23: Best case | D23: =#REF! ->  | E23: =#REF! -> 
B24: B | C24: Worst case | D24: ='11_CASH_FLOW_TC_23_WORST_CASE'!C33 -> -0.006321167485 | E24: ='11_CASH_FLOW_TC_23_WORST_CASE'!D33 -> 0.01077387042
B25: B | C25: Base case | D25: ='7_CASH_FLOW_TC_23_BASE'!C33 -> 0.0218415194 | E25: ='7_CASH_FLOW_TC_23_BASE'!D33 -> 0.03673690395
B26: B | C26: Best case | D26: =#REF! ->  | E26: =#REF! -> 
B27: C | C27: Worst case | D27: =#REF! ->  | E27: =#REF! -> 
B28: C | C28: Base case | D28: =#REF! ->  | E28: =#REF! -> 
B29: C | C29: Best case | D29: =#REF! ->  | E29: =#REF! -> 
B30: D | C30: Worst case | D30: ='23_CASH_FLOW_TC_21_WORST_CASE'!C33 -> -0.03901510046 | E30: ='23_CASH_FLOW_TC_21_WORST_CASE'!D33 -> -0.0173126896
B31: D | C31: Base case | D31: ='19_CASH_FLOW_TC_21_BASE'!C33 -> -0.004042585463 | E31: ='19_CASH_FLOW_TC_21_BASE'!D33 -> 0.01291177877
B32: D | C32: Best case | D32: =#REF! ->  | E32: =#REF! -> 

Sheet CANTIDADES (hidden)
B2: Legenda | C2: Dato de entrada
C3: Celda llave
C4: Error
C5: Dato calculado
A8: Telecabinas
A9: Numero de personas por vehiculos | B9: 10
A10: Velocidad maxima en linea (m/s) | B10: 5.5
A11: Tiempo en estacion (s) | B11: 25
A13: 3S
A14: Numero de personas por vehiculos | B14: 35
A15: Velocidad maxima en linea (m/s) | B15: 7.5
A16: Tiempo en estacion (s) | B16: 60
B19: 23 | C19: 21
A22: Longitud (m) | B22: 4100 | C22: =5950+2200 -> 8150
A24: Proteccion contra incendios (m²)
A25: Techos | B25: =18000/2 -> 9000 | C25: =5*200*30*0.6 -> 18000
A26: Fachadas | B26: =500*35*0.7 -> 12250 | C26: =500*35*0.7 -> 12250
A29: N°Estaciones | B29: =B30+B31+B32 -> 5 | C29: =C30+C31+C32 -> 8
A30: Terminal | B30: 2 | C30: 4
A31: Linea | B31: 2 | C31: 2
A32: Tecnica | B32: 1 | C32: 2
A34: Terrains industriels | B34: 1 | C34: 1
A36: Distancia promedia entre estaciones de pasajeros (m) | B36: =B22/(B30+B31) -> 1025 | C36: =C22/(C30+C31) -> 1358.333333
A38: N° Estaciones intermodales con Metrovia o trenes
A39: Actual | B39: 2 | C39: 2
A40: Potencial | B40: 0 | C40: 0
A42: N° Postes
A43: Telecabinas | B43: 27 | C43: 45
A45: Fundaciones en el rio
A46: Telecabinas | B46: =ROUNDUP((1830+2200)/B22*B43,0) -> 27 | C46: 42
A48: N°Cabinas (incluido reserva)
A49: Demande de modelo (pphpd) | B49: 1594 | C49: 1410
A50: Demanda (pphpd) | B50: =B49*PARAMETROS!$C$23*1.5 -> 2391 | C50: =C49*PARAMETROS!$C$23*1.5 -> 2115
A53: Distancia entre vehiculos
A54: Telecabinas | B54: =$B$9*3600*$B$10/B50 -> 82.81053952 | C54: =$B$9*3600*$B$10/C50 -> 93.61702128
A56: Tiempo entre las cabinas en segundas
A57: Telecabinas | B57: =B54/$B$10 -> 15.05646173 | C57: =C54/$B$10 -> 17.0212766
A59: Numero de vehiculos en linea (afuera de las estaciones)
A60: Telecabinas | B60: =ROUNDUP(B22*2/B54,0) -> 100 | C60: =B60+49 -> 149
A62: Numero de vehiculos en operacion (incluyendo vehiculos en estaciones)
A63: Telecabinas | B63: =ROUNDUP((B60+B31*5),0) -> 110 | C63: =ROUNDUP((C60+C31*5),0) -> 159
A65: Numero de vehiculos en operacion (con margen de seguridad relativo a la demanda)
A66: Telecabinas | B66: =ROUNDUP(B63*1.1,0) -> 121 | C66: =ROUNDUP(C63*1.1,0) -> 175
A68: Numero de vehiculos en operacion y mantenimiento
A69: Telecabinas | B69: =ROUNDUP(B66*1.1,0) -> 134 | C69: =ROUNDUP(C66*1.1,0) -> 193
A71: Area del taller (m²)
A73: Zona de almacenamiento de tipo local industrial
A74: Telecabinas | B74: =14*B69 -> 1876 | C74: =14*C69 -> 2702
A76: Almacen y taller
A77: Telecabinas | B77: =250 -> 250 | C77: =250*2 -> 500
A79: Local de supervision
A80: Telecabinas | B80: =150 -> 150 | C80: =150*2 -> 300
A82: Transporte cabinas
A83: Telecabinas | B83: =B74 -> 1876 | C83: =C74 -> 2702
A85: Superficie Total
A86: Telecabinas | B86: =B74+B77+B80+B83 -> 4152 | C86: =C74+C77+C80+C83 -> 6204
A89: Tiempo de recorrido (mn)
A91: Telecabinas
A92: Tiempo de recorrido (sec) | B92: =B22/$B$10+$B$11*B29 -> 870.4545455 | C92: =C22/$B$10+$B$11*C29 -> 1681.818182
A93: Tiempo de recorrido (mn) | B93: =B92/60 -> 14.50757576 | C93: =C92/60 -> 28.03030303
A94: Velocidad promedia (km/h) | B94: =3600*B22/B92/1000 -> 16.95665796 | C94: =3600*C22/C92/1000 -> 17.44540541
A97: Consumo electrico
A99: Consumo (kW*h) | B99: =500*B22*(1.5) -> 3075000 | C99: 6112500

Sheet PRECIOS UNITARIOS (hidden)
B2: Legenda | C2: Dato de entrada
C3: Celda llave
C4: Error
C5: Dato calculado
B7: Facteur de passage Salaire Canada / Ecuador (comparaison des salaires minimums) | C7: 0.26
G10: Proyecto de Guayaquil- Costos en USD 2015 - Precios unitarios | N10: Proyecto de Guayaquil- Costos en USD 2015 - Parte local vs Parte extranjera
C11: Categoria | D11: Unidades | E11: Suministro | G11: Monocable | N11: Monocable
G12: Materia | H12: Tasas de aduanas | I12: Transporte vial | J12: Transporte maritimo | K12: Mano de obras local | L12: TOTAL | N12: Materia | P12: Tasas de aduanas | R12: Transporte vial | T12: Transporte maritimo | V12: Mano de obras local | X12: TOTAL | Z12: REPARTICION
N13: Parte local | O13: Parte extranjera | P13: Parte local | Q13: Parte extranjera | R13: Parte local | S13: Parte extranjera | T13: Parte local | U13: Parte extranjera | V13: Parte local | W13: Parte extranjera | X13: Parte local | Y13: Parte extranjera | Z13: Parte local | AA13: Parte extranjera
B15: Compra de terrenos
B16: Terreno | C16: PRED | D16: m2 | E16: LOCAL | G16: N/A | H16: N/A | I16: N/A | J16: N/A | K16: N/A | L16: N/A | N16: N/A | O16: N/A | P16: N/A | Q16: N/A | R16: N/A | S16: N/A | T16: N/A | U16: N/A | V16: N/A | W16: N/A | X16: N/A | Y16: N/A | Z16: 1 | AA16: 0
B18: Decontaminacion y proteccion
B19: Proteccion contra incendios (techos) | C19: INFRA | D19: m2 | E19: LOCAL | G19: 117.6388172 | H19: 0 | I19: 13.07097969 | J19: 0 | K19: 33.98454719 | L19: 164.6943441 | N19: 94.11105375 | O19: 23.52776344 | P19: 0 | Q19: 0 | R19: 2.614195937 | S19: 10.45678375 | T19: 0 | U19: 0 | V19: 33.98454719 | W19: 0 | X19: 130.7097969 | Y19: 33.98454719 | Z19: 0.7936507937 | AA19: 0.2063492063
B20: Proteccion contra incendios (fachadas) | C20: INFRA | D20: m2 | E20: LOCAL | G20: 117.6388172 | H20: 0 | I20: 13.07097969 | J20: 0 | K20: 33.98454719 | L20: 164.6943441 | N20: 94.11105375 | O20: 23.52776344 | P20: 0 | Q20: 0 | R20: 2.614195937 | S20: 10.45678375 | T20: 0 | U20: 0 | V20: 33.98454719 | W20: 0 | X20: 130.7097969 | Y20: 33.98454719 | Z20: 0.7936507937 | AA20: 0.2063492063
B21: Decontaminacion de suelo | C21: INFRA | D21: U | E21: LOCAL | G21: 0 | H21: 0 | I21: 0 | J21: 0 | K21: 95156.73212 | L21: 95156.73212 | N21: 0 | O21: 0 | P21: 0 | Q21: 0 | R21: 0 | S21: 0 | T21: 0 | U21: 0 | V21: 95156.73212 | W21: 0 | X21: 95156.73212 | Y21: 0 | Z21: 1 | AA21: 0
B23: Infraestructura y estructuras de lineas
B24: Cables de soportes | C24: EQUIP | D24: ml | E24: EUROPA | G24: N/A | H24: N/A | I24: N/A | J24: N/A | K24: N/A | L24: N/A | N24: N/A | O24: N/A | P24: N/A | Q24: N/A | R24: N/A | S24: N/A | T24: N/A | U24: N/A | V24: N/A | W24: N/A | X24: N/A | Y24: N/A | Z24: N/A | AA24: N/A
B25: Cable de traccion | C25: EQUIP | D25: ml | E25: EUROPA | G25: 46.8463912 | H25: 7.261190636 | I25: 4.879832417 | J25: 4.68463912 | K25: 2.537512857 | L25: 66.20956623 | N25: 0 | O25: 46.8463912 | P25: 7.261190636 | Q25: 0 | R25: 0.9759664833 | S25: 3.903865933 | T25: 0 | U25: 4.68463912 | V25: 2.537512857 | W25: 0 | X25: 10.77466998 | Y25: 55.43489625 | Z25: 0.1627358491 | AA25: 0.8372641509
B26: Cabeza de poste (patibulo + pendulos y equipamientos) | C26: EQUIP | D26: U | E26: EUROPA | G26: 66231.19511 | H26: 10033.64524 | I26: 6743.041158 | J26: 6473.319511 | K26: 10519.14421 | L26: 100000.3452 | N26: 0 | O26: 64733.19511 | P26: 10033.64524 | Q26: 0 | R26: 1348.608232 | S26: 5394.432926 | T26: 0 | U26: 6473.319511 | V26: 10519.14421 | W26: 0 | X26: 21901.39768 | Y26: 76600.94755 | Z26: 0.2223439211 | AA26: 0.7776560789
B27: Postes y fundaciones | C27: INFRA | D27: U | E27: LOCAL | G27: 85208.90809 | H27: 0 | I27: 6430.922006 | J27: 0 | K27: 8360.198608 | L27: 100000.0287 | N27: 72026.32647 | O27: 18006.58162 | P27: 0 | Q27: 0 | R27: 1286.184401 | S27: 5144.737605 | T27: 0 | U27: 0 | V27: 8360.198608 | W27: 0 | X27: 81672.70948 | Y27: 23151.31922 | Z27: 0.7791411043 | AA27: 0.2208588957
B28: Sobrecostos para fundaciones con pilotes | C28: INFRA | D28: U | E28: LOCAL | G28: 257668.7117 | H28: 0 | I28: 18404.90798 | J28: 0 | K28: 23926.38037 | L28: 180000 | N28: 206134.9693 | O28: 51533.74233 | P28: 0 | Q28: 0 | R28: 3680.981595 | S28: 14723.92638 | T28: 0 | U28: 0 | V28: 23926.38037 | W28: 0 | X28: 233742.3313 | Y28: 66257.66871 | Z28: 0.7791411043 | AA28: 0.2208588957
B30: Obras de via y reubicacion de redes
B31: Obras de via | C31: INFRA | D31: m2 | E31: LOCAL | G31: 141.1665806 | H31: 0 | I31: 15.68517562 | J31: 0 | K31: 40.78145662 | L31: 197.6332129 | N31: 112.9332645 | O31: 28.23331612 | P31: 0 | Q31: 0 | R31: 3.137035125 | S31: 12.5481405 | T31: 0 | U31: 0 | V31: 40.78145662 | W31: 0 | X31: 156.8517562 | Y31: 40.78145662 | Z31: 0.7936507937 | AA31: 0.2063492063
B32: Redes aereas de alta tension | C32: INFRA | D32: ml (de la red) | E32: LOCAL | G32: 398.9263001 | H32: 0 | I32: 56.98947144 | J32: 0 | K32: 177.8071509 | L32: 633.7229224 | N32: 319.14104 | O32: 79.78526001 | P32: 0 | Q32: 0 | R32: 11.39789429 | S32: 45.59157715 | T32: 0 | U32: 0 | V32: 177.8071509 | W32: 0 | X32: 508.3460852 | Y32: 125.3768372 | Z32: 0.8021582734 | AA32: 0.1978417266
B33: Redes aereas | C33: INFRA | D33: ml (de linea) | E33: LOCAL | G33: 52.5 | H33: 0 | I33: 7.5 | J33: 0 | K33: 23.4 | L33: 83.4 | N33: 42 | O33: 10.5 | P33: 0 | Q33: 0 | R33: 1.5 | S33: 6 | T33: 0 | U33: 0 | V33: 23.4 | W33: 0 | X33: 66.9 | Y33: 16.5 | Z33: 0.8021582734 | AA33: 0.1978417266
B34: Desplazamiento de lamparas | C34: INFRA | D34: U | E34: LOCAL | G34: 1307.097969 | H34: 0 | I34: 261.4195937 | J34: 0 | K34: 951.5673212 | L34: 2520.084884 | N34: 1045.678375 | O34: 261.4195937 | P34: 0 | Q34: 0 | R34: 52.28391875 | S34: 209.135675 | T34: 0 | U34: 0 | V34: 951.5673212 | W34: 0 | X34: 2049.529615 | Y34: 470.5552687 | Z34: 0.8132780083 | AA34: 0.1867219917
B35: Redes subterraneas | C35: INFRA | D35: ml (de linea) | E35: LOCAL | G35: 52.5 | H35: 0 | I35: 7.5 | J35: 0 | K35: 23.4 | L35: 83.4 | N35: 42 | O35: 10.5 | P35: 0 | Q35: 0 | R35: 1.5 | S35: 6 | T35: 0 | U35: 0 | V35: 23.4 | W35: 0 | X35: 66.9 | Y35: 16.5 | Z35: 0.8021582734 | AA35: 0.1978417266
B36: Mantenimiento de transito | C36: INFRA | D36: U | E36: LOCAL | G36: 41827.135 | H36: 0 | I36: 5228.391875 | J36: 0 | K36: 14953.20076 | L36: 62008.72764 | N36: 33461.708 | O36: 8365.427 | P36: 0 | Q36: 0 | R36: 1045.678375 | S36: 4182.7135 | T36: 0 | U36: 0 | V36: 14953.20076 | W36: 0 | X36: 49460.58714 | Y36: 12548.1405 | Z36: 0.7976391231 | AA36: 0.2023608769
B38: Cabinas
B39: Cabinas y soportes | C39: VEH | D39: U | E39: EUROPA | G39: 29981.69037 | H39: 149.9084518 | I39: 3504.606917 | J39: 2998.169037 | K39: 911.1977985 | L39: 37545.57257 | N39: 0 | O39: 29981.69037 | P39: 149.9084518 | Q39: 0 | R39: 700.9213835 | S39: 2803.685534 | T39: 0 | U39: 2998.169037 | V39: 911.1977985 | W39: 0 | X39: 1762.027634 | Y39: 35783.54494 | Z39: 0.04693037056 | AA39: 0.9530696294
B40: Equipamiento de conforte en las cabinas | C40: VEH | D40: U | E40: EUROPA | G40: 7495.422592 | H40: 37.47711296 | I40: 754.1559189 | J40: 749.5422592 | K40: 784.3221557 | L40: 9820.920039 | N40: 0 | O40: 7495.422592 | P40: 37.47711296 | Q40: 0 | R40: 150.8311838 | S40: 603.3247352 | T40: 0 | U40: 749.5422592 | V40: 784.3221557 | W40: 0 | X40: 972.6304524 | Y40: 8848.289586 | Z40: 0.09903659215 | AA40: 0.9009634078
B42: Tecnologias en las estaciones
B43: Lanzador (por ramita y por media-estacion) | C43: EQUIP | D43: U | E43: EUROPA | G43: 562156.6944 | H43: 2810.783472 | I43: 43208.69794 | J43: 56215.66944 | K43: 44937.04586 | L43: 709328.8911 | N43: 0 | O43: 562156.6944 | P43: 2810.783472 | Q43: 0 | R43: 8641.739589 | S43: 34566.95836 | T43: 0 | U43: 56215.66944 | V43: 44937.04586 | W43: 0 | X43: 56389.56892 | Y43: 652939.3222 | Z43: 0.07949707058 | AA43: 0.9205029294
B44: Cola y andenes (por numero de andenes, y/c puertas de anden) | C44: EQUIP | D44: U | E44: EUROPA | G44: 555369.2911 | H44: 2776.846456 | I44: 42720.7147 | J44: 55536.92911 | K44: 44429.54329 | L44: 700833.3247 | N44: 0 | O44: 555369.2911 | P44: 2776.846456 | Q44: 0 | R44: 8544.14294 | S44: 34176.57176 | T44: 0 | U44: 55536.92911 | V44: 44429.54329 | W44: 0 | X44: 55750.53269 | Y44: 645082.792 | Z44: 0.07954891801 | AA44: 0.920451082
B46: Equipamiento electrico
B47: Cuarto de mandos | C47: EQUIP | D47: N° de estaciones | E47: EUROPA | G47: 207614.6883 | H47: 1038.073441 | I47: 15970.36064 | J47: 20761.46883 | K47: 16609.17506 | L47: 261993.7662 | N47: 0 | O47: 207614.6883 | P47: 1038.073441 | Q47: 0 | R47: 3194.072127 | S47: 12776.28851 | T47: 0 | U47: 20761.46883 | V47: 16609.17506 | W47: 0 | X47: 20841.32063 | Y47: 241152.4456 | Z47: 0.07954891801 | AA47: 0.920451082
B48: Cuarto de electricidad (400V tres fases) | C48: EQUIP | D48: U | E48: EUROPA | G48: 138409.7922 | H48: 692.0489609 | I48: 11534.14935 | J48: 13840.97922 | K48: 14994.39415 | L48: 179471.3639 | N48: 0 | O48: 138409.7922 | P48: 692.0489609 | Q48: 0 | R48: 2306.82987 | S48: 9227.319479 | T48: 0 | U48: 13840.97922 | V48: 14994.39415 | W48: 0 | X48: 17993.27298 | Y48: 161478.0909 | Z48: 0.1002570694 | AA48: 0.8997429306
B49: Cuarto de manejo del traslado y zona de mantenimiento | C49: EQUIP | D49: U | E49: EUROPA | G49: 57670.74674 | H49: 288.3537337 | I49: 4436.211288 | J49: 5767.074674 | K49: 4613.659739 | L49: 72776.04618 | N49: 0 | O49: 57670.74674 | P49: 288.3537337 | Q49: 0 | R49: 887.2422576 | S49: 3548.96903 | T49: 0 | U49: 5767.074674 | V49: 4613.659739 | W49: 0 | X49: 5789.255731 | Y49: 66986.79045 | Z49: 0.07954891801 | AA49: 0.920451082
B50: Alimentacion de auxilio de emergencia de la estacion motrice y del centro de mando | C50: EQUIP | D50: U | E50: EUROPA | G50: 53234.53545 | H50: 266.1726773 | I50: 4436.211288 | J50: 5323.453545 | K50: 5767.074674 | L50: 69027.44764 | N50: 0 | O50: 53234.53545 | P50: 266.1726773 | Q50: 0 | R50: 887.2422576 | S50: 3548.96903 | T50: 0 | U50: 5323.453545 | V50: 5767.074674 | W50: 0 | X50: 6920.489609 | Y50: 62106.95803 | Z50: 0.1002570694 | AA50: 0.8997429306
B51: Alimentaciones auxiliarias y equipamientos electricos en las estaciones y en el taller (aire acondicionado, alumbrado, mando de las puertas de anden, etc.) | C51: EQUIP | D51: Superficies cerradas (m²) | E51: EUROPA | G51: 86.50612011 | H51: 0.4325306006 | I51: 6.654316932 | J51: 8.650612011 | K51: 6.920489609 | L51: 109.1640693 | N51: 0 | O51: 86.50612011 | P51: 0.4325306006 | Q51: 0 | R51: 1.330863386 | S51: 5.323453545 | T51: 0 | U51: 8.650612011 | V51: 6.920489609 | W51: 0 | X51: 8.683883596 | Y51: 100.4801857 | Z51: 0.07954891801 | AA51: 0.920451082
B52: Doble motorizacion, reductores y traccion del cable | C52: EQUIP | D52: U | E52: EUROPA | G52: 720884.3343 | H52: 3604.421671 | I52: 55452.6411 | J52: 72088.43343 | K52: 57670.74674 | L52: 909700.5772 | N52: 0 | O52: 720884.3343 | P52: 3604.421671 | Q52: 0 | R52: 11090.52822 | S52: 44362.11288 | T52: 0 | U52: 72088.43343 | V52: 57670.74674 | W52: 0 | X52: 72365.69663 | Y52: 837334.8806 | Z52: 0.07954891801 | AA52: 0.920451082
B53: Constitucion de una linea de reserva para la estacion motrice | C53: EQUIP | D53: U | E53: EUROPA | G53: 119777.7048 | H53: 598.8885239 | I53: 13308.63386 | J53: 11977.77048 | K53: 27681.95844 | L53: 173344.9561 | N53: 0 | O53: 119777.7048 | P53: 598.8885239 | Q53: 0 | R53: 2661.726773 | S53: 10646.90709 | T53: 0 | U53: 11977.77048 | V53: 27681.95844 | W53: 0 | X53: 30942.57373 | Y53: 142402.3823 | Z53: 0.1785028791 | AA53: 0.8214971209
B55: Telecomunicaciones y boleteria
B56: Consola de mandos y Tablero de control optico | C56: EQUIP | D56: Forfait | E56: EUROPA | G56: 63881.44255 | H56: 319.4072127 | I56: 5323.453545 | J56: 6388.144255 | K56: 6920.489609 | L56: 82832.93717 | N56: 0 | O56: 63881.44255 | P56: 319.4072127 | Q56: 0 | R56: 1064.690709 | S56: 4258.762836 | T56: 0 | U56: 6388.144255 | V56: 6920.489609 | W56: 0 | X56: 8304.587531 | Y56: 74528.34964 | Z56: 0.1002570694 | AA56: 0.8997429306
B57: Red de telefonia entre estaciones | C57: EQUIP | D57: N° de estaciones + 1 | E57: EUROPA | G57: 43918.49175 | H57: 219.5924587 | I57: 3137.035125 | J57: 4391.849175 | K57: 4078.145662 | L57: 55745.11417 | N57: 0 | O57: 43918.49175 | P57: 219.5924587 | Q57: 0 | R57: 627.407025 | S57: 2509.6281 | T57: 0 | U57: 4391.849175 | V57: 4078.145662 | W57: 0 | X57: 4925.145146 | Y57: 50819.96902 | Z57: 0.08835115363 | AA57: 0.9116488464
B58: Sonorizacion de anuncios publicos en estaciones | C58: EQUIP | D58: N° de estaciones + 1 | E58: EUROPA | G58: 33984.54719 | H58: 169.9227359 | I58: 2614.195937 | J58: 3398.454719 | K58: 4078.145662 | L58: 44245.26624 | N58: 0 | O58: 33984.54719 | P58: 169.9227359 | Q58: 0 | R58: 522.8391875 | S58: 2091.35675 | T58: 0 | U58: 3398.454719 | V58: 4078.145662 | W58: 0 | X58: 4770.907586 | Y58: 39474.35866 | Z58: 0.1078286558 | AA58: 0.8921713442
B59: Sistema de informacion a los pasajeros en las estaciones | C59: EQUIP | D59: N° de estaciones + 1 | E59: EUROPA | G59: 26617.26773 | H59: 133.0863386 | I59: 2218.105644 | J59: 2661.726773 | K59: 2883.537337 | L59: 34513.72382 | N59: 0 | O59: 26617.26773 | P59: 133.0863386 | Q59: 0 | R59: 443.6211288 | S59: 1774.484515 | T59: 0 | U59: 2661.726773 | V59: 2883.537337 | W59: 0 | X59: 3460.244805 | Y59: 31053.47902 | Z59: 0.1002570694 | AA59: 0.8997429306
B60: Sistema de supervision SCADA del centro de mando | C60: EQUIP | D60: U | E60: EUROPA | G60: 39038.65933 | H60: 195.1932967 | I60: 3548.96903 | J60: 3903.865933 | K60: 5536.391687 | L60: 52223.07928 | N60: 0 | O60: 39038.65933 | P60: 195.1932967 | Q60: 0 | R60: 709.7938061 | S60: 2839.175224 | T60: 0 | U60: 3903.865933 | V60: 5536.391687 | W60: 0 | X60: 6441.37879 | Y60: 45781.70049 | Z60: 0.123343527 | AA60: 0.876656473
B61: Cronometria, relojes marcadores | C61: EQUIP | D61: N° de estaciones + 1 | E61: LOCAL | G61: 19606.46953 | H61: 0 | I61: 1307.097969 | J61: 0 | K61: 1359.381887 | L61: 22272.94939 | N61: 15685.17562 | O61: 3921.293906 | P61: 0 | Q61: 0 | R61: 261.4195937 | S61: 1045.678375 | T61: 0 | U61: 0 | V61: 1359.381887 | W61: 0 | X61: 17305.97711 | Y61: 4966.972281 | Z61: 0.7769953052 | AA61: 0.2230046948
B62: Equipamiento embarcado en la cabinas (videocamara/interponia/DI/LCD/WIFI) | C62: EQUIP | D62: N° de cabinas + reserva | E62: LOCAL | G62: 3921.293906 | H62: 0 | I62: 261.4195937 | J62: 0 | K62: 271.8763775 | L62: 4454.589877 | N62: 3137.035125 | O62: 784.2587812 | P62: 0 | Q62: 0 | R62: 52.28391875 | S62: 209.135675 | T62: 0 | U62: 0 | V62: 271.8763775 | W62: 0 | X62: 3461.195421 | Y62: 993.3944562 | Z62: 0.7769953052 | AA62: 0.2230046948
B63: Sistema de antenas y de mando securizado WIFI | C63: EQUIP | D63: ml | E63: LOCAL | G63: 175.673967 | H63: 0 | I63: 12.5481405 | J63: 0 | K63: 16.31258265 | L63: 204.5346901 | N63: 140.5391736 | O63: 35.1347934 | P63: 0 | Q63: 0 | R63: 2.5096281 | S63: 10.0385124 | T63: 0 | U63: 0 | V63: 16.31258265 | W63: 0 | X63: 159.3613843 | Y63: 45.1733058 | Z63: 0.7791411043 | AA63: 0.2208588957
B64: Sistema de vigilancia visio + termica por postes | C64: EQUIP | D64: N° de postes + estaciones | E64: LOCAL | G64: 31108.93166 | H64: 0 | I64: 1829.937156 | J64: 0 | K64: 951.5673212 | L64: 33890.43613 | N64: 24887.14532 | O64: 6221.786331 | P64: 0 | Q64: 0 | R64: 365.9874312 | S64: 1463.949725 | T64: 0 | U64: 0 | V64: 951.5673212 | W64: 0 | X64: 26204.70008 | Y64: 7685.736056 | Z64: 0.7732181425 | AA64: 0.2267818575
B65: Sistema de vigilancia con video en estaciones | C65: EQUIP | D65: N° de estaciones + 1 | E65: LOCAL | G65: 41827.135 | H65: 0 | I65: 2614.195937 | J65: 0 | K65: 2039.072831 | L65: 46480.40377 | N65: 33461.708 | O65: 8365.427 | P65: 0 | Q65: 0 | R65: 522.8391875 | S65: 2091.35675 | T65: 0 | U65: 0 | V65: 2039.072831 | W65: 0 | X65: 36023.62002 | Y65: 10456.78375 | Z65: 0.7750281215 | AA65: 0.2249718785
B66: Sistema de deteccion incendio y de control de acceso | C66: EQUIP | D66: Forfait | E66: LOCAL | G66: 94111.05375 | H66: 0 | I66: 6274.07025 | J66: 0 | K66: 6525.03306 | L66: 106910.1571 | N66: 75288.843 | O66: 18822.21075 | P66: 0 | Q66: 0 | R66: 1254.81405 | S66: 5019.2562 | T66: 0 | U66: 0 | V66: 6525.03306 | W66: 0 | X66: 83068.69011 | Y66: 23841.46695 | Z66: 0.7769953052 | AA66: 0.2230046948
B67: Fibra de seguridad y equipos de transmision Ethernet | C67: EQUIP | D67: N° de estaciones + 1 | E67: LOCAL | G67: 83654.27 | H67: 0 | I67: 5228.391875 | J67: 0 | K67: 4078.145662 | L67: 92960.80754 | N67: 66923.416 | O67: 16730.854 | P67: 0 | Q67: 0 | R67: 1045.678375 | S67: 4182.7135 | T67: 0 | U67: 0 | V67: 4078.145662 | W67: 0 | X67: 72047.24004 | Y67: 20913.5675 | Z67: 0.7750281215 | AA67: 0.2249718785
B68: Sistema de boleteria | C68: EQUIP | D68: N° de estaciones + 1 | E68: EUROPA | G68: 28835.37337 | H68: 144.1768669 | I68: 2218.105644 | J68: 2883.537337 | K68: 2306.82987 | L68: 36388.02309 | N68: 0 | O68: 28835.37337 | P68: 144.1768669 | Q68: 0 | R68: 443.6211288 | S68: 1774.484515 | T68: 0 | U68: 2883.537337 | V68: 2306.82987 | W68: 0 | X68: 2894.627865 | Y68: 33493.39522 | Z68: 0.07954891801 | AA68: 0.920451082
B70: Estaciones
B71: Edificio - Terminal
B72: Fundaciones tipicas (edificio con piso tierra y primer piso) | C72: INFRA | D72: U | E72: LOCAL | G72: 93169.94321 | H72: 0 | I72: 15528.32387 | J72: 0 | K72: 52485.73468 | L72: 161184.0018 | N72: 74535.95457 | O72: 18633.98864 | P72: 0 | Q72: 0 | R72: 3105.664774 | S72: 12422.65909 | T72: 0 | U72: 0 | V72: 52485.73468 | W72: 0 | X72: 130127.354 | Y72: 31056.64774 | Z72: 0.8073217726 | AA72: 0.1926782274
B73: Piso tierra sobrelevado y fundaciones | C73: INFRA | D73: m2 | E73: LOCAL | G73: 1254.81405 | H73: 0 | I73: 209.135675 | J73: 0 | K73: 706.8785815 | L73: 2170.828306 | N73: 1003.85124 | O73: 250.96281 | P73: 0 | Q73: 0 | R73: 41.827135 | S73: 167.30854 | T73: 0 | U73: 0 | V73: 706.8785815 | W73: 0 | X73: 1752.556956 | Y73: 418.27135 | Z73: 0.8073217726 | AA73: 0.1926782274
B74: Superficies comerciales | C74: INFRA | D74: m2 | E74: LOCAL | G74: 404.9912346 | H74: 0 | I74: 67.49853911 | J74: 0 | K74: 228.1450622 | L74: 700.6348359 | N74: 323.9929877 | O74: 80.99824693 | P74: 0 | Q74: 0 | R74: 13.49970782 | S74: 53.99883128 | T74: 0 | U74: 0 | V74: 228.1450622 | W74: 0 | X74: 565.6377577 | Y74: 134.9970782 | Z74: 0.8073217726 | AA74: 0.1926782274
B75: Ingreso y circulaciones al piso tierra (y/c servicios, escaleras mecanicas, escaleras y ascencores) | C75: INFRA | D75: m2 | E75: LOCAL | G75: 1536.101533 | H75: 0 | I75: 118.1616564 | J75: 0 | K75: 184.3321839 | L75: 1838.595373 | N75: 1228.881226 | O75: 307.2203066 | P75: 0 | Q75: 0 | R75: 23.63233127 | S75: 94.5293251 | T75: 0 | U75: 0 | V75: 184.3321839 | W75: 0 | X75: 1436.845742 | Y75: 401.7496317 | Z75: 0.7814910026 | AA75: 0.2185089974
B76: Escaleras mecanicas, escaleras y ascencores adicionales (piso tierra sobrelevado) | C76: EQUIP | D76: U | E76: LOCAL | G76: 215625 | H76: 0 | I76: 35937.5 | J76: 0 | K76: 121468.75 | L76: 373031.25 | N76: 172500 | O76: 43125 | P76: 0 | Q76: 0 | R76: 7187.5 | S76: 28750 | T76: 0 | U76: 0 | V76: 121468.75 | W76: 0 | X76: 301156.25 | Y76: 71875 | Z76: 0.8073217726 | AA76: 0.1926782274
B77: Anden al primer piso | C77: INFRA | D77: m2 | E77: LOCAL | G77: 607.6437037 | H77: 0 | I77: 101.2739506 | J77: 0 | K77: 342.3059531 | L77: 1051.223607 | N77: 486.114963 | O77: 121.5287407 | P77: 0 | Q77: 0 | R77: 20.25479012 | S77: 81.01916049 | T77: 0 | U77: 0 | V77: 342.3059531 | W77: 0 | X77: 848.6757062 | Y77: 202.5479012 | Z77: 0.8073217726 | AA77: 0.1926782274
B78: Centro de mando + Locales tecnicos cubiertos | C78: INFRA | D78: m2 | E78: LOCAL | G78: 809.9824693 | H78: 0 | I78: 134.9970782 | J78: 0 | K78: 456.2901244 | L78: 1401.269672 | N78: 647.9859754 | O78: 161.9964939 | P78: 0 | Q78: 0 | R78: 26.99941564 | S78: 107.9976626 | T78: 0 | U78: 0 | V78: 456.2901244 | W78: 0 | X78: 1131.275515 | Y78: 269.9941564 | Z78: 0.8073217726 | AA78: 0.1926782274
B79: Locales tecnicos non cerrados | C79: INFRA | D79: m2 | E79: LOCAL | G79: 404.9912346 | H79: 0 | I79: 67.49853911 | J79: 0 | K79: 228.1450622 | L79: 700.6348359 | N79: 323.9929877 | O79: 80.99824693 | P79: 0 | Q79: 0 | R79: 13.49970782 | S79: 53.99883128 | T79: 0 | U79: 0 | V79: 228.1450622 | W79: 0 | X79: 565.6377577 | Y79: 134.9970782 | Z79: 0.8073217726 | AA79: 0.1926782274
B80: Adecuacion urbana (demolicion, reconstruccion, mobiliario urbano, paisaje) | C80: INFRA | D80: m2 | E80: LOCAL | G80: 376.444215 | H80: 0 | I80: 41.827135 | J80: 0 | K80: 108.750551 | L80: 527.021901 | N80: 301.155372 | O80: 75.288843 | P80: 0 | Q80: 0 | R80: 8.365427 | S80: 33.461708 | T80: 0 | U80: 0 | V80: 108.750551 | W80: 0 | X80: 418.27135 | Y80: 108.750551 | Z80: 0.7936507937 | AA80: 0.2063492063
B81: Pasarela | C81: INFRA | D81: m2 | E81: LOCAL | G81: 784.2587812 | H81: 0 | I81: 130.7097969 | J81: 0 | K81: 441.7991134 | L81: 1356.767692 | N81: 627.407025 | O81: 156.8517562 | P81: 0 | Q81: 0 | R81: 26.14195937 | S81: 104.5678375 | T81: 0 | U81: 0 | V81: 441.7991134 | W81: 0 | X81: 1095.348098 | Y81: 261.4195937 | Z81: 0.8073217726 | AA81: 0.1926782274
B82: Edificio - De linea
B83: Fundaciones tipicas (edificio con piso tierra y primer piso) | C83: INFRA | D83: U | E83: LOCAL | G83: 111992.154 | H83: 0 | I83: 18665.35899 | J83: 0 | K83: 63088.9134 | L83: 193746.4264 | N83: 89593.72317 | O83: 22398.43079 | P83: 0 | Q83: 0 | R83: 3733.071799 | S83: 14932.28719 | T83: 0 | U83: 0 | V83: 63088.9134 | W83: 0 | X83: 156415.7084 | Y83: 37330.71799 | Z83: 0.8073217726 | AA83: 0.1926782274
B84: Piso tierra sobrelevado y fundaciones | C84: INFRA | D84: m2 | E84: LOCAL | G84: 1254.81405 | H84: 0 | I84: 209.135675 | J84: 0 | K84: 706.8785815 | L84: 2170.828306 | N84: 1003.85124 | O84: 250.96281 | P84: 0 | Q84: 0 | R84: 41.827135 | S84: 167.30854 | T84: 0 | U84: 0 | V84: 706.8785815 | W84: 0 | X84: 1752.556956 | Y84: 418.27135 | Z84: 0.8073217726 | AA84: 0.1926782274
B85: Superficies comerciales | C85: INFRA | D85: m2 | E85: LOCAL | G85: 404.9912346 | H85: 0 | I85: 67.49853911 | J85: 0 | K85: 228.1450622 | L85: 700.6348359 | N85: 323.9929877 | O85: 80.99824693 | P85: 0 | Q85: 0 | R85: 13.49970782 | S85: 53.99883128 | T85: 0 | U85: 0 | V85: 228.1450622 | W85: 0 | X85: 565.6377577 | Y85: 134.9970782 | Z85: 0.8073217726 | AA85: 0.1926782274
B86: Ingreso y circulaciones al piso tierra (y/c servicios, escaleras mecanicas, escaleras y ascencores) | C86: INFRA | D86: m2 | E86: LOCAL | G86: 1536.101533 | H86: 0 | I86: 118.1616564 | J86: 0 | K86: 184.3321839 | L86: 1838.595373 | N86: 1228.881226 | O86: 307.2203066 | P86: 0 | Q86: 0 | R86: 23.63233127 | S86: 94.5293251 | T86: 0 | U86: 0 | V86: 184.3321839 | W86: 0 | X86: 1436.845742 | Y86: 401.7496317 | Z86: 0.7814910026 | AA86: 0.2185089974
B87: Escaleras mecanicas, escaleras y ascencores adicionales (piso tierra sobrelevado) | C87: EQUIP | D87: U | E87: LOCAL | G87: 215625 | H87: 0 | I87: 35937.5 | J87: 0 | K87: 121468.75 | L87: 373031.25 | N87: 172500 | O87: 43125 | P87: 0 | Q87: 0 | R87: 7187.5 | S87: 28750 | T87: 0 | U87: 0 | V87: 121468.75 | W87: 0 | X87: 301156.25 | Y87: 71875 | Z87: 0.8073217726 | AA87: 0.1926782274
B88: Anden al primer piso | C88: INFRA | D88: m2 | E88: LOCAL | G88: 607.6437037 | H88: 0 | I88: 101.2739506 | J88: 0 | K88: 342.3059531 | L88: 1051.223607 | N88: 486.114963 | O88: 121.5287407 | P88: 0 | Q88: 0 | R88: 20.25479012 | S88: 81.01916049 | T88: 0 | U88: 0 | V88: 342.3059531 | W88: 0 | X88: 848.6757062 | Y88: 202.5479012 | Z88: 0.8073217726 | AA88: 0.1926782274
B89: Centro de mando + Locales tecnicos cubiertos | C89: INFRA | D89: m2 | E89: LOCAL | G89: 809.9824693 | H89: 0 | I89: 134.9970782 | J89: 0 | K89: 456.2901244 | L89: 1401.269672 | N89: 647.9859754 | O89: 161.9964939 | P89: 0 | Q89: 0 | R89: 26.99941564 | S89: 107.9976626 | T89: 0 | U89: 0 | V89: 456.2901244 | W89: 0 | X89: 1131.275515 | Y89: 269.9941564 | Z89: 0.8073217726 | AA89: 0.1926782274
B90: Locales tecnicos non cerrados | C90: INFRA | D90: m2 | E90: LOCAL | G90: 404.9912346 | H90: 0 | I90: 67.49853911 | J90: 0 | K90: 228.1450622 | L90: 700.6348359 | N90: 323.9929877 | O90: 80.99824693 | P90: 0 | Q90: 0 | R90: 13.49970782 | S90: 53.99883128 | T90: 0 | U90: 0 | V90: 228.1450622 | W90: 0 | X90: 565.6377577 | Y90: 134.9970782 | Z90: 0.8073217726 | AA90: 0.1926782274
B91: Adecuacion urbana (demolicion, reconstruccion, mobiliario urbano, paisaje) | C91: INFRA | D91: m2 | E91: LOCAL | G91: 376.444215 | H91: 0 | I91: 41.827135 | J91: 0 | K91: 108.750551 | L91: 527.021901 | N91: 301.155372 | O91: 75.288843 | P91: 0 | Q91: 0 | R91: 8.365427 | S91: 33.461708 | T91: 0 | U91: 0 | V91: 108.750551 | W91: 0 | X91: 418.27135 | Y91: 108.750551 | Z91: 0.7936507937 | AA91: 0.2063492063
B92: Pasarela | C92: INFRA | D92: m2 | E92: LOCAL | G92: 784.2587812 | H92: 0 | I92: 130.7097969 | J92: 0 | K92: 441.7991134 | L92: 1356.767692 | N92: 627.407025 | O92: 156.8517562 | P92: 0 | Q92: 0 | R92: 26.14195937 | S92: 104.5678375 | T92: 0 | U92: 0 | V92: 441.7991134 | W92: 0 | X92: 1095.348098 | Y92: 261.4195937 | Z92: 0.8073217726 | AA92: 0.1926782274
B94: Centro de mantenimiento
B95: Zona de almacenamiento de tipo local industrial | C95: INFRA | D95: m2 | E95: LOCAL | G95: 404.9912346 | H95: 0 | I95: 67.49853911 | J95: 0 | K95: 228.1450622 | L95: 700.6348359 | N95: 323.9929877 | O95: 80.99824693 | P95: 0 | Q95: 0 | R95: 13.49970782 | S95: 53.99883128 | T95: 0 | U95: 0 | V95: 228.1450622 | W95: 0 | X95: 565.6377577 | Y95: 134.9970782 | Z95: 0.8073217726 | AA95: 0.1926782274
B96: Almacen y taller | C96: INFRA | D96: m2 | E96: LOCAL | G96: 573.7637244 | H96: 0 | I96: 95.62728739 | J96: 0 | K96: 323.2202314 | L96: 992.6112431 | N96: 459.0109795 | O96: 114.7527449 | P96: 0 | Q96: 0 | R96: 19.12545748 | S96: 76.50182991 | T96: 0 | U96: 0 | V96: 323.2202314 | W96: 0 | X96: 801.3566684 | Y96: 191.2545748 | Z96: 0.8073217726 | AA96: 0.1926782274
B97: Local de supervision | C97: INFRA | D97: m2 | E97: LOCAL | G97: 573.7637244 | H97: 0 | I97: 95.62728739 | J97: 0 | K97: 323.2202314 | L97: 992.6112431 | N97: 459.0109795 | O97: 114.7527449 | P97: 0 | Q97: 0 | R97: 19.12545748 | S97: 76.50182991 | T97: 0 | U97: 0 | V97: 323.2202314 | W97: 0 | X97: 801.3566684 | Y97: 191.2545748 | Z97: 0.8073217726 | AA97: 0.1926782274
B98: Transporte cabinas | C98: EQUIP | D98: m2 | E98: EUROPA | G98: 922.7319479 | H98: 4.613659739 | I98: 70.97938061 | J98: 92.27319479 | K98: 73.81855583 | L98: 1164.416739 | N98: 0 | O98: 922.7319479 | P98: 4.613659739 | Q98: 0 | R98: 14.19587612 | S98: 56.78350448 | T98: 0 | U98: 92.27319479 | V98: 73.81855583 | W98: 0 | X98: 92.62809169 | Y98: 1071.788647 | Z98: 0.07954891801 | AA98: 0.920451082
B99: Instrumentos, elevador y piezas de recambio | C99: EQUIP | D99: U | E99: EUROPA | G99: 124435.7266 | H99: 622.1786331 | I99: 7319.748625 | J99: 12443.57266 | K99: 0 | L99: 144821.2265 | N99: 0 | O99: 124435.7266 | P99: 622.1786331 | Q99: 0 | R99: 1463.949725 | S99: 5855.7989 | T99: 0 | U99: 12443.57266 | V99: 0 | W99: 0 | X99: 2086.128358 | Y99: 142735.0982 | Z99: 0.01440485216 | AA99: 0.9855951478
B100: Ascensores inclinados para las cabinas | C100: EQUIP | D100: U | E100: EUROPA | G100: 576707.4674 | H100: 2883.537337 | I100: 44362.11288 | J100: 57670.74674 | K100: 46136.59739 | L100: 727760.4618 | N100: 0 | O100: 576707.4674 | P100: 2883.537337 | Q100: 0 | R100: 8872.422576 | S100: 35489.6903 | T100: 0 | U100: 57670.74674 | V100: 46136.59739 | W100: 0 | X100: 57892.55731 | Y100: 669867.9045 | Z100: 0.07954891801 | AA100: 0.920451082
B101: Adecuacion urbana (demolicion, reconstruccion, mobiliario urbano, paisaje) | C101: INFRA | D101: m2 | E101: LOCAL | G101: 141.1665806 | H101: 0 | I101: 15.68517562 | J101: 0 | K101: 40.78145662 | L101: 197.6332129 | N101: 112.9332645 | O101: 28.23331612 | P101: 0 | Q101: 0 | R101: 3.137035125 | S101: 12.5481405 | T101: 0 | U101: 0 | V101: 40.78145662 | W101: 0 | X101: 156.8517562 | Y101: 40.78145662 | Z101: 0.7936507937 | AA101: 0.2063492063
B103: Operaciones adicionales : estacionamiento incitativo y buses
B104: Estacionamiento incitativo | C104: INFRA | D104: Plaza | E104: LOCAL | G104: 1097.962294 | H104: 0 | I104: 182.9937156 | J104: 0 | K104: 618.5187588 | L104: 1899.474768 | N104: 878.369835 | O104: 219.5924587 | P104: 0 | Q104: 0 | R104: 36.59874312 | S104: 146.3949725 | T104: 0 | U104: 0 | V104: 618.5187588 | W104: 0 | X104: 1533.487337 | Y104: 365.9874312 | Z104: 0.8073217726 | AA104: 0.1926782274
B105: Creacion de vias de acceso en Samborondon | C105: INFRA | D105: m² | E105: LOCAL | G105: 141.1665806 | H105: 0 | I105: 15.68517562 | J105: 0 | K105: 40.78145662 | L105: 197.6332129 | N105: 112.9332645 | O105: 28.23331612 | P105: 0 | Q105: 0 | R105: 3.137035125 | S105: 12.5481405 | T105: 0 | U105: 0 | V105: 40.78145662 | W105: 0 | X105: 156.8517562 | Y105: 40.78145662 | Z105: 0.7936507937 | AA105: 0.2063492063
B106: Compra de buses alimentadores para Samborondon (12 m) | C106: VEH | D106: U | E106: LOCAL | G106: 130000 | H106: 0 | I106: 0 | J106: 0 | K106: 0 | L106: 130000 | N106: 104000 | O106: 26000 | P106: 0 | Q106: 0 | R106: 0 | S106: 0 | T106: 0 | U106: 0 | V106: 0 | W106: 0 | X106: 104000 | Y106: 26000 | Z106: 0.8 | AA106: 0.2
B107: Compra de buses alimentadores para Duran (12 m) | C107: VEH | D107: U | E107: LOCAL | G107: 130000 | H107: 0 | I107: 0 | J107: 0 | K107: 0 | L107: 130000 | N107: 104000 | O107: 26000 | P107: 0 | Q107: 0 | R107: 0 | S107: 0 | T107: 0 | U107: 0 | V107: 0 | W107: 0 | X107: 104000 | Y107: 26000 | Z107: 0.8 | AA107: 0.2
B108: Creacion de paraderos en Samborondon | C108: INFRA | D108: U | E108: LOCAL | G108: 1568.517562 | H108: 0 | I108: 522.8391875 | J108: 0 | K108: 2175.01102 | L108: 4266.36777 | N108: 1254.81405 | O108: 313.7035125 | P108: 0 | Q108: 0 | R108: 104.5678375 | S108: 418.27135 | T108: 0 | U108: 0 | V108: 2175.01102 | W108: 0 | X108: 3534.392907 | Y108: 731.9748625 | Z108: 0.8284313725 | AA108: 0.1715686275
B109: Creacion de paraderos en Duran | C109: INFRA | D109: U | E109: LOCAL | G109: 1568.517562 | H109: 0 | I109: 522.8391875 | J109: 0 | K109: 2175.01102 | L109: 4266.36777 | N109: 1254.81405 | O109: 313.7035125 | P109: 0 | Q109: 0 | R109: 104.5678375 | S109: 418.27135 | T109: 0 | U109: 0 | V109: 2175.01102 | W109: 0 | X109: 3534.392907 | Y109: 731.9748625 | Z109: 0.8284313725 | AA109: 0.1715686275
B110: Modificacion de parada de bus | C110: INFRA | D110: forfait | E110: LOCAL | G110: 1568.517562 | H110: 0 | I110: 522.8391875 | J110: 0 | K110: 2175.01102 | L110: 4266.36777 | N110: 1254.81405 | O110: 313.7035125 | P110: 0 | Q110: 0 | R110: 104.5678375 | S110: 418.27135 | T110: 0 | U110: 0 | V110: 2175.01102 | W110: 0 | X110: 3534.392907 | Y110: 731.9748625 | Z110: 0.8284313725 | AA110: 0.1715686275

Sheet DEMANDA (hidden)
B2: Legenda | C2: Dato de entrada
C3: Celda llave
C4: Error
C5: Dato calculado
B8: HIPOTESIS
B10: Dias de operacion | C10: 300
B12: Escenario base | C12: % de tarifas normales | D12: =1-D13 -> 0.85
C13: % de tarifas reducidas | D13: 0.15
C15: Parqueardero gratuido
C16: Plazas necesaria | D16: 23 | E16: 200
D17: 21 | E17: 400
C19: Alimentadoras de Samborondon con tarifa integrada (gratuidas)
E20: Demanda hora pico (pphpd)
E21: Samborondon | F21: Duran
D22: 23 | E22: 0 | F22: 350
D23: 21 | E23: 200 | F23: 350
C25: Sin integracion tarifaria con el Metrovia
B33: ALTERNATIVA 23
D35: 4091.58 | I35: 4499.28 | N35: 4915.44 | S35: 5488.56 | X35: 6322.05
D36: 4054.86 | I36: 4425.39 | N36: 4840.11 | S36: 5387.31 | X36: 6199.92
AQ39: =AQ42*0.8 -> 56196
B40: JOB
B41: Año | C41: 2019 | D41: 2020 | E41: 2021 | F41: 2022 | G41: 2023 | H41: 2024 | I41: 2025 | J41: 2026 | K41: 2027 | L41: 2028 | M41: 2029 | N41: 2030 | O41: 2031 | P41: 2032 | Q41: 2033 | R41: 2034 | S41: 2035 | T41: 2036 | U41: 2037 | V41: 2038 | W41: 2039 | X41: 2040 | Y41: 2041 | Z41: 2042 | AA41: 2043 | AB41: 2044 | AC41: 2045 | AD41: 2046 | AE41: 2047 | AF41: 2048 | AG41: 2049 | AH41: 2050 | AI41: 2051 | AJ41: 2052 | AK41: 2053 | AL41: 2054 | AM41: 2055 | AN41: 2056 | AO41: 2057 | AP41: 2058 | AQ41: 2059
B42: Tarifa 1 | C42: =D42-0.25*D42 -> 34096.5 | D42: =D35*PARAMETROS!$C$23/PARAMETROS!$C$25 -> 45462 | E42: =D42+($I42-$D42)/5 -> 46368 | F42: =E42+($I42-$D42)/5 -> 47274 | G42: 48180 | H42: 49086 | I42: =I35*PARAMETROS!$C$23/PARAMETROS!$C$25 -> 49992 | J42: =I42+($N42-$I42)/5 -> 50916.8 | K42: =J42+($N42-$I42)/5 -> 51841.6 | L42: 52766.4 | M42: 53691.2 | N42: =N35*PARAMETROS!$C$23/PARAMETROS!$C$25 -> 54616 | O42: =N42+($S42-$N42)/5 -> 55889.6 | P42: =O42+($S42-$N42)/5 -> 57163.2 | Q42: 58436.8 | R42: 59710.4 | S42: =S35*PARAMETROS!$C$23/PARAMETROS!$C$25 -> 60984 | T42: =S42+($X42-$S42)/5 -> 62836.2 | U42: =T42+($X42-$S42)/5 -> 64688.4 | V42: =U42+($X42-$S42)/5 -> 66540.6 | W42: 68392.8 | X42: =X35*PARAMETROS!$C$23/PARAMETROS!$C$25 -> 70245 | Y42: =$X42 -> 70245 | Z42: =$X42 -> 70245 | AA42: 70245 | AB42: 70245 | AC42: 70245 | AD42: 70245 | AE42: 70245 | AF42: 70245 | AG42: 70245 | AH42: 70245 | AI42: 70245 | AJ42: 70245 | AK42: 70245 | AL42: 70245 | AM42: 70245 | AN42: 70245 | AO42: 70245 | AP42: 70245 | AQ42: 70245
B43: Tarifa 2 | C43: =D43-0.25*D43 -> 33790.5 | D43: =D36*PARAMETROS!$C$23/PARAMETROS!$C$25 -> 45054 | E43: =D43+($I43-$D43)/5 -> 45877.4 | F43: 46700.8 | G43: 47524.2 | H43: 48347.6 | I43: =I36*PARAMETROS!$C$23/PARAMETROS!$C$25 -> 49171 | J43: =I43+($N43-$I43)/5 -> 50092.6 | K43: 51014.2 | L43: 51935.8 | M43: 52857.4 | N43: =N36*PARAMETROS!$C$23/PARAMETROS!$C$25 -> 53779 | O43: =N43+($S43-$N43)/5 -> 54995 | P43: 56211 | Q43: 57427 | R43: 58643 | S43: =S36*PARAMETROS!$C$23/PARAMETROS!$C$25 -> 59859 | T43: =S43+($X43-$S43)/5 -> 61664.8 | U43: 63470.6 | V43: 65276.4 | W43: 67082.2 | X43: =X36*PARAMETROS!$C$23/PARAMETROS!$C$25 -> 68888 | Y43: =$X43 -> 68888 | Z43: 68888 | AA43: 68888 | AB43: 68888 | AC43: 68888 | AD43: 68888 | AE43: 68888 | AF43: 68888 | AG43: 68888 | AH43: 68888 | AI43: 68888 | AJ43: 68888 | AK43: 68888 | AL43: 68888 | AM43: 68888 | AN43: 68888 | AO43: 68888 | AP43: 68888 | AQ43: 68888
B44: Tarifa 3 | C44: 0 | D44: =D37*PARAMETROS!$C$23/PARAMETROS!$C$25 -> 0 | E44: =D44+($I44-$D44)/5 -> 0 | F44: 0 | G44: 0 | H44: 0 | I44: =I37*PARAMETROS!$C$23/PARAMETROS!$C$25 -> 0 | J44: =I44+($N44-$I44)/5 -> 0 | K44: 0 | L44: 0 | M44: 0 | N44: =N37*PARAMETROS!$C$23/PARAMETROS!$C$25 -> 0 | O44: =N44+($S44-$N44)/5 -> 0 | P44: 0 | Q44: 0 | R44: 0 | S44: =S37*PARAMETROS!$C$23/PARAMETROS!$C$25 -> 0 | T44: =S44+($X44-$S44)/5 -> 0 | U44: 0 | V44: 0 | W44: 0 | X44: =X37*PARAMETROS!$C$23/PARAMETROS!$C$25 -> 0 | Y44: 0 | Z44: 0 | AA44: 0 | AB44: 0 | AC44: 0 | AD44: 0 | AE44: 0 | AF44: 0 | AG44: 0 | AH44: 0 | AI44: 0 | AJ44: 0 | AK44: 0 | AL44: 0 | AM44: 0 | AN44: 0 | AO44: 0 | AP44: 0 | AQ44: 0
B45: Tarifa 4 | C45: 0 | D45: =D38*PARAMETROS!$C$23/PARAMETROS!$C$25 -> 0 | E45: =D45+($I45-$D45)/5 -> 0 | F45: 0 | G45: 0 | H45: 0 | I45: =I38*PARAMETROS!$C$23/PARAMETROS!$C$25 -> 0 | J45: =I45+($N45-$I45)/5 -> 0 | K45: 0 | L45: 0 | M45: 0 | N45: =N38*PARAMETROS!$C$23/PARAMETROS!$C$25 -> 0 | O45: =N45+($S45-$N45)/5 -> 0 | P45: 0 | Q45: 0 | R45: 0 | S45: =S38*PARAMETROS!$C$23/PARAMETROS!$C$25 -> 0 | T45: =S45+($X45-$S45)/5 -> 0 | U45: 0 | V45: 0 | W45: 0 | X45: =X38*PARAMETROS!$C$23/PARAMETROS!$C$25 -> 0 | Y45: 0 | Z45: 0 | AA45: 0 | AB45: 0 | AC45: 0 | AD45: 0 | AE45: 0 | AF45: 0 | AG45: 0 | AH45: 0 | AI45: 0 | AJ45: 0 | AK45: 0 | AL45: 0 | AM45: 0 | AN45: 0 | AO45: 0 | AP45: 0 | AQ45: 0
B46: Tarifa 5 | C46: 0 | D46: =D39*PARAMETROS!$C$23/PARAMETROS!$C$25 -> 0 | E46: =D46+($I46-$D46)/5 -> 0 | F46: 0 | G46: 0 | H46: 0 | I46: =I39*PARAMETROS!$C$23/PARAMETROS!$C$25 -> 0 | J46: =I46+($N46-$I46)/5 -> 0 | K46: 0 | L46: 0 | M46: 0 | N46: =N39*PARAMETROS!$C$23/PARAMETROS!$C$25 -> 0 | O46: =N46+($S46-$N46)/5 -> 0 | P46: 0 | Q46: 0 | R46: 0 | S46: =S39*PARAMETROS!$C$23/PARAMETROS!$C$25 -> 0 | T46: =S46+($X46-$S46)/5 -> 0 | U46: 0 | V46: 0 | W46: 0 | X46: =X39*PARAMETROS!$C$23/PARAMETROS!$C$25 -> 0 | Y46: 0 | Z46: 0 | AA46: 0 | AB46: 0 | AC46: 0 | AD46: 0 | AE46: 0 | AF46: 0 | AG46: 0 | AH46: 0 | AI46: 0 | AJ46: 0 | AK46: 0 | AL46: 0 | AM46: 0 | AN46: 0 | AO46: 0 | AP46: 0 | AQ46: 0
B48: Pasajeros Anuales
B49: Año | C49: 2019 | D49: 2020 | E49: 2021 | F49: 2022 | G49: 2023 | H49: 2024 | I49: 2025 | J49: 2026 | K49: 2027 | L49: 2028 | M49: 2029 | N49: 2030 | O49: 2031 | P49: 2032 | Q49: 2033 | R49: 2034 | S49: 2035 | T49: 2036 | U49: 2037 | V49: 2038 | W49: 2039 | X49: 2040 | Y49: 2041 | Z49: 2042 | AA49: 2043 | AB49: 2044 | AC49: 2045 | AD49: 2046 | AE49: 2047 | AF49: 2048 | AG49: 2049 | AH49: 2050 | AI49: 2051 | AJ49: 2052 | AK49: 2053 | AL49: 2054 | AM49: 2055 | AN49: 2056 | AO49: 2057 | AP49: 2058 | AQ49: 2059
B50: Tarifa 1 | C50: =$C$10*C42 -> 10228950 | D50: =$C$10*D42 -> 13638600 | E50: 13910400 | F50: 14182200 | G50: 14454000 | H50: 14725800 | I50: 14997600 | J50: 15275040 | K50: 15552480 | L50: 15829920 | M50: 16107360 | N50: 16384800 | O50: 16766880 | P50: 17148960 | Q50: 17531040 | R50: 17913120 | S50: 18295200 | T50: 18850860 | U50: 19406520 | V50: 19962180 | W50: 20517840 | X50: 21073500 | Y50: 21073500 | Z50: 21073500 | AA50: 21073500 | AB50: 21073500 | AC50: 21073500 | AD50: 21073500 | AE50: 21073500 | AF50: 21073500 | AG50: 21073500 | AH50: =$C$10*AH42 -> 21073500 | AI50: 21073500 | AJ50: 21073500 | AK50: 21073500 | AL50: 21073500 | AM50: 21073500 | AN50: 21073500 | AO50: 21073500 | AP50: 21073500 | AQ50: 21073500
B51: Tarifa 2 | C51: =$C$10*C43 -> 10137150 | D51: =$C$10*D43 -> 13516200 | E51: 13763220 | F51: 14010240 | G51: 14257260 | H51: 14504280 | I51: 14751300 | J51: 15027780 | K51: 15304260 | L51: 15580740 | M51: 15857220 | N51: 16133700 | O51: 16498500 | P51: 16863300 | Q51: 17228100 | R51: 17592900 | S51: 17957700 | T51: 18499440 | U51: 19041180 | V51: 19582920 | W51: 20124660 | X51: 20666400 | Y51: 20666400 | Z51: 20666400 | AA51: 20666400 | AB51: 20666400 | AC51: 20666400 | AD51: 20666400 | AE51: 20666400 | AF51: 20666400 | AG51: 20666400 | AH51: =$C$10*AH43 -> 20666400 | AI51: 20666400 | AJ51: 20666400 | AK51: 20666400 | AL51: 20666400 | AM51: 20666400 | AN51: 20666400 | AO51: 20666400 | AP51: 20666400 | AQ51: 20666400
B52: Tarifa 3 | C52: =$C$10*C44 -> 0 | D52: 0 | E52: 0 | F52: 0 | G52: 0 | H52: 0 | I52: 0 | J52: 0 | K52: 0 | L52: 0 | M52: 0 | N52: 0 | O52: 0 | P52: 0 | Q52: 0 | R52: 0 | S52: 0 | T52: 0 | U52: 0 | V52: 0 | W52: 0 | X52: 0 | Y52: 0 | Z52: 0 | AA52: 0 | AB52: 0 | AC52: 0 | AD52: 0 | AE52: 0 | AF52: 0 | AG52: 0 | AH52: =$C$10*AH44 -> 0 | AI52: 0 | AJ52: 0 | AK52: 0 | AL52: 0 | AM52: 0 | AN52: 0 | AO52: 0 | AP52: 0 | AQ52: 0
B53: Tarifa 4 | C53: =$C$10*C45 -> 0 | D53: 0 | E53: 0 | F53: 0 | G53: 0 | H53: 0 | I53: 0 | J53: 0 | K53: 0 | L53: 0 | M53: 0 | N53: 0 | O53: 0 | P53: 0 | Q53: 0 | R53: 0 | S53: 0 | T53: 0 | U53: 0 | V53: 0 | W53: 0 | X53: 0 | Y53: 0 | Z53: 0 | AA53: 0 | AB53: 0 | AC53: 0 | AD53: 0 | AE53: 0 | AF53: 0 | AG53: 0 | AH53: =$C$10*AH45 -> 0 | AI53: 0 | AJ53: 0 | AK53: 0 | AL53: 0 | AM53: 0 | AN53: 0 | AO53: 0 | AP53: 0 | AQ53: 0
B54: Tarifa 5 | C54: =$C$10*C46 -> 0 | D54: 0 | E54: 0 | F54: 0 | G54: 0 | H54: 0 | I54: 0 | J54: 0 | K54: 0 | L54: 0 | M54: 0 | N54: 0 | O54: 0 | P54: 0 | Q54: 0 | R54: 0 | S54: 0 | T54: 0 | U54: 0 | V54: 0 | W54: 0 | X54: 0 | Y54: 0 | Z54: 0 | AA54: 0 | AB54: 0 | AC54: 0 | AD54: 0 | AE54: 0 | AF54: 0 | AG54: 0 | AH54: =$C$10*AH46 -> 0 | AI54: 0 | AJ54: 0 | AK54: 0 | AL54: 0 | AM54: 0 | AN54: 0 | AO54: 0 | AP54: 0 | AQ54: 0
B58: ALTERNATIVA 21
D60: 4582.02 | I60: 5027.18 | N60: 5492.74 | S60: 6133.3 | X60: 7045.69
D61: 4539.67 | I61: 4952.44 | N61: 5393.45 | S61: 6014.73 | X61: 6906.13
B65: JOB
B66: Año | C66: 2019 | D66: 2020 | E66: 2021 | F66: 2022 | G66: 2023 | H66: 2024 | I66: 2025 | J66: 2026 | K66: 2027 | L66: 2028 | M66: 2029 | N66: 2030 | O66: 2031 | P66: 2032 | Q66: 2033 | R66: 2034 | S66: 2035 | T66: 2036 | U66: 2037 | V66: 2038 | W66: 2039 | X66: 2040 | Y66: 2041 | Z66: 2042 | AA66: 2043 | AB66: 2044 | AC66: 2045 | AD66: 2046 | AE66: 2047 | AF66: 2048 | AG66: 2049 | AH66: 2050 | AI66: 2051 | AJ66: 2052 | AK66: 2053 | AL66: 2054 | AM66: 2055 | AN66: 2056 | AO66: 2057 | AP66: 2058 | AQ66: 2059
B67: Tarifa 1 | C67: =D67-0.25*D67 -> 38183.5 | D67: =D60*PARAMETROS!$C$23/PARAMETROS!$C$25 -> 50911.33333 | E67: =D67+($I67-$D67)/5 -> 51900.57778 | F67: =E67+($I67-$D67)/5 -> 52889.82222 | G67: 53879.06667 | H67: 54868.31111 | I67: =I60*PARAMETROS!$C$23/PARAMETROS!$C$25 -> 55857.55556 | J67: =I67+($N67-$I67)/5 -> 56892.13333 | K67: =J67+($N67-$I67)/5 -> 57926.71111 | L67: 58961.28889 | M67: 59995.86667 | N67: =N60*PARAMETROS!$C$23/PARAMETROS!$C$25 -> 61030.44444 | O67: =N67+($S67-$N67)/5 -> 62453.91111 | P67: =O67+($S67-$N67)/5 -> 63877.37778 | Q67: 65300.84444 | R67: 66724.31111 | S67: =S60*PARAMETROS!$C$23/PARAMETROS!$C$25 -> 68147.77778 | T67: =S67+($X67-$S67)/5 -> 70175.31111 | U67: =T67+($X67-$S67)/5 -> 72202.84444 | V67: =U67+($X67-$S67)/5 -> 74230.37778 | W67: 76257.91111 | X67: =X60*PARAMETROS!$C$23/PARAMETROS!$C$25 -> 78285.44444 | Y67: =$X67 -> 78285.44444 | Z67: =$X67 -> 78285.44444 | AA67: 78285.44444 | AB67: 78285.44444 | AC67: 78285.44444 | AD67: 78285.44444 | AE67: 78285.44444 | AF67: 78285.44444 | AG67: 78285.44444 | AH67: 78285.44444 | AI67: 78285.44444 | AJ67: 78285.44444 | AK67: 78285.44444 | AL67: 78285.44444 | AM67: 78285.44444 | AN67: 78285.44444 | AO67: 78285.44444 | AP67: 78285.44444 | AQ67: 78285.44444
B68: Tarifa 2 | C68: =D68-0.25*D68 -> 37830.58333 | D68: =D61*PARAMETROS!$C$23/PARAMETROS!$C$25 -> 50440.77778 | E68: =D68+($I68-$D68)/5 -> 51358.04444 | F68: 52275.31111 | G68: 53192.57778 | H68: 54109.84444 | I68: =I61*PARAMETROS!$C$23/PARAMETROS!$C$25 -> 55027.11111 | J68: =I68+($N68-$I68)/5 -> 56007.13333 | K68: 56987.15556 | L68: 57967.17778 | M68: 58947.2 | N68: =N61*PARAMETROS!$C$23/PARAMETROS!$C$25 -> 59927.22222 | O68: =N68+($S68-$N68)/5 -> 61307.84444 | P68: 62688.46667 | Q68: 64069.08889 | R68: 65449.71111 | S68: =S61*PARAMETROS!$C$23/PARAMETROS!$C$25 -> 66830.33333 | T68: =S68+($X68-$S68)/5 -> 68811.22222 | U68: 70792.11111 | V68: 72773 | W68: 74753.88889 | X68: =X61*PARAMETROS!$C$23/PARAMETROS!$C$25 -> 76734.77778 | Y68: =$X68 -> 76734.77778 | Z68: 76734.77778 | AA68: 76734.77778 | AB68: 76734.77778 | AC68: 76734.77778 | AD68: 76734.77778 | AE68: 76734.77778 | AF68: 76734.77778 | AG68: 76734.77778 | AH68: 76734.77778 | AI68: 76734.77778 | AJ68: 76734.77778 | AK68: 76734.77778 | AL68: 76734.77778 | AM68: 76734.77778 | AN68: 76734.77778 | AO68: 76734.77778 | AP68: 76734.77778 | AQ68: 76734.77778
B69: Tarifa 3 | C69: 0 | D69: =D62*PARAMETROS!$C$23/PARAMETROS!$C$25 -> 0 | E69: =D69+($I69-$D69)/5 -> 0 | F69: 0 | G69: 0 | H69: 0 | I69: =I62*PARAMETROS!$C$23/PARAMETROS!$C$25 -> 0 | J69: =I69+($N69-$I69)/5 -> 0 | K69: 0 | L69: 0 | M69: 0 | N69: =N62*PARAMETROS!$C$23/PARAMETROS!$C$25 -> 0 | O69: =N69+($S69-$N69)/5 -> 0 | P69: 0 | Q69: 0 | R69: 0 | S69: =S62*PARAMETROS!$C$23/PARAMETROS!$C$25 -> 0 | T69: =S69+($X69-$S69)/5 -> 0 | U69: 0 | V69: 0 | W69: 0 | X69: =X62*PARAMETROS!$C$23/PARAMETROS!$C$25 -> 0 | Y69: 0 | Z69: 0 | AA69: 0 | AB69: 0 | AC69: 0 | AD69: 0 | AE69: 0 | AF69: 0 | AG69: 0 | AH69: 0 | AI69: 0 | AJ69: 0 | AK69: 0 | AL69: 0 | AM69: 0 | AN69: 0 | AO69: 0 | AP69: 0 | AQ69: 0
B70: Tarifa 4 | C70: 0 | D70: =D63*PARAMETROS!$C$23/PARAMETROS!$C$25 -> 0 | E70: =D70+($I70-$D70)/5 -> 0 | F70: 0 | G70: 0 | H70: 0 | I70: =I63*PARAMETROS!$C$23/PARAMETROS!$C$25 -> 0 | J70: =I70+($N70-$I70)/5 -> 0 | K70: 0 | L70: 0 | M70: 0 | N70: =N63*PARAMETROS!$C$23/PARAMETROS!$C$25 -> 0 | O70: =N70+($S70-$N70)/5 -> 0 | P70: 0 | Q70: 0 | R70: 0 | S70: =S63*PARAMETROS!$C$23/PARAMETROS!$C$25 -> 0 | T70: =S70+($X70-$S70)/5 -> 0 | U70: 0 | V70: 0 | W70: 0 | X70: =X63*PARAMETROS!$C$23/PARAMETROS!$C$25 -> 0 | Y70: 0 | Z70: 0 | AA70: 0 | AB70: 0 | AC70: 0 | AD70: 0 | AE70: 0 | AF70: 0 | AG70: 0 | AH70: 0 | AI70: 0 | AJ70: 0 | AK70: 0 | AL70: 0 | AM70: 0 | AN70: 0 | AO70: 0 | AP70: 0 | AQ70: 0
B71: Tarifa 5 | C71: 0 | D71: =D64*PARAMETROS!$C$23/PARAMETROS!$C$25 -> 0 | E71: =D71+($I71-$D71)/5 -> 0 | F71: 0 | G71: 0 | H71: 0 | I71: =I64*PARAMETROS!$C$23/PARAMETROS!$C$25 -> 0 | J71: =I71+($N71-$I71)/5 -> 0 | K71: 0 | L71: 0 | M71: 0 | N71: =N64*PARAMETROS!$C$23/PARAMETROS!$C$25 -> 0 | O71: =N71+($S71-$N71)/5 -> 0 | P71: 0 | Q71: 0 | R71: 0 | S71: =S64*PARAMETROS!$C$23/PARAMETROS!$C$25 -> 0 | T71: =S71+($X71-$S71)/5 -> 0 | U71: 0 | V71: 0 | W71: 0 | X71: =X64*PARAMETROS!$C$23/PARAMETROS!$C$25 -> 0 | Y71: 0 | Z71: 0 | AA71: 0 | AB71: 0 | AC71: 0 | AD71: 0 | AE71: 0 | AF71: 0 | AG71: 0 | AH71: 0 | AI71: 0 | AJ71: 0 | AK71: 0 | AL71: 0 | AM71: 0 | AN71: 0 | AO71: 0 | AP71: 0 | AQ71: 0
B73: Pasajeros Anuales
B74: Año | C74: 2019 | D74: 2020 | E74: 2021 | F74: 2022 | G74: 2023 | H74: 2024 | I74: 2025 | J74: 2026 | K74: 2027 | L74: 2028 | M74: 2029 | N74: 2030 | O74: 2031 | P74: 2032 | Q74: 2033 | R74: 2034 | S74: 2035 | T74: 2036 | U74: 2037 | V74: 2038 | W74: 2039 | X74: 2040 | Y74: 2041 | Z74: 2042 | AA74: 2043 | AB74: 2044 | AC74: 2045 | AD74: 2046 | AE74: 2047 | AF74: 2048 | AG74: 2049 | AH74: 2050 | AI74: 2051 | AJ74: 2052 | AK74: 2053 | AL74: 2054 | AM74: 2055 | AN74: 2056 | AO74: 2057 | AP74: 2058 | AQ74: 2059
B75: Tarifa 1 | C75: =$C$10*C67 -> 11455050 | D75: =$C$10*D67 -> 15273400 | E75: 15570173.33 | F75: 15866946.67 | G75: 16163720 | H75: 16460493.33 | I75: 16757266.67 | J75: 17067640 | K75: 17378013.33 | L75: 17688386.67 | M75: 17998760 | N75: 18309133.33 | O75: 18736173.33 | P75: 19163213.33 | Q75: 19590253.33 | R75: 20017293.33 | S75: 20444333.33 | T75: 21052593.33 | U75: 21660853.33 | V75: 22269113.33 | W75: 22877373.33 | X75: 23485633.33 | Y75: 23485633.33 | Z75: 23485633.33 | AA75: 23485633.33 | AB75: 23485633.33 | AC75: 23485633.33 | AD75: 23485633.33 | AE75: 23485633.33 | AF75: 23485633.33 | AG75: 23485633.33 | AH75: =$C$10*AH67 -> 23485633.33 | AI75: 23485633.33 | AJ75: 23485633.33 | AK75: 23485633.33 | AL75: 23485633.33 | AM75: 23485633.33 | AN75: 23485633.33 | AO75: 23485633.33 | AP75: 23485633.33 | AQ75: 23485633.33
B76: Tarifa 2 | C76: =$C$10*C68 -> 11349175 | D76: =$C$10*D68 -> 15132233.33 | E76: 15407413.33 | F76: 15682593.33 | G76: 15957773.33 | H76: 16232953.33 | I76: 16508133.33 | J76: 16802140 | K76: 17096146.67 | L76: 17390153.33 | M76: 17684160 | N76: 17978166.67 | O76: 18392353.33 | P76: 18806540 | Q76: 19220726.67 | R76: 19634913.33 | S76: 20049100 | T76: 20643366.67 | U76: 21237633.33 | V76: 21831900 | W76: 22426166.67 | X76: 23020433.33 | Y76: 23020433.33 | Z76: 23020433.33 | AA76: 23020433.33 | AB76: 23020433.33 | AC76: 23020433.33 | AD76: 23020433.33 | AE76: 23020433.33 | AF76: 23020433.33 | AG76: 23020433.33 | AH76: =$C$10*AH68 -> 23020433.33 | AI76: 23020433.33 | AJ76: 23020433.33 | AK76: 23020433.33 | AL76: 23020433.33 | AM76: 23020433.33 | AN76: 23020433.33 | AO76: 23020433.33 | AP76: 23020433.33 | AQ76: 23020433.33
B77: Tarifa 3 | C77: =$C$10*C69 -> 0 | D77: 0 | E77: 0 | F77: 0 | G77: 0 | H77: 0 | I77: 0 | J77: 0 | K77: 0 | L77: 0 | M77: 0 | N77: 0 | O77: 0 | P77: 0 | Q77: 0 | R77: 0 | S77: 0 | T77: 0 | U77: 0 | V77: 0 | W77: 0 | X77: 0 | Y77: 0 | Z77: 0 | AA77: 0 | AB77: 0 | AC77: 0 | AD77: 0 | AE77: 0 | AF77: 0 | AG77: 0 | AH77: =$C$10*AH69 -> 0 | AI77: 0 | AJ77: 0 | AK77: 0 | AL77: 0 | AM77: 0 | AN77: 0 | AO77: 0 | AP77: 0 | AQ77: 0
B78: Tarifa 4 | C78: =$C$10*C70 -> 0 | D78: 0 | E78: 0 | F78: 0 | G78: 0 | H78: 0 | I78: 0 | J78: 0 | K78: 0 | L78: 0 | M78: 0 | N78: 0 | O78: 0 | P78: 0 | Q78: 0 | R78: 0 | S78: 0 | T78: 0 | U78: 0 | V78: 0 | W78: 0 | X78: 0 | Y78: 0 | Z78: 0 | AA78: 0 | AB78: 0 | AC78: 0 | AD78: 0 | AE78: 0 | AF78: 0 | AG78: 0 | AH78: =$C$10*AH70 -> 0 | AI78: 0 | AJ78: 0 | AK78: 0 | AL78: 0 | AM78: 0 | AN78: 0 | AO78: 0 | AP78: 0 | AQ78: 0
B79: Tarifa 5 | C79: =$C$10*C71 -> 0 | D79: 0 | E79: 0 | F79: 0 | G79: 0 | H79: 0 | I79: 0 | J79: 0 | K79: 0 | L79: 0 | M79: 0 | N79: 0 | O79: 0 | P79: 0 | Q79: 0 | R79: 0 | S79: 0 | T79: 0 | U79: 0 | V79: 0 | W79: 0 | X79: 0 | Y79: 0 | Z79: 0 | AA79: 0 | AB79: 0 | AC79: 0 | AD79: 0 | AE79: 0 | AF79: 0 | AG79: 0 | AH79: =$C$10*AH71 -> 0 | AI79: 0 | AJ79: 0 | AK79: 0 | AL79: 0 | AM79: 0 | AN79: 0 | AO79: 0 | AP79: 0 | AQ79: 0

Sheet OFERTA ALIMENTADORA (hidden)
B2: Legenda | C2: Dato de entrada
C3: Celda llave
C4: Error
C5: Dato calculado
B8: Frecuencias (mn)
B10: Samborondon | C10: 5
B11: Duran 1 | C11: 4
B12: Duran 2 | C12: 4
B14: Lineas
B16: Linea | C16: Longitud comercial (m)
B17: Samborondon | C17: =7500/2 -> 3750
B18: Duran 1 | C18: =14300/2 -> 7150
B19: Duran 2 | C19: 0
B22: Flota
B24: Linea | C24: Frecuencia en hora pico (sec) | D24: Frecuencia at hora pico (mn) | E24: Recorrido (km) | F24: Duracion de cambio sentido (mn) | G24: Objectivo de velocidad comercial (km/h) | H24: Duracion del recorrido comercial (mn) | I24: Tiempo de rotacion (mn) | J24: Flota de material rodante (trenes) | K24: Flota Total [+10% operacion *(+ 10% mantenimiento)] | L24: Flota total | N24: Recorridos diarios / bus | O24: km diarios / bus | P24: Km recorridos anualmente por la flota
B25: Samborondon | C25: =60*D25 -> 300 | D25: =$C$10 -> 5 | E25: =C17/1000 -> 3.75 | F25: =(0.1*H25)+IF(H25=0,0,5) -> 6.323529412 | G25: 17 | H25: =(60*E25)/G25 -> 13.23529412 | I25: =2*H25+2*F25 -> 39.11764706 | J25: =I25/D25 -> 7.823529412 | K25: =(J25*1.1)*1.1 -> 9.466470588 | L25: =ROUNDUP(K25,0) -> 10 | N25: =IF(I25=0,0,14*60/I25) -> 21.47368421 | O25: =C17*N25/1000 -> 80.52631579 | P25: =O25*L25*300*1.2 -> 289894.7368
B26: Duran 1 | C26: =60*D26 -> 240 | D26: =$C$11 -> 4 | E26: =C18/1000 -> 7.15 | F26: =(0.1*H26)+IF(H26=0,0,5) -> 7.523529412 | G26: 17 | H26: =(60*E26)/G26 -> 25.23529412 | I26: =2*H26+2*F26 -> 65.51764706 | J26: =I26/D26 -> 16.37941176 | K26: =(J26*1.1)*1.1 -> 19.81908824 | L26: =ROUNDUP(K26,0) -> 20 | N26: =IF(I26=0,0,14*60/I26) -> 12.82097324 | O26: =C18*N26/1000 -> 91.6699587 | P26: =O26*L26*300*1.2 -> 660023.7026
B27: Duran 2 | C27: =60*D27 -> 240 | D27: =$C$12 -> 4 | E27: =C19/1000 -> 0 | F27: 0 | G27: 17 | H27: =(60*E27)/G27 -> 0 | I27: =2*H27+2*F27 -> 0 | J27: =I27/D27 -> 0 | K27: =(J27*1.1)*1.1 -> 0 | L27: =ROUNDUP(K27,0) -> 0 | N27: 0 | O27: =C19*N27/1000 -> 0 | P27: 0
B30: Linea | C30: Frecuencia en hora pico (sec) | D30: Recorrido (km) | E30: Objectivo de velocidad comercial (km/h) | F30: Flota total
B31: Samborondon | C31: =C25 -> 300 | D31: =E25 -> 3.75 | E31: =G25 -> 17 | F31: =L25 -> 10
B32: Duran 1 | C32: =C26 -> 240 | D32: =E26 -> 7.15 | E32: =G26 -> 17 | F32: =L26 -> 20
B33: Duran 2 | C33: =C27 -> 240 | D33: =E27 -> 0 | E33: =G27 -> 17 | F33: =L27 -> 0
B38: Capacidad Maxima en personas por horas y por sentido (pphpd)
B40: =C10 -> 5 | C40: Frecuencia en horas pico (sec) | D40: Buses por hora | E40: Tipo de bus | F40: Capacidad con 4 pers./m² (pax) | G40: Carga maxima pphd (4 pers./m²)
C41: =$B$40*60 -> 300 | D41: =3600/C41 -> 12 | E41: Bus 12m | F41: 24 | G41: =D41*F41 -> 288
B43: =C11 -> 4 | C43: Frecuencia en horas pico (sec) | D43: Buses por hora | E43: Tipo de bus | F43: Capacidad con 4 pers./m² (pax) | G43: Carga maxima pphd (4 pers./m²)
C44: =$B$43*60 -> 240 | D44: =3600/C44 -> 15 | E44: Bus 12m | F44: 24 | G44: =D44*F44 -> 360
B46: =C12 -> 4 | C46: Frecuencia en horas pico (sec) | D46: Buses por hora | E46: Tipo de bus | F46: Capacidad con 4 pers./m² (pax) | G46: Carga maxima pphd (4 pers./m²)
C47: =$B$43*60 -> 240 | D47: =3600/C47 -> 15 | E47: Bus 12m | F47: 80 | G47: =D47*F47 -> 1200

Sheet INGRESOS de pasajeros (hidden)
B2: Legenda | C2: Dato de entrada
C3: Celda llave
C4: Error
C5: Dato calculado
B8: HIPOTESIS
B10: Dias de operacion | C10: =DEMANDA!C10 -> 300
B12: Escenario base | C12: % de tarifas normales | D12: =1-D13 -> 0.85
C13: % de tarifas reducidas | D13: =DEMANDA!D13 -> 0.15
C15: =DEMANDA!C15 -> Parqueardero gratuido
C16: Plazas necesaria | D16: 23 | E16: =DEMANDA!E16 -> 200
D17: 21 | E17: =DEMANDA!E17 -> 400
C19: =DEMANDA!C19 -> Alimentadoras de Samborondon con tarifa integrada (gratuidas)
E20: Demanda hora pico (pphpd)
E21: Samborondon | F21: Duran
D22: 23 | E22: =DEMANDA!E22 -> 0 | F22: =DEMANDA!F22 -> 350
D23: 21 | E23: =DEMANDA!E23 -> 200 | F23: =DEMANDA!F23 -> 350
C25: =DEMANDA!C25 -> Sin integracion tarifaria con el Metrovia
C27: Ficheros fuentes | D27: =DEMANDA!D27 -> 0
D28: =DEMANDA!D28 -> 0
B31: Tarifas | C31: Tarifa con IVA | D31: Tarifa sin IVA | E31: Reducida
B32: 1 | C32: 0.6 | D32: =C32*(1-PARAMETROS!$C$54) -> 0.528 | E32: =D32/2 -> 0.264
B33: 2 | C33: 0.75 | D33: =C33*(1-PARAMETROS!$C$54) -> 0.66 | E33: =D33/2 -> 0.33
B34: 3 | C34: 1 | D34: =C34*(1-PARAMETROS!$C$54) -> 0.88 | E34: 0.44
B35: 4 | C35: 1.25 | D35: =C35*(1-PARAMETROS!$C$54) -> 1.1 | E35: 0.55
B36: 5 | C36: 1.5 | D36: =C36*(1-PARAMETROS!$C$54) -> 1.32 | E36: 0.66
B40: ALTERNATIVA 23
B42: Ingresos anuales en USD 2015
B43: Año | C43: 2019 | D43: 2020 | E43: 2021 | F43: 2022 | G43: 2023 | H43: 2024 | I43: 2025 | J43: 2026 | K43: 2027 | L43: 2028 | M43: 2029 | N43: 2030 | O43: 2031 | P43: 2032 | Q43: 2033 | R43: 2034 | S43: 2035 | T43: 2036 | U43: 2037 | V43: 2038 | W43: 2039 | X43: 2040 | Y43: 2041 | Z43: 2042 | AA43: 2043 | AB43: 2044 | AC43: 2045 | AD43: 2046 | AE43: 2047 | AF43: 2048 | AG43: 2049 | AH43: 2050 | AI43: 2051 | AJ43: 2052 | AK43: 2053 | AL43: 2054 | AM43: 2055 | AN43: 2056 | AO43: 2057 | AP43: 2058 | AQ43: 2059
B44: Tarifa 1 | C44: =$D32*DEMANDA!C50*$D$12+$E32*DEMANDA!C50*$D$13 -> 4995819.18 | D44: =$D32*DEMANDA!D50*$D$12+$E32*DEMANDA!D50*$D$13 -> 6661092.24 | E44: =$D32*DEMANDA!E50*$D$12+$E32*DEMANDA!E50*$D$13 -> 6793839.36 | F44: =$D32*DEMANDA!F50*$D$12+$E32*DEMANDA!F50*$D$13 -> 6926586.48 | G44: =$D32*DEMANDA!G50*$D$12+$E32*DEMANDA!G50*$D$13 -> 7059333.6 | H44: =$D32*DEMANDA!H50*$D$12+$E32*DEMANDA!H50*$D$13 -> 7192080.72 | I44: =$D32*DEMANDA!I50*$D$12+$E32*DEMANDA!I50*$D$13 -> 7324827.84 | J44: =$D32*DEMANDA!J50*$D$12+$E32*DEMANDA!J50*$D$13 -> 7460329.536 | K44: =$D32*DEMANDA!K50*$D$12+$E32*DEMANDA!K50*$D$13 -> 7595831.232 | L44: =$D32*DEMANDA!L50*$D$12+$E32*DEMANDA!L50*$D$13 -> 7731332.928 | M44: =$D32*DEMANDA!M50*$D$12+$E32*DEMANDA!M50*$D$13 -> 7866834.624 | N44: =$D32*DEMANDA!N50*$D$12+$E32*DEMANDA!N50*$D$13 -> 8002336.32 | O44: =$D32*DEMANDA!O50*$D$12+$E32*DEMANDA!O50*$D$13 -> 8188944.192 | P44: =$D32*DEMANDA!P50*$D$12+$E32*DEMANDA!P50*$D$13 -> 8375552.064 | Q44: =$D32*DEMANDA!Q50*$D$12+$E32*DEMANDA!Q50*$D$13 -> 8562159.936 | R44: =$D32*DEMANDA!R50*$D$12+$E32*DEMANDA!R50*$D$13 -> 8748767.808 | S44: =$D32*DEMANDA!S50*$D$12+$E32*DEMANDA!S50*$D$13 -> 8935375.68 | T44: =$D32*DEMANDA!T50*$D$12+$E32*DEMANDA!T50*$D$13 -> 9206760.024 | U44: =$D32*DEMANDA!U50*$D$12+$E32*DEMANDA!U50*$D$13 -> 9478144.368 | V44: =$D32*DEMANDA!V50*$D$12+$E32*DEMANDA!V50*$D$13 -> 9749528.712 | W44: =$D32*DEMANDA!W50*$D$12+$E32*DEMANDA!W50*$D$13 -> 10020913.06 | X44: =$D32*DEMANDA!X50*$D$12+$E32*DEMANDA!X50*$D$13 -> 10292297.4 | Y44: =$D32*DEMANDA!Y50*$D$12+$E32*DEMANDA!Y50*$D$13 -> 10292297.4 | Z44: =$D32*DEMANDA!Z50*$D$12+$E32*DEMANDA!Z50*$D$13 -> 10292297.4 | AA44: =$D32*DEMANDA!AA50*$D$12+$E32*DEMANDA!AA50*$D$13 -> 10292297.4 | AB44: =$D32*DEMANDA!AB50*$D$12+$E32*DEMANDA!AB50*$D$13 -> 10292297.4 | AC44: =$D32*DEMANDA!AC50*$D$12+$E32*DEMANDA!AC50*$D$13 -> 10292297.4 | AD44: =$D32*DEMANDA!AD50*$D$12+$E32*DEMANDA!AD50*$D$13 -> 10292297.4 | AE44: =$D32*DEMANDA!AE50*$D$12+$E32*DEMANDA!AE50*$D$13 -> 10292297.4 | AF44: =$D32*DEMANDA!AF50*$D$12+$E32*DEMANDA!AF50*$D$13 -> 10292297.4 | AG44: =$D32*DEMANDA!AG50*$D$12+$E32*DEMANDA!AG50*$D$13 -> 10292297.4 | AH44: =$D32*DEMANDA!AH50*$D$12+$E32*DEMANDA!AH50*$D$13 -> 10292297.4 | AI44: =$D32*DEMANDA!AI50*$D$12+$E32*DEMANDA!AI50*$D$13 -> 10292297.4 | AJ44: =$D32*DEMANDA!AJ50*$D$12+$E32*DEMANDA!AJ50*$D$13 -> 10292297.4 | AK44: =$D32*DEMANDA!AK50*$D$12+$E32*DEMANDA!AK50*$D$13 -> 10292297.4 | AL44: =$D32*DEMANDA!AL50*$D$12+$E32*DEMANDA!AL50*$D$13 -> 10292297.4 | AM44: =$D32*DEMANDA!AM50*$D$12+$E32*DEMANDA!AM50*$D$13 -> 10292297.4 | AN44: =$D32*DEMANDA!AN50*$D$12+$E32*DEMANDA!AN50*$D$13 -> 10292297.4 | AO44: =$D32*DEMANDA!AO50*$D$12+$E32*DEMANDA!AO50*$D$13 -> 10292297.4 | AP44: =$D32*DEMANDA!AP50*$D$12+$E32*DEMANDA!AP50*$D$13 -> 10292297.4 | AQ44: =$D32*DEMANDA!AQ50*$D$12+$E32*DEMANDA!AQ50*$D$13 -> 10292297.4
B45: Tarifa 2 | C45: =$D33*DEMANDA!C51*$D$12+$E33*DEMANDA!C51*$D$13 -> 6188730.075 | D45: =$D33*DEMANDA!D51*$D$12+$E33*DEMANDA!D51*$D$13 -> 8251640.1 | E45: =$D33*DEMANDA!E51*$D$12+$E33*DEMANDA!E51*$D$13 -> 8402445.81 | F45: =$D33*DEMANDA!F51*$D$12+$E33*DEMANDA!F51*$D$13 -> 8553251.52 | G45: =$D33*DEMANDA!G51*$D$12+$E33*DEMANDA!G51*$D$13 -> 8704057.23 | H45: =$D33*DEMANDA!H51*$D$12+$E33*DEMANDA!H51*$D$13 -> 8854862.94 | I45: =$D33*DEMANDA!I51*$D$12+$E33*DEMANDA!I51*$D$13 -> 9005668.65 | J45: =$D33*DEMANDA!J51*$D$12+$E33*DEMANDA!J51*$D$13 -> 9174459.69 | K45: =$D33*DEMANDA!K51*$D$12+$E33*DEMANDA!K51*$D$13 -> 9343250.73 | L45: =$D33*DEMANDA!L51*$D$12+$E33*DEMANDA!L51*$D$13 -> 9512041.77 | M45: =$D33*DEMANDA!M51*$D$12+$E33*DEMANDA!M51*$D$13 -> 9680832.81 | N45: =$D33*DEMANDA!N51*$D$12+$E33*DEMANDA!N51*$D$13 -> 9849623.85 | O45: =$D33*DEMANDA!O51*$D$12+$E33*DEMANDA!O51*$D$13 -> 10072334.25 | P45: =$D33*DEMANDA!P51*$D$12+$E33*DEMANDA!P51*$D$13 -> 10295044.65 | Q45: =$D33*DEMANDA!Q51*$D$12+$E33*DEMANDA!Q51*$D$13 -> 10517755.05 | R45: =$D33*DEMANDA!R51*$D$12+$E33*DEMANDA!R51*$D$13 -> 10740465.45 | S45: =$D33*DEMANDA!S51*$D$12+$E33*DEMANDA!S51*$D$13 -> 10963175.85 | T45: =$D33*DEMANDA!T51*$D$12+$E33*DEMANDA!T51*$D$13 -> 11293908.12 | U45: =$D33*DEMANDA!U51*$D$12+$E33*DEMANDA!U51*$D$13 -> 11624640.39 | V45: =$D33*DEMANDA!V51*$D$12+$E33*DEMANDA!V51*$D$13 -> 11955372.66 | W45: =$D33*DEMANDA!W51*$D$12+$E33*DEMANDA!W51*$D$13 -> 12286104.93 | X45: =$D33*DEMANDA!X51*$D$12+$E33*DEMANDA!X51*$D$13 -> 12616837.2 | Y45: =$D33*DEMANDA!Y51*$D$12+$E33*DEMANDA!Y51*$D$13 -> 12616837.2 | Z45: =$D33*DEMANDA!Z51*$D$12+$E33*DEMANDA!Z51*$D$13 -> 12616837.2 | AA45: =$D33*DEMANDA!AA51*$D$12+$E33*DEMANDA!AA51*$D$13 -> 12616837.2 | AB45: =$D33*DEMANDA!AB51*$D$12+$E33*DEMANDA!AB51*$D$13 -> 12616837.2 | AC45: =$D33*DEMANDA!AC51*$D$12+$E33*DEMANDA!AC51*$D$13 -> 12616837.2 | AD45: =$D33*DEMANDA!AD51*$D$12+$E33*DEMANDA!AD51*$D$13 -> 12616837.2 | AE45: =$D33*DEMANDA!AE51*$D$12+$E33*DEMANDA!AE51*$D$13 -> 12616837.2 | AF45: =$D33*DEMANDA!AF51*$D$12+$E33*DEMANDA!AF51*$D$13 -> 12616837.2 | AG45: =$D33*DEMANDA!AG51*$D$12+$E33*DEMANDA!AG51*$D$13 -> 12616837.2 | AH45: =$D33*DEMANDA!AH51*$D$12+$E33*DEMANDA!AH51*$D$13 -> 12616837.2 | AI45: =$D33*DEMANDA!AI51*$D$12+$E33*DEMANDA!AI51*$D$13 -> 12616837.2 | AJ45: =$D33*DEMANDA!AJ51*$D$12+$E33*DEMANDA!AJ51*$D$13 -> 12616837.2 | AK45: =$D33*DEMANDA!AK51*$D$12+$E33*DEMANDA!AK51*$D$13 -> 12616837.2 | AL45: =$D33*DEMANDA!AL51*$D$12+$E33*DEMANDA!AL51*$D$13 -> 12616837.2 | AM45: =$D33*DEMANDA!AM51*$D$12+$E33*DEMANDA!AM51*$D$13 -> 12616837.2 | AN45: =$D33*DEMANDA!AN51*$D$12+$E33*DEMANDA!AN51*$D$13 -> 12616837.2 | AO45: =$D33*DEMANDA!AO51*$D$12+$E33*DEMANDA!AO51*$D$13 -> 12616837.2 | AP45: =$D33*DEMANDA!AP51*$D$12+$E33*DEMANDA!AP51*$D$13 -> 12616837.2 | AQ45: =$D33*DEMANDA!AQ51*$D$12+$E33*DEMANDA!AQ51*$D$13 -> 12616837.2
B46: Tarifa 3 | C46: =$D34*DEMANDA!C52*$D$12+$E34*DEMANDA!C52*$D$13 -> 0 | D46: =$D34*DEMANDA!D52*$D$12+$E34*DEMANDA!D52*$D$13 -> 0 | E46: =$D34*DEMANDA!E52*$D$12+$E34*DEMANDA!E52*$D$13 -> 0 | F46: =$D34*DEMANDA!F52*$D$12+$E34*DEMANDA!F52*$D$13 -> 0 | G46: =$D34*DEMANDA!G52*$D$12+$E34*DEMANDA!G52*$D$13 -> 0 | H46: =$D34*DEMANDA!H52*$D$12+$E34*DEMANDA!H52*$D$13 -> 0 | I46: =$D34*DEMANDA!I52*$D$12+$E34*DEMANDA!I52*$D$13 -> 0 | J46: =$D34*DEMANDA!J52*$D$12+$E34*DEMANDA!J52*$D$13 -> 0 | K46: =$D34*DEMANDA!K52*$D$12+$E34*DEMANDA!K52*$D$13 -> 0 | L46: =$D34*DEMANDA!L52*$D$12+$E34*DEMANDA!L52*$D$13 -> 0 | M46: =$D34*DEMANDA!M52*$D$12+$E34*DEMANDA!M52*$D$13 -> 0 | N46: =$D34*DEMANDA!N52*$D$12+$E34*DEMANDA!N52*$D$13 -> 0 | O46: =$D34*DEMANDA!O52*$D$12+$E34*DEMANDA!O52*$D$13 -> 0 | P46: =$D34*DEMANDA!P52*$D$12+$E34*DEMANDA!P52*$D$13 -> 0 | Q46: =$D34*DEMANDA!Q52*$D$12+$E34*DEMANDA!Q52*$D$13 -> 0 | R46: =$D34*DEMANDA!R52*$D$12+$E34*DEMANDA!R52*$D$13 -> 0 | S46: =$D34*DEMANDA!S52*$D$12+$E34*DEMANDA!S52*$D$13 -> 0 | T46: =$D34*DEMANDA!T52*$D$12+$E34*DEMANDA!T52*$D$13 -> 0 | U46: =$D34*DEMANDA!U52*$D$12+$E34*DEMANDA!U52*$D$13 -> 0 | V46: =$D34*DEMANDA!V52*$D$12+$E34*DEMANDA!V52*$D$13 -> 0 | W46: =$D34*DEMANDA!W52*$D$12+$E34*DEMANDA!W52*$D$13 -> 0 | X46: =$D34*DEMANDA!X52*$D$12+$E34*DEMANDA!X52*$D$13 -> 0 | Y46: =$D34*DEMANDA!Y52*$D$12+$E34*DEMANDA!Y52*$D$13 -> 0 | Z46: =$D34*DEMANDA!Z52*$D$12+$E34*DEMANDA!Z52*$D$13 -> 0 | AA46: =$D34*DEMANDA!AA52*$D$12+$E34*DEMANDA!AA52*$D$13 -> 0 | AB46: =$D34*DEMANDA!AB52*$D$12+$E34*DEMANDA!AB52*$D$13 -> 0 | AC46: =$D34*DEMANDA!AC52*$D$12+$E34*DEMANDA!AC52*$D$13 -> 0 | AD46: =$D34*DEMANDA!AD52*$D$12+$E34*DEMANDA!AD52*$D$13 -> 0 | AE46: =$D34*DEMANDA!AE52*$D$12+$E34*DEMANDA!AE52*$D$13 -> 0 | AF46: =$D34*DEMANDA!AF52*$D$12+$E34*DEMANDA!AF52*$D$13 -> 0 | AG46: =$D34*DEMANDA!AG52*$D$12+$E34*DEMANDA!AG52*$D$13 -> 0 | AH46: =$D34*DEMANDA!AH52*$D$12+$E34*DEMANDA!AH52*$D$13 -> 0 | AI46: =$D34*DEMANDA!AI52*$D$12+$E34*DEMANDA!AI52*$D$13 -> 0 | AJ46: =$D34*DEMANDA!AJ52*$D$12+$E34*DEMANDA!AJ52*$D$13 -> 0 | AK46: =$D34*DEMANDA!AK52*$D$12+$E34*DEMANDA!AK52*$D$13 -> 0 | AL46: =$D34*DEMANDA!AL52*$D$12+$E34*DEMANDA!AL52*$D$13 -> 0 | AM46: =$D34*DEMANDA!AM52*$D$12+$E34*DEMANDA!AM52*$D$13 -> 0 | AN46: =$D34*DEMANDA!AN52*$D$12+$E34*DEMANDA!AN52*$D$13 -> 0 | AO46: =$D34*DEMANDA!AO52*$D$12+$E34*DEMANDA!AO52*$D$13 -> 0 | AP46: =$D34*DEMANDA!AP52*$D$12+$E34*DEMANDA!AP52*$D$13 -> 0 | AQ46: =$D34*DEMANDA!AQ52*$D$12+$E34*DEMANDA!AQ52*$D$13 -> 0
B47: Tarifa 4 | C47: =$D35*DEMANDA!C53*$D$12+$E35*DEMANDA!C53*$D$13 -> 0 | D47: =$D35*DEMANDA!D53*$D$12+$E35*DEMANDA!D53*$D$13 -> 0 | E47: =$D35*DEMANDA!E53*$D$12+$E35*DEMANDA!E53*$D$13 -> 0 | F47: =$D35*DEMANDA!F53*$D$12+$E35*DEMANDA!F53*$D$13 -> 0 | G47: =$D35*DEMANDA!G53*$D$12+$E35*DEMANDA!G53*$D$13 -> 0 | H47: =$D35*DEMANDA!H53*$D$12+$E35*DEMANDA!H53*$D$13 -> 0 | I47: =$D35*DEMANDA!I53*$D$12+$E35*DEMANDA!I53*$D$13 -> 0 | J47: =$D35*DEMANDA!J53*$D$12+$E35*DEMANDA!J53*$D$13 -> 0 | K47: =$D35*DEMANDA!K53*$D$12+$E35*DEMANDA!K53*$D$13 -> 0 | L47: =$D35*DEMANDA!L53*$D$12+$E35*DEMANDA!L53*$D$13 -> 0 | M47: =$D35*DEMANDA!M53*$D$12+$E35*DEMANDA!M53*$D$13 -> 0 | N47: =$D35*DEMANDA!N53*$D$12+$E35*DEMANDA!N53*$D$13 -> 0 | O47: =$D35*DEMANDA!O53*$D$12+$E35*DEMANDA!O53*$D$13 -> 0 | P47: =$D35*DEMANDA!P53*$D$12+$E35*DEMANDA!P53*$D$13 -> 0 | Q47: =$D35*DEMANDA!Q53*$D$12+$E35*DEMANDA!Q53*$D$13 -> 0 | R47: =$D35*DEMANDA!R53*$D$12+$E35*DEMANDA!R53*$D$13 -> 0 | S47: =$D35*DEMANDA!S53*$D$12+$E35*DEMANDA!S53*$D$13 -> 0 | T47: =$D35*DEMANDA!T53*$D$12+$E35*DEMANDA!T53*$D$13 -> 0 | U47: =$D35*DEMANDA!U53*$D$12+$E35*DEMANDA!U53*$D$13 -> 0 | V47: =$D35*DEMANDA!V53*$D$12+$E35*DEMANDA!V53*$D$13 -> 0 | W47: =$D35*DEMANDA!W53*$D$12+$E35*DEMANDA!W53*$D$13 -> 0 | X47: =$D35*DEMANDA!X53*$D$12+$E35*DEMANDA!X53*$D$13 -> 0 | Y47: =$D35*DEMANDA!Y53*$D$12+$E35*DEMANDA!Y53*$D$13 -> 0 | Z47: =$D35*DEMANDA!Z53*$D$12+$E35*DEMANDA!Z53*$D$13 -> 0 | AA47: =$D35*DEMANDA!AA53*$D$12+$E35*DEMANDA!AA53*$D$13 -> 0 | AB47: =$D35*DEMANDA!AB53*$D$12+$E35*DEMANDA!AB53*$D$13 -> 0 | AC47: =$D35*DEMANDA!AC53*$D$12+$E35*DEMANDA!AC53*$D$13 -> 0 | AD47: =$D35*DEMANDA!AD53*$D$12+$E35*DEMANDA!AD53*$D$13 -> 0 | AE47: =$D35*DEMANDA!AE53*$D$12+$E35*DEMANDA!AE53*$D$13 -> 0 | AF47: =$D35*DEMANDA!AF53*$D$12+$E35*DEMANDA!AF53*$D$13 -> 0 | AG47: =$D35*DEMANDA!AG53*$D$12+$E35*DEMANDA!AG53*$D$13 -> 0 | AH47: =$D35*DEMANDA!AH53*$D$12+$E35*DEMANDA!AH53*$D$13 -> 0 | AI47: =$D35*DEMANDA!AI53*$D$12+$E35*DEMANDA!AI53*$D$13 -> 0 | AJ47: =$D35*DEMANDA!AJ53*$D$12+$E35*DEMANDA!AJ53*$D$13 -> 0 | AK47: =$D35*DEMANDA!AK53*$D$12+$E35*DEMANDA!AK53*$D$13 -> 0 | AL47: =$D35*DEMANDA!AL53*$D$12+$E35*DEMANDA!AL53*$D$13 -> 0 | AM47: =$D35*DEMANDA!AM53*$D$12+$E35*DEMANDA!AM53*$D$13 -> 0 | AN47: =$D35*DEMANDA!AN53*$D$12+$E35*DEMANDA!AN53*$D$13 -> 0 | AO47: =$D35*DEMANDA!AO53*$D$12+$E35*DEMANDA!AO53*$D$13 -> 0 | AP47: =$D35*DEMANDA!AP53*$D$12+$E35*DEMANDA!AP53*$D$13 -> 0 | AQ47: =$D35*DEMANDA!AQ53*$D$12+$E35*DEMANDA!AQ53*$D$13 -> 0
B48: Tarifa 5 | C48: =$D36*DEMANDA!C54*$D$12+$E36*DEMANDA!C54*$D$13 -> 0 | D48: =$D36*DEMANDA!D54*$D$12+$E36*DEMANDA!D54*$D$13 -> 0 | E48: =$D36*DEMANDA!E54*$D$12+$E36*DEMANDA!E54*$D$13 -> 0 | F48: =$D36*DEMANDA!F54*$D$12+$E36*DEMANDA!F54*$D$13 -> 0 | G48: =$D36*DEMANDA!G54*$D$12+$E36*DEMANDA!G54*$D$13 -> 0 | H48: =$D36*DEMANDA!H54*$D$12+$E36*DEMANDA!H54*$D$13 -> 0 | I48: =$D36*DEMANDA!I54*$D$12+$E36*DEMANDA!I54*$D$13 -> 0 | J48: =$D36*DEMANDA!J54*$D$12+$E36*DEMANDA!J54*$D$13 -> 0 | K48: =$D36*DEMANDA!K54*$D$12+$E36*DEMANDA!K54*$D$13 -> 0 | L48: =$D36*DEMANDA!L54*$D$12+$E36*DEMANDA!L54*$D$13 -> 0 | M48: =$D36*DEMANDA!M54*$D$12+$E36*DEMANDA!M54*$D$13 -> 0 | N48: =$D36*DEMANDA!N54*$D$12+$E36*DEMANDA!N54*$D$13 -> 0 | O48: =$D36*DEMANDA!O54*$D$12+$E36*DEMANDA!O54*$D$13 -> 0 | P48: =$D36*DEMANDA!P54*$D$12+$E36*DEMANDA!P54*$D$13 -> 0 | Q48: =$D36*DEMANDA!Q54*$D$12+$E36*DEMANDA!Q54*$D$13 -> 0 | R48: =$D36*DEMANDA!R54*$D$12+$E36*DEMANDA!R54*$D$13 -> 0 | S48: =$D36*DEMANDA!S54*$D$12+$E36*DEMANDA!S54*$D$13 -> 0 | T48: =$D36*DEMANDA!T54*$D$12+$E36*DEMANDA!T54*$D$13 -> 0 | U48: =$D36*DEMANDA!U54*$D$12+$E36*DEMANDA!U54*$D$13 -> 0 | V48: =$D36*DEMANDA!V54*$D$12+$E36*DEMANDA!V54*$D$13 -> 0 | W48: =$D36*DEMANDA!W54*$D$12+$E36*DEMANDA!W54*$D$13 -> 0 | X48: =$D36*DEMANDA!X54*$D$12+$E36*DEMANDA!X54*$D$13 -> 0 | Y48: =$D36*DEMANDA!Y54*$D$12+$E36*DEMANDA!Y54*$D$13 -> 0 | Z48: =$D36*DEMANDA!Z54*$D$12+$E36*DEMANDA!Z54*$D$13 -> 0 | AA48: =$D36*DEMANDA!AA54*$D$12+$E36*DEMANDA!AA54*$D$13 -> 0 | AB48: =$D36*DEMANDA!AB54*$D$12+$E36*DEMANDA!AB54*$D$13 -> 0 | AC48: =$D36*DEMANDA!AC54*$D$12+$E36*DEMANDA!AC54*$D$13 -> 0 | AD48: =$D36*DEMANDA!AD54*$D$12+$E36*DEMANDA!AD54*$D$13 -> 0 | AE48: =$D36*DEMANDA!AE54*$D$12+$E36*DEMANDA!AE54*$D$13 -> 0 | AF48: =$D36*DEMANDA!AF54*$D$12+$E36*DEMANDA!AF54*$D$13 -> 0 | AG48: =$D36*DEMANDA!AG54*$D$12+$E36*DEMANDA!AG54*$D$13 -> 0 | AH48: =$D36*DEMANDA!AH54*$D$12+$E36*DEMANDA!AH54*$D$13 -> 0 | AI48: =$D36*DEMANDA!AI54*$D$12+$E36*DEMANDA!AI54*$D$13 -> 0 | AJ48: =$D36*DEMANDA!AJ54*$D$12+$E36*DEMANDA!AJ54*$D$13 -> 0 | AK48: =$D36*DEMANDA!AK54*$D$12+$E36*DEMANDA!AK54*$D$13 -> 0 | AL48: =$D36*DEMANDA!AL54*$D$12+$E36*DEMANDA!AL54*$D$13 -> 0 | AM48: =$D36*DEMANDA!AM54*$D$12+$E36*DEMANDA!AM54*$D$13 -> 0 | AN48: =$D36*DEMANDA!AN54*$D$12+$E36*DEMANDA!AN54*$D$13 -> 0 | AO48: =$D36*DEMANDA!AO54*$D$12+$E36*DEMANDA!AO54*$D$13 -> 0 | AP48: =$D36*DEMANDA!AP54*$D$12+$E36*DEMANDA!AP54*$D$13 -> 0 | AQ48: =$D36*DEMANDA!AQ54*$D$12+$E36*DEMANDA!AQ54*$D$13 -> 0
B51: Ingresos anuales en precios actualizados (hipotesis de inflacion baja)
B52: Año | C52: 2019 | D52: 2020 | E52: 2021 | F52: 2022 | G52: 2023 | H52: 2024 | I52: 2025 | J52: 2026 | K52: 2027 | L52: 2028 | M52: 2029 | N52: 2030 | O52: 2031 | P52: 2032 | Q52: 2033 | R52: 2034 | S52: 2035 | T52: 2036 | U52: 2037 | V52: 2038 | W52: 2039 | X52: 2040 | Y52: 2041 | Z52: 2042 | AA52: 2043 | AB52: 2044 | AC52: 2045 | AD52: 2046 | AE52: 2047 | AF52: 2048 | AG52: 2049 | AH52: 2050 | AI52: 2051 | AJ52: 2052 | AK52: 2053 | AL52: 2054 | AM52: 2055 | AN52: 2056 | AO52: 2057 | AP52: 2058 | AQ52: 2059
E53: 1 | F53: 2 | G53: 3 | H53: 4 | I53: 5 | J53: 6 | K53: 7 | L53: 8 | M53: 9 | N53: 10 | O53: 11 | P53: 12 | Q53: 13 | R53: 14 | S53: 15 | T53: 16 | U53: 17 | V53: 18 | W53: 19 | X53: 20 | Y53: 21 | Z53: 22 | AA53: 23 | AB53: 24 | AC53: 25 | AD53: 26 | AE53: 27 | AF53: 28 | AG53: 29 | AH53: 30 | AI53: 31 | AJ53: 32 | AK53: 33 | AL53: 34 | AM53: 35 | AN53: 36 | AO53: 37 | AP53: 38 | AQ53: 39
B54: Tarifa 1 | C54: =C44 -> 4995819.18 | D54: =D44*(1) -> 6661092.24 | E54: =E44*(1+PARAMETROS!$G$88)*(1+PARAMETROS!$H$88)^E53 -> 7102959.051 | F54: =F44*(1+PARAMETROS!$G$88)*(1+PARAMETROS!$H$88)^(F53-1) -> 7241746.165 | G54: =G44*(1+PARAMETROS!$G$88)*(1+PARAMETROS!$H$88)^G53 -> 7678706.823 | H54: =H44*(1+PARAMETROS!$G$88)*(1+PARAMETROS!$H$88)^(H53-1) -> 7823100.937 | I54: =I44*(1+PARAMETROS!$G$88)*(1+PARAMETROS!$H$88)^I53 -> 8289381.85 | J54: =J44*(1+PARAMETROS!$G$88)*(1+PARAMETROS!$H$88)^(J53-1) -> 8442726.792 | K54: =K44*(1+PARAMETROS!$G$88)*(1+PARAMETROS!$H$88)^K53 -> 8943353.032 | L54: =L44*(1+PARAMETROS!$G$88)*(1+PARAMETROS!$H$88)^(L53-1) -> 9102893.109 | M54: =M44*(1+PARAMETROS!$G$88)*(1+PARAMETROS!$H$88)^M53 -> 9636635.488 | N54: =N44*(1+PARAMETROS!$G$88)*(1+PARAMETROS!$H$88)^(N53-1) -> 9802620.984 | O54: =O44*(1+PARAMETROS!$G$88)*(1+PARAMETROS!$H$88)^O53 -> 10436470.89 | P54: =P44*(1+PARAMETROS!$G$88)*(1+PARAMETROS!$H$88)^(P53-1) -> 10674294.91 | Q54: =Q44*(1+PARAMETROS!$G$88)*(1+PARAMETROS!$H$88)^Q53 -> 11352968.54 | R54: =R44*(1+PARAMETROS!$G$88)*(1+PARAMETROS!$H$88)^(R53-1) -> 11600400.65 | S54: =S44*(1+PARAMETROS!$G$88)*(1+PARAMETROS!$H$88)^S53 -> 12326485.2 | T54: =T44*(1+PARAMETROS!$G$88)*(1+PARAMETROS!$H$88)^(T53-1) -> 12700863.99 | U54: =U44*(1+PARAMETROS!$G$88)*(1+PARAMETROS!$H$88)^U53 -> 13603482.58 | V54: =V44*(1+PARAMETROS!$G$88)*(1+PARAMETROS!$H$88)^(V53-1) -> 13992986.27 | W54: =W44*(1+PARAMETROS!$G$88)*(1+PARAMETROS!$H$88)^W53 -> 14963542.55 | X54: =X44*(1+PARAMETROS!$G$88)*(1+PARAMETROS!$H$88)^(X53-1) -> 15368782.19 | Y54: =Y44*(1+PARAMETROS!$G$88)*(1+PARAMETROS!$H$88)^Y53 -> 15989680.99 | Z54: =Z44*(1+PARAMETROS!$G$88)*(1+PARAMETROS!$H$88)^(Z53-1) -> 15989680.99 | AA54: =AA44*(1+PARAMETROS!$G$88)*(1+PARAMETROS!$H$88)^AA53 -> 16635664.1 | AB54: =AB44*(1+PARAMETROS!$G$88)*(1+PARAMETROS!$H$88)^(AB53-1) -> 16635664.1 | AC54: =AC44*(1+PARAMETROS!$G$88)*(1+PARAMETROS!$H$88)^AC53 -> 17307744.93 | AD54: =AD44*(1+PARAMETROS!$G$88)*(1+PARAMETROS!$H$88)^(AD53-1) -> 17307744.93 | AE54: =AE44*(1+PARAMETROS!$G$88)*(1+PARAMETROS!$H$88)^AE53 -> 18006977.83 | AF54: =AF44*(1+PARAMETROS!$G$88)*(1+PARAMETROS!$H$88)^(AF53-1) -> 18006977.83 | AG54: =AG44*(1+PARAMETROS!$G$88)*(1+PARAMETROS!$H$88)^AG53 -> 18734459.73 | AH54: =AH44*(1+PARAMETROS!$G$88)*(1+PARAMETROS!$H$88)^(AH53-1) -> 18734459.73 | AI54: =AI44*(1+PARAMETROS!$G$88)*(1+PARAMETROS!$H$88)^AI53 -> 19491331.9 | AJ54: =AJ44*(1+PARAMETROS!$G$88)*(1+PARAMETROS!$H$88)^(AJ53-1) -> 19491331.9 | AK54: =AK44*(1+PARAMETROS!$G$88)*(1+PARAMETROS!$H$88)^AK53 -> 20278781.71 | AL54: =AL44*(1+PARAMETROS!$G$88)*(1+PARAMETROS!$H$88)^(AL53-1) -> 20278781.71 | AM54: =AM44*(1+PARAMETROS!$G$88)*(1+PARAMETROS!$H$88)^AM53 -> 21098044.49 | AN54: =AN44*(1+PARAMETROS!$G$88)*(1+PARAMETROS!$H$88)^(AN53-1) -> 21098044.49 | AO54: =AO44*(1+PARAMETROS!$G$88)*(1+PARAMETROS!$H$88)^AO53 -> 21950405.49 | AP54: =AP44*(1+PARAMETROS!$G$88)*(1+PARAMETROS!$H$88)^(AP53-1) -> 21950405.49 | AQ54: =AQ44*(1+PARAMETROS!$G$88)*(1+PARAMETROS!$H$88)^AQ53 -> 22837201.87
B55: Tarifa 2 | C55: =C45 -> 6188730.075 | D55: =D45*(1) -> 8251640.1 | E55: =E45*(1+PARAMETROS!$G$88)*(1+PARAMETROS!$H$88)^E53 -> 8784757.094 | F55: =F45*(1+PARAMETROS!$G$88)*(1+PARAMETROS!$H$88)^(F53-1) -> 8942424.464 | G55: =G45*(1+PARAMETROS!$G$88)*(1+PARAMETROS!$H$88)^G53 -> 9467735.544 | H55: =H45*(1+PARAMETROS!$G$88)*(1+PARAMETROS!$H$88)^(H53-1) -> 9631772.676 | I55: =I45*(1+PARAMETROS!$G$88)*(1+PARAMETROS!$H$88)^I53 -> 10191560.52 | J55: =J45*(1+PARAMETROS!$G$88)*(1+PARAMETROS!$H$88)^(J53-1) -> 10382578.44 | K55: =K45*(1+PARAMETROS!$G$88)*(1+PARAMETROS!$H$88)^K53 -> 11000769.66 | L55: =L45*(1+PARAMETROS!$G$88)*(1+PARAMETROS!$H$88)^(L53-1) -> 11199504.7 | M55: =M45*(1+PARAMETROS!$G$88)*(1+PARAMETROS!$H$88)^M53 -> 11858728.63 | N55: =N45*(1+PARAMETROS!$G$88)*(1+PARAMETROS!$H$88)^(N53-1) -> 12065492.57 | O55: =O45*(1+PARAMETROS!$G$88)*(1+PARAMETROS!$H$88)^O53 -> 12836773.67 | P55: =P45*(1+PARAMETROS!$G$88)*(1+PARAMETROS!$H$88)^(P53-1) -> 13120608.87 | Q55: =Q45*(1+PARAMETROS!$G$88)*(1+PARAMETROS!$H$88)^Q53 -> 13945983.61 | R55: =R45*(1+PARAMETROS!$G$88)*(1+PARAMETROS!$H$88)^(R53-1) -> 14241285.75 | S55: =S45*(1+PARAMETROS!$G$88)*(1+PARAMETROS!$H$88)^S53 -> 15123866.05 | T55: =T45*(1+PARAMETROS!$G$88)*(1+PARAMETROS!$H$88)^(T53-1) -> 15580116.19 | U55: =U45*(1+PARAMETROS!$G$88)*(1+PARAMETROS!$H$88)^U53 -> 16684235.53 | V55: =V45*(1+PARAMETROS!$G$88)*(1+PARAMETROS!$H$88)^(V53-1) -> 17158918.18 | W55: =W45*(1+PARAMETROS!$G$88)*(1+PARAMETROS!$H$88)^W53 -> 18345998.3 | X55: =X45*(1+PARAMETROS!$G$88)*(1+PARAMETROS!$H$88)^(X53-1) -> 18839858.13 | Y55: =Y45*(1+PARAMETROS!$G$88)*(1+PARAMETROS!$H$88)^Y53 -> 19600988.4 | Z55: =Z45*(1+PARAMETROS!$G$88)*(1+PARAMETROS!$H$88)^(Z53-1) -> 19600988.4 | AA55: =AA45*(1+PARAMETROS!$G$88)*(1+PARAMETROS!$H$88)^AA53 -> 20392868.33 | AB55: =AB45*(1+PARAMETROS!$G$88)*(1+PARAMETROS!$H$88)^(AB53-1) -> 20392868.33 | AC55: =AC45*(1+PARAMETROS!$G$88)*(1+PARAMETROS!$H$88)^AC53 -> 21216740.21 | AD55: =AD45*(1+PARAMETROS!$G$88)*(1+PARAMETROS!$H$88)^(AD53-1) -> 21216740.21 | AE55: =AE45*(1+PARAMETROS!$G$88)*(1+PARAMETROS!$H$88)^AE53 -> 22073896.51 | AF55: =AF45*(1+PARAMETROS!$G$88)*(1+PARAMETROS!$H$88)^(AF53-1) -> 22073896.51 | AG55: =AG45*(1+PARAMETROS!$G$88)*(1+PARAMETROS!$H$88)^AG53 -> 22965681.93 | AH55: =AH45*(1+PARAMETROS!$G$88)*(1+PARAMETROS!$H$88)^(AH53-1) -> 22965681.93 | AI55: =AI45*(1+PARAMETROS!$G$88)*(1+PARAMETROS!$H$88)^AI53 -> 23893495.48 | AJ55: =AJ45*(1+PARAMETROS!$G$88)*(1+PARAMETROS!$H$88)^(AJ53-1) -> 23893495.48 | AK55: =AK45*(1+PARAMETROS!$G$88)*(1+PARAMETROS!$H$88)^AK53 -> 24858792.7 | AL55: =AL45*(1+PARAMETROS!$G$88)*(1+PARAMETROS!$H$88)^(AL53-1) -> 24858792.7 | AM55: =AM45*(1+PARAMETROS!$G$88)*(1+PARAMETROS!$H$88)^AM53 -> 25863087.93 | AN55: =AN45*(1+PARAMETROS!$G$88)*(1+PARAMETROS!$H$88)^(AN53-1) -> 25863087.93 | AO55: =AO45*(1+PARAMETROS!$G$88)*(1+PARAMETROS!$H$88)^AO53 -> 26907956.68 | AP55: =AP45*(1+PARAMETROS!$G$88)*(1+PARAMETROS!$H$88)^(AP53-1) -> 26907956.68 | AQ55: =AQ45*(1+PARAMETROS!$G$88)*(1+PARAMETROS!$H$88)^AQ53 -> 27995038.13
B56: Tarifa 3 | C56: =C46 -> 0 | D56: =D46*(1) -> 0 | E56: =E46*(1+PARAMETROS!$G$88)*(1+PARAMETROS!$H$88)^E53 -> 0 | F56: =F46*(1+PARAMETROS!$G$88)*(1+PARAMETROS!$H$88)^(F53-1) -> 0 | G56: =G46*(1+PARAMETROS!$G$88)*(1+PARAMETROS!$H$88)^G53 -> 0 | H56: =H46*(1+PARAMETROS!$G$88)*(1+PARAMETROS!$H$88)^(H53-1) -> 0 | I56: =I46*(1+PARAMETROS!$G$88)*(1+PARAMETROS!$H$88)^I53 -> 0 | J56: =J46*(1+PARAMETROS!$G$88)*(1+PARAMETROS!$H$88)^(J53-1) -> 0 | K56: =K46*(1+PARAMETROS!$G$88)*(1+PARAMETROS!$H$88)^K53 -> 0 | L56: =L46*(1+PARAMETROS!$G$88)*(1+PARAMETROS!$H$88)^(L53-1) -> 0 | M56: =M46*(1+PARAMETROS!$G$88)*(1+PARAMETROS!$H$88)^M53 -> 0 | N56: =N46*(1+PARAMETROS!$G$88)*(1+PARAMETROS!$H$88)^(N53-1) -> 0 | O56: =O46*(1+PARAMETROS!$G$88)*(1+PARAMETROS!$H$88)^O53 -> 0 | P56: =P46*(1+PARAMETROS!$G$88)*(1+PARAMETROS!$H$88)^(P53-1) -> 0 | Q56: =Q46*(1+PARAMETROS!$G$88)*(1+PARAMETROS!$H$88)^Q53 -> 0 | R56: =R46*(1+PARAMETROS!$G$88)*(1+PARAMETROS!$H$88)^(R53-1) -> 0 | S56: =S46*(1+PARAMETROS!$G$88)*(1+PARAMETROS!$H$88)^S53 -> 0 | T56: =T46*(1+PARAMETROS!$G$88)*(1+PARAMETROS!$H$88)^(T53-1) -> 0 | U56: =U46*(1+PARAMETROS!$G$88)*(1+PARAMETROS!$H$88)^U53 -> 0 | V56: =V46*(1+PARAMETROS!$G$88)*(1+PARAMETROS!$H$88)^(V53-1) -> 0 | W56: =W46*(1+PARAMETROS!$G$88)*(1+PARAMETROS!$H$88)^W53 -> 0 | X56: =X46*(1+PARAMETROS!$G$88)*(1+PARAMETROS!$H$88)^(X53-1) -> 0 | Y56: =Y46*(1+PARAMETROS!$G$88)*(1+PARAMETROS!$H$88)^Y53 -> 0 | Z56: =Z46*(1+PARAMETROS!$G$88)*(1+PARAMETROS!$H$88)^(Z53-1) -> 0 | AA56: =AA46*(1+PARAMETROS!$G$88)*(1+PARAMETROS!$H$88)^AA53 -> 0 | AB56: =AB46*(1+PARAMETROS!$G$88)*(1+PARAMETROS!$H$88)^(AB53-1) -> 0 | AC56: =AC46*(1+PARAMETROS!$G$88)*(1+PARAMETROS!$H$88)^AC53 -> 0 | AD56: =AD46*(1+PARAMETROS!$G$88)*(1+PARAMETROS!$H$88)^(AD53-1) -> 0 | AE56: =AE46*(1+PARAMETROS!$G$88)*(1+PARAMETROS!$H$88)^AE53 -> 0 | AF56: =AF46*(1+PARAMETROS!$G$88)*(1+PARAMETROS!$H$88)^(AF53-1) -> 0 | AG56: =AG46*(1+PARAMETROS!$G$88)*(1+PARAMETROS!$H$88)^AG53 -> 0 | AH56: =AH46*(1+PARAMETROS!$G$88)*(1+PARAMETROS!$H$88)^(AH53-1) -> 0 | AI56: =AI46*(1+PARAMETROS!$G$88)*(1+PARAMETROS!$H$88)^AI53 -> 0 | AJ56: =AJ46*(1+PARAMETROS!$G$88)*(1+PARAMETROS!$H$88)^(AJ53-1) -> 0 | AK56: =AK46*(1+PARAMETROS!$G$88)*(1+PARAMETROS!$H$88)^AK53 -> 0 | AL56: =AL46*(1+PARAMETROS!$G$88)*(1+PARAMETROS!$H$88)^(AL53-1) -> 0 | AM56: =AM46*(1+PARAMETROS!$G$88)*(1+PARAMETROS!$H$88)^AM53 -> 0 | AN56: =AN46*(1+PARAMETROS!$G$88)*(1+PARAMETROS!$H$88)^(AN53-1) -> 0 | AO56: =AO46*(1+PARAMETROS!$G$88)*(1+PARAMETROS!$H$88)^AO53 -> 0 | AP56: =AP46*(1+PARAMETROS!$G$88)*(1+PARAMETROS!$H$88)^(AP53-1) -> 0 | AQ56: =AQ46*(1+PARAMETROS!$G$88)*(1+PARAMETROS!$H$88)^AQ53 -> 0
B57: Tarifa 4 | C57: =C47 -> 0 | D57: =D47*(1) -> 0 | E57: =E47*(1+PARAMETROS!$G$88)*(1+PARAMETROS!$H$88)^E53 -> 0 | F57: =F47*(1+PARAMETROS!$G$88)*(1+PARAMETROS!$H$88)^(F53-1) -> 0 | G57: =G47*(1+PARAMETROS!$G$88)*(1+PARAMETROS!$H$88)^G53 -> 0 | H57: =H47*(1+PARAMETROS!$G$88)*(1+PARAMETROS!$H$88)^(H53-1) -> 0 | I57: =I47*(1+PARAMETROS!$G$88)*(1+PARAMETROS!$H$88)^I53 -> 0 | J57: =J47*(1+PARAMETROS!$G$88)*(1+PARAMETROS!$H$88)^(J53-1) -> 0 | K57: =K47*(1+PARAMETROS!$G$88)*(1+PARAMETROS!$H$88)^K53 -> 0 | L57: =L47*(1+PARAMETROS!$G$88)*(1+PARAMETROS!$H$88)^(L53-1) -> 0 | M57: =M47*(1+PARAMETROS!$G$88)*(1+PARAMETROS!$H$88)^M53 -> 0 | N57: =N47*(1+PARAMETROS!$G$88)*(1+PARAMETROS!$H$88)^(N53-1) -> 0 | O57: =O47*(1+PARAMETROS!$G$88)*(1+PARAMETROS!$H$88)^O53 -> 0 | P57: =P47*(1+PARAMETROS!$G$88)*(1+PARAMETROS!$H$88)^(P53-1) -> 0 | Q57: =Q47*(1+PARAMETROS!$G$88)*(1+PARAMETROS!$H$88)^Q53 -> 0 | R57: =R47*(1+PARAMETROS!$G$88)*(1+PARAMETROS!$H$88)^(R53-1) -> 0 | S57: =S47*(1+PARAMETROS!$G$88)*(1+PARAMETROS!$H$88)^S53 -> 0 | T57: =T47*(1+PARAMETROS!$G$88)*(1+PARAMETROS!$H$88)^(T53-1) -> 0 | U57: =U47*(1+PARAMETROS!$G$88)*(1+PARAMETROS!$H$88)^U53 -> 0 | V57: =V47*(1+PARAMETROS!$G$88)*(1+PARAMETROS!$H$88)^(V53-1) -> 0 | W57: =W47*(1+PARAMETROS!$G$88)*(1+PARAMETROS!$H$88)^W53 -> 0 | X57: =X47*(1+PARAMETROS!$G$88)*(1+PARAMETROS!$H$88)^(X53-1) -> 0 | Y57: =Y47*(1+PARAMETROS!$G$88)*(1+PARAMETROS!$H$88)^Y53 -> 0 | Z57: =Z47*(1+PARAMETROS!$G$88)*(1+PARAMETROS!$H$88)^(Z53-1) -> 0 | AA57: =AA47*(1+PARAMETROS!$G$88)*(1+PARAMETROS!$H$88)^AA53 -> 0 | AB57: =AB47*(1+PARAMETROS!$G$88)*(1+PARAMETROS!$H$88)^(AB53-1) -> 0 | AC57: =AC47*(1+PARAMETROS!$G$88)*(1+PARAMETROS!$H$88)^AC53 -> 0 | AD57: =AD47*(1+PARAMETROS!$G$88)*(1+PARAMETROS!$H$88)^(AD53-1) -> 0 | AE57: =AE47*(1+PARAMETROS!$G$88)*(1+PARAMETROS!$H$88)^AE53 -> 0 | AF57: =AF47*(1+PARAMETROS!$G$88)*(1+PARAMETROS!$H$88)^(AF53-1) -> 0 | AG57: =AG47*(1+PARAMETROS!$G$88)*(1+PARAMETROS!$H$88)^AG53 -> 0 | AH57: =AH47*(1+PARAMETROS!$G$88)*(1+PARAMETROS!$H$88)^(AH53-1) -> 0 | AI57: =AI47*(1+PARAMETROS!$G$88)*(1+PARAMETROS!$H$88)^AI53 -> 0 | AJ57: =AJ47*(1+PARAMETROS!$G$88)*(1+PARAMETROS!$H$88)^(AJ53-1) -> 0 | AK57: =AK47*(1+PARAMETROS!$G$88)*(1+PARAMETROS!$H$88)^AK53 -> 0 | AL57: =AL47*(1+PARAMETROS!$G$88)*(1+PARAMETROS!$H$88)^(AL53-1) -> 0 | AM57: =AM47*(1+PARAMETROS!$G$88)*(1+PARAMETROS!$H$88)^AM53 -> 0 | AN57: =AN47*(1+PARAMETROS!$G$88)*(1+PARAMETROS!$H$88)^(AN53-1) -> 0 | AO57: =AO47*(1+PARAMETROS!$G$88)*(1+PARAMETROS!$H$88)^AO53 -> 0 | AP57: =AP47*(1+PARAMETROS!$G$88)*(1+PARAMETROS!$H$88)^(AP53-1) -> 0 | AQ57: =AQ47*(1+PARAMETROS!$G$88)*(1+PARAMETROS!$H$88)^AQ53 -> 0
B58: Tarifa 5 | C58: =C48 -> 0 | D58: =D48*(1) -> 0 | E58: =E48*(1+PARAMETROS!$G$88)*(1+PARAMETROS!$H$88)^E53 -> 0 | F58: =F48*(1+PARAMETROS!$G$88)*(1+PARAMETROS!$H$88)^(F53-1) -> 0 | G58: =G48*(1+PARAMETROS!$G$88)*(1+PARAMETROS!$H$88)^G53 -> 0 | H58: =H48*(1+PARAMETROS!$G$88)*(1+PARAMETROS!$H$88)^(H53-1) -> 0 | I58: =I48*(1+PARAMETROS!$G$88)*(1+PARAMETROS!$H$88)^I53 -> 0 | J58: =J48*(1+PARAMETROS!$G$88)*(1+PARAMETROS!$H$88)^(J53-1) -> 0 | K58: =K48*(1+PARAMETROS!$G$88)*(1+PARAMETROS!$H$88)^K53 -> 0 | L58: =L48*(1+PARAMETROS!$G$88)*(1+PARAMETROS!$H$88)^(L53-1) -> 0 | M58: =M48*(1+PARAMETROS!$G$88)*(1+PARAMETROS!$H$88)^M53 -> 0 | N58: =N48*(1+PARAMETROS!$G$88)*(1+PARAMETROS!$H$88)^(N53-1) -> 0 | O58: =O48*(1+PARAMETROS!$G$88)*(1+PARAMETROS!$H$88)^O53 -> 0 | P58: =P48*(1+PARAMETROS!$G$88)*(1+PARAMETROS!$H$88)^(P53-1) -> 0 | Q58: =Q48*(1+PARAMETROS!$G$88)*(1+PARAMETROS!$H$88)^Q53 -> 0 | R58: =R48*(1+PARAMETROS!$G$88)*(1+PARAMETROS!$H$88)^(R53-1) -> 0 | S58: =S48*(1+PARAMETROS!$G$88)*(1+PARAMETROS!$H$88)^S53 -> 0 | T58: =T48*(1+PARAMETROS!$G$88)*(1+PARAMETROS!$H$88)^(T53-1) -> 0 | U58: =U48*(1+PARAMETROS!$G$88)*(1+PARAMETROS!$H$88)^U53 -> 0 | V58: =V48*(1+PARAMETROS!$G$88)*(1+PARAMETROS!$H$88)^(V53-1) -> 0 | W58: =W48*(1+PARAMETROS!$G$88)*(1+PARAMETROS!$H$88)^W53 -> 0 | X58: =X48*(1+PARAMETROS!$G$88)*(1+PARAMETROS!$H$88)^(X53-1) -> 0 | Y58: =Y48*(1+PARAMETROS!$G$88)*(1+PARAMETROS!$H$88)^Y53 -> 0 | Z58: =Z48*(1+PARAMETROS!$G$88)*(1+PARAMETROS!$H$88)^(Z53-1) -> 0 | AA58: =AA48*(1+PARAMETROS!$G$88)*(1+PARAMETROS!$H$88)^AA53 -> 0 | AB58: =AB48*(1+PARAMETROS!$G$88)*(1+PARAMETROS!$H$88)^(AB53-1) -> 0 | AC58: =AC48*(1+PARAMETROS!$G$88)*(1+PARAMETROS!$H$88)^AC53 -> 0 | AD58: =AD48*(1+PARAMETROS!$G$88)*(1+PARAMETROS!$H$88)^(AD53-1) -> 0 | AE58: =AE48*(1+PARAMETROS!$G$88)*(1+PARAMETROS!$H$88)^AE53 -> 0 | AF58: =AF48*(1+PARAMETROS!$G$88)*(1+PARAMETROS!$H$88)^(AF53-1) -> 0 | AG58: =AG48*(1+PARAMETROS!$G$88)*(1+PARAMETROS!$H$88)^AG53 -> 0 | AH58: =AH48*(1+PARAMETROS!$G$88)*(1+PARAMETROS!$H$88)^(AH53-1) -> 0 | AI58: =AI48*(1+PARAMETROS!$G$88)*(1+PARAMETROS!$H$88)^AI53 -> 0 | AJ58: =AJ48*(1+PARAMETROS!$G$88)*(1+PARAMETROS!$H$88)^(AJ53-1) -> 0 | AK58: =AK48*(1+PARAMETROS!$G$88)*(1+PARAMETROS!$H$88)^AK53 -> 0 | AL58: =AL48*(1+PARAMETROS!$G$88)*(1+PARAMETROS!$H$88)^(AL53-1) -> 0 | AM58: =AM48*(1+PARAMETROS!$G$88)*(1+PARAMETROS!$H$88)^AM53 -> 0 | AN58: =AN48*(1+PARAMETROS!$G$88)*(1+PARAMETROS!$H$88)^(AN53-1) -> 0 | AO58: =AO48*(1+PARAMETROS!$G$88)*(1+PARAMETROS!$H$88)^AO53 -> 0 | AP58: =AP48*(1+PARAMETROS!$G$88)*(1+PARAMETROS!$H$88)^(AP53-1) -> 0 | AQ58: =AQ48*(1+PARAMETROS!$G$88)*(1+PARAMETROS!$H$88)^AQ53 -> 0
B61: Ingresos anuales en precios actualizados (hipotesis de inflacion alta)
B62: Año | C62: 2019 | D62: 2020 | E62: 2021 | F62: 2022 | G62: 2023 | H62: 2024 | I62: 2025 | J62: 2026 | K62: 2027 | L62: 2028 | M62: 2029 | N62: 2030 | O62: 2031 | P62: 2032 | Q62: 2033 | R62: 2034 | S62: 2035 | T62: 2036 | U62: 2037 | V62: 2038 | W62: 2039 | X62: 2040 | Y62: 2041 | Z62: 2042 | AA62: 2043 | AB62: 2044 | AC62: 2045 | AD62: 2046 | AE62: 2047 | AF62: 2048 | AG62: 2049 | AH62: 2050 | AI62: 2051 | AJ62: 2052 | AK62: 2053 | AL62: 2054 | AM62: 2055 | AN62: 2056 | AO62: 2057 | AP62: 2058 | AQ62: 2059
E63: 1 | F63: 2 | G63: 3 | H63: 4 | I63: 5 | J63: 6 | K63: 7 | L63: 8 | M63: 9 | N63: 10 | O63: 11 | P63: 12 | Q63: 13 | R63: 14 | S63: 15 | T63: 16 | U63: 17 | V63: 18 | W63: 19 | X63: 20 | Y63: 21 | Z63: 22 | AA63: 23 | AB63: 24 | AC63: 25 | AD63: 26 | AE63: 27 | AF63: 28 | AG63: 29 | AH63: 30 | AI63: 31 | AJ63: 32 | AK63: 33 | AL63: 34 | AM63: 35 | AN63: 36 | AO63: 37 | AP63: 38 | AQ63: 39
B64: Tarifa 1 | C64: =C44 -> 4995819.18 | D64: =D44*(1) -> 6661092.24 | E64: =E44*(1+PARAMETROS!$G$89)*(1+PARAMETROS!$H$89)^E63 -> 7383544.616 | F64: =F44*(1+PARAMETROS!$G$89)*(1+PARAMETROS!$H$89)^(F63-1) -> 7527814.186 | G64: =G44*(1+PARAMETROS!$G$89)*(1+PARAMETROS!$H$89)^G63 -> 8298125.791 | H64: =H44*(1+PARAMETROS!$G$89)*(1+PARAMETROS!$H$89)^(H63-1) -> 8454167.758 | I64: =I44*(1+PARAMETROS!$G$89)*(1+PARAMETROS!$H$89)^I63 -> 9312802.838 | J64: =J44*(1+PARAMETROS!$G$89)*(1+PARAMETROS!$H$89)^(J63-1) -> 9485080.004 | K64: =K44*(1+PARAMETROS!$G$89)*(1+PARAMETROS!$H$89)^K63 -> 10445397.51 | L64: =L44*(1+PARAMETROS!$G$89)*(1+PARAMETROS!$H$89)^(L63-1) -> 10631732.5 | M64: =M44*(1+PARAMETROS!$G$89)*(1+PARAMETROS!$H$89)^M63 -> 11700821.79 | N64: =N44*(1+PARAMETROS!$G$89)*(1+PARAMETROS!$H$89)^(N63-1) -> 11902361.7 | O64: =O44*(1+PARAMETROS!$G$89)*(1+PARAMETROS!$H$89)^O63 -> 13173796 | P64: =P44*(1+PARAMETROS!$G$89)*(1+PARAMETROS!$H$89)^(P63-1) -> 13473997.59 | Q64: =Q44*(1+PARAMETROS!$G$89)*(1+PARAMETROS!$H$89)^Q63 -> 14898173.83 | R64: =R44*(1+PARAMETROS!$G$89)*(1+PARAMETROS!$H$89)^(R63-1) -> 15222871.87 | S64: =S44*(1+PARAMETROS!$G$89)*(1+PARAMETROS!$H$89)^S63 -> 16816251.61 | T64: =T44*(1+PARAMETROS!$G$89)*(1+PARAMETROS!$H$89)^(T63-1) -> 17326993.13 | U64: =U44*(1+PARAMETROS!$G$89)*(1+PARAMETROS!$H$89)^U63 -> 19293293.81 | V64: =V44*(1+PARAMETROS!$G$89)*(1+PARAMETROS!$H$89)^(V63-1) -> 19845711.84 | W64: =W44*(1+PARAMETROS!$G$89)*(1+PARAMETROS!$H$89)^W63 -> 22062617.27 | X64: =X44*(1+PARAMETROS!$G$89)*(1+PARAMETROS!$H$89)^(X63-1) -> 22660112.62 | Y64: =Y44*(1+PARAMETROS!$G$89)*(1+PARAMETROS!$H$89)^Y63 -> 24509177.81 | Z64: =Z44*(1+PARAMETROS!$G$89)*(1+PARAMETROS!$H$89)^(Z63-1) -> 24509177.81 | AA64: =AA44*(1+PARAMETROS!$G$89)*(1+PARAMETROS!$H$89)^AA63 -> 26509126.72 | AB64: =AB44*(1+PARAMETROS!$G$89)*(1+PARAMETROS!$H$89)^(AB63-1) -> 26509126.72 | AC64: =AC44*(1+PARAMETROS!$G$89)*(1+PARAMETROS!$H$89)^AC63 -> 28672271.46 | AD64: =AD44*(1+PARAMETROS!$G$89)*(1+PARAMETROS!$H$89)^(AD63-1) -> 28672271.46 | AE64: =AE44*(1+PARAMETROS!$G$89)*(1+PARAMETROS!$H$89)^AE63 -> 31011928.81 | AF64: =AF44*(1+PARAMETROS!$G$89)*(1+PARAMETROS!$H$89)^(AF63-1) -> 31011928.81 | AG64: =AG44*(1+PARAMETROS!$G$89)*(1+PARAMETROS!$H$89)^AG63 -> 33542502.2 | AH64: =AH44*(1+PARAMETROS!$G$89)*(1+PARAMETROS!$H$89)^(AH63-1) -> 33542502.2 | AI64: =AI44*(1+PARAMETROS!$G$89)*(1+PARAMETROS!$H$89)^AI63 -> 36279570.38 | AJ64: =AJ44*(1+PARAMETROS!$G$89)*(1+PARAMETROS!$H$89)^(AJ63-1) -> 36279570.38 | AK64: =AK44*(1+PARAMETROS!$G$89)*(1+PARAMETROS!$H$89)^AK63 -> 39239983.32 | AL64: =AL44*(1+PARAMETROS!$G$89)*(1+PARAMETROS!$H$89)^(AL63-1) -> 39239983.32 | AM64: =AM44*(1+PARAMETROS!$G$89)*(1+PARAMETROS!$H$89)^AM63 -> 42441965.96 | AN64: =AN44*(1+PARAMETROS!$G$89)*(1+PARAMETROS!$H$89)^(AN63-1) -> 42441965.96 | AO64: =AO44*(1+PARAMETROS!$G$89)*(1+PARAMETROS!$H$89)^AO63 -> 45905230.39 | AP64: =AP44*(1+PARAMETROS!$G$89)*(1+PARAMETROS!$H$89)^(AP63-1) -> 45905230.39 | AQ64: =AQ44*(1+PARAMETROS!$G$89)*(1+PARAMETROS!$H$89)^AQ63 -> 49651097.18
B65: Tarifa 2 | C65: =C45 -> 6188730.075 | D65: =D45*(1) -> 8251640.1 | E65: =E45*(1+PARAMETROS!$G$89)*(1+PARAMETROS!$H$89)^E63 -> 9131778.106 | F65: =F45*(1+PARAMETROS!$G$89)*(1+PARAMETROS!$H$89)^(F63-1) -> 9295673.752 | G65: =G45*(1+PARAMETROS!$G$89)*(1+PARAMETROS!$H$89)^G63 -> 10231470.26 | H65: =H45*(1+PARAMETROS!$G$89)*(1+PARAMETROS!$H$89)^(H63-1) -> 10408739.79 | I65: =I45*(1+PARAMETROS!$G$89)*(1+PARAMETROS!$H$89)^I63 -> 11449827.68 | J65: =J45*(1+PARAMETROS!$G$89)*(1+PARAMETROS!$H$89)^(J63-1) -> 11664429 | K65: =K45*(1+PARAMETROS!$G$89)*(1+PARAMETROS!$H$89)^K63 -> 12848359.18 | L65: =L45*(1+PARAMETROS!$G$89)*(1+PARAMETROS!$H$89)^(L63-1) -> 13080471.96 | M65: =M45*(1+PARAMETROS!$G$89)*(1+PARAMETROS!$H$89)^M63 -> 14398891.66 | N65: =N45*(1+PARAMETROS!$G$89)*(1+PARAMETROS!$H$89)^(N63-1) -> 14649944.84 | O65: =O45*(1+PARAMETROS!$G$89)*(1+PARAMETROS!$H$89)^O63 -> 16203661.13 | P65: =P45*(1+PARAMETROS!$G$89)*(1+PARAMETROS!$H$89)^(P63-1) -> 16561941.92 | Q65: =Q45*(1+PARAMETROS!$G$89)*(1+PARAMETROS!$H$89)^Q63 -> 18300912.88 | R65: =R45*(1+PARAMETROS!$G$89)*(1+PARAMETROS!$H$89)^(R63-1) -> 18688429.38 | S65: =S45*(1+PARAMETROS!$G$89)*(1+PARAMETROS!$H$89)^S63 -> 20632543.06 | T65: =T45*(1+PARAMETROS!$G$89)*(1+PARAMETROS!$H$89)^(T63-1) -> 21254976.55 | U65: =U45*(1+PARAMETROS!$G$89)*(1+PARAMETROS!$H$89)^U63 -> 23662606.7 | V65: =V45*(1+PARAMETROS!$G$89)*(1+PARAMETROS!$H$89)^(V63-1) -> 24335830.76 | W65: =W45*(1+PARAMETROS!$G$89)*(1+PARAMETROS!$H$89)^W63 -> 27049793.7 | X65: =X45*(1+PARAMETROS!$G$89)*(1+PARAMETROS!$H$89)^(X63-1) -> 27777952.85 | Y65: =Y45*(1+PARAMETROS!$G$89)*(1+PARAMETROS!$H$89)^Y63 -> 30044633.8 | Z65: =Z45*(1+PARAMETROS!$G$89)*(1+PARAMETROS!$H$89)^(Z63-1) -> 30044633.8 | AA65: =AA45*(1+PARAMETROS!$G$89)*(1+PARAMETROS!$H$89)^AA63 -> 32496275.92 | AB65: =AB45*(1+PARAMETROS!$G$89)*(1+PARAMETROS!$H$89)^(AB63-1) -> 32496275.92 | AC65: =AC45*(1+PARAMETROS!$G$89)*(1+PARAMETROS!$H$89)^AC63 -> 35147972.03 | AD65: =AD45*(1+PARAMETROS!$G$89)*(1+PARAMETROS!$H$89)^(AD63-1) -> 35147972.03 | AE65: =AE45*(1+PARAMETROS!$G$89)*(1+PARAMETROS!$H$89)^AE63 -> 38016046.55 | AF65: =AF45*(1+PARAMETROS!$G$89)*(1+PARAMETROS!$H$89)^(AF63-1) -> 38016046.55 | AG65: =AG45*(1+PARAMETROS!$G$89)*(1+PARAMETROS!$H$89)^AG63 -> 41118155.95 | AH65: =AH45*(1+PARAMETROS!$G$89)*(1+PARAMETROS!$H$89)^(AH63-1) -> 41118155.95 | AI65: =AI45*(1+PARAMETROS!$G$89)*(1+PARAMETROS!$H$89)^AI63 -> 44473397.47 | AJ65: =AJ45*(1+PARAMETROS!$G$89)*(1+PARAMETROS!$H$89)^(AJ63-1) -> 44473397.47 | AK65: =AK45*(1+PARAMETROS!$G$89)*(1+PARAMETROS!$H$89)^AK63 -> 48102426.71 | AL65: =AL45*(1+PARAMETROS!$G$89)*(1+PARAMETROS!$H$89)^(AL63-1) -> 48102426.71 | AM65: =AM45*(1+PARAMETROS!$G$89)*(1+PARAMETROS!$H$89)^AM63 -> 52027584.73 | AN65: =AN45*(1+PARAMETROS!$G$89)*(1+PARAMETROS!$H$89)^(AN63-1) -> 52027584.73 | AO65: =AO45*(1+PARAMETROS!$G$89)*(1+PARAMETROS!$H$89)^AO63 -> 56273035.64 | AP65: =AP45*(1+PARAMETROS!$G$89)*(1+PARAMETROS!$H$89)^(AP63-1) -> 56273035.64 | AQ65: =AQ45*(1+PARAMETROS!$G$89)*(1+PARAMETROS!$H$89)^AQ63 -> 60864915.35
B66: Tarifa 3 | C66: =C46 -> 0 | D66: =D46*(1) -> 0 | E66: =E46*(1+PARAMETROS!$G$89)*(1+PARAMETROS!$H$89)^E63 -> 0 | F66: =F46*(1+PARAMETROS!$G$89)*(1+PARAMETROS!$H$89)^(F63-1) -> 0 | G66: =G46*(1+PARAMETROS!$G$89)*(1+PARAMETROS!$H$89)^G63 -> 0 | H66: =H46*(1+PARAMETROS!$G$89)*(1+PARAMETROS!$H$89)^(H63-1) -> 0 | I66: =I46*(1+PARAMETROS!$G$89)*(1+PARAMETROS!$H$89)^I63 -> 0 | J66: =J46*(1+PARAMETROS!$G$89)*(1+PARAMETROS!$H$89)^(J63-1) -> 0 | K66: =K46*(1+PARAMETROS!$G$89)*(1+PARAMETROS!$H$89)^K63 -> 0 | L66: =L46*(1+PARAMETROS!$G$89)*(1+PARAMETROS!$H$89)^(L63-1) -> 0 | M66: =M46*(1+PARAMETROS!$G$89)*(1+PARAMETROS!$H$89)^M63 -> 0 | N66: =N46*(1+PARAMETROS!$G$89)*(1+PARAMETROS!$H$89)^(N63-1) -> 0 | O66: =O46*(1+PARAMETROS!$G$89)*(1+PARAMETROS!$H$89)^O63 -> 0 | P66: =P46*(1+PARAMETROS!$G$89)*(1+PARAMETROS!$H$89)^(P63-1) -> 0 | Q66: =Q46*(1+PARAMETROS!$G$89)*(1+PARAMETROS!$H$89)^Q63 -> 0 | R66: =R46*(1+PARAMETROS!$G$89)*(1+PARAMETROS!$H$89)^(R63-1) -> 0 | S66: =S46*(1+PARAMETROS!$G$89)*(1+PARAMETROS!$H$89)^S63 -> 0 | T66: =T46*(1+PARAMETROS!$G$89)*(1+PARAMETROS!$H$89)^(T63-1) -> 0 | U66: =U46*(1+PARAMETROS!$G$89)*(1+PARAMETROS!$H$89)^U63 -> 0 | V66: =V46*(1+PARAMETROS!$G$89)*(1+PARAMETROS!$H$89)^(V63-1) -> 0 | W66: =W46*(1+PARAMETROS!$G$89)*(1+PARAMETROS!$H$89)^W63 -> 0 | X66: =X46*(1+PARAMETROS!$G$89)*(1+PARAMETROS!$H$89)^(X63-1) -> 0 | Y66: =Y46*(1+PARAMETROS!$G$89)*(1+PARAMETROS!$H$89)^Y63 -> 0 | Z66: =Z46*(1+PARAMETROS!$G$89)*(1+PARAMETROS!$H$89)^(Z63-1) -> 0 | AA66: =AA46*(1+PARAMETROS!$G$89)*(1+PARAMETROS!$H$89)^AA63 -> 0 | AB66: =AB46*(1+PARAMETROS!$G$89)*(1+PARAMETROS!$H$89)^(AB63-1) -> 0 | AC66: =AC46*(1+PARAMETROS!$G$89)*(1+PARAMETROS!$H$89)^AC63 -> 0 | AD66: =AD46*(1+PARAMETROS!$G$89)*(1+PARAMETROS!$H$89)^(AD63-1) -> 0 | AE66: =AE46*(1+PARAMETROS!$G$89)*(1+PARAMETROS!$H$89)^AE63 -> 0 | AF66: =AF46*(1+PARAMETROS!$G$89)*(1+PARAMETROS!$H$89)^(AF63-1) -> 0 | AG66: =AG46*(1+PARAMETROS!$G$89)*(1+PARAMETROS!$H$89)^AG63 -> 0 | AH66: =AH46*(1+PARAMETROS!$G$89)*(1+PARAMETROS!$H$89)^(AH63-1) -> 0 | AI66: =AI46*(1+PARAMETROS!$G$89)*(1+PARAMETROS!$H$89)^AI63 -> 0 | AJ66: =AJ46*(1+PARAMETROS!$G$89)*(1+PARAMETROS!$H$89)^(AJ63-1) -> 0 | AK66: =AK46*(1+PARAMETROS!$G$89)*(1+PARAMETROS!$H$89)^AK63 -> 0 | AL66: =AL46*(1+PARAMETROS!$G$89)*(1+PARAMETROS!$H$89)^(AL63-1) -> 0 | AM66: =AM46*(1+PARAMETROS!$G$89)*(1+PARAMETROS!$H$89)^AM63 -> 0 | AN66: =AN46*(1+PARAMETROS!$G$89)*(1+PARAMETROS!$H$89)^(AN63-1) -> 0 | AO66: =AO46*(1+PARAMETROS!$G$89)*(1+PARAMETROS!$H$89)^AO63 -> 0 | AP66: =AP46*(1+PARAMETROS!$G$89)*(1+PARAMETROS!$H$89)^(AP63-1) -> 0 | AQ66: =AQ46*(1+PARAMETROS!$G$89)*(1+PARAMETROS!$H$89)^AQ63 -> 0
B67: Tarifa 4 | C67: =C47 -> 0 | D67: =D47*(1) -> 0 | E67: =E47*(1+PARAMETROS!$G$89)*(1+PARAMETROS!$H$89)^E63 -> 0 | F67: =F47*(1+PARAMETROS!$G$89)*(1+PARAMETROS!$H$89)^(F63-1) -> 0 | G67: =G47*(1+PARAMETROS!$G$89)*(1+PARAMETROS!$H$89)^G63 -> 0 | H67: =H47*(1+PARAMETROS!$G$89)*(1+PARAMETROS!$H$89)^(H63-1) -> 0 | I67: =I47*(1+PARAMETROS!$G$89)*(1+PARAMETROS!$H$89)^I63 -> 0 | J67: =J47*(1+PARAMETROS!$G$89)*(1+PARAMETROS!$H$89)^(J63-1) -> 0 | K67: =K47*(1+PARAMETROS!$G$89)*(1+PARAMETROS!$H$89)^K63 -> 0 | L67: =L47*(1+PARAMETROS!$G$89)*(1+PARAMETROS!$H$89)^(L63-1) -> 0 | M67: =M47*(1+PARAMETROS!$G$89)*(1+PARAMETROS!$H$89)^M63 -> 0 | N67: =N47*(1+PARAMETROS!$G$89)*(1+PARAMETROS!$H$89)^(N63-1) -> 0 | O67: =O47*(1+PARAMETROS!$G$89)*(1+PARAMETROS!$H$89)^O63 -> 0 | P67: =P47*(1+PARAMETROS!$G$89)*(1+PARAMETROS!$H$89)^(P63-1) -> 0 | Q67: =Q47*(1+PARAMETROS!$G$89)*(1+PARAMETROS!$H$89)^Q63 -> 0 | R67: =R47*(1+PARAMETROS!$G$89)*(1+PARAMETROS!$H$89)^(R63-1) -> 0 | S67: =S47*(1+PARAMETROS!$G$89)*(1+PARAMETROS!$H$89)^S63 -> 0 | T67: =T47*(1+PARAMETROS!$G$89)*(1+PARAMETROS!$H$89)^(T63-1) -> 0 | U67: =U47*(1+PARAMETROS!$G$89)*(1+PARAMETROS!$H$89)^U63 -> 0 | V67: =V47*(1+PARAMETROS!$G$89)*(1+PARAMETROS!$H$89)^(V63-1) -> 0 | W67: =W47*(1+PARAMETROS!$G$89)*(1+PARAMETROS!$H$89)^W63 -> 0 | X67: =X47*(1+PARAMETROS!$G$89)*(1+PARAMETROS!$H$89)^(X63-1) -> 0 | Y67: =Y47*(1+PARAMETROS!$G$89)*(1+PARAMETROS!$H$89)^Y63 -> 0 | Z67: =Z47*(1+PARAMETROS!$G$89)*(1+PARAMETROS!$H$89)^(Z63-1) -> 0 | AA67: =AA47*(1+PARAMETROS!$G$89)*(1+PARAMETROS!$H$89)^AA63 -> 0 | AB67: =AB47*(1+PARAMETROS!$G$89)*(1+PARAMETROS!$H$89)^(AB63-1) -> 0 | AC67: =AC47*(1+PARAMETROS!$G$89)*(1+PARAMETROS!$H$89)^AC63 -> 0 | AD67: =AD47*(1+PARAMETROS!$G$89)*(1+PARAMETROS!$H$89)^(AD63-1) -> 0 | AE67: =AE47*(1+PARAMETROS!$G$89)*(1+PARAMETROS!$H$89)^AE63 -> 0 | AF67: =AF47*(1+PARAMETROS!$G$89)*(1+PARAMETROS!$H$89)^(AF63-1) -> 0 | AG67: =AG47*(1+PARAMETROS!$G$89)*(1+PARAMETROS!$H$89)^AG63 -> 0 | AH67: =AH47*(1+PARAMETROS!$G$89)*(1+PARAMETROS!$H$89)^(AH63-1) -> 0 | AI67: =AI47*(1+PARAMETROS!$G$89)*(1+PARAMETROS!$H$89)^AI63 -> 0 | AJ67: =AJ47*(1+PARAMETROS!$G$89)*(1+PARAMETROS!$H$89)^(AJ63-1) -> 0 | AK67: =AK47*(1+PARAMETROS!$G$89)*(1+PARAMETROS!$H$89)^AK63 -> 0 | AL67: =AL47*(1+PARAMETROS!$G$89)*(1+PARAMETROS!$H$89)^(AL63-1) -> 0 | AM67: =AM47*(1+PARAMETROS!$G$89)*(1+PARAMETROS!$H$89)^AM63 -> 0 | AN67: =AN47*(1+PARAMETROS!$G$89)*(1+PARAMETROS!$H$89)^(AN63-1) -> 0 | AO67: =AO47*(1+PARAMETROS!$G$89)*(1+PARAMETROS!$H$89)^AO63 -> 0 | AP67: =AP47*(1+PARAMETROS!$G$89)*(1+PARAMETROS!$H$89)^(AP63-1) -> 0 | AQ67: =AQ47*(1+PARAMETROS!$G$89)*(1+PARAMETROS!$H$89)^AQ63 -> 0
B68: Tarifa 5 | C68: =C48 -> 0 | D68: =D48*(1) -> 0 | E68: =E48*(1+PARAMETROS!$G$89)*(1+PARAMETROS!$H$89)^E63 -> 0 | F68: =F48*(1+PARAMETROS!$G$89)*(1+PARAMETROS!$H$89)^(F63-1) -> 0 | G68: =G48*(1+PARAMETROS!$G$89)*(1+PARAMETROS!$H$89)^G63 -> 0 | H68: =H48*(1+PARAMETROS!$G$89)*(1+PARAMETROS!$H$89)^(H63-1) -> 0 | I68: =I48*(1+PARAMETROS!$G$89)*(1+PARAMETROS!$H$89)^I63 -> 0 | J68: =J48*(1+PARAMETROS!$G$89)*(1+PARAMETROS!$H$89)^(J63-1) -> 0 | K68: =K48*(1+PARAMETROS!$G$89)*(1+PARAMETROS!$H$89)^K63 -> 0 | L68: =L48*(1+PARAMETROS!$G$89)*(1+PARAMETROS!$H$89)^(L63-1) -> 0 | M68: =M48*(1+PARAMETROS!$G$89)*(1+PARAMETROS!$H$89)^M63 -> 0 | N68: =N48*(1+PARAMETROS!$G$89)*(1+PARAMETROS!$H$89)^(N63-1) -> 0 | O68: =O48*(1+PARAMETROS!$G$89)*(1+PARAMETROS!$H$89)^O63 -> 0 | P68: =P48*(1+PARAMETROS!$G$89)*(1+PARAMETROS!$H$89)^(P63-1) -> 0 | Q68: =Q48*(1+PARAMETROS!$G$89)*(1+PARAMETROS!$H$89)^Q63 -> 0 | R68: =R48*(1+PARAMETROS!$G$89)*(1+PARAMETROS!$H$89)^(R63-1) -> 0 | S68: =S48*(1+PARAMETROS!$G$89)*(1+PARAMETROS!$H$89)^S63 -> 0 | T68: =T48*(1+PARAMETROS!$G$89)*(1+PARAMETROS!$H$89)^(T63-1) -> 0 | U68: =U48*(1+PARAMETROS!$G$89)*(1+PARAMETROS!$H$89)^U63 -> 0 | V68: =V48*(1+PARAMETROS!$G$89)*(1+PARAMETROS!$H$89)^(V63-1) -> 0 | W68: =W48*(1+PARAMETROS!$G$89)*(1+PARAMETROS!$H$89)^W63 -> 0 | X68: =X48*(1+PARAMETROS!$G$89)*(1+PARAMETROS!$H$89)^(X63-1) -> 0 | Y68: =Y48*(1+PARAMETROS!$G$89)*(1+PARAMETROS!$H$89)^Y63 -> 0 | Z68: =Z48*(1+PARAMETROS!$G$89)*(1+PARAMETROS!$H$89)^(Z63-1) -> 0 | AA68: =AA48*(1+PARAMETROS!$G$89)*(1+PARAMETROS!$H$89)^AA63 -> 0 | AB68: =AB48*(1+PARAMETROS!$G$89)*(1+PARAMETROS!$H$89)^(AB63-1) -> 0 | AC68: =AC48*(1+PARAMETROS!$G$89)*(1+PARAMETROS!$H$89)^AC63 -> 0 | AD68: =AD48*(1+PARAMETROS!$G$89)*(1+PARAMETROS!$H$89)^(AD63-1) -> 0 | AE68: =AE48*(1+PARAMETROS!$G$89)*(1+PARAMETROS!$H$89)^AE63 -> 0 | AF68: =AF48*(1+PARAMETROS!$G$89)*(1+PARAMETROS!$H$89)^(AF63-1) -> 0 | AG68: =AG48*(1+PARAMETROS!$G$89)*(1+PARAMETROS!$H$89)^AG63 -> 0 | AH68: =AH48*(1+PARAMETROS!$G$89)*(1+PARAMETROS!$H$89)^(AH63-1) -> 0 | AI68: =AI48*(1+PARAMETROS!$G$89)*(1+PARAMETROS!$H$89)^AI63 -> 0 | AJ68: =AJ48*(1+PARAMETROS!$G$89)*(1+PARAMETROS!$H$89)^(AJ63-1) -> 0 | AK68: =AK48*(1+PARAMETROS!$G$89)*(1+PARAMETROS!$H$89)^AK63 -> 0 | AL68: =AL48*(1+PARAMETROS!$G$89)*(1+PARAMETROS!$H$89)^(AL63-1) -> 0 | AM68: =AM48*(1+PARAMETROS!$G$89)*(1+PARAMETROS!$H$89)^AM63 -> 0 | AN68: =AN48*(1+PARAMETROS!$G$89)*(1+PARAMETROS!$H$89)^(AN63-1) -> 0 | AO68: =AO48*(1+PARAMETROS!$G$89)*(1+PARAMETROS!$H$89)^AO63 -> 0 | AP68: =AP48*(1+PARAMETROS!$G$89)*(1+PARAMETROS!$H$89)^(AP63-1) -> 0 | AQ68: =AQ48*(1+PARAMETROS!$G$89)*(1+PARAMETROS!$H$89)^AQ63 -> 0
B72: ALTERNATIVA 21
B74: Ingresos en USD 2015
B75: Año | C75: 2019 | D75: 2020 | E75: 2021 | F75: 2022 | G75: 2023 | H75: 2024 | I75: 2025 | J75: 2026 | K75: 2027 | L75: 2028 | M75: 2029 | N75: 2030 | O75: 2031 | P75: 2032 | Q75: 2033 | R75: 2034 | S75: 2035 | T75: 2036 | U75: 2037 | V75: 2038 | W75: 2039 | X75: 2040 | Y75: 2041 | Z75: 2042 | AA75: 2043 | AB75: 2044 | AC75: 2045 | AD75: 2046 | AE75: 2047 | AF75: 2048 | AG75: 2049 | AH75: 2050 | AI75: 2051 | AJ75: 2052 | AK75: 2053 | AL75: 2054 | AM75: 2055 | AN75: 2056 | AO75: 2057 | AP75: 2058 | AQ75: 2059
B76: Tarifa 1 | C76: =$D32*DEMANDA!C75*$D$12+$E32*DEMANDA!C75*$D$13 -> 5594646.42 | D76: =$D32*DEMANDA!D75*$D$12+$E32*DEMANDA!D75*$D$13 -> 7459528.56 | E76: =$D32*DEMANDA!E75*$D$12+$E32*DEMANDA!E75*$D$13 -> 7604472.656 | F76: =$D32*DEMANDA!F75*$D$12+$E32*DEMANDA!F75*$D$13 -> 7749416.752 | G76: =$D32*DEMANDA!G75*$D$12+$E32*DEMANDA!G75*$D$13 -> 7894360.848 | H76: =$D32*DEMANDA!H75*$D$12+$E32*DEMANDA!H75*$D$13 -> 8039304.944 | I76: =$D32*DEMANDA!I75*$D$12+$E32*DEMANDA!I75*$D$13 -> 8184249.04 | J76: =$D32*DEMANDA!J75*$D$12+$E32*DEMANDA!J75*$D$13 -> 8335835.376 | K76: =$D32*DEMANDA!K75*$D$12+$E32*DEMANDA!K75*$D$13 -> 8487421.712 | L76: =$D32*DEMANDA!L75*$D$12+$E32*DEMANDA!L75*$D$13 -> 8639008.048 | M76: =$D32*DEMANDA!M75*$D$12+$E32*DEMANDA!M75*$D$13 -> 8790594.384 | N76: =$D32*DEMANDA!N75*$D$12+$E32*DEMANDA!N75*$D$13 -> 8942180.72 | O76: =$D32*DEMANDA!O75*$D$12+$E32*DEMANDA!O75*$D$13 -> 9150747.056 | P76: =$D32*DEMANDA!P75*$D$12+$E32*DEMANDA!P75*$D$13 -> 9359313.392 | Q76: =$D32*DEMANDA!Q75*$D$12+$E32*DEMANDA!Q75*$D$13 -> 9567879.728 | R76: =$D32*DEMANDA!R75*$D$12+$E32*DEMANDA!R75*$D$13 -> 9776446.064 | S76: =$D32*DEMANDA!S75*$D$12+$E32*DEMANDA!S75*$D$13 -> 9985012.4 | T76: =$D32*DEMANDA!T75*$D$12+$E32*DEMANDA!T75*$D$13 -> 10282086.58 | U76: =$D32*DEMANDA!U75*$D$12+$E32*DEMANDA!U75*$D$13 -> 10579160.77 | V76: =$D32*DEMANDA!V75*$D$12+$E32*DEMANDA!V75*$D$13 -> 10876234.95 | W76: =$D32*DEMANDA!W75*$D$12+$E32*DEMANDA!W75*$D$13 -> 11173309.14 | X76: =$D32*DEMANDA!X75*$D$12+$E32*DEMANDA!X75*$D$13 -> 11470383.32 | Y76: =$D32*DEMANDA!Y75*$D$12+$E32*DEMANDA!Y75*$D$13 -> 11470383.32 | Z76: =$D32*DEMANDA!Z75*$D$12+$E32*DEMANDA!Z75*$D$13 -> 11470383.32 | AA76: =$D32*DEMANDA!AA75*$D$12+$E32*DEMANDA!AA75*$D$13 -> 11470383.32 | AB76: =$D32*DEMANDA!AB75*$D$12+$E32*DEMANDA!AB75*$D$13 -> 11470383.32 | AC76: =$D32*DEMANDA!AC75*$D$12+$E32*DEMANDA!AC75*$D$13 -> 11470383.32 | AD76: =$D32*DEMANDA!AD75*$D$12+$E32*DEMANDA!AD75*$D$13 -> 11470383.32 | AE76: =$D32*DEMANDA!AE75*$D$12+$E32*DEMANDA!AE75*$D$13 -> 11470383.32 | AF76: =$D32*DEMANDA!AF75*$D$12+$E32*DEMANDA!AF75*$D$13 -> 11470383.32 | AG76: =$D32*DEMANDA!AG75*$D$12+$E32*DEMANDA!AG75*$D$13 -> 11470383.32 | AH76: =$D32*DEMANDA!AH75*$D$12+$E32*DEMANDA!AH75*$D$13 -> 11470383.32 | AI76: =$D32*DEMANDA!AI75*$D$12+$E32*DEMANDA!AI75*$D$13 -> 11470383.32 | AJ76: =$D32*DEMANDA!AJ75*$D$12+$E32*DEMANDA!AJ75*$D$13 -> 11470383.32 | AK76: =$D32*DEMANDA!AK75*$D$12+$E32*DEMANDA!AK75*$D$13 -> 11470383.32 | AL76: =$D32*DEMANDA!AL75*$D$12+$E32*DEMANDA!AL75*$D$13 -> 11470383.32 | AM76: =$D32*DEMANDA!AM75*$D$12+$E32*DEMANDA!AM75*$D$13 -> 11470383.32 | AN76: =$D32*DEMANDA!AN75*$D$12+$E32*DEMANDA!AN75*$D$13 -> 11470383.32 | AO76: =$D32*DEMANDA!AO75*$D$12+$E32*DEMANDA!AO75*$D$13 -> 11470383.32 | AP76: =$D32*DEMANDA!AP75*$D$12+$E32*DEMANDA!AP75*$D$13 -> 11470383.32 | AQ76: =$D32*DEMANDA!AQ75*$D$12+$E32*DEMANDA!AQ75*$D$13 -> 11470383.32
B77: Tarifa 2 | C77: =$D33*DEMANDA!C76*$D$12+$E33*DEMANDA!C76*$D$13 -> 6928671.337 | D77: =$D33*DEMANDA!D76*$D$12+$E33*DEMANDA!D76*$D$13 -> 9238228.45 | E77: =$D33*DEMANDA!E76*$D$12+$E33*DEMANDA!E76*$D$13 -> 9406225.84 | F77: =$D33*DEMANDA!F76*$D$12+$E33*DEMANDA!F76*$D$13 -> 9574223.23 | G77: =$D33*DEMANDA!G76*$D$12+$E33*DEMANDA!G76*$D$13 -> 9742220.62 | H77: =$D33*DEMANDA!H76*$D$12+$E33*DEMANDA!H76*$D$13 -> 9910218.01 | I77: =$D33*DEMANDA!I76*$D$12+$E33*DEMANDA!I76*$D$13 -> 10078215.4 | J77: =$D33*DEMANDA!J76*$D$12+$E33*DEMANDA!J76*$D$13 -> 10257706.47 | K77: =$D33*DEMANDA!K76*$D$12+$E33*DEMANDA!K76*$D$13 -> 10437197.54 | L77: =$D33*DEMANDA!L76*$D$12+$E33*DEMANDA!L76*$D$13 -> 10616688.61 | M77: =$D33*DEMANDA!M76*$D$12+$E33*DEMANDA!M76*$D$13 -> 10796179.68 | N77: =$D33*DEMANDA!N76*$D$12+$E33*DEMANDA!N76*$D$13 -> 10975670.75 | O77: =$D33*DEMANDA!O76*$D$12+$E33*DEMANDA!O76*$D$13 -> 11228531.71 | P77: =$D33*DEMANDA!P76*$D$12+$E33*DEMANDA!P76*$D$13 -> 11481392.67 | Q77: =$D33*DEMANDA!Q76*$D$12+$E33*DEMANDA!Q76*$D$13 -> 11734253.63 | R77: =$D33*DEMANDA!R76*$D$12+$E33*DEMANDA!R76*$D$13 -> 11987114.59 | S77: =$D33*DEMANDA!S76*$D$12+$E33*DEMANDA!S76*$D$13 -> 12239975.55 | T77: =$D33*DEMANDA!T76*$D$12+$E33*DEMANDA!T76*$D$13 -> 12602775.35 | U77: =$D33*DEMANDA!U76*$D$12+$E33*DEMANDA!U76*$D$13 -> 12965575.15 | V77: =$D33*DEMANDA!V76*$D$12+$E33*DEMANDA!V76*$D$13 -> 13328374.95 | W77: =$D33*DEMANDA!W76*$D$12+$E33*DEMANDA!W76*$D$13 -> 13691174.75 | X77: =$D33*DEMANDA!X76*$D$12+$E33*DEMANDA!X76*$D$13 -> 14053974.55 | Y77: =$D33*DEMANDA!Y76*$D$12+$E33*DEMANDA!Y76*$D$13 -> 14053974.55 | Z77: =$D33*DEMANDA!Z76*$D$12+$E33*DEMANDA!Z76*$D$13 -> 14053974.55 | AA77: =$D33*DEMANDA!AA76*$D$12+$E33*DEMANDA!AA76*$D$13 -> 14053974.55 | AB77: =$D33*DEMANDA!AB76*$D$12+$E33*DEMANDA!AB76*$D$13 -> 14053974.55 | AC77: =$D33*DEMANDA!AC76*$D$12+$E33*DEMANDA!AC76*$D$13 -> 14053974.55 | AD77: =$D33*DEMANDA!AD76*$D$12+$E33*DEMANDA!AD76*$D$13 -> 14053974.55 | AE77: =$D33*DEMANDA!AE76*$D$12+$E33*DEMANDA!AE76*$D$13 -> 14053974.55 | AF77: =$D33*DEMANDA!AF76*$D$12+$E33*DEMANDA!AF76*$D$13 -> 14053974.55 | AG77: =$D33*DEMANDA!AG76*$D$12+$E33*DEMANDA!AG76*$D$13 -> 14053974.55 | AH77: =$D33*DEMANDA!AH76*$D$12+$E33*DEMANDA!AH76*$D$13 -> 14053974.55 | AI77: =$D33*DEMANDA!AI76*$D$12+$E33*DEMANDA!AI76*$D$13 -> 14053974.55 | AJ77: =$D33*DEMANDA!AJ76*$D$12+$E33*DEMANDA!AJ76*$D$13 -> 14053974.55 | AK77: =$D33*DEMANDA!AK76*$D$12+$E33*DEMANDA!AK76*$D$13 -> 14053974.55 | AL77: =$D33*DEMANDA!AL76*$D$12+$E33*DEMANDA!AL76*$D$13 -> 14053974.55 | AM77: =$D33*DEMANDA!AM76*$D$12+$E33*DEMANDA!AM76*$D$13 -> 14053974.55 | AN77: =$D33*DEMANDA!AN76*$D$12+$E33*DEMANDA!AN76*$D$13 -> 14053974.55 | AO77: =$D33*DEMANDA!AO76*$D$12+$E33*DEMANDA!AO76*$D$13 -> 14053974.55 | AP77: =$D33*DEMANDA!AP76*$D$12+$E33*DEMANDA!AP76*$D$13 -> 14053974.55 | AQ77: =$D33*DEMANDA!AQ76*$D$12+$E33*DEMANDA!AQ76*$D$13 -> 14053974.55
B78: Tarifa 3 | C78: =$D34*DEMANDA!C77*$D$12+$E34*DEMANDA!C77*$D$13 -> 0 | D78: =$D34*DEMANDA!D77*$D$12+$E34*DEMANDA!D77*$D$13 -> 0 | E78: =$D34*DEMANDA!E77*$D$12+$E34*DEMANDA!E77*$D$13 -> 0 | F78: =$D34*DEMANDA!F77*$D$12+$E34*DEMANDA!F77*$D$13 -> 0 | G78: =$D34*DEMANDA!G77*$D$12+$E34*DEMANDA!G77*$D$13 -> 0 | H78: =$D34*DEMANDA!H77*$D$12+$E34*DEMANDA!H77*$D$13 -> 0 | I78: =$D34*DEMANDA!I77*$D$12+$E34*DEMANDA!I77*$D$13 -> 0 | J78: =$D34*DEMANDA!J77*$D$12+$E34*DEMANDA!J77*$D$13 -> 0 | K78: =$D34*DEMANDA!K77*$D$12+$E34*DEMANDA!K77*$D$13 -> 0 | L78: =$D34*DEMANDA!L77*$D$12+$E34*DEMANDA!L77*$D$13 -> 0 | M78: =$D34*DEMANDA!M77*$D$12+$E34*DEMANDA!M77*$D$13 -> 0 | N78: =$D34*DEMANDA!N77*$D$12+$E34*DEMANDA!N77*$D$13 -> 0 | O78: =$D34*DEMANDA!O77*$D$12+$E34*DEMANDA!O77*$D$13 -> 0 | P78: =$D34*DEMANDA!P77*$D$12+$E34*DEMANDA!P77*$D$13 -> 0 | Q78: =$D34*DEMANDA!Q77*$D$12+$E34*DEMANDA!Q77*$D$13 -> 0 | R78: =$D34*DEMANDA!R77*$D$12+$E34*DEMANDA!R77*$D$13 -> 0 | S78: =$D34*DEMANDA!S77*$D$12+$E34*DEMANDA!S77*$D$13 -> 0 | T78: =$D34*DEMANDA!T77*$D$12+$E34*DEMANDA!T77*$D$13 -> 0 | U78: =$D34*DEMANDA!U77*$D$12+$E34*DEMANDA!U77*$D$13 -> 0 | V78: =$D34*DEMANDA!V77*$D$12+$E34*DEMANDA!V77*$D$13 -> 0 | W78: =$D34*DEMANDA!W77*$D$12+$E34*DEMANDA!W77*$D$13 -> 0 | X78: =$D34*DEMANDA!X77*$D$12+$E34*DEMANDA!X77*$D$13 -> 0 | Y78: =$D34*DEMANDA!Y77*$D$12+$E34*DEMANDA!Y77*$D$13 -> 0 | Z78: =$D34*DEMANDA!Z77*$D$12+$E34*DEMANDA!Z77*$D$13 -> 0 | AA78: =$D34*DEMANDA!AA77*$D$12+$E34*DEMANDA!AA77*$D$13 -> 0 | AB78: =$D34*DEMANDA!AB77*$D$12+$E34*DEMANDA!AB77*$D$13 -> 0 | AC78: =$D34*DEMANDA!AC77*$D$12+$E34*DEMANDA!AC77*$D$13 -> 0 | AD78: =$D34*DEMANDA!AD77*$D$12+$E34*DEMANDA!AD77*$D$13 -> 0 | AE78: =$D34*DEMANDA!AE77*$D$12+$E34*DEMANDA!AE77*$D$13 -> 0 | AF78: =$D34*DEMANDA!AF77*$D$12+$E34*DEMANDA!AF77*$D$13 -> 0 | AG78: =$D34*DEMANDA!AG77*$D$12+$E34*DEMANDA!AG77*$D$13 -> 0 | AH78: =$D34*DEMANDA!AH77*$D$12+$E34*DEMANDA!AH77*$D$13 -> 0 | AI78: =$D34*DEMANDA!AI77*$D$12+$E34*DEMANDA!AI77*$D$13 -> 0 | AJ78: =$D34*DEMANDA!AJ77*$D$12+$E34*DEMANDA!AJ77*$D$13 -> 0 | AK78: =$D34*DEMANDA!AK77*$D$12+$E34*DEMANDA!AK77*$D$13 -> 0 | AL78: =$D34*DEMANDA!AL77*$D$12+$E34*DEMANDA!AL77*$D$13 -> 0 | AM78: =$D34*DEMANDA!AM77*$D$12+$E34*DEMANDA!AM77*$D$13 -> 0 | AN78: =$D34*DEMANDA!AN77*$D$12+$E34*DEMANDA!AN77*$D$13 -> 0 | AO78: =$D34*DEMANDA!AO77*$D$12+$E34*DEMANDA!AO77*$D$13 -> 0 | AP78: =$D34*DEMANDA!AP77*$D$12+$E34*DEMANDA!AP77*$D$13 -> 0 | AQ78: =$D34*DEMANDA!AQ77*$D$12+$E34*DEMANDA!AQ77*$D$13 -> 0
B79: Tarifa 4 | C79: =$D35*DEMANDA!C78*$D$12+$E35*DEMANDA!C78*$D$13 -> 0 | D79: =$D35*DEMANDA!D78*$D$12+$E35*DEMANDA!D78*$D$13 -> 0 | E79: =$D35*DEMANDA!E78*$D$12+$E35*DEMANDA!E78*$D$13 -> 0 | F79: =$D35*DEMANDA!F78*$D$12+$E35*DEMANDA!F78*$D$13 -> 0 | G79: =$D35*DEMANDA!G78*$D$12+$E35*DEMANDA!G78*$D$13 -> 0 | H79: =$D35*DEMANDA!H78*$D$12+$E35*DEMANDA!H78*$D$13 -> 0 | I79: =$D35*DEMANDA!I78*$D$12+$E35*DEMANDA!I78*$D$13 -> 0 | J79: =$D35*DEMANDA!J78*$D$12+$E35*DEMANDA!J78*$D$13 -> 0 | K79: =$D35*DEMANDA!K78*$D$12+$E35*DEMANDA!K78*$D$13 -> 0 | L79: =$D35*DEMANDA!L78*$D$12+$E35*DEMANDA!L78*$D$13 -> 0 | M79: =$D35*DEMANDA!M78*$D$12+$E35*DEMANDA!M78*$D$13 -> 0 | N79: =$D35*DEMANDA!N78*$D$12+$E35*DEMANDA!N78*$D$13 -> 0 | O79: =$D35*DEMANDA!O78*$D$12+$E35*DEMANDA!O78*$D$13 -> 0 | P79: =$D35*DEMANDA!P78*$D$12+$E35*DEMANDA!P78*$D$13 -> 0 | Q79: =$D35*DEMANDA!Q78*$D$12+$E35*DEMANDA!Q78*$D$13 -> 0 | R79: =$D35*DEMANDA!R78*$D$12+$E35*DEMANDA!R78*$D$13 -> 0 | S79: =$D35*DEMANDA!S78*$D$12+$E35*DEMANDA!S78*$D$13 -> 0 | T79: =$D35*DEMANDA!T78*$D$12+$E35*DEMANDA!T78*$D$13 -> 0 | U79: =$D35*DEMANDA!U78*$D$12+$E35*DEMANDA!U78*$D$13 -> 0 | V79: =$D35*DEMANDA!V78*$D$12+$E35*DEMANDA!V78*$D$13 -> 0 | W79: =$D35*DEMANDA!W78*$D$12+$E35*DEMANDA!W78*$D$13 -> 0 | X79: =$D35*DEMANDA!X78*$D$12+$E35*DEMANDA!X78*$D$13 -> 0 | Y79: =$D35*DEMANDA!Y78*$D$12+$E35*DEMANDA!Y78*$D$13 -> 0 | Z79: =$D35*DEMANDA!Z78*$D$12+$E35*DEMANDA!Z78*$D$13 -> 0 | AA79: =$D35*DEMANDA!AA78*$D$12+$E35*DEMANDA!AA78*$D$13 -> 0 | AB79: =$D35*DEMANDA!AB78*$D$12+$E35*DEMANDA!AB78*$D$13 -> 0 | AC79: =$D35*DEMANDA!AC78*$D$12+$E35*DEMANDA!AC78*$D$13 -> 0 | AD79: =$D35*DEMANDA!AD78*$D$12+$E35*DEMANDA!AD78*$D$13 -> 0 | AE79: =$D35*DEMANDA!AE78*$D$12+$E35*DEMANDA!AE78*$D$13 -> 0 | AF79: =$D35*DEMANDA!AF78*$D$12+$E35*DEMANDA!AF78*$D$13 -> 0 | AG79: =$D35*DEMANDA!AG78*$D$12+$E35*DEMANDA!AG78*$D$13 -> 0 | AH79: =$D35*DEMANDA!AH78*$D$12+$E35*DEMANDA!AH78*$D$13 -> 0 | AI79: =$D35*DEMANDA!AI78*$D$12+$E35*DEMANDA!AI78*$D$13 -> 0 | AJ79: =$D35*DEMANDA!AJ78*$D$12+$E35*DEMANDA!AJ78*$D$13 -> 0 | AK79: =$D35*DEMANDA!AK78*$D$12+$E35*DEMANDA!AK78*$D$13 -> 0 | AL79: =$D35*DEMANDA!AL78*$D$12+$E35*DEMANDA!AL78*$D$13 -> 0 | AM79: =$D35*DEMANDA!AM78*$D$12+$E35*DEMANDA!AM78*$D$13 -> 0 | AN79: =$D35*DEMANDA!AN78*$D$12+$E35*DEMANDA!AN78*$D$13 -> 0 | AO79: =$D35*DEMANDA!AO78*$D$12+$E35*DEMANDA!AO78*$D$13 -> 0 | AP79: =$D35*DEMANDA!AP78*$D$12+$E35*DEMANDA!AP78*$D$13 -> 0 | AQ79: =$D35*DEMANDA!AQ78*$D$12+$E35*DEMANDA!AQ78*$D$13 -> 0
B80: Tarifa 5 | C80: =$D36*DEMANDA!C79*$D$12+$E36*DEMANDA!C79*$D$13 -> 0 | D80: =$D36*DEMANDA!D79*$D$12+$E36*DEMANDA!D79*$D$13 -> 0 | E80: =$D36*DEMANDA!E79*$D$12+$E36*DEMANDA!E79*$D$13 -> 0 | F80: =$D36*DEMANDA!F79*$D$12+$E36*DEMANDA!F79*$D$13 -> 0 | G80: =$D36*DEMANDA!G79*$D$12+$E36*DEMANDA!G79*$D$13 -> 0 | H80: =$D36*DEMANDA!H79*$D$12+$E36*DEMANDA!H79*$D$13 -> 0 | I80: =$D36*DEMANDA!I79*$D$12+$E36*DEMANDA!I79*$D$13 -> 0 | J80: =$D36*DEMANDA!J79*$D$12+$E36*DEMANDA!J79*$D$13 -> 0 | K80: =$D36*DEMANDA!K79*$D$12+$E36*DEMANDA!K79*$D$13 -> 0 | L80: =$D36*DEMANDA!L79*$D$12+$E36*DEMANDA!L79*$D$13 -> 0 | M80: =$D36*DEMANDA!M79*$D$12+$E36*DEMANDA!M79*$D$13 -> 0 | N80: =$D36*DEMANDA!N79*$D$12+$E36*DEMANDA!N79*$D$13 -> 0 | O80: =$D36*DEMANDA!O79*$D$12+$E36*DEMANDA!O79*$D$13 -> 0 | P80: =$D36*DEMANDA!P79*$D$12+$E36*DEMANDA!P79*$D$13 -> 0 | Q80: =$D36*DEMANDA!Q79*$D$12+$E36*DEMANDA!Q79*$D$13 -> 0 | R80: =$D36*DEMANDA!R79*$D$12+$E36*DEMANDA!R79*$D$13 -> 0 | S80: =$D36*DEMANDA!S79*$D$12+$E36*DEMANDA!S79*$D$13 -> 0 | T80: =$D36*DEMANDA!T79*$D$12+$E36*DEMANDA!T79*$D$13 -> 0 | U80: =$D36*DEMANDA!U79*$D$12+$E36*DEMANDA!U79*$D$13 -> 0 | V80: =$D36*DEMANDA!V79*$D$12+$E36*DEMANDA!V79*$D$13 -> 0 | W80: =$D36*DEMANDA!W79*$D$12+$E36*DEMANDA!W79*$D$13 -> 0 | X80: =$D36*DEMANDA!X79*$D$12+$E36*DEMANDA!X79*$D$13 -> 0 | Y80: =$D36*DEMANDA!Y79*$D$12+$E36*DEMANDA!Y79*$D$13 -> 0 | Z80: =$D36*DEMANDA!Z79*$D$12+$E36*DEMANDA!Z79*$D$13 -> 0 | AA80: =$D36*DEMANDA!AA79*$D$12+$E36*DEMANDA!AA79*$D$13 -> 0 | AB80: =$D36*DEMANDA!AB79*$D$12+$E36*DEMANDA!AB79*$D$13 -> 0 | AC80: =$D36*DEMANDA!AC79*$D$12+$E36*DEMANDA!AC79*$D$13 -> 0 | AD80: =$D36*DEMANDA!AD79*$D$12+$E36*DEMANDA!AD79*$D$13 -> 0 | AE80: =$D36*DEMANDA!AE79*$D$12+$E36*DEMANDA!AE79*$D$13 -> 0 | AF80: =$D36*DEMANDA!AF79*$D$12+$E36*DEMANDA!AF79*$D$13 -> 0 | AG80: =$D36*DEMANDA!AG79*$D$12+$E36*DEMANDA!AG79*$D$13 -> 0 | AH80: =$D36*DEMANDA!AH79*$D$12+$E36*DEMANDA!AH79*$D$13 -> 0 | AI80: =$D36*DEMANDA!AI79*$D$12+$E36*DEMANDA!AI79*$D$13 -> 0 | AJ80: =$D36*DEMANDA!AJ79*$D$12+$E36*DEMANDA!AJ79*$D$13 -> 0 | AK80: =$D36*DEMANDA!AK79*$D$12+$E36*DEMANDA!AK79*$D$13 -> 0 | AL80: =$D36*DEMANDA!AL79*$D$12+$E36*DEMANDA!AL79*$D$13 -> 0 | AM80: =$D36*DEMANDA!AM79*$D$12+$E36*DEMANDA!AM79*$D$13 -> 0 | AN80: =$D36*DEMANDA!AN79*$D$12+$E36*DEMANDA!AN79*$D$13 -> 0 | AO80: =$D36*DEMANDA!AO79*$D$12+$E36*DEMANDA!AO79*$D$13 -> 0 | AP80: =$D36*DEMANDA!AP79*$D$12+$E36*DEMANDA!AP79*$D$13 -> 0 | AQ80: =$D36*DEMANDA!AQ79*$D$12+$E36*DEMANDA!AQ79*$D$13 -> 0
B83: Ingresos anuales en precios actualizados (hipotesis de inflacion baja)
B84: Año | C84: 2019 | D84: 2020 | E84: 2021 | F84: 2022 | G84: 2023 | H84: 2024 | I84: 2025 | J84: 2026 | K84: 2027 | L84: 2028 | M84: 2029 | N84: 2030 | O84: 2031 | P84: 2032 | Q84: 2033 | R84: 2034 | S84: 2035 | T84: 2036 | U84: 2037 | V84: 2038 | W84: 2039 | X84: 2040 | Y84: 2041 | Z84: 2042 | AA84: 2043 | AB84: 2044 | AC84: 2045 | AD84: 2046 | AE84: 2047 | AF84: 2048 | AG84: 2049 | AH84: 2050 | AI84: 2051 | AJ84: 2052 | AK84: 2053 | AL84: 2054 | AM84: 2055 | AN84: 2056 | AO84: 2057 | AP84: 2058 | AQ84: 2059
E85: 1 | F85: 2 | G85: 3 | H85: 4 | I85: 5 | J85: 6 | K85: 7 | L85: 8 | M85: 9 | N85: 10 | O85: 11 | P85: 12 | Q85: 13 | R85: 14 | S85: 15 | T85: 16 | U85: 17 | V85: 18 | W85: 19 | X85: 20 | Y85: 21 | Z85: 22 | AA85: 23 | AB85: 24 | AC85: 25 | AD85: 26 | AE85: 27 | AF85: 28 | AG85: 29 | AH85: 30 | AI85: 31 | AJ85: 32 | AK85: 33 | AL85: 34 | AM85: 35 | AN85: 36 | AO85: 37 | AP85: 38 | AQ85: 39
B86: Tarifa 1 | C86: =C76 -> 5594646.42 | D86: =D76*(1) -> 7459528.56 | E86: =E76*(1+PARAMETROS!$G$88)*(1+PARAMETROS!$H$88)^E85 -> 7950476.162 | F86: =F76*(1+PARAMETROS!$G$88)*(1+PARAMETROS!$H$88)^(F85-1) -> 8102015.214 | G86: =G76*(1+PARAMETROS!$G$88)*(1+PARAMETROS!$H$88)^G85 -> 8586997.859 | H86: =H76*(1+PARAMETROS!$G$88)*(1+PARAMETROS!$H$88)^(H85-1) -> 8744659.089 | I86: =I76*(1+PARAMETROS!$G$88)*(1+PARAMETROS!$H$88)^I85 -> 9261974.06 | J86: =J76*(1+PARAMETROS!$G$88)*(1+PARAMETROS!$H$88)^(J85-1) -> 9433521.713 | K86: =K76*(1+PARAMETROS!$G$88)*(1+PARAMETROS!$H$88)^K85 -> 9993114.168 | L86: =L76*(1+PARAMETROS!$G$88)*(1+PARAMETROS!$H$88)^(L85-1) -> 10171592.35 | M86: =M76*(1+PARAMETROS!$G$88)*(1+PARAMETROS!$H$88)^M85 -> 10768213.37 | N86: =N76*(1+PARAMETROS!$G$88)*(1+PARAMETROS!$H$88)^(N85-1) -> 10953902.07 | O86: =O76*(1+PARAMETROS!$G$88)*(1+PARAMETROS!$H$88)^O85 -> 11662248.89 | P86: =P76*(1+PARAMETROS!$G$88)*(1+PARAMETROS!$H$88)^(P85-1) -> 11928058.06 | Q86: =Q76*(1+PARAMETROS!$G$88)*(1+PARAMETROS!$H$88)^Q85 -> 12686499.47 | R86: =R76*(1+PARAMETROS!$G$88)*(1+PARAMETROS!$H$88)^(R85-1) -> 12963047.34 | S86: =S76*(1+PARAMETROS!$G$88)*(1+PARAMETROS!$H$88)^S85 -> 13774474.85 | T86: =T76*(1+PARAMETROS!$G$88)*(1+PARAMETROS!$H$88)^(T85-1) -> 14184293.15 | U86: =U76*(1+PARAMETROS!$G$88)*(1+PARAMETROS!$H$88)^U85 -> 15183713.56 | V86: =V76*(1+PARAMETROS!$G$88)*(1+PARAMETROS!$H$88)^(V85-1) -> 15610088.53 | W86: =W76*(1+PARAMETROS!$G$88)*(1+PARAMETROS!$H$88)^W85 -> 16684336.62 | X86: =X76*(1+PARAMETROS!$G$88)*(1+PARAMETROS!$H$88)^(X85-1) -> 17127937.14 | Y86: =Y76*(1+PARAMETROS!$G$88)*(1+PARAMETROS!$H$88)^Y85 -> 17819905.8 | Z86: =Z76*(1+PARAMETROS!$G$88)*(1+PARAMETROS!$H$88)^(Z85-1) -> 17819905.8 | AA86: =AA76*(1+PARAMETROS!$G$88)*(1+PARAMETROS!$H$88)^AA85 -> 18539829.99 | AB86: =AB76*(1+PARAMETROS!$G$88)*(1+PARAMETROS!$H$88)^(AB85-1) -> 18539829.99 | AC86: =AC76*(1+PARAMETROS!$G$88)*(1+PARAMETROS!$H$88)^AC85 -> 19288839.12 | AD86: =AD76*(1+PARAMETROS!$G$88)*(1+PARAMETROS!$H$88)^(AD85-1) -> 19288839.12 | AE86: =AE76*(1+PARAMETROS!$G$88)*(1+PARAMETROS!$H$88)^AE85 -> 20068108.23 | AF86: =AF76*(1+PARAMETROS!$G$88)*(1+PARAMETROS!$H$88)^(AF85-1) -> 20068108.23 | AG86: =AG76*(1+PARAMETROS!$G$88)*(1+PARAMETROS!$H$88)^AG85 -> 20878859.8 | AH86: =AH76*(1+PARAMETROS!$G$88)*(1+PARAMETROS!$H$88)^(AH85-1) -> 20878859.8 | AI86: =AI76*(1+PARAMETROS!$G$88)*(1+PARAMETROS!$H$88)^AI85 -> 21722365.73 | AJ86: =AJ76*(1+PARAMETROS!$G$88)*(1+PARAMETROS!$H$88)^(AJ85-1) -> 21722365.73 | AK86: =AK76*(1+PARAMETROS!$G$88)*(1+PARAMETROS!$H$88)^AK85 -> 22599949.31 | AL86: =AL76*(1+PARAMETROS!$G$88)*(1+PARAMETROS!$H$88)^(AL85-1) -> 22599949.31 | AM86: =AM76*(1+PARAMETROS!$G$88)*(1+PARAMETROS!$H$88)^AM85 -> 23512987.26 | AN86: =AN76*(1+PARAMETROS!$G$88)*(1+PARAMETROS!$H$88)^(AN85-1) -> 23512987.26 | AO86: =AO76*(1+PARAMETROS!$G$88)*(1+PARAMETROS!$H$88)^AO85 -> 24462911.95 | AP86: =AP76*(1+PARAMETROS!$G$88)*(1+PARAMETROS!$H$88)^(AP85-1) -> 24462911.95 | AQ86: =AQ76*(1+PARAMETROS!$G$88)*(1+PARAMETROS!$H$88)^AQ85 -> 25451213.59
B87: Tarifa 2 | C87: =C77 -> 6928671.337 | D87: =D77*(1) -> 9238228.45 | E87: =E77*(1+PARAMETROS!$G$88)*(1+PARAMETROS!$H$88)^E85 -> 9834209.116 | F87: =F77*(1+PARAMETROS!$G$88)*(1+PARAMETROS!$H$88)^(F85-1) -> 10009850.39 | G87: =G77*(1+PARAMETROS!$G$88)*(1+PARAMETROS!$H$88)^G85 -> 10596985.52 | H87: =H77*(1+PARAMETROS!$G$88)*(1+PARAMETROS!$H$88)^(H85-1) -> 10779722.7 | I87: =I77*(1+PARAMETROS!$G$88)*(1+PARAMETROS!$H$88)^I85 -> 11405343.26 | J87: =J77*(1+PARAMETROS!$G$88)*(1+PARAMETROS!$H$88)^(J85-1) -> 11608470.22 | K87: =K77*(1+PARAMETROS!$G$88)*(1+PARAMETROS!$H$88)^K85 -> 12288785.71 | L87: =L77*(1+PARAMETROS!$G$88)*(1+PARAMETROS!$H$88)^(L85-1) -> 12500119 | M87: =M77*(1+PARAMETROS!$G$88)*(1+PARAMETROS!$H$88)^M85 -> 13224994.96 | N87: =N77*(1+PARAMETROS!$G$88)*(1+PARAMETROS!$H$88)^(N85-1) -> 13444866.11 | O87: =O77*(1+PARAMETROS!$G$88)*(1+PARAMETROS!$H$88)^O85 -> 14310299.55 | P87: =P77*(1+PARAMETROS!$G$88)*(1+PARAMETROS!$H$88)^(P85-1) -> 14632560.39 | Q87: =Q77*(1+PARAMETROS!$G$88)*(1+PARAMETROS!$H$88)^Q85 -> 15558996.01 | R87: =R77*(1+PARAMETROS!$G$88)*(1+PARAMETROS!$H$88)^(R85-1) -> 15894276.19 | S87: =S77*(1+PARAMETROS!$G$88)*(1+PARAMETROS!$H$88)^S85 -> 16885230.44 | T87: =T77*(1+PARAMETROS!$G$88)*(1+PARAMETROS!$H$88)^(T85-1) -> 17385718.23 | U87: =U77*(1+PARAMETROS!$G$88)*(1+PARAMETROS!$H$88)^U85 -> 18608808.73 | V87: =V77*(1+PARAMETROS!$G$88)*(1+PARAMETROS!$H$88)^(V85-1) -> 19129516.22 | W87: =W77*(1+PARAMETROS!$G$88)*(1+PARAMETROS!$H$88)^W85 -> 20444092.75 | X87: =X77*(1+PARAMETROS!$G$88)*(1+PARAMETROS!$H$88)^(X85-1) -> 20985836.82 | Y87: =Y77*(1+PARAMETROS!$G$88)*(1+PARAMETROS!$H$88)^Y85 -> 21833664.63 | Z87: =Z77*(1+PARAMETROS!$G$88)*(1+PARAMETROS!$H$88)^(Z85-1) -> 21833664.63 | AA87: =AA77*(1+PARAMETROS!$G$88)*(1+PARAMETROS!$H$88)^AA85 -> 22715744.68 | AB87: =AB77*(1+PARAMETROS!$G$88)*(1+PARAMETROS!$H$88)^(AB85-1) -> 22715744.68 | AC87: =AC77*(1+PARAMETROS!$G$88)*(1+PARAMETROS!$H$88)^AC85 -> 23633460.77 | AD87: =AD77*(1+PARAMETROS!$G$88)*(1+PARAMETROS!$H$88)^(AD85-1) -> 23633460.77 | AE87: =AE77*(1+PARAMETROS!$G$88)*(1+PARAMETROS!$H$88)^AE85 -> 24588252.58 | AF87: =AF77*(1+PARAMETROS!$G$88)*(1+PARAMETROS!$H$88)^(AF85-1) -> 24588252.58 | AG87: =AG77*(1+PARAMETROS!$G$88)*(1+PARAMETROS!$H$88)^AG85 -> 25581617.98 | AH87: =AH77*(1+PARAMETROS!$G$88)*(1+PARAMETROS!$H$88)^(AH85-1) -> 25581617.98 | AI87: =AI77*(1+PARAMETROS!$G$88)*(1+PARAMETROS!$H$88)^AI85 -> 26615115.35 | AJ87: =AJ77*(1+PARAMETROS!$G$88)*(1+PARAMETROS!$H$88)^(AJ85-1) -> 26615115.35 | AK87: =AK77*(1+PARAMETROS!$G$88)*(1+PARAMETROS!$H$88)^AK85 -> 27690366.01 | AL87: =AL77*(1+PARAMETROS!$G$88)*(1+PARAMETROS!$H$88)^(AL85-1) -> 27690366.01 | AM87: =AM77*(1+PARAMETROS!$G$88)*(1+PARAMETROS!$H$88)^AM85 -> 28809056.8 | AN87: =AN77*(1+PARAMETROS!$G$88)*(1+PARAMETROS!$H$88)^(AN85-1) -> 28809056.8 | AO87: =AO77*(1+PARAMETROS!$G$88)*(1+PARAMETROS!$H$88)^AO85 -> 29972942.69 | AP87: =AP77*(1+PARAMETROS!$G$88)*(1+PARAMETROS!$H$88)^(AP85-1) -> 29972942.69 | AQ87: =AQ77*(1+PARAMETROS!$G$88)*(1+PARAMETROS!$H$88)^AQ85 -> 31183849.58
B88: Tarifa 3 | C88: =C78 -> 0 | D88: =D78*(1) -> 0 | E88: =E78*(1+PARAMETROS!$G$88)*(1+PARAMETROS!$H$88)^E85 -> 0 | F88: =F78*(1+PARAMETROS!$G$88)*(1+PARAMETROS!$H$88)^(F85-1) -> 0 | G88: =G78*(1+PARAMETROS!$G$88)*(1+PARAMETROS!$H$88)^G85 -> 0 | H88: =H78*(1+PARAMETROS!$G$88)*(1+PARAMETROS!$H$88)^(H85-1) -> 0 | I88: =I78*(1+PARAMETROS!$G$88)*(1+PARAMETROS!$H$88)^I85 -> 0 | J88: =J78*(1+PARAMETROS!$G$88)*(1+PARAMETROS!$H$88)^(J85-1) -> 0 | K88: =K78*(1+PARAMETROS!$G$88)*(1+PARAMETROS!$H$88)^K85 -> 0 | L88: =L78*(1+PARAMETROS!$G$88)*(1+PARAMETROS!$H$88)^(L85-1) -> 0 | M88: =M78*(1+PARAMETROS!$G$88)*(1+PARAMETROS!$H$88)^M85 -> 0 | N88: =N78*(1+PARAMETROS!$G$88)*(1+PARAMETROS!$H$88)^(N85-1) -> 0 | O88: =O78*(1+PARAMETROS!$G$88)*(1+PARAMETROS!$H$88)^O85 -> 0 | P88: =P78*(1+PARAMETROS!$G$88)*(1+PARAMETROS!$H$88)^(P85-1) -> 0 | Q88: =Q78*(1+PARAMETROS!$G$88)*(1+PARAMETROS!$H$88)^Q85 -> 0 | R88: =R78*(1+PARAMETROS!$G$88)*(1+PARAMETROS!$H$88)^(R85-1) -> 0 | S88: =S78*(1+PARAMETROS!$G$88)*(1+PARAMETROS!$H$88)^S85 -> 0 | T88: =T78*(1+PARAMETROS!$G$88)*(1+PARAMETROS!$H$88)^(T85-1) -> 0 | U88: =U78*(1+PARAMETROS!$G$88)*(1+PARAMETROS!$H$88)^U85 -> 0 | V88: =V78*(1+PARAMETROS!$G$88)*(1+PARAMETROS!$H$88)^(V85-1) -> 0 | W88: =W78*(1+PARAMETROS!$G$88)*(1+PARAMETROS!$H$88)^W85 -> 0 | X88: =X78*(1+PARAMETROS!$G$88)*(1+PARAMETROS!$H$88)^(X85-1) -> 0 | Y88: =Y78*(1+PARAMETROS!$G$88)*(1+PARAMETROS!$H$88)^Y85 -> 0 | Z88: =Z78*(1+PARAMETROS!$G$88)*(1+PARAMETROS!$H$88)^(Z85-1) -> 0 | AA88: =AA78*(1+PARAMETROS!$G$88)*(1+PARAMETROS!$H$88)^AA85 -> 0 | AB88: =AB78*(1+PARAMETROS!$G$88)*(1+PARAMETROS!$H$88)^(AB85-1) -> 0 | AC88: =AC78*(1+PARAMETROS!$G$88)*(1+PARAMETROS!$H$88)^AC85 -> 0 | AD88: =AD78*(1+PARAMETROS!$G$88)*(1+PARAMETROS!$H$88)^(AD85-1) -> 0 | AE88: =AE78*(1+PARAMETROS!$G$88)*(1+PARAMETROS!$H$88)^AE85 -> 0 | AF88: =AF78*(1+PARAMETROS!$G$88)*(1+PARAMETROS!$H$88)^(AF85-1) -> 0 | AG88: =AG78*(1+PARAMETROS!$G$88)*(1+PARAMETROS!$H$88)^AG85 -> 0 | AH88: =AH78*(1+PARAMETROS!$G$88)*(1+PARAMETROS!$H$88)^(AH85-1) -> 0 | AI88: =AI78*(1+PARAMETROS!$G$88)*(1+PARAMETROS!$H$88)^AI85 -> 0 | AJ88: =AJ78*(1+PARAMETROS!$G$88)*(1+PARAMETROS!$H$88)^(AJ85-1) -> 0 | AK88: =AK78*(1+PARAMETROS!$G$88)*(1+PARAMETROS!$H$88)^AK85 -> 0 | AL88: =AL78*(1+PARAMETROS!$G$88)*(1+PARAMETROS!$H$88)^(AL85-1) -> 0 | AM88: =AM78*(1+PARAMETROS!$G$88)*(1+PARAMETROS!$H$88)^AM85 -> 0 | AN88: =AN78*(1+PARAMETROS!$G$88)*(1+PARAMETROS!$H$88)^(AN85-1) -> 0 | AO88: =AO78*(1+PARAMETROS!$G$88)*(1+PARAMETROS!$H$88)^AO85 -> 0 | AP88: =AP78*(1+PARAMETROS!$G$88)*(1+PARAMETROS!$H$88)^(AP85-1) -> 0 | AQ88: =AQ78*(1+PARAMETROS!$G$88)*(1+PARAMETROS!$H$88)^AQ85 -> 0
B89: Tarifa 4 | C89: =C79 -> 0 | D89: =D79*(1) -> 0 | E89: =E79*(1+PARAMETROS!$G$88)*(1+PARAMETROS!$H$88)^E85 -> 0 | F89: =F79*(1+PARAMETROS!$G$88)*(1+PARAMETROS!$H$88)^(F85-1) -> 0 | G89: =G79*(1+PARAMETROS!$G$88)*(1+PARAMETROS!$H$88)^G85 -> 0 | H89: =H79*(1+PARAMETROS!$G$88)*(1+PARAMETROS!$H$88)^(H85-1) -> 0 | I89: =I79*(1+PARAMETROS!$G$88)*(1+PARAMETROS!$H$88)^I85 -> 0 | J89: =J79*(1+PARAMETROS!$G$88)*(1+PARAMETROS!$H$88)^(J85-1) -> 0 | K89: =K79*(1+PARAMETROS!$G$88)*(1+PARAMETROS!$H$88)^K85 -> 0 | L89: =L79*(1+PARAMETROS!$G$88)*(1+PARAMETROS!$H$88)^(L85-1) -> 0 | M89: =M79*(1+PARAMETROS!$G$88)*(1+PARAMETROS!$H$88)^M85 -> 0 | N89: =N79*(1+PARAMETROS!$G$88)*(1+PARAMETROS!$H$88)^(N85-1) -> 0 | O89: =O79*(1+PARAMETROS!$G$88)*(1+PARAMETROS!$H$88)^O85 -> 0 | P89: =P79*(1+PARAMETROS!$G$88)*(1+PARAMETROS!$H$88)^(P85-1) -> 0 | Q89: =Q79*(1+PARAMETROS!$G$88)*(1+PARAMETROS!$H$88)^Q85 -> 0 | R89: =R79*(1+PARAMETROS!$G$88)*(1+PARAMETROS!$H$88)^(R85-1) -> 0 | S89: =S79*(1+PARAMETROS!$G$88)*(1+PARAMETROS!$H$88)^S85 -> 0 | T89: =T79*(1+PARAMETROS!$G$88)*(1+PARAMETROS!$H$88)^(T85-1) -> 0 | U89: =U79*(1+PARAMETROS!$G$88)*(1+PARAMETROS!$H$88)^U85 -> 0 | V89: =V79*(1+PARAMETROS!$G$88)*(1+PARAMETROS!$H$88)^(V85-1) -> 0 | W89: =W79*(1+PARAMETROS!$G$88)*(1+PARAMETROS!$H$88)^W85 -> 0 | X89: =X79*(1+PARAMETROS!$G$88)*(1+PARAMETROS!$H$88)^(X85-1) -> 0 | Y89: =Y79*(1+PARAMETROS!$G$88)*(1+PARAMETROS!$H$88)^Y85 -> 0 | Z89: =Z79*(1+PARAMETROS!$G$88)*(1+PARAMETROS!$H$88)^(Z85-1) -> 0 | AA89: =AA79*(1+PARAMETROS!$G$88)*(1+PARAMETROS!$H$88)^AA85 -> 0 | AB89: =AB79*(1+PARAMETROS!$G$88)*(1+PARAMETROS!$H$88)^(AB85-1) -> 0 | AC89: =AC79*(1+PARAMETROS!$G$88)*(1+PARAMETROS!$H$88)^AC85 -> 0 | AD89: =AD79*(1+PARAMETROS!$G$88)*(1+PARAMETROS!$H$88)^(AD85-1) -> 0 | AE89: =AE79*(1+PARAMETROS!$G$88)*(1+PARAMETROS!$H$88)^AE85 -> 0 | AF89: =AF79*(1+PARAMETROS!$G$88)*(1+PARAMETROS!$H$88)^(AF85-1) -> 0 | AG89: =AG79*(1+PARAMETROS!$G$88)*(1+PARAMETROS!$H$88)^AG85 -> 0 | AH89: =AH79*(1+PARAMETROS!$G$88)*(1+PARAMETROS!$H$88)^(AH85-1) -> 0 | AI89: =AI79*(1+PARAMETROS!$G$88)*(1+PARAMETROS!$H$88)^AI85 -> 0 | AJ89: =AJ79*(1+PARAMETROS!$G$88)*(1+PARAMETROS!$H$88)^(AJ85-1) -> 0 | AK89: =AK79*(1+PARAMETROS!$G$88)*(1+PARAMETROS!$H$88)^AK85 -> 0 | AL89: =AL79*(1+PARAMETROS!$G$88)*(1+PARAMETROS!$H$88)^(AL85-1) -> 0 | AM89: =AM79*(1+PARAMETROS!$G$88)*(1+PARAMETROS!$H$88)^AM85 -> 0 | AN89: =AN79*(1+PARAMETROS!$G$88)*(1+PARAMETROS!$H$88)^(AN85-1) -> 0 | AO89: =AO79*(1+PARAMETROS!$G$88)*(1+PARAMETROS!$H$88)^AO85 -> 0 | AP89: =AP79*(1+PARAMETROS!$G$88)*(1+PARAMETROS!$H$88)^(AP85-1) -> 0 | AQ89: =AQ79*(1+PARAMETROS!$G$88)*(1+PARAMETROS!$H$88)^AQ85 -> 0
B90: Tarifa 5 | C90: =C80 -> 0 | D90: =D80*(1) -> 0 | E90: =E80*(1+PARAMETROS!$G$88)*(1+PARAMETROS!$H$88)^E85 -> 0 | F90: =F80*(1+PARAMETROS!$G$88)*(1+PARAMETROS!$H$88)^(F85-1) -> 0 | G90: =G80*(1+PARAMETROS!$G$88)*(1+PARAMETROS!$H$88)^G85 -> 0 | H90: =H80*(1+PARAMETROS!$G$88)*(1+PARAMETROS!$H$88)^(H85-1) -> 0 | I90: =I80*(1+PARAMETROS!$G$88)*(1+PARAMETROS!$H$88)^I85 -> 0 | J90: =J80*(1+PARAMETROS!$G$88)*(1+PARAMETROS!$H$88)^(J85-1) -> 0 | K90: =K80*(1+PARAMETROS!$G$88)*(1+PARAMETROS!$H$88)^K85 -> 0 | L90: =L80*(1+PARAMETROS!$G$88)*(1+PARAMETROS!$H$88)^(L85-1) -> 0 | M90: =M80*(1+PARAMETROS!$G$88)*(1+PARAMETROS!$H$88)^M85 -> 0 | N90: =N80*(1+PARAMETROS!$G$88)*(1+PARAMETROS!$H$88)^(N85-1) -> 0 | O90: =O80*(1+PARAMETROS!$G$88)*(1+PARAMETROS!$H$88)^O85 -> 0 | P90: =P80*(1+PARAMETROS!$G$88)*(1+PARAMETROS!$H$88)^(P85-1) -> 0 | Q90: =Q80*(1+PARAMETROS!$G$88)*(1+PARAMETROS!$H$88)^Q85 -> 0 | R90: =R80*(1+PARAMETROS!$G$88)*(1+PARAMETROS!$H$88)^(R85-1) -> 0 | S90: =S80*(1+PARAMETROS!$G$88)*(1+PARAMETROS!$H$88)^S85 -> 0 | T90: =T80*(1+PARAMETROS!$G$88)*(1+PARAMETROS!$H$88)^(T85-1) -> 0 | U90: =U80*(1+PARAMETROS!$G$88)*(1+PARAMETROS!$H$88)^U85 -> 0 | V90: =V80*(1+PARAMETROS!$G$88)*(1+PARAMETROS!$H$88)^(V85-1) -> 0 | W90: =W80*(1+PARAMETROS!$G$88)*(1+PARAMETROS!$H$88)^W85 -> 0 | X90: =X80*(1+PARAMETROS!$G$88)*(1+PARAMETROS!$H$88)^(X85-1) -> 0 | Y90: =Y80*(1+PARAMETROS!$G$88)*(1+PARAMETROS!$H$88)^Y85 -> 0 | Z90: =Z80*(1+PARAMETROS!$G$88)*(1+PARAMETROS!$H$88)^(Z85-1) -> 0 | AA90: =AA80*(1+PARAMETROS!$G$88)*(1+PARAMETROS!$H$88)^AA85 -> 0 | AB90: =AB80*(1+PARAMETROS!$G$88)*(1+PARAMETROS!$H$88)^(AB85-1) -> 0 | AC90: =AC80*(1+PARAMETROS!$G$88)*(1+PARAMETROS!$H$88)^AC85 -> 0 | AD90: =AD80*(1+PARAMETROS!$G$88)*(1+PARAMETROS!$H$88)^(AD85-1) -> 0 | AE90: =AE80*(1+PARAMETROS!$G$88)*(1+PARAMETROS!$H$88)^AE85 -> 0 | AF90: =AF80*(1+PARAMETROS!$G$88)*(1+PARAMETROS!$H$88)^(AF85-1) -> 0 | AG90: =AG80*(1+PARAMETROS!$G$88)*(1+PARAMETROS!$H$88)^AG85 -> 0 | AH90: =AH80*(1+PARAMETROS!$G$88)*(1+PARAMETROS!$H$88)^(AH85-1) -> 0 | AI90: =AI80*(1+PARAMETROS!$G$88)*(1+PARAMETROS!$H$88)^AI85 -> 0 | AJ90: =AJ80*(1+PARAMETROS!$G$88)*(1+PARAMETROS!$H$88)^(AJ85-1) -> 0 | AK90: =AK80*(1+PARAMETROS!$G$88)*(1+PARAMETROS!$H$88)^AK85 -> 0 | AL90: =AL80*(1+PARAMETROS!$G$88)*(1+PARAMETROS!$H$88)^(AL85-1) -> 0 | AM90: =AM80*(1+PARAMETROS!$G$88)*(1+PARAMETROS!$H$88)^AM85 -> 0 | AN90: =AN80*(1+PARAMETROS!$G$88)*(1+PARAMETROS!$H$88)^(AN85-1) -> 0 | AO90: =AO80*(1+PARAMETROS!$G$88)*(1+PARAMETROS!$H$88)^AO85 -> 0 | AP90: =AP80*(1+PARAMETROS!$G$88)*(1+PARAMETROS!$H$88)^(AP85-1) -> 0 | AQ90: =AQ80*(1+PARAMETROS!$G$88)*(1+PARAMETROS!$H$88)^AQ85 -> 0
B93: Ingresos anuales en precios actualizados (hipotesis de inflacion alta)
B94: Año | C94: 2019 | D94: 2020 | E94: 2021 | F94: 2022 | G94: 2023 | H94: 2024 | I94: 2025 | J94: 2026 | K94: 2027 | L94: 2028 | M94: 2029 | N94: 2030 | O94: 2031 | P94: 2032 | Q94: 2033 | R94: 2034 | S94: 2035 | T94: 2036 | U94: 2037 | V94: 2038 | W94: 2039 | X94: 2040 | Y94: 2041 | Z94: 2042 | AA94: 2043 | AB94: 2044 | AC94: 2045 | AD94: 2046 | AE94: 2047 | AF94: 2048 | AG94: 2049 | AH94: 2050 | AI94: 2051 | AJ94: 2052 | AK94: 2053 | AL94: 2054 | AM94: 2055 | AN94: 2056 | AO94: 2057 | AP94: 2058 | AQ94: 2059
E95: 1 | F95: 2 | G95: 3 | H95: 4 | I95: 5 | J95: 6 | K95: 7 | L95: 8 | M95: 9 | N95: 10 | O95: 11 | P95: 12 | Q95: 13 | R95: 14 | S95: 15 | T95: 16 | U95: 17 | V95: 18 | W95: 19 | X95: 20 | Y95: 21 | Z95: 22 | AA95: 23 | AB95: 24 | AC95: 25 | AD95: 26 | AE95: 27 | AF95: 28 | AG95: 29 | AH95: 30 | AI95: 31 | AJ95: 32 | AK95: 33 | AL95: 34 | AM95: 35 | AN95: 36 | AO95: 37 | AP95: 38 | AQ95: 39
B96: Tarifa 1 | C96: =C76 -> 5594646.42 | D96: =D76*(1) -> 7459528.56 | E96: =E76*(1+PARAMETROS!$G$89)*(1+PARAMETROS!$H$89)^E95 -> 8264540.883 | F96: =F76*(1+PARAMETROS!$G$89)*(1+PARAMETROS!$H$89)^(F95-1) -> 8422066.126 | G96: =G76*(1+PARAMETROS!$G$89)*(1+PARAMETROS!$H$89)^G95 -> 9279686.025 | H96: =H76*(1+PARAMETROS!$G$89)*(1+PARAMETROS!$H$89)^(H95-1) -> 9450065.329 | I96: =I76*(1+PARAMETROS!$G$89)*(1+PARAMETROS!$H$89)^I95 -> 10405472.91 | J96: =J76*(1+PARAMETROS!$G$89)*(1+PARAMETROS!$H$89)^(J95-1) -> 10598200.13 | K96: =K76*(1+PARAMETROS!$G$89)*(1+PARAMETROS!$H$89)^K95 -> 11671467.01 | L96: =L76*(1+PARAMETROS!$G$89)*(1+PARAMETROS!$H$89)^(L95-1) -> 11879920.77 | M96: =M76*(1+PARAMETROS!$G$89)*(1+PARAMETROS!$H$89)^M95 -> 13074785.88 | N96: =N76*(1+PARAMETROS!$G$89)*(1+PARAMETROS!$H$89)^(N95-1) -> 13300249.46 | O96: =O76*(1+PARAMETROS!$G$89)*(1+PARAMETROS!$H$89)^O95 -> 14721076.63 | P96: =P76*(1+PARAMETROS!$G$89)*(1+PARAMETROS!$H$89)^(P95-1) -> 15056603.45 | Q96: =Q76*(1+PARAMETROS!$G$89)*(1+PARAMETROS!$H$89)^Q95 -> 16648128.09 | R96: =R76*(1+PARAMETROS!$G$89)*(1+PARAMETROS!$H$89)^(R95-1) -> 17011033.9 | S96: =S76*(1+PARAMETROS!$G$89)*(1+PARAMETROS!$H$89)^S95 -> 18791653.18 | T96: =T76*(1+PARAMETROS!$G$89)*(1+PARAMETROS!$H$89)^(T95-1) -> 19350742.62 | U96: =U76*(1+PARAMETROS!$G$89)*(1+PARAMETROS!$H$89)^U95 -> 21534474.37 | V96: =V76*(1+PARAMETROS!$G$89)*(1+PARAMETROS!$H$89)^(V95-1) -> 22139185.51 | W96: =W76*(1+PARAMETROS!$G$89)*(1+PARAMETROS!$H$89)^W95 -> 24599798.62 | X96: =X76*(1+PARAMETROS!$G$89)*(1+PARAMETROS!$H$89)^(X95-1) -> 25253854.19 | Y96: =Y76*(1+PARAMETROS!$G$89)*(1+PARAMETROS!$H$89)^Y95 -> 27314568.69 | Z96: =Z76*(1+PARAMETROS!$G$89)*(1+PARAMETROS!$H$89)^(Z95-1) -> 27314568.69 | AA96: =AA76*(1+PARAMETROS!$G$89)*(1+PARAMETROS!$H$89)^AA95 -> 29543437.5 | AB96: =AB76*(1+PARAMETROS!$G$89)*(1+PARAMETROS!$H$89)^(AB95-1) -> 29543437.5 | AC96: =AC76*(1+PARAMETROS!$G$89)*(1+PARAMETROS!$H$89)^AC95 -> 31954182 | AD96: =AD76*(1+PARAMETROS!$G$89)*(1+PARAMETROS!$H$89)^(AD95-1) -> 31954182 | AE96: =AE76*(1+PARAMETROS!$G$89)*(1+PARAMETROS!$H$89)^AE95 -> 34561643.25 | AF96: =AF76*(1+PARAMETROS!$G$89)*(1+PARAMETROS!$H$89)^(AF95-1) -> 34561643.25 | AG96: =AG76*(1+PARAMETROS!$G$89)*(1+PARAMETROS!$H$89)^AG95 -> 37381873.34 | AH96: =AH76*(1+PARAMETROS!$G$89)*(1+PARAMETROS!$H$89)^(AH95-1) -> 37381873.34 | AI96: =AI76*(1+PARAMETROS!$G$89)*(1+PARAMETROS!$H$89)^AI95 -> 40432234.2 | AJ96: =AJ76*(1+PARAMETROS!$G$89)*(1+PARAMETROS!$H$89)^(AJ95-1) -> 40432234.2 | AK96: =AK76*(1+PARAMETROS!$G$89)*(1+PARAMETROS!$H$89)^AK95 -> 43731504.51 | AL96: =AL76*(1+PARAMETROS!$G$89)*(1+PARAMETROS!$H$89)^(AL95-1) -> 43731504.51 | AM96: =AM76*(1+PARAMETROS!$G$89)*(1+PARAMETROS!$H$89)^AM95 -> 47299995.28 | AN96: =AN76*(1+PARAMETROS!$G$89)*(1+PARAMETROS!$H$89)^(AN95-1) -> 47299995.28 | AO96: =AO76*(1+PARAMETROS!$G$89)*(1+PARAMETROS!$H$89)^AO95 -> 51159674.9 | AP96: =AP76*(1+PARAMETROS!$G$89)*(1+PARAMETROS!$H$89)^(AP95-1) -> 51159674.9 | AQ96: =AQ76*(1+PARAMETROS!$G$89)*(1+PARAMETROS!$H$89)^AQ95 -> 55334304.37
B97: Tarifa 2 | C97: =C77 -> 6928671.337 | D97: =D77*(1) -> 9238228.45 | E97: =E77*(1+PARAMETROS!$G$89)*(1+PARAMETROS!$H$89)^E95 -> 10222686.24 | F97: =F77*(1+PARAMETROS!$G$89)*(1+PARAMETROS!$H$89)^(F95-1) -> 10405265.81 | G97: =G77*(1+PARAMETROS!$G$89)*(1+PARAMETROS!$H$89)^G95 -> 11451813.55 | H97: =H77*(1+PARAMETROS!$G$89)*(1+PARAMETROS!$H$89)^(H95-1) -> 11649291.61 | I97: =I77*(1+PARAMETROS!$G$89)*(1+PARAMETROS!$H$89)^I95 -> 12813466.07 | J97: =J77*(1+PARAMETROS!$G$89)*(1+PARAMETROS!$H$89)^(J95-1) -> 13041671.42 | K97: =K77*(1+PARAMETROS!$G$89)*(1+PARAMETROS!$H$89)^K95 -> 14352698.73 | L97: =L77*(1+PARAMETROS!$G$89)*(1+PARAMETROS!$H$89)^(L95-1) -> 14599525.64 | M97: =M77*(1+PARAMETROS!$G$89)*(1+PARAMETROS!$H$89)^M95 -> 16057814.92 | N97: =N77*(1+PARAMETROS!$G$89)*(1+PARAMETROS!$H$89)^(N95-1) -> 16324782.91 | O97: =O77*(1+PARAMETROS!$G$89)*(1+PARAMETROS!$H$89)^O95 -> 18063670.08 | P97: =P77*(1+PARAMETROS!$G$89)*(1+PARAMETROS!$H$89)^(P95-1) -> 18470454.96 | Q97: =Q77*(1+PARAMETROS!$G$89)*(1+PARAMETROS!$H$89)^Q95 -> 20417622.62 | R97: =R77*(1+PARAMETROS!$G$89)*(1+PARAMETROS!$H$89)^(R95-1) -> 20857601.14 | S97: =S77*(1+PARAMETROS!$G$89)*(1+PARAMETROS!$H$89)^S95 -> 23035462.18 | T97: =T77*(1+PARAMETROS!$G$89)*(1+PARAMETROS!$H$89)^(T95-1) -> 23718246.31 | U97: =U77*(1+PARAMETROS!$G$89)*(1+PARAMETROS!$H$89)^U95 -> 26392154.52 | V97: =V77*(1+PARAMETROS!$G$89)*(1+PARAMETROS!$H$89)^(V95-1) -> 27130653.84 | W97: =W77*(1+PARAMETROS!$G$89)*(1+PARAMETROS!$H$89)^W95 -> 30143276.05 | X97: =X77*(1+PARAMETROS!$G$89)*(1+PARAMETROS!$H$89)^(X95-1) -> 30942036.91 | Y97: =Y77*(1+PARAMETROS!$G$89)*(1+PARAMETROS!$H$89)^Y95 -> 33466907.12 | Z97: =Z77*(1+PARAMETROS!$G$89)*(1+PARAMETROS!$H$89)^(Z95-1) -> 33466907.12 | AA97: =AA77*(1+PARAMETROS!$G$89)*(1+PARAMETROS!$H$89)^AA95 -> 36197806.74 | AB97: =AB77*(1+PARAMETROS!$G$89)*(1+PARAMETROS!$H$89)^(AB95-1) -> 36197806.74 | AC97: =AC77*(1+PARAMETROS!$G$89)*(1+PARAMETROS!$H$89)^AC95 -> 39151547.78 | AD97: =AD77*(1+PARAMETROS!$G$89)*(1+PARAMETROS!$H$89)^(AD95-1) -> 39151547.78 | AE97: =AE77*(1+PARAMETROS!$G$89)*(1+PARAMETROS!$H$89)^AE95 -> 42346314.07 | AF97: =AF77*(1+PARAMETROS!$G$89)*(1+PARAMETROS!$H$89)^(AF95-1) -> 42346314.07 | AG97: =AG77*(1+PARAMETROS!$G$89)*(1+PARAMETROS!$H$89)^AG95 -> 45801773.3 | AH97: =AH77*(1+PARAMETROS!$G$89)*(1+PARAMETROS!$H$89)^(AH95-1) -> 45801773.3 | AI97: =AI77*(1+PARAMETROS!$G$89)*(1+PARAMETROS!$H$89)^AI95 -> 49539198 | AJ97: =AJ77*(1+PARAMETROS!$G$89)*(1+PARAMETROS!$H$89)^(AJ95-1) -> 49539198 | AK97: =AK77*(1+PARAMETROS!$G$89)*(1+PARAMETROS!$H$89)^AK95 -> 53581596.56 | AL97: =AL77*(1+PARAMETROS!$G$89)*(1+PARAMETROS!$H$89)^(AL95-1) -> 53581596.56 | AM97: =AM77*(1+PARAMETROS!$G$89)*(1+PARAMETROS!$H$89)^AM95 -> 57953854.84 | AN97: =AN77*(1+PARAMETROS!$G$89)*(1+PARAMETROS!$H$89)^(AN95-1) -> 57953854.84 | AO97: =AO77*(1+PARAMETROS!$G$89)*(1+PARAMETROS!$H$89)^AO95 -> 62682889.39 | AP97: =AP77*(1+PARAMETROS!$G$89)*(1+PARAMETROS!$H$89)^(AP95-1) -> 62682889.39 | AQ97: =AQ77*(1+PARAMETROS!$G$89)*(1+PARAMETROS!$H$89)^AQ95 -> 67797813.17
B98: Tarifa 3 | C98: =C78 -> 0 | D98: =D78*(1) -> 0 | E98: =E78*(1+PARAMETROS!$G$89)*(1+PARAMETROS!$H$89)^E95 -> 0 | F98: =F78*(1+PARAMETROS!$G$89)*(1+PARAMETROS!$H$89)^(F95-1) -> 0 | G98: =G78*(1+PARAMETROS!$G$89)*(1+PARAMETROS!$H$89)^G95 -> 0 | H98: =H78*(1+PARAMETROS!$G$89)*(1+PARAMETROS!$H$89)^(H95-1) -> 0 | I98: =I78*(1+PARAMETROS!$G$89)*(1+PARAMETROS!$H$89)^I95 -> 0 | J98: =J78*(1+PARAMETROS!$G$89)*(1+PARAMETROS!$H$89)^(J95-1) -> 0 | K98: =K78*(1+PARAMETROS!$G$89)*(1+PARAMETROS!$H$89)^K95 -> 0 | L98: =L78*(1+PARAMETROS!$G$89)*(1+PARAMETROS!$H$89)^(L95-1) -> 0 | M98: =M78*(1+PARAMETROS!$G$89)*(1+PARAMETROS!$H$89)^M95 -> 0 | N98: =N78*(1+PARAMETROS!$G$89)*(1+PARAMETROS!$H$89)^(N95-1) -> 0 | O98: =O78*(1+PARAMETROS!$G$89)*(1+PARAMETROS!$H$89)^O95 -> 0 | P98: =P78*(1+PARAMETROS!$G$89)*(1+PARAMETROS!$H$89)^(P95-1) -> 0 | Q98: =Q78*(1+PARAMETROS!$G$89)*(1+PARAMETROS!$H$89)^Q95 -> 0 | R98: =R78*(1+PARAMETROS!$G$89)*(1+PARAMETROS!$H$89)^(R95-1) -> 0 | S98: =S78*(1+PARAMETROS!$G$89)*(1+PARAMETROS!$H$89)^S95 -> 0 | T98: =T78*(1+PARAMETROS!$G$89)*(1+PARAMETROS!$H$89)^(T95-1) -> 0 | U98: =U78*(1+PARAMETROS!$G$89)*(1+PARAMETROS!$H$89)^U95 -> 0 | V98: =V78*(1+PARAMETROS!$G$89)*(1+PARAMETROS!$H$89)^(V95-1) -> 0 | W98: =W78*(1+PARAMETROS!$G$89)*(1+PARAMETROS!$H$89)^W95 -> 0 | X98: =X78*(1+PARAMETROS!$G$89)*(1+PARAMETROS!$H$89)^(X95-1) -> 0 | Y98: =Y78*(1+PARAMETROS!$G$89)*(1+PARAMETROS!$H$89)^Y95 -> 0 | Z98: =Z78*(1+PARAMETROS!$G$89)*(1+PARAMETROS!$H$89)^(Z95-1) -> 0 | AA98: =AA78*(1+PARAMETROS!$G$89)*(1+PARAMETROS!$H$89)^AA95 -> 0 | AB98: =AB78*(1+PARAMETROS!$G$89)*(1+PARAMETROS!$H$89)^(AB95-1) -> 0 | AC98: =AC78*(1+PARAMETROS!$G$89)*(1+PARAMETROS!$H$89)^AC95 -> 0 | AD98: =AD78*(1+PARAMETROS!$G$89)*(1+PARAMETROS!$H$89)^(AD95-1) -> 0 | AE98: =AE78*(1+PARAMETROS!$G$89)*(1+PARAMETROS!$H$89)^AE95 -> 0 | AF98: =AF78*(1+PARAMETROS!$G$89)*(1+PARAMETROS!$H$89)^(AF95-1) -> 0 | AG98: =AG78*(1+PARAMETROS!$G$89)*(1+PARAMETROS!$H$89)^AG95 -> 0 | AH98: =AH78*(1+PARAMETROS!$G$89)*(1+PARAMETROS!$H$89)^(AH95-1) -> 0 | AI98: =AI78*(1+PARAMETROS!$G$89)*(1+PARAMETROS!$H$89)^AI95 -> 0 | AJ98: =AJ78*(1+PARAMETROS!$G$89)*(1+PARAMETROS!$H$89)^(AJ95-1) -> 0 | AK98: =AK78*(1+PARAMETROS!$G$89)*(1+PARAMETROS!$H$89)^AK95 -> 0 | AL98: =AL78*(1+PARAMETROS!$G$89)*(1+PARAMETROS!$H$89)^(AL95-1) -> 0 | AM98: =AM78*(1+PARAMETROS!$G$89)*(1+PARAMETROS!$H$89)^AM95 -> 0 | AN98: =AN78*(1+PARAMETROS!$G$89)*(1+PARAMETROS!$H$89)^(AN95-1) -> 0 | AO98: =AO78*(1+PARAMETROS!$G$89)*(1+PARAMETROS!$H$89)^AO95 -> 0 | AP98: =AP78*(1+PARAMETROS!$G$89)*(1+PARAMETROS!$H$89)^(AP95-1) -> 0 | AQ98: =AQ78*(1+PARAMETROS!$G$89)*(1+PARAMETROS!$H$89)^AQ95 -> 0
B99: Tarifa 4 | C99: =C79 -> 0 | D99: =D79*(1) -> 0 | E99: =E79*(1+PARAMETROS!$G$89)*(1+PARAMETROS!$H$89)^E95 -> 0 | F99: =F79*(1+PARAMETROS!$G$89)*(1+PARAMETROS!$H$89)^(F95-1) -> 0 | G99: =G79*(1+PARAMETROS!$G$89)*(1+PARAMETROS!$H$89)^G95 -> 0 | H99: =H79*(1+PARAMETROS!$G$89)*(1+PARAMETROS!$H$89)^(H95-1) -> 0 | I99: =I79*(1+PARAMETROS!$G$89)*(1+PARAMETROS!$H$89)^I95 -> 0 | J99: =J79*(1+PARAMETROS!$G$89)*(1+PARAMETROS!$H$89)^(J95-1) -> 0 | K99: =K79*(1+PARAMETROS!$G$89)*(1+PARAMETROS!$H$89)^K95 -> 0 | L99: =L79*(1+PARAMETROS!$G$89)*(1+PARAMETROS!$H$89)^(L95-1) -> 0 | M99: =M79*(1+PARAMETROS!$G$89)*(1+PARAMETROS!$H$89)^M95 -> 0 | N99: =N79*(1+PARAMETROS!$G$89)*(1+PARAMETROS!$H$89)^(N95-1) -> 0 | O99: =O79*(1+PARAMETROS!$G$89)*(1+PARAMETROS!$H$89)^O95 -> 0 | P99: =P79*(1+PARAMETROS!$G$89)*(1+PARAMETROS!$H$89)^(P95-1) -> 0 | Q99: =Q79*(1+PARAMETROS!$G$89)*(1+PARAMETROS!$H$89)^Q95 -> 0 | R99: =R79*(1+PARAMETROS!$G$89)*(1+PARAMETROS!$H$89)^(R95-1) -> 0 | S99: =S79*(1+PARAMETROS!$G$89)*(1+PARAMETROS!$H$89)^S95 -> 0 | T99: =T79*(1+PARAMETROS!$G$89)*(1+PARAMETROS!$H$89)^(T95-1) -> 0 | U99: =U79*(1+PARAMETROS!$G$89)*(1+PARAMETROS!$H$89)^U95 -> 0 | V99: =V79*(1+PARAMETROS!$G$89)*(1+PARAMETROS!$H$89)^(V95-1) -> 0 | W99: =W79*(1+PARAMETROS!$G$89)*(1+PARAMETROS!$H$89)^W95 -> 0 | X99: =X79*(1+PARAMETROS!$G$89)*(1+PARAMETROS!$H$89)^(X95-1) -> 0 | Y99: =Y79*(1+PARAMETROS!$G$89)*(1+PARAMETROS!$H$89)^Y95 -> 0 | Z99: =Z79*(1+PARAMETROS!$G$89)*(1+PARAMETROS!$H$89)^(Z95-1) -> 0 | AA99: =AA79*(1+PARAMETROS!$G$89)*(1+PARAMETROS!$H$89)^AA95 -> 0 | AB99: =AB79*(1+PARAMETROS!$G$89)*(1+PARAMETROS!$H$89)^(AB95-1) -> 0 | AC99: =AC79*(1+PARAMETROS!$G$89)*(1+PARAMETROS!$H$89)^AC95 -> 0 | AD99: =AD79*(1+PARAMETROS!$G$89)*(1+PARAMETROS!$H$89)^(AD95-1) -> 0 | AE99: =AE79*(1+PARAMETROS!$G$89)*(1+PARAMETROS!$H$89)^AE95 -> 0 | AF99: =AF79*(1+PARAMETROS!$G$89)*(1+PARAMETROS!$H$89)^(AF95-1) -> 0 | AG99: =AG79*(1+PARAMETROS!$G$89)*(1+PARAMETROS!$H$89)^AG95 -> 0 | AH99: =AH79*(1+PARAMETROS!$G$89)*(1+PARAMETROS!$H$89)^(AH95-1) -> 0 | AI99: =AI79*(1+PARAMETROS!$G$89)*(1+PARAMETROS!$H$89)^AI95 -> 0 | AJ99: =AJ79*(1+PARAMETROS!$G$89)*(1+PARAMETROS!$H$89)^(AJ95-1) -> 0 | AK99: =AK79*(1+PARAMETROS!$G$89)*(1+PARAMETROS!$H$89)^AK95 -> 0 | AL99: =AL79*(1+PARAMETROS!$G$89)*(1+PARAMETROS!$H$89)^(AL95-1) -> 0 | AM99: =AM79*(1+PARAMETROS!$G$89)*(1+PARAMETROS!$H$89)^AM95 -> 0 | AN99: =AN79*(1+PARAMETROS!$G$89)*(1+PARAMETROS!$H$89)^(AN95-1) -> 0 | AO99: =AO79*(1+PARAMETROS!$G$89)*(1+PARAMETROS!$H$89)^AO95 -> 0 | AP99: =AP79*(1+PARAMETROS!$G$89)*(1+PARAMETROS!$H$89)^(AP95-1) -> 0 | AQ99: =AQ79*(1+PARAMETROS!$G$89)*(1+PARAMETROS!$H$89)^AQ95 -> 0
B100: Tarifa 5 | C100: =C80 -> 0 | D100: =D80*(1) -> 0 | E100: =E80*(1+PARAMETROS!$G$89)*(1+PARAMETROS!$H$89)^E95 -> 0 | F100: =F80*(1+PARAMETROS!$G$89)*(1+PARAMETROS!$H$89)^(F95-1) -> 0 | G100: =G80*(1+PARAMETROS!$G$89)*(1+PARAMETROS!$H$89)^G95 -> 0 | H100: =H80*(1+PARAMETROS!$G$89)*(1+PARAMETROS!$H$89)^(H95-1) -> 0 | I100: =I80*(1+PARAMETROS!$G$89)*(1+PARAMETROS!$H$89)^I95 -> 0 | J100: =J80*(1+PARAMETROS!$G$89)*(1+PARAMETROS!$H$89)^(J95-1) -> 0 | K100: =K80*(1+PARAMETROS!$G$89)*(1+PARAMETROS!$H$89)^K95 -> 0 | L100: =L80*(1+PARAMETROS!$G$89)*(1+PARAMETROS!$H$89)^(L95-1) -> 0 | M100: =M80*(1+PARAMETROS!$G$89)*(1+PARAMETROS!$H$89)^M95 -> 0 | N100: =N80*(1+PARAMETROS!$G$89)*(1+PARAMETROS!$H$89)^(N95-1) -> 0 | O100: =O80*(1+PARAMETROS!$G$89)*(1+PARAMETROS!$H$89)^O95 -> 0 | P100: =P80*(1+PARAMETROS!$G$89)*(1+PARAMETROS!$H$89)^(P95-1) -> 0 | Q100: =Q80*(1+PARAMETROS!$G$89)*(1+PARAMETROS!$H$89)^Q95 -> 0 | R100: =R80*(1+PARAMETROS!$G$89)*(1+PARAMETROS!$H$89)^(R95-1) -> 0 | S100: =S80*(1+PARAMETROS!$G$89)*(1+PARAMETROS!$H$89)^S95 -> 0 | T100: =T80*(1+PARAMETROS!$G$89)*(1+PARAMETROS!$H$89)^(T95-1) -> 0 | U100: =U80*(1+PARAMETROS!$G$89)*(1+PARAMETROS!$H$89)^U95 -> 0 | V100: =V80*(1+PARAMETROS!$G$89)*(1+PARAMETROS!$H$89)^(V95-1) -> 0 | W100: =W80*(1+PARAMETROS!$G$89)*(1+PARAMETROS!$H$89)^W95 -> 0 | X100: =X80*(1+PARAMETROS!$G$89)*(1+PARAMETROS!$H$89)^(X95-1) -> 0 | Y100: =Y80*(1+PARAMETROS!$G$89)*(1+PARAMETROS!$H$89)^Y95 -> 0 | Z100: =Z80*(1+PARAMETROS!$G$89)*(1+PARAMETROS!$H$89)^(Z95-1) -> 0 | AA100: =AA80*(1+PARAMETROS!$G$89)*(1+PARAMETROS!$H$89)^AA95 -> 0 | AB100: =AB80*(1+PARAMETROS!$G$89)*(1+PARAMETROS!$H$89)^(AB95-1) -> 0 | AC100: =AC80*(1+PARAMETROS!$G$89)*(1+PARAMETROS!$H$89)^AC95 -> 0 | AD100: =AD80*(1+PARAMETROS!$G$89)*(1+PARAMETROS!$H$89)^(AD95-1) -> 0 | AE100: =AE80*(1+PARAMETROS!$G$89)*(1+PARAMETROS!$H$89)^AE95 -> 0 | AF100: =AF80*(1+PARAMETROS!$G$89)*(1+PARAMETROS!$H$89)^(AF95-1) -> 0 | AG100: =AG80*(1+PARAMETROS!$G$89)*(1+PARAMETROS!$H$89)^AG95 -> 0 | AH100: =AH80*(1+PARAMETROS!$G$89)*(1+PARAMETROS!$H$89)^(AH95-1) -> 0 | AI100: =AI80*(1+PARAMETROS!$G$89)*(1+PARAMETROS!$H$89)^AI95 -> 0 | AJ100: =AJ80*(1+PARAMETROS!$G$89)*(1+PARAMETROS!$H$89)^(AJ95-1) -> 0 | AK100: =AK80*(1+PARAMETROS!$G$89)*(1+PARAMETROS!$H$89)^AK95 -> 0 | AL100: =AL80*(1+PARAMETROS!$G$89)*(1+PARAMETROS!$H$89)^(AL95-1) -> 0 | AM100: =AM80*(1+PARAMETROS!$G$89)*(1+PARAMETROS!$H$89)^AM95 -> 0 | AN100: =AN80*(1+PARAMETROS!$G$89)*(1+PARAMETROS!$H$89)^(AN95-1) -> 0 | AO100: =AO80*(1+PARAMETROS!$G$89)*(1+PARAMETROS!$H$89)^AO95 -> 0 | AP100: =AP80*(1+PARAMETROS!$G$89)*(1+PARAMETROS!$H$89)^(AP95-1) -> 0 | AQ100: =AQ80*(1+PARAMETROS!$G$89)*(1+PARAMETROS!$H$89)^AQ95 -> 0

Sheet Sintesis_Inversion_TC (hidden)
B4: Alternativa 23
B6: EN USD 2015 | C6: INVERSION TOTAL | D6: Parte local | E6: Parte extranjera | F6: 2015 | G6: 2016 | H6: 2017 | I6: 2018
B7: Obras de via y reubicacion de redes | C7: =CHIFFRAGE_TC!L45 -> 1441728.28 | D7: =CHIFFRAGE_TC!O45 -> 0.7979272569 | E7: =CHIFFRAGE_TC!P45 -> 0.2020727431 | F7: =INVERSION_ANUALIZADA_TC_Alt_23!E44 -> 0 | G7: =INVERSION_ANUALIZADA_TC_Alt_23!F44 -> 888778.4556 | H7: =INVERSION_ANUALIZADA_TC_Alt_23!G44 -> 552949.8242 | I7: =INVERSION_ANUALIZADA_TC_Alt_23!H44 -> 0 | K7: =SUM(F7:I7) -> 1441728.28 | L7: =IF(C7=K7,"OK!","NOK") -> OK!
B8: Proteccion anti-incendios de edificios (+ decontaminacion) | C8: =CHIFFRAGE_TC!L33 -> 3664412.557 | D8: =CHIFFRAGE_TC!O33 -> 0.7990092286 | E8: =CHIFFRAGE_TC!P33 -> 0.2009907714 | F8: =INVERSION_ANUALIZADA_TC_Alt_23!E32 -> 0 | G8: =INVERSION_ANUALIZADA_TC_Alt_23!F32 -> 987470.6883 | H8: =INVERSION_ANUALIZADA_TC_Alt_23!G32 -> 892313.9561 | I8: =INVERSION_ANUALIZADA_TC_Alt_23!H32 -> 1784627.912 | K8: =SUM(F8:I8) -> 3664412.557 | L8: =IF(C8=K8,"OK!","NOK") -> OK!
B9: Infraestructura de lineas (fundaciones, postes y cables) | C9: =CHIFFRAGE_TC!L38 -> 10830074.46 | D9: =CHIFFRAGE_TC!O38 -> 0.6078820551 | E9: =CHIFFRAGE_TC!P38 -> 0.3921179449 | F9: =INVERSION_ANUALIZADA_TC_Alt_23!E37 -> 0 | G9: =INVERSION_ANUALIZADA_TC_Alt_23!F37 -> 2166014.892 | H9: =INVERSION_ANUALIZADA_TC_Alt_23!G37 -> 6498044.677 | I9: =INVERSION_ANUALIZADA_TC_Alt_23!H37 -> 2166014.892 | K9: 10830074.46 | L9: OK!
B10: Cabinas | C10: =CHIFFRAGE_TC!L53 -> 6347110.01 | D10: =CHIFFRAGE_TC!O53 -> 0.05773402115 | E10: =CHIFFRAGE_TC!P53 -> 0.9422659788 | F10: =INVERSION_ANUALIZADA_TC_Alt_23!E52 -> 0 | G10: =INVERSION_ANUALIZADA_TC_Alt_23!F52 -> 1269422.002 | H10: =INVERSION_ANUALIZADA_TC_Alt_23!G52 -> 3808266.006 | I10: =INVERSION_ANUALIZADA_TC_Alt_23!H52 -> 1269422.002 | K10: 6347110.01 | L10: OK!
B11: Equipamiento electrico | C11: =CHIFFRAGE_TC!L61 -> 4491194.8 | D11: =CHIFFRAGE_TC!O61 -> 0.08534150604 | E11: =CHIFFRAGE_TC!P61 -> 0.914658494 | F11: =INVERSION_ANUALIZADA_TC_Alt_23!E60 -> 0 | G11: =INVERSION_ANUALIZADA_TC_Alt_23!F60 -> 1114235.703 | H11: =INVERSION_ANUALIZADA_TC_Alt_23!G60 -> 2760291.901 | I11: =INVERSION_ANUALIZADA_TC_Alt_23!H60 -> 616667.1951 | K11: 4491194.8 | L11: OK!
B12: Telecomunicaciones y boleteria | C12: =CHIFFRAGE_TC!L70 -> 4273879.306 | D12: =CHIFFRAGE_TC!O70 -> 0.6106627553 | E12: =CHIFFRAGE_TC!P70 -> 0.3893372447 | F12: =INVERSION_ANUALIZADA_TC_Alt_23!E69 -> 0 | G12: =INVERSION_ANUALIZADA_TC_Alt_23!F69 -> 162681.4132 | H12: =INVERSION_ANUALIZADA_TC_Alt_23!G69 -> 2659444.18 | I12: =INVERSION_ANUALIZADA_TC_Alt_23!H69 -> 1451753.712 | K12: 4273879.306 | L12: OK!
B13: Estaciones
B14: Tecnologias de cable en las estaciones | C14: =CHIFFRAGE_TC!L57 -> 22562595.45 | D14: =CHIFFRAGE_TC!O57 -> 0.07952283812 | E14: =CHIFFRAGE_TC!P57 -> 0.9204771619 | F14: =INVERSION_ANUALIZADA_TC_Alt_23!E56 -> 0 | G14: =INVERSION_ANUALIZADA_TC_Alt_23!F56 -> 0 | H14: =INVERSION_ANUALIZADA_TC_Alt_23!G56 -> 15793816.82 | I14: =INVERSION_ANUALIZADA_TC_Alt_23!H56 -> 6768778.636 | K14: 22562595.45 | L14: =IF(C14=K14,"OK!","NOK") -> OK!
B15: Obra civil y arquitectura | C15: =CHIFFRAGE_TC!L85 -> 22709024.28 | D15: =CHIFFRAGE_TC!O85 -> 0.7984962304 | E15: =CHIFFRAGE_TC!P85 -> 0.2015037696 | F15: =INVERSION_ANUALIZADA_TC_Alt_23!E84 -> 0 | G15: =INVERSION_ANUALIZADA_TC_Alt_23!F84 -> 7601695.363 | H15: =INVERSION_ANUALIZADA_TC_Alt_23!G84 -> 12917709.77 | I15: =INVERSION_ANUALIZADA_TC_Alt_23!H84 -> 2189619.147 | K15: 22709024.28 | L15: OK!
B16: Centro de mantenimiento - Samborondon | C16: =CHIFFRAGE_TC!L175 -> 4768462.94 | D16: =CHIFFRAGE_TC!O175 -> 0.3387733336 | E16: =CHIFFRAGE_TC!P175 -> 0.6612266664 | F16: =INVERSION_ANUALIZADA_TC_Alt_23!E174 -> 0 | G16: =INVERSION_ANUALIZADA_TC_Alt_23!F174 -> 1155910.428 | H16: =INVERSION_ANUALIZADA_TC_Alt_23!G174 -> 2848295.639 | I16: =INVERSION_ANUALIZADA_TC_Alt_23!H174 -> 764256.8726 | K16: 4768462.94 | L16: OK!
B17: Operaciones adicionales : estacionamiento incitativo y buses alimentadores | C17: =CHIFFRAGE_TC!L184 -> 3321204.375 | D17: =CHIFFRAGE_TC!O184 -> 0.8037592989 | E17: =CHIFFRAGE_TC!P184 -> 0.1962407011 | F17: =INVERSION_ANUALIZADA_TC_Alt_23!E183 -> 0 | G17: =INVERSION_ANUALIZADA_TC_Alt_23!F183 -> 0 | H17: =INVERSION_ANUALIZADA_TC_Alt_23!G183 -> 1489947.477 | I17: =INVERSION_ANUALIZADA_TC_Alt_23!H183 -> 1831256.898 | K17: 3321204.375 | L17: OK!
B18: Estudios y supervision de obras | C18: =CHIFFRAGE_TC!L194+CHIFFRAGE_TC!L195 -> 10129162.37 | D18: 0 | E18: 1 | F18: =INVERSION_ANUALIZADA_TC_Alt_23!E193+INVERSION_ANUALIZADA_TC_Alt_23!E194 -> 5064581.187 | G18: =INVERSION_ANUALIZADA_TC_Alt_23!F193+INVERSION_ANUALIZADA_TC_Alt_23!F194 -> 5064581.187 | H18: =INVERSION_ANUALIZADA_TC_Alt_23!G193+INVERSION_ANUALIZADA_TC_Alt_23!G194 -> 0 | I18: =INVERSION_ANUALIZADA_TC_Alt_23!H193+INVERSION_ANUALIZADA_TC_Alt_23!H194 -> 0 | K18: 10129162.37
B19: % gastos de Gestion externalizados (auditores, seguros) | C19: =CHIFFRAGE_TC!L197 -> 2532290.594 | D19: 0 | E19: 1 | F19: =INVERSION_ANUALIZADA_TC_Alt_23!E196 -> 633072.6484 | G19: =INVERSION_ANUALIZADA_TC_Alt_23!F196 -> 633072.6484 | H19: =INVERSION_ANUALIZADA_TC_Alt_23!G196 -> 633072.6484 | I19: =INVERSION_ANUALIZADA_TC_Alt_23!H196 -> 633072.6484 | K19: 2532290.594
B21: TOTAL (sin provisiones / sin contingencias) | C21: =SUM(C7:C19) -> 97071139.43 | D21: - | E21: - | F21: =SUM(F8:F18) -> 5064581.187 | G21: =SUM(G8:G18) -> 19522011.68 | H21: =SUM(H8:H18) -> 49668130.42 | I21: =SUM(I8:I18) -> 18842397.27 | K21: 93097120.55 | L21: NOK
B22: TOTAL (sin provisiones / con contingencias) | C22: =CHIFFRAGE_TC!L230 -> 118610178.7
B24: Provisiones - Compra de terrenos para estaciones y servidumbres | C24: =CHIFFRAGE_TC!L12 -> 2562500
B25: Provisiones - Fiscalizacion y tramites administrativos | C25: =CHIFFRAGE_TC!L237 -> 4820484.323
B27: TOTAL (sin contingencias) | C27: =C21+C24+C25 -> 104454123.7
B28: TOTAL (con contingencias) | C28: =CHIFFRAGE_TC!L243 -> 127140653.1
B32: Alternativa 21
B34: EN USD 2015 | C34: INVERSION TOTAL | D34: Parte local | E34: Parte extranjera | F34: 2015 | G34: 2016 | H34: 2017 | I34: 2018
B35: Obras de via y reubicacion de redes | C35: =CHIFFRAGE_TC!M45 -> 1683071.522 | D35: =CHIFFRAGE_TC!Q45 -> 0.7985289666 | E35: =CHIFFRAGE_TC!R45 -> 0.2014710334 | F35: =INVERSION_ANUALIZADA_TC_Alt_21!E44 -> 0 | G35: =INVERSION_ANUALIZADA_TC_Alt_21!F44 -> 1072671.611 | H35: =INVERSION_ANUALIZADA_TC_Alt_21!G44 -> 610399.9105 | I35: =INVERSION_ANUALIZADA_TC_Alt_21!H44 -> 0 | K35: =SUM(F35:I35) -> 1683071.522 | L35: =IF(C35=K35,"OK!","NOK") -> OK!
B36: Proteccion anti-incendios de edificios (+ decontaminacion) | C36: =CHIFFRAGE_TC!M33 -> 4083724.357 | D36: =CHIFFRAGE_TC!Q33 -> 0.798459031 | E36: =CHIFFRAGE_TC!R33 -> 0.201540969 | F36: =INVERSION_ANUALIZADA_TC_Alt_21!E32 -> 0 | G36: =INVERSION_ANUALIZADA_TC_Alt_21!F32 -> 1092298.638 | H36: =INVERSION_ANUALIZADA_TC_Alt_21!G32 -> 997141.9061 | I36: =INVERSION_ANUALIZADA_TC_Alt_21!H32 -> 1994283.812 | K36: =SUM(F36:I36) -> 4083724.357 | L36: =IF(C36=K36,"OK!","NOK") -> OK!
B37: Infraestructura de lineas (fundaciones, postes y cables) | C37: =CHIFFRAGE_TC!M38 -> 17693193.55 | D37: =CHIFFRAGE_TC!Q38 -> 0.5980493159 | E37: =CHIFFRAGE_TC!R38 -> 0.4019506841 | F37: =INVERSION_ANUALIZADA_TC_Alt_21!E37 -> 0 | G37: =INVERSION_ANUALIZADA_TC_Alt_21!F37 -> 3538638.711 | H37: =INVERSION_ANUALIZADA_TC_Alt_21!G37 -> 10615916.13 | I37: =INVERSION_ANUALIZADA_TC_Alt_21!H37 -> 3538638.711 | K37: 17693193.55 | L37: OK!
B38: Cabinas | C38: =CHIFFRAGE_TC!M53 -> 9141733.074 | D38: =CHIFFRAGE_TC!Q53 -> 0.05773402115 | E38: =CHIFFRAGE_TC!R53 -> 0.9422659788 | F38: =INVERSION_ANUALIZADA_TC_Alt_21!E52 -> 0 | G38: =INVERSION_ANUALIZADA_TC_Alt_21!F52 -> 1828346.615 | H38: =INVERSION_ANUALIZADA_TC_Alt_21!G52 -> 5485039.844 | I38: =INVERSION_ANUALIZADA_TC_Alt_21!H52 -> 1828346.615 | K38: 9141733.074 | L38: OK!
B39: Equipamiento electrico | C39: =CHIFFRAGE_TC!M61 -> 7901665.314 | D39: =CHIFFRAGE_TC!Q61 -> 0.08613376821 | E39: =CHIFFRAGE_TC!R61 -> 0.9138662318 | F39: =INVERSION_ANUALIZADA_TC_Alt_21!E60 -> 0 | G39: =INVERSION_ANUALIZADA_TC_Alt_21!F60 -> 1827293.452 | H39: =INVERSION_ANUALIZADA_TC_Alt_21!G60 -> 5119405.848 | I39: =INVERSION_ANUALIZADA_TC_Alt_21!H60 -> 954966.0136 | K39: 7901665.314 | L39: OK!
B40: Telecomunicaciones y boleteria | C40: =CHIFFRAGE_TC!M70 -> 6916668.368 | D40: =CHIFFRAGE_TC!Q70 -> 0.6402150762 | E40: =CHIFFRAGE_TC!R70 -> 0.3597849238 | F40: =INVERSION_ANUALIZADA_TC_Alt_21!E69 -> 0 | G40: =INVERSION_ANUALIZADA_TC_Alt_21!F69 -> 227753.9785 | H40: =INVERSION_ANUALIZADA_TC_Alt_21!G69 -> 4410516.641 | I40: =INVERSION_ANUALIZADA_TC_Alt_21!H69 -> 2278397.748 | K40: 6916668.368 | L40: OK!
B41: Estaciones
B42: Tecnologias de cable en las estaciones | C42: =CHIFFRAGE_TC!M57 -> 33843893.18 | D42: =CHIFFRAGE_TC!Q57 -> 0.07952283812 | E42: =CHIFFRAGE_TC!R57 -> 0.9204771619 | F42: =INVERSION_ANUALIZADA_TC_Alt_21!E56 -> 0 | G42: =INVERSION_ANUALIZADA_TC_Alt_21!F56 -> 0 | H42: =INVERSION_ANUALIZADA_TC_Alt_21!G56 -> 23690725.23 | I42: =INVERSION_ANUALIZADA_TC_Alt_21!H56 -> 10153167.95 | K42: 33843893.18 | L42: =IF(C42=K42,"OK!","NOK") -> OK!
B43: Obra civil y arquitectura | C43: =CHIFFRAGE_TC!M85 -> 32127602.67 | D43: =CHIFFRAGE_TC!Q85 -> 0.7984126151 | E43: =CHIFFRAGE_TC!R85 -> 0.2015873849 | F43: =INVERSION_ANUALIZADA_TC_Alt_21!E84 -> 0 | G43: =INVERSION_ANUALIZADA_TC_Alt_21!F84 -> 10198930.02 | H43: =INVERSION_ANUALIZADA_TC_Alt_21!G84 -> 17328242 | I43: =INVERSION_ANUALIZADA_TC_Alt_21!H84 -> 4600430.64 | K43: 32127602.67 | L43: OK!
B44: Centro de mantenimiento - Samborondon | C44: =CHIFFRAGE_TC!M175 -> 7578621.726 | D44: =CHIFFRAGE_TC!Q175 -> 0.3351106735 | E44: =CHIFFRAGE_TC!R175 -> 0.6648893265 | F44: =INVERSION_ANUALIZADA_TC_Alt_21!E174 -> 0 | G44: =INVERSION_ANUALIZADA_TC_Alt_21!F174 -> 1822244.818 | H44: =INVERSION_ANUALIZADA_TC_Alt_21!G174 -> 4533522.557 | I44: =INVERSION_ANUALIZADA_TC_Alt_21!H174 -> 1222854.351 | K44: 7578621.726 | L44: OK!
B45: Operaciones adicionales : estacionamiento incitativo y buses alimentadores | C45: =CHIFFRAGE_TC!M184 -> 5575553.201 | D45: =CHIFFRAGE_TC!Q184 -> 0.8032018027 | E45: =CHIFFRAGE_TC!R184 -> 0.1967981973 | F45: =INVERSION_ANUALIZADA_TC_Alt_21!E183 -> 0 | G45: =INVERSION_ANUALIZADA_TC_Alt_21!F183 -> 0 | H45: =INVERSION_ANUALIZADA_TC_Alt_21!G183 -> 2527528.167 | I45: =INVERSION_ANUALIZADA_TC_Alt_21!H183 -> 3048025.034 | K45: 5575553.201 | L45: OK!
B46: Estudios y supervision de obras | C46: =CHIFFRAGE_TC!M194+CHIFFRAGE_TC!M195 -> 15185487.24 | D46: 0 | E46: 1 | F46: =INVERSION_ANUALIZADA_TC_Alt_21!E193+INVERSION_ANUALIZADA_TC_Alt_21!E194 -> 7592743.618 | G46: =INVERSION_ANUALIZADA_TC_Alt_21!F193+INVERSION_ANUALIZADA_TC_Alt_21!F194 -> 7592743.618 | H46: =INVERSION_ANUALIZADA_TC_Alt_21!G193+INVERSION_ANUALIZADA_TC_Alt_21!G194 -> 0 | I46: =INVERSION_ANUALIZADA_TC_Alt_21!H193+INVERSION_ANUALIZADA_TC_Alt_21!H194 -> 0 | K46: 15185487.24
B47: =B19 -> % gastos de Gestion externalizados (auditores, seguros) | C47: =CHIFFRAGE_TC!M197 -> 3796371.809 | D47: 0 | E47: 1 | F47: =INVERSION_ANUALIZADA_TC_Alt_21!E196 -> 949092.9522 | G47: =INVERSION_ANUALIZADA_TC_Alt_21!F196 -> 949092.9522 | H47: =INVERSION_ANUALIZADA_TC_Alt_21!G196 -> 949092.9522 | I47: =INVERSION_ANUALIZADA_TC_Alt_21!H196 -> 949092.9522 | K47: 3796371.809
B49: TOTAL (sin provisiones / sin contingencias) | C49: =SUM(C35:C47) -> 145527586 | D49: - | E49: - | F49: =SUM(F36:F46) -> 7592743.618 | G49: =SUM(G36:G46) -> 28128249.85 | H49: =SUM(H36:H46) -> 74708038.32 | I49: =SUM(I36:I46) -> 29619110.88 | K49: =CHIFFRAGE_TC!M204 -> 145527586 | L49: OK!
B50: TOTAL (sin provisiones / con contingencias) | C50: =CHIFFRAGE_TC!M230 -> 177823967.2
B52: Provisiones - Compra de terrenos para estaciones y servidumbres | C52: =CHIFFRAGE_TC!M12 -> 10062500
B53: Provisiones - Fiscalizacion y tramites administrativos | C53: =CHIFFRAGE_TC!M237 -> 6927286.348
B55: TOTAL (sin contingencias) | C55: =C49+C52+C53 -> 162517372.4
B56: TOTAL (con contingencias) | C56: =CHIFFRAGE_TC!M243 -> 198046170.3

Sheet CHIFFRAGE_TC (hidden)
B2: Legenda | C2: Dato de entrada
C3: Celda llave
C4: Error
C5: Dato calculado
F9: Precio unitario | G9: Cantidades | J9: Contingencias | L9: Costos | O9: Parte Local y extranjera | T9: Programa | Y9: Notas
C11: Categoria | D11: Duracion de vida (años) | E11: Unidad | F11: ($ sin IVA) | G11: Alternativa 23 | H11: Alternativa 21 | J11: Alternativa 23 | K11: Alternativa 21 | L11: Alternativa 23 | M11: Alternativa 21 | O11: Alternativa 23 - Local | P11: Alternativa 23 - Extranjero | Q11: Alternativa 21 - Local | R11: Alternativa 21 - Extranjero | T11: 2015 | U11: 2016 | V11: 2017 | W11: 2018
B12: Compra de terrenos para estaciones y servidumbres | J12: =SUM(J13:J21)/L12 -> 0.25 | K12: =SUM(K13:K21)/M12 -> 0.25 | L12: =SUM(L13:L21) -> 2562500 | M12: =SUM(M13:M21) -> 10062500 | O12: =SUM(O13:O21)/L12 -> 1 | P12: =SUM(P13:P21)/L12 -> 0 | Q12: =SUM(Q13:Q21)/M12 -> 1 | R12: =SUM(R13:R21)/M12 -> 0 | T12: =T$11 -> 2015 | U12: =U$11 -> 2016 | V12: =V$11 -> 2017 | W12: =W$11 -> 2018
B13: Estacion Duran (Terminal) | C13: ='PRECIOS UNITARIOS'!C$16 -> PRED | D13: Infinida | E13: ='PRECIOS UNITARIOS'!D$16 -> m2 | F13: 0 | G13: 1600 | H13: 1600 | J13: =HLOOKUP($C13,PARAMETROS!$C$36:$F$38,3)*L13 -> 0 | K13: =HLOOKUP($C13,PARAMETROS!$C$36:$F$38,3)*M13 -> 0 | L13: =G13*$F13 -> 0 | M13: =H13*$F13 -> 0 | O13: ='PRECIOS UNITARIOS'!$Z$16*L13 -> 0 | P13: ='PRECIOS UNITARIOS'!$AA$16*L13 -> 0 | Q13: ='PRECIOS UNITARIOS'!$Z$16*M13 -> 0 | R13: ='PRECIOS UNITARIOS'!$AA$16*M13 -> 0 | U13: 1 | Y13: Municipal
B14: Estacion Samborondon (Terminal) | C14: ='PRECIOS UNITARIOS'!C$16 -> PRED | D14: Infinida | E14: ='PRECIOS UNITARIOS'!D$16 -> m2 | F14: 0 | G14: 0 | H14: 9900 | J14: =HLOOKUP($C14,PARAMETROS!$C$36:$F$38,3)*L14 -> 0 | K14: =HLOOKUP($C14,PARAMETROS!$C$36:$F$38,3)*M14 -> 0 | L14: 0 | M14: 0 | O14: ='PRECIOS UNITARIOS'!$Z$16*L14 -> 0 | P14: ='PRECIOS UNITARIOS'!$AA$16*L14 -> 0 | Q14: ='PRECIOS UNITARIOS'!$Z$16*M14 -> 0 | R14: ='PRECIOS UNITARIOS'!$AA$16*M14 -> 0 | U14: 1 | Y14: Privado
B15: Estacion Malecon (Terminal) | C15: ='PRECIOS UNITARIOS'!C$16 -> PRED | D15: Infinida | E15: ='PRECIOS UNITARIOS'!D$16 -> m2 | F15: 1000 | G15: 0 | H15: 0 | J15: =HLOOKUP($C15,PARAMETROS!$C$36:$F$38,3)*L15 -> 0 | K15: =HLOOKUP($C15,PARAMETROS!$C$36:$F$38,3)*M15 -> 0 | L15: 0 | M15: 0 | O15: ='PRECIOS UNITARIOS'!$Z$16*L15 -> 0 | P15: ='PRECIOS UNITARIOS'!$AA$16*L15 -> 0 | Q15: ='PRECIOS UNITARIOS'!$Z$16*M15 -> 0 | R15: ='PRECIOS UNITARIOS'!$AA$16*M15 -> 0 | U15: 1 | Y15: Privado
B16: Estacion Puerto Santa Ana (Sur) | C16: ='PRECIOS UNITARIOS'!C$16 -> PRED | D16: Infinida | E16: ='PRECIOS UNITARIOS'!D$16 -> m2 | F16: 1000 | G16: 0 | H16: 5250 | J16: =HLOOKUP($C16,PARAMETROS!$C$36:$F$38,3)*L16 -> 0 | K16: =HLOOKUP($C16,PARAMETROS!$C$36:$F$38,3)*M16 -> 1312500 | L16: 0 | M16: 5250000 | O16: ='PRECIOS UNITARIOS'!$Z$16*L16 -> 0 | P16: ='PRECIOS UNITARIOS'!$AA$16*L16 -> 0 | Q16: ='PRECIOS UNITARIOS'!$Z$16*M16 -> 5250000 | R16: ='PRECIOS UNITARIOS'!$AA$16*M16 -> 0 | U16: 1 | Y16: Privado
B17: Estacion Malecon Centro Cultural | C17: ='PRECIOS UNITARIOS'!C$16 -> PRED | D17: Infinida | E17: ='PRECIOS UNITARIOS'!D$16 -> m2 | F17: 0 | G17: =40*40 -> 1600 | H17: 1600 | J17: =HLOOKUP($C17,PARAMETROS!$C$36:$F$38,3)*L17 -> 0 | K17: =HLOOKUP($C17,PARAMETROS!$C$36:$F$38,3)*M17 -> 0 | L17: 0 | M17: 0 | O17: ='PRECIOS UNITARIOS'!$Z$16*L17 -> 0 | P17: ='PRECIOS UNITARIOS'!$AA$16*L17 -> 0 | Q17: ='PRECIOS UNITARIOS'!$Z$16*M17 -> 0 | R17: ='PRECIOS UNITARIOS'!$AA$16*M17 -> 0 | U17: 1 | Y17: Municipal
B18: Estacion Cimentero (Tecnica) | C18: ='PRECIOS UNITARIOS'!C$16 -> PRED | D18: Infinida | E18: ='PRECIOS UNITARIOS'!D$16 -> m2 | F18: 500 | G18: 400 | H18: 400 | J18: =HLOOKUP($C18,PARAMETROS!$C$36:$F$38,3)*L18 -> 50000 | K18: =HLOOKUP($C18,PARAMETROS!$C$36:$F$38,3)*M18 -> 50000 | L18: 200000 | M18: 200000 | O18: ='PRECIOS UNITARIOS'!$Z$16*L18 -> 200000 | P18: ='PRECIOS UNITARIOS'!$AA$16*L18 -> 0 | Q18: ='PRECIOS UNITARIOS'!$Z$16*M18 -> 200000 | R18: ='PRECIOS UNITARIOS'!$AA$16*M18 -> 0 | U18: 1 | Y18: Privado
B19: Estacion Avenida Quito | C19: ='PRECIOS UNITARIOS'!C$16 -> PRED | D19: Infinida | E19: ='PRECIOS UNITARIOS'!D$16 -> m2 | F19: 0 | G19: 10000 | H19: 10000 | J19: =HLOOKUP($C19,PARAMETROS!$C$36:$F$38,3)*L19 -> 0 | K19: =HLOOKUP($C19,PARAMETROS!$C$36:$F$38,3)*M19 -> 0 | L19: 0 | M19: 0 | O19: ='PRECIOS UNITARIOS'!$Z$16*L19 -> 0 | P19: ='PRECIOS UNITARIOS'!$AA$16*L19 -> 0 | Q19: ='PRECIOS UNITARIOS'!$Z$16*M19 -> 0 | R19: ='PRECIOS UNITARIOS'!$AA$16*M19 -> 0 | U19: 1 | Y19: Municipal
B20: Estacion Centenario (Terminal) | C20: ='PRECIOS UNITARIOS'!C$16 -> PRED | D20: Infinida | E20: ='PRECIOS UNITARIOS'!D$16 -> m2 | F20: 0 | G20: 1600 | H20: 1600 | J20: =HLOOKUP($C20,PARAMETROS!$C$36:$F$38,3)*L20 -> 0 | K20: =HLOOKUP($C20,PARAMETROS!$C$36:$F$38,3)*M20 -> 0 | L20: 0 | M20: 0 | O20: ='PRECIOS UNITARIOS'!$Z$16*L20 -> 0 | P20: ='PRECIOS UNITARIOS'!$AA$16*L20 -> 0 | Q20: ='PRECIOS UNITARIOS'!$Z$16*M20 -> 0 | R20: ='PRECIOS UNITARIOS'!$AA$16*M20 -> 0 | U20: 1 | Y20: Municipal
B21: Servidumbres en linea | C21: ='PRECIOS UNITARIOS'!C$16 -> PRED | D21: Infinida | E21: ='PRECIOS UNITARIOS'!D$16 -> m2 | F21: 500 | G21: 4725 | H21: 9225 | J21: =HLOOKUP($C21,PARAMETROS!$C$36:$F$38,3)*L21 -> 590625 | K21: =HLOOKUP($C21,PARAMETROS!$C$36:$F$38,3)*M21 -> 1153125 | L21: 2362500 | M21: 4612500 | O21: ='PRECIOS UNITARIOS'!$Z$16*L21 -> 2362500 | P21: ='PRECIOS UNITARIOS'!$AA$16*L21 -> 0 | Q21: ='PRECIOS UNITARIOS'!$Z$16*M21 -> 4612500 | R21: ='PRECIOS UNITARIOS'!$AA$16*M21 -> 0 | V21: 1
B23: Compra de terrenos para estacionamiento (operacion adicional) | L23: =SUM(L24:L31) -> 0 | M23: =SUM(M24:M31) -> 0 | T23: =T$11 -> 2015 | U23: =U$11 -> 2016 | V23: =V$11 -> 2017 | W23: =W$11 -> 2018
B24: Estacion Duran (Terminal) | C24: ='PRECIOS UNITARIOS'!C$16 -> PRED | D24: Infinida | E24: ='PRECIOS UNITARIOS'!D$16 -> m2 | F24: =F13 -> 0 | G24: 24000 | H24: 24000 | J24: =HLOOKUP($C24,PARAMETROS!$C$36:$F$38,3)*L24 -> 0 | K24: =HLOOKUP($C24,PARAMETROS!$C$36:$F$38,3)*M24 -> 0 | L24: =G24*$F24 -> 0 | M24: =H24*$F24 -> 0 | O24: ='PRECIOS UNITARIOS'!$Z$16*L24 -> 0 | P24: ='PRECIOS UNITARIOS'!$AA$16*L24 -> 0 | Q24: ='PRECIOS UNITARIOS'!$Z$16*M24 -> 0 | R24: ='PRECIOS UNITARIOS'!$AA$16*M24 -> 0 | U24: 1 | Y24: =Y13 -> Municipal
B25: Estacion Samborondon (Terminal) | C25: ='PRECIOS UNITARIOS'!C$16 -> PRED | D25: Infinida | E25: ='PRECIOS UNITARIOS'!D$16 -> m2 | F25: 0 | G25: 0 | H25: 24000 | J25: =HLOOKUP($C25,PARAMETROS!$C$36:$F$38,3)*L25 -> 0 | K25: =HLOOKUP($C25,PARAMETROS!$C$36:$F$38,3)*M25 -> 0 | L25: 0 | M25: 0 | O25: ='PRECIOS UNITARIOS'!$Z$16*L25 -> 0 | P25: ='PRECIOS UNITARIOS'!$AA$16*L25 -> 0 | Q25: ='PRECIOS UNITARIOS'!$Z$16*M25 -> 0 | R25: ='PRECIOS UNITARIOS'!$AA$16*M25 -> 0 | U25: 1 | Y25: Privado
B26: Estacion Malecon (Terminal) | C26: ='PRECIOS UNITARIOS'!C$16 -> PRED | D26: Infinida | E26: ='PRECIOS UNITARIOS'!D$16 -> m2 | F26: 1000 | J26: =HLOOKUP($C26,PARAMETROS!$C$36:$F$38,3)*L26 -> 0 | K26: =HLOOKUP($C26,PARAMETROS!$C$36:$F$38,3)*M26 -> 0 | L26: 0 | M26: 0 | O26: ='PRECIOS UNITARIOS'!$Z$16*L26 -> 0 | P26: ='PRECIOS UNITARIOS'!$AA$16*L26 -> 0 | Q26: ='PRECIOS UNITARIOS'!$Z$16*M26 -> 0 | R26: ='PRECIOS UNITARIOS'!$AA$16*M26 -> 0 | U26: 1 | Y26: Privado
B27: Estacion Puerto Santa Ana (Sur) | C27: ='PRECIOS UNITARIOS'!C$16 -> PRED | D27: Infinida | E27: ='PRECIOS UNITARIOS'!D$16 -> m2 | F27: 1000 | J27: =HLOOKUP($C27,PARAMETROS!$C$36:$F$38,3)*L27 -> 0 | K27: =HLOOKUP($C27,PARAMETROS!$C$36:$F$38,3)*M27 -> 0 | L27: 0 | M27: 0 | O27: ='PRECIOS UNITARIOS'!$Z$16*L27 -> 0 | P27: ='PRECIOS UNITARIOS'!$AA$16*L27 -> 0 | Q27: ='PRECIOS UNITARIOS'!$Z$16*M27 -> 0 | R27: ='PRECIOS UNITARIOS'!$AA$16*M27 -> 0 | U27: 1 | Y27: Privado
B28: Estacion Malecon Centro Cultural | C28: ='PRECIOS UNITARIOS'!C$16 -> PRED | D28: Infinida | E28: ='PRECIOS UNITARIOS'!D$16 -> m2 | F28: 0 | J28: =HLOOKUP($C28,PARAMETROS!$C$36:$F$38,3)*L28 -> 0 | K28: =HLOOKUP($C28,PARAMETROS!$C$36:$F$38,3)*M28 -> 0 | L28: 0 | M28: 0 | O28: ='PRECIOS UNITARIOS'!$Z$16*L28 -> 0 | P28: ='PRECIOS UNITARIOS'!$AA$16*L28 -> 0 | Q28: ='PRECIOS UNITARIOS'!$Z$16*M28 -> 0 | R28: ='PRECIOS UNITARIOS'!$AA$16*M28 -> 0 | U28: 1 | Y28: Municipal
B29: Estacion Cimentero (Tecnica) | C29: ='PRECIOS UNITARIOS'!C$16 -> PRED | D29: Infinida | E29: ='PRECIOS UNITARIOS'!D$16 -> m2 | F29: 500 | J29: =HLOOKUP($C29,PARAMETROS!$C$36:$F$38,3)*L29 -> 0 | K29: =HLOOKUP($C29,PARAMETROS!$C$36:$F$38,3)*M29 -> 0 | L29: 0 | M29: 0 | O29: ='PRECIOS UNITARIOS'!$Z$16*L29 -> 0 | P29: ='PRECIOS UNITARIOS'!$AA$16*L29 -> 0 | Q29: ='PRECIOS UNITARIOS'!$Z$16*M29 -> 0 | R29: ='PRECIOS UNITARIOS'!$AA$16*M29 -> 0 | U29: 1 | Y29: Privado
B30: Estacion Avenida Quito | C30: ='PRECIOS UNITARIOS'!C$16 -> PRED | D30: Infinida | E30: ='PRECIOS UNITARIOS'!D$16 -> m2 | F30: 0 | J30: =HLOOKUP($C30,PARAMETROS!$C$36:$F$38,3)*L30 -> 0 | K30: =HLOOKUP($C30,PARAMETROS!$C$36:$F$38,3)*M30 -> 0 | L30: 0 | M30: 0 | O30: ='PRECIOS UNITARIOS'!$Z$16*L30 -> 0 | P30: ='PRECIOS UNITARIOS'!$AA$16*L30 -> 0 | Q30: ='PRECIOS UNITARIOS'!$Z$16*M30 -> 0 | R30: ='PRECIOS UNITARIOS'!$AA$16*M30 -> 0 | U30: 1 | Y30: Municipal
B31: Estacion Centenario (Terminal) | C31: ='PRECIOS UNITARIOS'!C$16 -> PRED | D31: Infinida | E31: ='PRECIOS UNITARIOS'!D$16 -> m2 | F31: 0 | J31: =HLOOKUP($C31,PARAMETROS!$C$36:$F$38,3)*L31 -> 0 | K31: =HLOOKUP($C31,PARAMETROS!$C$36:$F$38,3)*M31 -> 0 | L31: 0 | M31: 0 | O31: ='PRECIOS UNITARIOS'!$Z$16*L31 -> 0 | P31: ='PRECIOS UNITARIOS'!$AA$16*L31 -> 0 | Q31: ='PRECIOS UNITARIOS'!$Z$16*M31 -> 0 | R31: ='PRECIOS UNITARIOS'!$AA$16*M31 -> 0 | U31: 1 | Y31: Municipal
B33: Decontaminacion y proteccion | J33: =SUM(J34:J36)/L33 -> 0.25 | K33: =SUM(K34:K36)/M33 -> 0.25 | L33: =SUM(L34:L36) -> 3664412.557 | M33: 4083724.357 | O33: =SUM(O34:O36)/L33 -> 0.7990092286 | P33: =SUM(P34:P36)/L33 -> 0.2009907714 | Q33: =SUM(Q34:Q36)/M33 -> 0.798459031 | R33: =SUM(R34:R36)/M33 -> 0.201540969 | T33: =T$11 -> 2015 | U33: =U$11 -> 2016 | V33: =V$11 -> 2017 | W33: =W$11 -> 2018
B34: ='PRECIOS UNITARIOS'!B19 -> Proteccion contra incendios (techos) | C34: ='PRECIOS UNITARIOS'!C19 -> INFRA | D34: 40 | E34: ='PRECIOS UNITARIOS'!D19 -> m2 | F34: ='PRECIOS UNITARIOS'!L19 -> 164.6943441 | G34: 9422 | H34: 11968 | J34: =HLOOKUP($C34,PARAMETROS!$C$36:$F$38,3)*L34 -> 387937.5274 | K34: =HLOOKUP($C34,PARAMETROS!$C$36:$F$38,3)*M34 -> 492765.4774 | L34: =G34*$F34 -> 1551750.11 | M34: 1971061.91 | O34: ='PRECIOS UNITARIOS'!$Z19*CHIFFRAGE_TC!L34 -> 1231547.706 | P34: ='PRECIOS UNITARIOS'!$AA19*CHIFFRAGE_TC!L34 -> 320202.4036 | Q34: ='PRECIOS UNITARIOS'!$Z19*CHIFFRAGE_TC!M34 -> 1564334.849 | R34: ='PRECIOS UNITARIOS'!$AA19*CHIFFRAGE_TC!M34 -> 406727.0607 | U34: 0.25 | V34: 0.25 | W34: 0.5
B35: ='PRECIOS UNITARIOS'!B20 -> Proteccion contra incendios (fachadas) | C35: ='PRECIOS UNITARIOS'!C20 -> INFRA | D35: 40 | E35: ='PRECIOS UNITARIOS'!D20 -> m2 | F35: ='PRECIOS UNITARIOS'!L20 -> 164.6943441 | G35: =CANTIDADES!B26 -> 12250 | H35: =CANTIDADES!C26 -> 12250 | J35: =HLOOKUP($C35,PARAMETROS!$C$36:$F$38,3)*L35 -> 504376.4287 | K35: =HLOOKUP($C35,PARAMETROS!$C$36:$F$38,3)*M35 -> 504376.4287 | L35: 2017505.715 | M35: 2017505.715 | O35: ='PRECIOS UNITARIOS'!$Z20*CHIFFRAGE_TC!L35 -> 1601195.012 | P35: ='PRECIOS UNITARIOS'!$AA20*CHIFFRAGE_TC!L35 -> 416310.703 | Q35: ='PRECIOS UNITARIOS'!$Z20*CHIFFRAGE_TC!M35 -> 1601195.012 | R35: ='PRECIOS UNITARIOS'!$AA20*CHIFFRAGE_TC!M35 -> 416310.703 | U35: 0.25 | V35: 0.25 | W35: 0.5
B36: ='PRECIOS UNITARIOS'!B21 -> Decontaminacion de suelo | C36: ='PRECIOS UNITARIOS'!C21 -> INFRA | D36: Infinida | E36: ='PRECIOS UNITARIOS'!D21 -> U | F36: ='PRECIOS UNITARIOS'!L21 -> 95156.73212 | G36: =CANTIDADES!B34 -> 1 | H36: =CANTIDADES!C34 -> 1 | J36: =HLOOKUP($C36,PARAMETROS!$C$36:$F$38,3)*L36 -> 23789.18303 | K36: =HLOOKUP($C36,PARAMETROS!$C$36:$F$38,3)*M36 -> 23789.18303 | L36: 95156.73212 | M36: 95156.73212 | O36: ='PRECIOS UNITARIOS'!$Z21*CHIFFRAGE_TC!L36 -> 95156.73212 | P36: ='PRECIOS UNITARIOS'!$AA21*CHIFFRAGE_TC!L36 -> 0 | Q36: ='PRECIOS UNITARIOS'!$Z21*CHIFFRAGE_TC!M36 -> 95156.73212 | R36: ='PRECIOS UNITARIOS'!$AA21*CHIFFRAGE_TC!M36 -> 0 | U36: 1
B38: Infraestructura y estructuras de lineas | J38: =SUM(J39:J43)/L38 -> 0.25 | K38: =SUM(K39:K43)/M38 -> 0.25 | L38: =SUM(L39:L43) -> 10830074.46 | M38: 17693193.55 | O38: =SUM(O39:O43)/L38 -> 0.6078820551 | P38: =SUM(P39:P43)/L38 -> 0.3921179449 | Q38: =SUM(Q39:Q43)/M38 -> 0.5980493159 | R38: =SUM(R39:R43)/M38 -> 0.4019506841 | T38: =T$11 -> 2015 | U38: =U$11 -> 2016 | V38: =V$11 -> 2017 | W38: =W$11 -> 2018
B39: ='PRECIOS UNITARIOS'!B24 -> Cables de soportes | C39: ='PRECIOS UNITARIOS'!C24 -> EQUIP | D39: 10 | E39: ='PRECIOS UNITARIOS'!D24 -> ml | F39: 0 | G39: 0 | H39: 0 | J39: =HLOOKUP($C39,PARAMETROS!$C$36:$F$38,3)*L39 -> 0 | K39: =HLOOKUP($C39,PARAMETROS!$C$36:$F$38,3)*M39 -> 0 | L39: =$F39*G39 -> 0 | M39: 0 | O39: =L39 -> 0 | P39: =L39 -> 0 | Q39: =M39 -> 0 | R39: =M39 -> 0 | U39: 0.2 | V39: 0.6 | W39: 0.2
B40: ='PRECIOS UNITARIOS'!B25 -> Cable de traccion | C40: ='PRECIOS UNITARIOS'!C25 -> EQUIP | D40: 5 | E40: ='PRECIOS UNITARIOS'!D25 -> ml | F40: ='PRECIOS UNITARIOS'!L25 -> 66.20956623 | G40: =(2*CANTIDADES!B22)*1.05 -> 8610 | H40: =(2*CANTIDADES!C22)*1.05 -> 17115 | J40: =HLOOKUP($C40,PARAMETROS!$C$36:$F$38,3)*L40 -> 142516.0913 | K40: =HLOOKUP($C40,PARAMETROS!$C$36:$F$38,3)*M40 -> 283294.1815 | L40: 570064.3652 | M40: 1133176.726 | O40: ='PRECIOS UNITARIOS'!$Z25*CHIFFRAGE_TC!L40 -> 92769.90849 | P40: ='PRECIOS UNITARIOS'!$AA25*CHIFFRAGE_TC!L40 -> 477294.4567 | Q40: ='PRECIOS UNITARIOS'!$Z25*CHIFFRAGE_TC!M40 -> 184408.4766 | R40: ='PRECIOS UNITARIOS'!$AA25*CHIFFRAGE_TC!M40 -> 948768.2494 | U40: 0.2 | V40: 0.6 | W40: 0.2
B41: ='PRECIOS UNITARIOS'!B26 -> Cabeza de poste (patibulo + pendulos y equipamientos) | C41: ='PRECIOS UNITARIOS'!C26 -> EQUIP | D41: 40 | E41: ='PRECIOS UNITARIOS'!D26 -> U | F41: ='PRECIOS UNITARIOS'!L26 -> 100000.3452 | G41: =CANTIDADES!B43 -> 27 | H41: =CANTIDADES!C43 -> 45 | J41: =HLOOKUP($C41,PARAMETROS!$C$36:$F$38,3)*L41 -> 675002.3303 | K41: =HLOOKUP($C41,PARAMETROS!$C$36:$F$38,3)*M41 -> 1125003.884 | L41: 2700009.321 | M41: 4500015.535 | O41: ='PRECIOS UNITARIOS'!$Z26*CHIFFRAGE_TC!L41 -> 600330.6596 | P41: ='PRECIOS UNITARIOS'!$AA26*CHIFFRAGE_TC!L41 -> 2099678.662 | Q41: ='PRECIOS UNITARIOS'!$Z26*CHIFFRAGE_TC!M41 -> 1000551.099 | R41: ='PRECIOS UNITARIOS'!$AA26*CHIFFRAGE_TC!M41 -> 3499464.436 | U41: 0.2 | V41: 0.6 | W41: 0.2
B42: ='PRECIOS UNITARIOS'!B27 -> Postes y fundaciones | C42: ='PRECIOS UNITARIOS'!C27 -> INFRA | D42: 50 | E42: ='PRECIOS UNITARIOS'!D27 -> U | F42: ='PRECIOS UNITARIOS'!L27 -> 100000.0287 | G42: =CANTIDADES!B43 -> 27 | H42: =CANTIDADES!C43 -> 45 | J42: =HLOOKUP($C42,PARAMETROS!$C$36:$F$38,3)*L42 -> 675000.1937 | K42: =HLOOKUP($C42,PARAMETROS!$C$36:$F$38,3)*M42 -> 1125000.323 | L42: 2700000.775 | M42: 4500001.292 | O42: ='PRECIOS UNITARIOS'!$Z27*CHIFFRAGE_TC!L42 -> 2103681.585 | P42: ='PRECIOS UNITARIOS'!$AA27*CHIFFRAGE_TC!L42 -> 596319.1896 | Q42: ='PRECIOS UNITARIOS'!$Z27*CHIFFRAGE_TC!M42 -> 3506135.976 | R42: ='PRECIOS UNITARIOS'!$AA27*CHIFFRAGE_TC!M42 -> 993865.3159 | U42: 0.2 | V42: 0.6 | W42: 0.2
B43: ='PRECIOS UNITARIOS'!B28 -> Sobrecostos para fundaciones con pilotes | C43: ='PRECIOS UNITARIOS'!C28 -> INFRA | D43: 50 | E43: ='PRECIOS UNITARIOS'!D28 -> U | F43: ='PRECIOS UNITARIOS'!L28 -> 180000 | G43: =CANTIDADES!B46 -> 27 | H43: =CANTIDADES!C46 -> 42 | J43: =HLOOKUP($C43,PARAMETROS!$C$36:$F$38,3)*L43 -> 1215000 | K43: =HLOOKUP($C43,PARAMETROS!$C$36:$F$38,3)*M43 -> 1890000 | L43: 4860000 | M43: 7560000 | O43: ='PRECIOS UNITARIOS'!$Z28*CHIFFRAGE_TC!L43 -> 3786625.767 | P43: ='PRECIOS UNITARIOS'!$AA28*CHIFFRAGE_TC!L43 -> 1073374.233 | Q43: ='PRECIOS UNITARIOS'!$Z28*CHIFFRAGE_TC!M43 -> 5890306.748 | R43: ='PRECIOS UNITARIOS'!$AA28*CHIFFRAGE_TC!M43 -> 1669693.252 | U43: 0.2 | V43: 0.6 | W43: 0.2
B45: Obras de via y reubicacion de redes | J45: =SUM(J46:J51)/L45 -> 0.25 | K45: =SUM(K46:K51)/M45 -> 0.25 | L45: =SUM(L46:L51) -> 1441728.28 | M45: 1683071.522 | O45: =SUM(O46:O51)/L45 -> 0.7979272569 | P45: =SUM(P46:P51)/L45 -> 0.2020727431 | Q45: =SUM(Q46:Q51)/M45 -> 0.7985289666 | R45: =SUM(R46:R51)/M45 -> 0.2014710334 | T45: =T$11 -> 2015 | U45: =U$11 -> 2016 | V45: =V$11 -> 2017 | W45: =W$11 -> 2018
B46: ='PRECIOS UNITARIOS'!B31 -> Obras de via | C46: ='PRECIOS UNITARIOS'!C31 -> INFRA | D46: 50 | E46: ='PRECIOS UNITARIOS'!D31 -> m2 | F46: ='PRECIOS UNITARIOS'!L31 -> 197.6332129 | G46: 3978 | H46: 4483 | J46: =HLOOKUP($C46,PARAMETROS!$C$36:$F$38,3)*L46 -> 196546.2302 | K46: =HLOOKUP($C46,PARAMETROS!$C$36:$F$38,3)*M46 -> 221497.4233 | L46: =$F46*G46 -> 786184.9208 | M46: 885989.6933 | O46: ='PRECIOS UNITARIOS'!$Z31*CHIFFRAGE_TC!L46 -> 623956.2864 | P46: ='PRECIOS UNITARIOS'!$AA31*CHIFFRAGE_TC!L46 -> 162228.6345 | Q46: ='PRECIOS UNITARIOS'!$Z31*CHIFFRAGE_TC!M46 -> 703166.4233 | R46: ='PRECIOS UNITARIOS'!$AA31*CHIFFRAGE_TC!M46 -> 182823.27 | U46: 0.5 | V46: 0.5
B47: ='PRECIOS UNITARIOS'!B32 -> Redes aereas de alta tension | C47: ='PRECIOS UNITARIOS'!C32 -> INFRA | D47: 50 | E47: ='PRECIOS UNITARIOS'!D32 -> ml (de la red) | F47: ='PRECIOS UNITARIOS'!L32 -> 633.7229224 | G47: 0 | H47: 1 | J47: =HLOOKUP($C47,PARAMETROS!$C$36:$F$38,3)*L47 -> 0 | K47: =HLOOKUP($C47,PARAMETROS!$C$36:$F$38,3)*M47 -> 158.4307306 | L47: 0 | M47: 633.7229224 | O47: ='PRECIOS UNITARIOS'!$Z32*CHIFFRAGE_TC!L47 -> 0 | P47: ='PRECIOS UNITARIOS'!$AA32*CHIFFRAGE_TC!L47 -> 0 | Q47: ='PRECIOS UNITARIOS'!$Z32*CHIFFRAGE_TC!M47 -> 508.3460852 | R47: ='PRECIOS UNITARIOS'!$AA32*CHIFFRAGE_TC!M47 -> 125.3768372 | U47: 1
B48: ='PRECIOS UNITARIOS'!B33 -> Redes aereas | C48: ='PRECIOS UNITARIOS'!C33 -> INFRA | D48: 50 | E48: ='PRECIOS UNITARIOS'!D33 -> ml (de linea) | F48: ='PRECIOS UNITARIOS'!L33 -> 83.4 | G48: 3090 | H48: 3692 | J48: =HLOOKUP($C48,PARAMETROS!$C$36:$F$38,3)*L48 -> 64426.5 | K48: =HLOOKUP($C48,PARAMETROS!$C$36:$F$38,3)*M48 -> 76978.2 | L48: 257706 | M48: 307912.8 | O48: ='PRECIOS UNITARIOS'!$Z33*CHIFFRAGE_TC!L48 -> 206721 | P48: ='PRECIOS UNITARIOS'!$AA33*CHIFFRAGE_TC!L48 -> 50985 | Q48: ='PRECIOS UNITARIOS'!$Z33*CHIFFRAGE_TC!M48 -> 246994.8 | R48: ='PRECIOS UNITARIOS'!$AA33*CHIFFRAGE_TC!M48 -> 60918 | U48: 1
B49: ='PRECIOS UNITARIOS'!B34 -> Desplazamiento de lamparas | C49: ='PRECIOS UNITARIOS'!C34 -> INFRA | D49: 50 | E49: ='PRECIOS UNITARIOS'!D34 -> U | F49: ='PRECIOS UNITARIOS'!L34 -> 2520.084884 | G49: 31 | H49: 61 | J49: =HLOOKUP($C49,PARAMETROS!$C$36:$F$38,3)*L49 -> 19530.65785 | K49: =HLOOKUP($C49,PARAMETROS!$C$36:$F$38,3)*M49 -> 38431.29448 | L49: 78122.6314 | M49: 153725.1779 | O49: ='PRECIOS UNITARIOS'!$Z34*CHIFFRAGE_TC!L49 -> 63535.41806 | P49: ='PRECIOS UNITARIOS'!$AA34*CHIFFRAGE_TC!L49 -> 14587.21333 | Q49: ='PRECIOS UNITARIOS'!$Z34*CHIFFRAGE_TC!M49 -> 125021.3065 | R49: ='PRECIOS UNITARIOS'!$AA34*CHIFFRAGE_TC!M49 -> 28703.87139 | U49: 1
B50: ='PRECIOS UNITARIOS'!B35 -> Redes subterraneas | C50: ='PRECIOS UNITARIOS'!C35 -> INFRA | D50: 50 | E50: ='PRECIOS UNITARIOS'!D35 -> ml (de linea) | F50: ='PRECIOS UNITARIOS'!L35 -> 83.4 | G50: 3090 | H50: 3271 | J50: =HLOOKUP($C50,PARAMETROS!$C$36:$F$38,3)*L50 -> 64426.5 | K50: =HLOOKUP($C50,PARAMETROS!$C$36:$F$38,3)*M50 -> 68200.35 | L50: 257706 | M50: 272801.4 | O50: ='PRECIOS UNITARIOS'!$Z35*CHIFFRAGE_TC!L50 -> 206721 | P50: ='PRECIOS UNITARIOS'!$AA35*CHIFFRAGE_TC!L50 -> 50985 | Q50: ='PRECIOS UNITARIOS'!$Z35*CHIFFRAGE_TC!M50 -> 218829.9 | R50: ='PRECIOS UNITARIOS'!$AA35*CHIFFRAGE_TC!M50 -> 53971.5 | U50: 0.5 | V50: 0.5
B51: ='PRECIOS UNITARIOS'!B36 -> Mantenimiento de transito | C51: ='PRECIOS UNITARIOS'!C36 -> INFRA | D51: 50 | E51: ='PRECIOS UNITARIOS'!D36 -> U | F51: ='PRECIOS UNITARIOS'!L36 -> 62008.72764 | G51: 1 | H51: 1 | J51: =HLOOKUP($C51,PARAMETROS!$C$36:$F$38,3)*L51 -> 15502.18191 | K51: =HLOOKUP($C51,PARAMETROS!$C$36:$F$38,3)*M51 -> 15502.18191 | L51: 62008.72764 | M51: 62008.72764 | O51: ='PRECIOS UNITARIOS'!$Z36*CHIFFRAGE_TC!L51 -> 49460.58714 | P51: ='PRECIOS UNITARIOS'!$AA36*CHIFFRAGE_TC!L51 -> 12548.1405 | Q51: ='PRECIOS UNITARIOS'!$Z36*CHIFFRAGE_TC!M51 -> 49460.58714 | R51: ='PRECIOS UNITARIOS'!$AA36*CHIFFRAGE_TC!M51 -> 12548.1405 | U51: 0.5 | V51: 0.5
B53: Cabinas | J53: =SUM(J54:J55)/L53 -> 0.15 | K53: =SUM(K54:K55)/M53 -> 0.15 | L53: =SUM(L54:L55) -> 6347110.01 | M53: 9141733.074 | O53: =SUM(O54:O55)/L53 -> 0.05773402115 | P53: =SUM(P54:P55)/L53 -> 0.9422659788 | Q53: =SUM(Q54:Q55)/M53 -> 0.05773402115 | R53: =SUM(R54:R55)/M53 -> 0.9422659788 | T53: =T$11 -> 2015 | U53: =U$11 -> 2016 | V53: =V$11 -> 2017 | W53: =W$11 -> 2018
B54: ='PRECIOS UNITARIOS'!B39 -> Cabinas y soportes | C54: ='PRECIOS UNITARIOS'!C39 -> VEH | D54: 40 | E54: ='PRECIOS UNITARIOS'!D39 -> U | F54: ='PRECIOS UNITARIOS'!L39 -> 37545.57257 | G54: =CANTIDADES!B69 -> 134 | H54: =CANTIDADES!C69 -> 193 | J54: =HLOOKUP($C54,PARAMETROS!$C$36:$F$38,3)*L54 -> 754666.0087 | K54: =HLOOKUP($C54,PARAMETROS!$C$36:$F$38,3)*M54 -> 1086944.326 | L54: =$F54*G54 -> 5031106.725 | M54: =$F54*H54 -> 7246295.507 | O54: ='PRECIOS UNITARIOS'!$Z39*CHIFFRAGE_TC!L54 -> 236111.7029 | P54: ='PRECIOS UNITARIOS'!$AA39*CHIFFRAGE_TC!L54 -> 4794995.022 | Q54: ='PRECIOS UNITARIOS'!$Z39*CHIFFRAGE_TC!M54 -> 340071.3333 | R54: ='PRECIOS UNITARIOS'!$AA39*CHIFFRAGE_TC!M54 -> 6906224.173 | U54: 0.2 | V54: 0.6 | W54: 0.2
B55: ='PRECIOS UNITARIOS'!B40 -> Equipamiento de conforte en las cabinas | C55: ='PRECIOS UNITARIOS'!C40 -> VEH | D55: 15 | E55: ='PRECIOS UNITARIOS'!D40 -> U | F55: ='PRECIOS UNITARIOS'!L40 -> 9820.920039 | G55: =G54 -> 134 | H55: =H54 -> 193 | J55: =HLOOKUP($C55,PARAMETROS!$C$36:$F$38,3)*L55 -> 197400.4928 | K55: =HLOOKUP($C55,PARAMETROS!$C$36:$F$38,3)*M55 -> 284315.6351 | L55: =$F55*G55 -> 1316003.285 | M55: =$F55*H55 -> 1895437.567 | O55: ='PRECIOS UNITARIOS'!$Z40*CHIFFRAGE_TC!L55 -> 130332.4806 | P55: ='PRECIOS UNITARIOS'!$AA40*CHIFFRAGE_TC!L55 -> 1185670.805 | Q55: ='PRECIOS UNITARIOS'!$Z40*CHIFFRAGE_TC!M55 -> 187717.6773 | R55: ='PRECIOS UNITARIOS'!$AA40*CHIFFRAGE_TC!M55 -> 1707719.89 | U55: 0.2 | V55: 0.6 | W55: 0.2
B57: Tecnologias en las estaciones | J57: =SUM(J58:J59)/L57 -> 0.25 | K57: =SUM(K58:K59)/M57 -> 0.25 | L57: =SUM(L58:L59) -> 22562595.45 | M57: 33843893.18 | O57: =SUM(O58:O59)/L57 -> 0.07952283812 | P57: =SUM(P58:P59)/L57 -> 0.9204771619 | Q57: =SUM(Q58:Q59)/M57 -> 0.07952283812 | R57: =SUM(R58:R59)/M57 -> 0.9204771619 | T57: =T$11 -> 2015 | U57: =U$11 -> 2016 | V57: =V$11 -> 2017 | W57: =W$11 -> 2018
B58: ='PRECIOS UNITARIOS'!B43 -> Lanzador (por ramita y por media-estacion) | C58: ='PRECIOS UNITARIOS'!C43 -> EQUIP | D58: 40 | E58: ='PRECIOS UNITARIOS'!D43 -> U | F58: ='PRECIOS UNITARIOS'!L43 -> 709328.8911 | G58: =2*CANTIDADES!B30+4*CANTIDADES!B31+4*CANTIDADES!B32 -> 16 | H58: =2*CANTIDADES!C30+4*CANTIDADES!C31+4*CANTIDADES!C32 -> 24 | J58: =HLOOKUP($C58,PARAMETROS!$C$36:$F$38,3)*L58 -> 2837315.564 | K58: =HLOOKUP($C58,PARAMETROS!$C$36:$F$38,3)*M58 -> 4255973.347 | L58: =$F58*G58 -> 11349262.26 | M58: =$F58*H58 -> 17023893.39 | O58: ='PRECIOS UNITARIOS'!$Z43*CHIFFRAGE_TC!L58 -> 902233.1028 | P58: ='PRECIOS UNITARIOS'!$AA43*CHIFFRAGE_TC!L58 -> 10447029.16 | Q58: ='PRECIOS UNITARIOS'!$Z43*CHIFFRAGE_TC!M58 -> 1353349.654 | R58: ='PRECIOS UNITARIOS'!$AA43*CHIFFRAGE_TC!M58 -> 15670543.73 | V58: 0.7 | W58: 0.3
B59: ='PRECIOS UNITARIOS'!B44 -> Cola y andenes (por numero de andenes, y/c puertas de anden) | C59: ='PRECIOS UNITARIOS'!C44 -> EQUIP | D59: 40 | E59: ='PRECIOS UNITARIOS'!D44 -> U | F59: ='PRECIOS UNITARIOS'!L44 -> 700833.3247 | G59: =G58 -> 16 | H59: =H58 -> 24 | J59: =HLOOKUP($C59,PARAMETROS!$C$36:$F$38,3)*L59 -> 2803333.299 | K59: =HLOOKUP($C59,PARAMETROS!$C$36:$F$38,3)*M59 -> 4204999.948 | L59: =$F59*G59 -> 11213333.2 | M59: =$F59*H59 -> 16819999.79 | O59: ='PRECIOS UNITARIOS'!$Z44*CHIFFRAGE_TC!L59 -> 892008.523 | P59: ='PRECIOS UNITARIOS'!$AA44*CHIFFRAGE_TC!L59 -> 10321324.67 | Q59: ='PRECIOS UNITARIOS'!$Z44*CHIFFRAGE_TC!M59 -> 1338012.784 | R59: ='PRECIOS UNITARIOS'!$AA44*CHIFFRAGE_TC!M59 -> 15481987.01 | V59: 0.7 | W59: 0.3
B61: Equipamiento electrico | J61: =SUM(J62:J68)/L61 -> 0.25 | K61: =SUM(K62:K68)/M61 -> 0.25 | L61: =SUM(L62:L68) -> 4491194.8 | M61: 7901665.314 | O61: =SUM(O62:O68)/L61 -> 0.08534150604 | P61: =SUM(P62:P68)/L61 -> 0.914658494 | Q61: =SUM(Q62:Q68)/M61 -> 0.08613376821 | R61: =SUM(R62:R68)/M61 -> 0.9138662318 | T61: =T$11 -> 2015 | U61: =U$11 -> 2016 | V61: =V$11 -> 2017 | W61: =W$11 -> 2018
B62: ='PRECIOS UNITARIOS'!B47 -> Cuarto de mandos | C62: ='PRECIOS UNITARIOS'!C47 -> EQUIP | D62: 15 | E62: ='PRECIOS UNITARIOS'!D47 -> N° de estaciones | F62: ='PRECIOS UNITARIOS'!L47 -> 261993.7662 | G62: =CANTIDADES!B30+CANTIDADES!B31 -> 4 | H62: =CANTIDADES!C30+CANTIDADES!C31 -> 6 | J62: =HLOOKUP($C62,PARAMETROS!$C$36:$F$38,3)*L62 -> 261993.7662 | K62: =HLOOKUP($C62,PARAMETROS!$C$36:$F$38,3)*M62 -> 392990.6494 | L62: =$F62*G62 -> 1047975.065 | M62: 1571962.597 | O62: ='PRECIOS UNITARIOS'!$Z47*CHIFFRAGE_TC!L62 -> 83365.28252 | P62: ='PRECIOS UNITARIOS'!$AA47*CHIFFRAGE_TC!L62 -> 964609.7824 | Q62: ='PRECIOS UNITARIOS'!$Z47*CHIFFRAGE_TC!M62 -> 125047.9238 | R62: ='PRECIOS UNITARIOS'!$AA47*CHIFFRAGE_TC!M62 -> 1446914.674 | U62: 0.5 | V62: 0.5 | W62: 0
B63: ='PRECIOS UNITARIOS'!B48 -> Cuarto de electricidad (400V tres fases) | C63: ='PRECIOS UNITARIOS'!C48 -> EQUIP | D63: 15 | E63: ='PRECIOS UNITARIOS'!D48 -> U | F63: ='PRECIOS UNITARIOS'!L48 -> 179471.3639 | G63: =2 -> 2 | H63: =2*2 -> 4 | J63: =HLOOKUP($C63,PARAMETROS!$C$36:$F$38,3)*L63 -> 89735.68193 | K63: =HLOOKUP($C63,PARAMETROS!$C$36:$F$38,3)*M63 -> 179471.3639 | L63: 358942.7277 | M63: 717885.4554 | O63: ='PRECIOS UNITARIOS'!$Z48*CHIFFRAGE_TC!L63 -> 35986.54597 | P63: ='PRECIOS UNITARIOS'!$AA48*CHIFFRAGE_TC!L63 -> 322956.1818 | Q63: ='PRECIOS UNITARIOS'!$Z48*CHIFFRAGE_TC!M63 -> 71973.09193 | R63: ='PRECIOS UNITARIOS'!$AA48*CHIFFRAGE_TC!M63 -> 645912.3635 | U63: 0.5 | V63: 0.5 | W63: 0
B64: ='PRECIOS UNITARIOS'!B49 -> Cuarto de manejo del traslado y zona de mantenimiento | C64: ='PRECIOS UNITARIOS'!C49 -> EQUIP | D64: 15 | E64: ='PRECIOS UNITARIOS'!D49 -> U | F64: ='PRECIOS UNITARIOS'!L49 -> 72776.04618 | G64: =1 -> 1 | H64: =1*2 -> 2 | J64: =HLOOKUP($C64,PARAMETROS!$C$36:$F$38,3)*L64 -> 18194.01154 | K64: =HLOOKUP($C64,PARAMETROS!$C$36:$F$38,3)*M64 -> 36388.02309 | L64: 72776.04618 | M64: 145552.0924 | O64: ='PRECIOS UNITARIOS'!$Z49*CHIFFRAGE_TC!L64 -> 5789.255731 | P64: ='PRECIOS UNITARIOS'!$AA49*CHIFFRAGE_TC!L64 -> 66986.79045 | Q64: ='PRECIOS UNITARIOS'!$Z49*CHIFFRAGE_TC!M64 -> 11578.51146 | R64: ='PRECIOS UNITARIOS'!$AA49*CHIFFRAGE_TC!M64 -> 133973.5809 | U64: 0 | V64: 0 | W64: 1
B65: ='PRECIOS UNITARIOS'!B50 -> Alimentacion de auxilio de emergencia de la estacion motrice y del centro de mando | C65: ='PRECIOS UNITARIOS'!C50 -> EQUIP | D65: 15 | E65: ='PRECIOS UNITARIOS'!D50 -> U | F65: ='PRECIOS UNITARIOS'!L50 -> 69027.44764 | G65: =1 -> 1 | H65: =1*2 -> 2 | J65: =HLOOKUP($C65,PARAMETROS!$C$36:$F$38,3)*L65 -> 17256.86191 | K65: =HLOOKUP($C65,PARAMETROS!$C$36:$F$38,3)*M65 -> 34513.72382 | L65: 69027.44764 | M65: 138054.8953 | O65: ='PRECIOS UNITARIOS'!$Z50*CHIFFRAGE_TC!L65 -> 6920.489609 | P65: ='PRECIOS UNITARIOS'!$AA50*CHIFFRAGE_TC!L65 -> 62106.95803 | Q65: ='PRECIOS UNITARIOS'!$Z50*CHIFFRAGE_TC!M65 -> 13840.97922 | R65: ='PRECIOS UNITARIOS'!$AA50*CHIFFRAGE_TC!M65 -> 124213.9161 | U65: 0 | V65: 0 | W65: 1
B66: ='PRECIOS UNITARIOS'!B51 -> Alimentaciones auxiliarias y equipamientos electricos en las estaciones y en el taller (aire acondicionado, alumbrado, mando de las puertas de anden, etc.) | C66: ='PRECIOS UNITARIOS'!C51 -> EQUIP | D66: 15 | E66: ='PRECIOS UNITARIOS'!D51 -> Superficies cerradas (m²) | F66: ='PRECIOS UNITARIOS'!L51 -> 109.1640693 | G66: =ROUNDUP(SUM(G89:G93,G100:G104,G111:G115,G122:G126,G133:G137,G144:G148,G155:G159,G166:G170,G176:G178),-2) -> 8700 | H66: =ROUNDUP(SUM(H89:H93,H100:H104,H111:H115,H122:H126,H133:H137,H144:H148,H155:H159,H166:H170,H176:H178),-2) -> 12300 | J66: =HLOOKUP($C66,PARAMETROS!$C$36:$F$38,3)*L66 -> 237431.8507 | K66: =HLOOKUP($C66,PARAMETROS!$C$36:$F$38,3)*M66 -> 335679.513 | L66: 949727.4026 | M66: 1342718.052 | O66: ='PRECIOS UNITARIOS'!$Z51*CHIFFRAGE_TC!L66 -> 75549.78729 | P66: ='PRECIOS UNITARIOS'!$AA51*CHIFFRAGE_TC!L66 -> 874177.6153 | Q66: ='PRECIOS UNITARIOS'!$Z51*CHIFFRAGE_TC!M66 -> 106811.7682 | R66: ='PRECIOS UNITARIOS'!$AA51*CHIFFRAGE_TC!M66 -> 1235906.284 | U66: 0.25 | V66: 0.25 | W66: 0.5
B67: ='PRECIOS UNITARIOS'!B52 -> Doble motorizacion, reductores y traccion del cable | C67: ='PRECIOS UNITARIOS'!C52 -> EQUIP | D67: 40 | E67: ='PRECIOS UNITARIOS'!D52 -> U | F67: ='PRECIOS UNITARIOS'!L52 -> 909700.5772 | G67: =2 -> 2 | H67: =2*2 -> 4 | J67: =HLOOKUP($C67,PARAMETROS!$C$36:$F$38,3)*L67 -> 454850.2886 | K67: =HLOOKUP($C67,PARAMETROS!$C$36:$F$38,3)*M67 -> 909700.5772 | L67: 1819401.154 | M67: 3638802.309 | O67: ='PRECIOS UNITARIOS'!$Z52*CHIFFRAGE_TC!L67 -> 144731.3933 | P67: ='PRECIOS UNITARIOS'!$AA52*CHIFFRAGE_TC!L67 -> 1674669.761 | Q67: ='PRECIOS UNITARIOS'!$Z52*CHIFFRAGE_TC!M67 -> 289462.7865 | R67: ='PRECIOS UNITARIOS'!$AA52*CHIFFRAGE_TC!M67 -> 3349339.522 | U67: 0 | V67: 1 | W67: 0
B68: ='PRECIOS UNITARIOS'!B53 -> Constitucion de una linea de reserva para la estacion motrice | C68: ='PRECIOS UNITARIOS'!C53 -> EQUIP | D68: 15 | E68: ='PRECIOS UNITARIOS'!D53 -> U | F68: ='PRECIOS UNITARIOS'!L53 -> 173344.9561 | G68: =1 -> 1 | H68: =1*2 -> 2 | J68: =HLOOKUP($C68,PARAMETROS!$C$36:$F$38,3)*L68 -> 43336.23902 | K68: =HLOOKUP($C68,PARAMETROS!$C$36:$F$38,3)*M68 -> 86672.47804 | L68: 173344.9561 | M68: 346689.9121 | O68: ='PRECIOS UNITARIOS'!$Z53*CHIFFRAGE_TC!L68 -> 30942.57373 | P68: ='PRECIOS UNITARIOS'!$AA53*CHIFFRAGE_TC!L68 -> 142402.3823 | Q68: ='PRECIOS UNITARIOS'!$Z53*CHIFFRAGE_TC!M68 -> 61885.14747 | R68: ='PRECIOS UNITARIOS'!$AA53*CHIFFRAGE_TC!M68 -> 284804.7647 | U68: 1 | V68: 0 | W68: 0
B70: Telecomunicaciones y boleteria | J70: =SUM(J71:J83)/L70 -> 0.25 | K70: =SUM(K71:K83)/M70 -> 0.25 | L70: =SUM(L71:L83) -> 4273879.306 | M70: 6916668.368 | O70: =SUM(O71:O83)/L70 -> 0.6106627553 | P70: =SUM(P71:P83)/L70 -> 0.3893372447 | Q70: =SUM(Q71:Q83)/M70 -> 0.6402150762 | R70: =SUM(R71:R83)/M70 -> 0.3597849238 | T70: =T$11 -> 2015 | U70: =U$11 -> 2016 | V70: =V$11 -> 2017 | W70: =W$11 -> 2018
B71: ='PRECIOS UNITARIOS'!B56 -> Consola de mandos y Tablero de control optico | C71: ='PRECIOS UNITARIOS'!C56 -> EQUIP | D71: 15 | E71: ='PRECIOS UNITARIOS'!D56 -> Forfait | F71: ='PRECIOS UNITARIOS'!L56 -> 82832.93717 | G71: 1 | H71: 1 | J71: =HLOOKUP($C71,PARAMETROS!$C$36:$F$38,3)*L71 -> 20708.23429 | K71: =HLOOKUP($C71,PARAMETROS!$C$36:$F$38,3)*M71 -> 20708.23429 | L71: =$F71*G71 -> 82832.93717 | M71: =$F71*H71 -> 82832.93717 | O71: ='PRECIOS UNITARIOS'!$Z56*CHIFFRAGE_TC!L71 -> 8304.587531 | P71: ='PRECIOS UNITARIOS'!$AA56*CHIFFRAGE_TC!L71 -> 74528.34964 | Q71: ='PRECIOS UNITARIOS'!$Z56*CHIFFRAGE_TC!M71 -> 8304.587531 | R71: ='PRECIOS UNITARIOS'!$AA56*CHIFFRAGE_TC!M71 -> 74528.34964 | U71: 0 | V71: 0.2307692308 | W71: 0.7692307692
B72: ='PRECIOS UNITARIOS'!B57 -> Red de telefonia entre estaciones | C72: ='PRECIOS UNITARIOS'!C57 -> EQUIP | D72: 15 | E72: ='PRECIOS UNITARIOS'!D57 -> N° de estaciones + 1 | F72: ='PRECIOS UNITARIOS'!L57 -> 55745.11417 | G72: =CANTIDADES!B30+CANTIDADES!B31+1 -> 5 | H72: =CANTIDADES!C30+CANTIDADES!C31+1 -> 7 | J72: =HLOOKUP($C72,PARAMETROS!$C$36:$F$38,3)*L72 -> 69681.39271 | K72: =HLOOKUP($C72,PARAMETROS!$C$36:$F$38,3)*M72 -> 97553.9498 | L72: 278725.5709 | M72: 390215.7992 | O72: ='PRECIOS UNITARIOS'!$Z57*CHIFFRAGE_TC!L72 -> 24625.72573 | P72: ='PRECIOS UNITARIOS'!$AA57*CHIFFRAGE_TC!L72 -> 254099.8451 | Q72: ='PRECIOS UNITARIOS'!$Z57*CHIFFRAGE_TC!M72 -> 34476.01602 | R72: ='PRECIOS UNITARIOS'!$AA57*CHIFFRAGE_TC!M72 -> 355739.7832 | U72: 0 | V72: 0.75 | W72: 0.25
B73: ='PRECIOS UNITARIOS'!B58 -> Sonorizacion de anuncios publicos en estaciones | C73: ='PRECIOS UNITARIOS'!C58 -> EQUIP | D73: 15 | E73: ='PRECIOS UNITARIOS'!D58 -> N° de estaciones + 1 | F73: ='PRECIOS UNITARIOS'!L58 -> 44245.26624 | G73: =G72 -> 5 | H73: =H72 -> 7 | J73: =HLOOKUP($C73,PARAMETROS!$C$36:$F$38,3)*L73 -> 55306.5828 | K73: =HLOOKUP($C73,PARAMETROS!$C$36:$F$38,3)*M73 -> 77429.21592 | L73: 221226.3312 | M73: 309716.8637 | O73: ='PRECIOS UNITARIOS'!$Z58*CHIFFRAGE_TC!L73 -> 23854.53793 | P73: ='PRECIOS UNITARIOS'!$AA58*CHIFFRAGE_TC!L73 -> 197371.7933 | Q73: ='PRECIOS UNITARIOS'!$Z58*CHIFFRAGE_TC!M73 -> 33396.3531 | R73: ='PRECIOS UNITARIOS'!$AA58*CHIFFRAGE_TC!M73 -> 276320.5106 | U73: 0 | V73: 0.6 | W73: 0.4
B74: ='PRECIOS UNITARIOS'!B59 -> Sistema de informacion a los pasajeros en las estaciones | C74: ='PRECIOS UNITARIOS'!C59 -> EQUIP | D74: 15 | E74: ='PRECIOS UNITARIOS'!D59 -> N° de estaciones + 1 | F74: ='PRECIOS UNITARIOS'!L59 -> 34513.72382 | G74: =G72 -> 5 | H74: =H72 -> 7 | J74: =HLOOKUP($C74,PARAMETROS!$C$36:$F$38,3)*L74 -> 43142.15477 | K74: =HLOOKUP($C74,PARAMETROS!$C$36:$F$38,3)*M74 -> 60399.01668 | L74: 172568.6191 | M74: 241596.0667 | O74: ='PRECIOS UNITARIOS'!$Z59*CHIFFRAGE_TC!L74 -> 17301.22402 | P74: ='PRECIOS UNITARIOS'!$AA59*CHIFFRAGE_TC!L74 -> 155267.3951 | Q74: ='PRECIOS UNITARIOS'!$Z59*CHIFFRAGE_TC!M74 -> 24221.71363 | R74: ='PRECIOS UNITARIOS'!$AA59*CHIFFRAGE_TC!M74 -> 217374.3531 | U74: 0 | V74: 0.5 | W74: 0.5
B75: ='PRECIOS UNITARIOS'!B60 -> Sistema de supervision SCADA del centro de mando | C75: ='PRECIOS UNITARIOS'!C60 -> EQUIP | D75: 15 | E75: ='PRECIOS UNITARIOS'!D60 -> U | F75: ='PRECIOS UNITARIOS'!L60 -> 52223.07928 | G75: 2 | H75: 2 | J75: =HLOOKUP($C75,PARAMETROS!$C$36:$F$38,3)*L75 -> 26111.53964 | K75: =HLOOKUP($C75,PARAMETROS!$C$36:$F$38,3)*M75 -> 26111.53964 | L75: 104446.1586 | M75: 104446.1586 | O75: ='PRECIOS UNITARIOS'!$Z60*CHIFFRAGE_TC!L75 -> 12882.75758 | P75: ='PRECIOS UNITARIOS'!$AA60*CHIFFRAGE_TC!L75 -> 91563.40098 | Q75: ='PRECIOS UNITARIOS'!$Z60*CHIFFRAGE_TC!M75 -> 12882.75758 | R75: ='PRECIOS UNITARIOS'!$AA60*CHIFFRAGE_TC!M75 -> 91563.40098 | U75: 0 | V75: 0.625 | W75: 0.375
B76: ='PRECIOS UNITARIOS'!B61 -> Cronometria, relojes marcadores | C76: ='PRECIOS UNITARIOS'!C61 -> EQUIP | D76: 15 | E76: ='PRECIOS UNITARIOS'!D61 -> N° de estaciones + 1 | F76: ='PRECIOS UNITARIOS'!L61 -> 22272.94939 | G76: =G72 -> 5 | H76: =H72 -> 7 | J76: =HLOOKUP($C76,PARAMETROS!$C$36:$F$38,3)*L76 -> 27841.18673 | K76: =HLOOKUP($C76,PARAMETROS!$C$36:$F$38,3)*M76 -> 38977.66143 | L76: 111364.7469 | M76: 155910.6457 | O76: ='PRECIOS UNITARIOS'!$Z61*CHIFFRAGE_TC!L76 -> 86529.88553 | P76: ='PRECIOS UNITARIOS'!$AA61*CHIFFRAGE_TC!L76 -> 24834.86141 | Q76: ='PRECIOS UNITARIOS'!$Z61*CHIFFRAGE_TC!M76 -> 121141.8397 | R76: ='PRECIOS UNITARIOS'!$AA61*CHIFFRAGE_TC!M76 -> 34768.80597 | U76: 0 | V76: 0 | W76: 1
B77: ='PRECIOS UNITARIOS'!B62 -> Equipamiento embarcado en la cabinas (videocamara/interponia/DI/LCD/WIFI) | C77: ='PRECIOS UNITARIOS'!C62 -> EQUIP | D77: 15 | E77: ='PRECIOS UNITARIOS'!D62 -> N° de cabinas + reserva | F77: ='PRECIOS UNITARIOS'!L62 -> 4454.589877 | G77: =CANTIDADES!B69 -> 134 | H77: =CANTIDADES!C69 -> 193 | J77: =HLOOKUP($C77,PARAMETROS!$C$36:$F$38,3)*L77 -> 149228.7609 | K77: =HLOOKUP($C77,PARAMETROS!$C$36:$F$38,3)*M77 -> 214933.9616 | L77: 596915.0436 | M77: 859735.8464 | O77: ='PRECIOS UNITARIOS'!$Z62*CHIFFRAGE_TC!L77 -> 463800.1864 | P77: ='PRECIOS UNITARIOS'!$AA62*CHIFFRAGE_TC!L77 -> 133114.8571 | Q77: ='PRECIOS UNITARIOS'!$Z62*CHIFFRAGE_TC!M77 -> 668010.7163 | R77: ='PRECIOS UNITARIOS'!$AA62*CHIFFRAGE_TC!M77 -> 191725.1301 | U77: 0 | V77: 0.6 | W77: 0.4
B78: ='PRECIOS UNITARIOS'!B63 -> Sistema de antenas y de mando securizado WIFI | C78: ='PRECIOS UNITARIOS'!C63 -> EQUIP | D78: 15 | E78: ='PRECIOS UNITARIOS'!D63 -> ml | F78: ='PRECIOS UNITARIOS'!L63 -> 204.5346901 | G78: =CANTIDADES!B22 -> 4100 | H78: =CANTIDADES!C22 -> 8150 | J78: =HLOOKUP($C78,PARAMETROS!$C$36:$F$38,3)*L78 -> 209648.0574 | K78: =HLOOKUP($C78,PARAMETROS!$C$36:$F$38,3)*M78 -> 416739.4312 | L78: 838592.2296 | M78: 1666957.725 | O78: ='PRECIOS UNITARIOS'!$Z63*CHIFFRAGE_TC!L78 -> 653381.6758 | P78: ='PRECIOS UNITARIOS'!$AA63*CHIFFRAGE_TC!L78 -> 185210.5538 | Q78: ='PRECIOS UNITARIOS'!$Z63*CHIFFRAGE_TC!M78 -> 1298795.282 | R78: ='PRECIOS UNITARIOS'!$AA63*CHIFFRAGE_TC!M78 -> 368162.4423 | U78: 0 | V78: 0.7692307692 | W78: 0.2307692308
B79: ='PRECIOS UNITARIOS'!B64 -> Sistema de vigilancia visio + termica por postes | C79: ='PRECIOS UNITARIOS'!C64 -> EQUIP | D79: 15 | E79: ='PRECIOS UNITARIOS'!D64 -> N° de postes + estaciones | F79: ='PRECIOS UNITARIOS'!L64 -> 33890.43613 | G79: 26 | H79: 49 | J79: =HLOOKUP($C79,PARAMETROS!$C$36:$F$38,3)*L79 -> 220287.8349 | K79: =HLOOKUP($C79,PARAMETROS!$C$36:$F$38,3)*M79 -> 415157.8426 | L79: 881151.3395 | M79: 1660631.371 | O79: ='PRECIOS UNITARIOS'!$Z64*CHIFFRAGE_TC!L79 -> 681322.202 | P79: ='PRECIOS UNITARIOS'!$AA64*CHIFFRAGE_TC!L79 -> 199829.1375 | Q79: ='PRECIOS UNITARIOS'!$Z64*CHIFFRAGE_TC!M79 -> 1284030.304 | R79: ='PRECIOS UNITARIOS'!$AA64*CHIFFRAGE_TC!M79 -> 376601.0668 | U79: 0 | V79: 0.6666666667 | W79: 0.3333333333
B80: ='PRECIOS UNITARIOS'!B65 -> Sistema de vigilancia con video en estaciones | C80: ='PRECIOS UNITARIOS'!C65 -> EQUIP | D80: 15 | E80: ='PRECIOS UNITARIOS'!D65 -> N° de estaciones + 1 | F80: ='PRECIOS UNITARIOS'!L65 -> 46480.40377 | G80: =G72 -> 5 | H80: =H72 -> 7 | J80: =HLOOKUP($C80,PARAMETROS!$C$36:$F$38,3)*L80 -> 58100.50471 | K80: =HLOOKUP($C80,PARAMETROS!$C$36:$F$38,3)*M80 -> 81340.7066 | L80: 232402.0188 | M80: 325362.8264 | O80: ='PRECIOS UNITARIOS'!$Z65*CHIFFRAGE_TC!L80 -> 180118.1001 | P80: ='PRECIOS UNITARIOS'!$AA65*CHIFFRAGE_TC!L80 -> 52283.91875 | Q80: ='PRECIOS UNITARIOS'!$Z65*CHIFFRAGE_TC!M80 -> 252165.3401 | R80: ='PRECIOS UNITARIOS'!$AA65*CHIFFRAGE_TC!M80 -> 73197.48625 | U80: 0 | V80: 0.6 | W80: 0.4
B81: ='PRECIOS UNITARIOS'!B66 -> Sistema de deteccion incendio y de control de acceso | C81: ='PRECIOS UNITARIOS'!C66 -> EQUIP | D81: 15 | E81: ='PRECIOS UNITARIOS'!D66 -> Forfait | F81: ='PRECIOS UNITARIOS'!L66 -> 106910.1571 | G81: 1 | H81: 2 | J81: =HLOOKUP($C81,PARAMETROS!$C$36:$F$38,3)*L81 -> 26727.53926 | K81: =HLOOKUP($C81,PARAMETROS!$C$36:$F$38,3)*M81 -> 53455.07853 | L81: 106910.1571 | M81: 213820.3141 | O81: ='PRECIOS UNITARIOS'!$Z66*CHIFFRAGE_TC!L81 -> 83068.69011 | P81: ='PRECIOS UNITARIOS'!$AA66*CHIFFRAGE_TC!L81 -> 23841.46695 | Q81: ='PRECIOS UNITARIOS'!$Z66*CHIFFRAGE_TC!M81 -> 166137.3802 | R81: ='PRECIOS UNITARIOS'!$AA66*CHIFFRAGE_TC!M81 -> 47682.9339 | U81: 0 | V81: 0.6666666667 | W81: 0.3333333333
B82: ='PRECIOS UNITARIOS'!B67 -> Fibra de seguridad y equipos de transmision Ethernet | C82: ='PRECIOS UNITARIOS'!C67 -> EQUIP | D82: 15 | E82: ='PRECIOS UNITARIOS'!D67 -> N° de estaciones + 1 | F82: ='PRECIOS UNITARIOS'!L67 -> 92960.80754 | G82: =G72 -> 5 | H82: =H72 -> 7 | J82: =HLOOKUP($C82,PARAMETROS!$C$36:$F$38,3)*L82 -> 116201.0094 | K82: =HLOOKUP($C82,PARAMETROS!$C$36:$F$38,3)*M82 -> 162681.4132 | L82: 464804.0377 | M82: 650725.6528 | O82: ='PRECIOS UNITARIOS'!$Z67*CHIFFRAGE_TC!L82 -> 360236.2002 | P82: ='PRECIOS UNITARIOS'!$AA67*CHIFFRAGE_TC!L82 -> 104567.8375 | Q82: ='PRECIOS UNITARIOS'!$Z67*CHIFFRAGE_TC!M82 -> 504330.6803 | R82: ='PRECIOS UNITARIOS'!$AA67*CHIFFRAGE_TC!M82 -> 146394.9725 | U82: 0.35 | V82: 0.45 | W82: 0.2
B83: ='PRECIOS UNITARIOS'!B68 -> Sistema de boleteria | C83: ='PRECIOS UNITARIOS'!C68 -> EQUIP | D83: 15 | E83: ='PRECIOS UNITARIOS'!D68 -> N° de estaciones + 1 | F83: ='PRECIOS UNITARIOS'!L68 -> 36388.02309 | G83: =G72 -> 5 | H83: =H72 -> 7 | J83: =HLOOKUP($C83,PARAMETROS!$C$36:$F$38,3)*L83 -> 45485.02886 | K83: =HLOOKUP($C83,PARAMETROS!$C$36:$F$38,3)*M83 -> 63679.04041 | L83: 181940.1154 | M83: 254716.1616 | O83: ='PRECIOS UNITARIOS'!$Z68*CHIFFRAGE_TC!L83 -> 14473.13933 | P83: ='PRECIOS UNITARIOS'!$AA68*CHIFFRAGE_TC!L83 -> 167466.9761 | Q83: ='PRECIOS UNITARIOS'!$Z68*CHIFFRAGE_TC!M83 -> 20262.39506 | R83: ='PRECIOS UNITARIOS'!$AA68*CHIFFRAGE_TC!M83 -> 234453.7666 | U83: 0 | V83: 0.75 | W83: 0.25
B85: Estaciones | J85: =SUM(J86:J173)/L85 -> 0.25 | K85: =SUM(K86:K173)/M85 -> 0.25 | L85: =L86+L97+L108+L119+L130+L141+L152+L163 -> 22709024.28 | M85: =M86+M97+M108+M119+M130+M141+M152+M163 -> 32127602.67 | O85: =(O86+O97+O108+O119+O130+O141+O152+O163)/L85 -> 0.7984962304 | P85: =(P86+P97+P108+P119+P130+P141+P152+P163)/L85 -> 0.2015037696 | Q85: =(Q86+Q97+Q108+Q119+Q130+Q141+Q152+Q163)/M85 -> 0.7984126151 | R85: =(R86+R97+R108+R119+R130+R141+R152+R163)/M85 -> 0.2015873849 | T85: =T$11 -> 2015 | U85: =U$11 -> 2016 | V85: =V$11 -> 2017 | W85: =W$11 -> 2018
B86: Edificio - Estacion Duran (Terminal) | L86: =SUM(L87:L96) -> 5112952.004 | M86: =SUM(M87:M96) -> 5112952.004 | O86: =SUM(O87:O96) -> 4084892.264 | P86: =SUM(P87:P96) -> 1028059.74 | Q86: =SUM(Q87:Q96) -> 4084892.264 | R86: =SUM(R87:R96) -> 1028059.74 | T86: =T85 -> 2015 | U86: =U85 -> 2016 | V86: 2017 | W86: 2018
B87: ='PRECIOS UNITARIOS'!B72 -> Fundaciones tipicas (edificio con piso tierra y primer piso) | C87: ='PRECIOS UNITARIOS'!C72 -> INFRA | D87: 50 | E87: ='PRECIOS UNITARIOS'!D72 -> U | F87: ='PRECIOS UNITARIOS'!L72 -> 161184.0018 | G87: 0 | H87: 0 | J87: =HLOOKUP($C87,PARAMETROS!$C$36:$F$38,3)*L87 -> 0 | K87: =HLOOKUP($C87,PARAMETROS!$C$36:$F$38,3)*M87 -> 0 | L87: =$F87*G87 -> 0 | M87: =$F87*H87 -> 0 | O87: ='PRECIOS UNITARIOS'!$Z72*CHIFFRAGE_TC!L87 -> 0 | P87: ='PRECIOS UNITARIOS'!$AA72*CHIFFRAGE_TC!L87 -> 0 | Q87: ='PRECIOS UNITARIOS'!$Z72*CHIFFRAGE_TC!M87 -> 0 | R87: ='PRECIOS UNITARIOS'!$AA72*CHIFFRAGE_TC!M87 -> 0 | U87: 0.75 | V87: 0.25
B88: ='PRECIOS UNITARIOS'!B73 -> Piso tierra sobrelevado y fundaciones | C88: ='PRECIOS UNITARIOS'!C73 -> INFRA | D88: 50 | E88: ='PRECIOS UNITARIOS'!D73 -> m2 | F88: ='PRECIOS UNITARIOS'!L73 -> 2170.828306 | G88: =(G89+G90+G92+G93+G94)/2 -> 715 | H88: =(H89+H90+H92+H93+H94)/2 -> 715 | J88: =HLOOKUP($C88,PARAMETROS!$C$36:$F$38,3)*L88 -> 388035.5598 | K88: =HLOOKUP($C88,PARAMETROS!$C$36:$F$38,3)*M88 -> 388035.5598 | L88: 1552142.239 | M88: 1552142.239 | O88: ='PRECIOS UNITARIOS'!$Z73*CHIFFRAGE_TC!L88 -> 1253078.224 | P88: ='PRECIOS UNITARIOS'!$AA73*CHIFFRAGE_TC!L88 -> 299064.0153 | Q88: ='PRECIOS UNITARIOS'!$Z73*CHIFFRAGE_TC!M88 -> 1253078.224 | R88: ='PRECIOS UNITARIOS'!$AA73*CHIFFRAGE_TC!M88 -> 299064.0153 | U88: 0.5 | V88: 0.5
B89: ='PRECIOS UNITARIOS'!B74 -> Superficies comerciales | C89: ='PRECIOS UNITARIOS'!C74 -> INFRA | D89: 50 | E89: ='PRECIOS UNITARIOS'!D74 -> m2 | F89: ='PRECIOS UNITARIOS'!L74 -> 700.6348359 | G89: 250 | H89: 250 | J89: =HLOOKUP($C89,PARAMETROS!$C$36:$F$38,3)*L89 -> 43789.67725 | K89: =HLOOKUP($C89,PARAMETROS!$C$36:$F$38,3)*M89 -> 43789.67725 | L89: 175158.709 | M89: 175158.709 | O89: ='PRECIOS UNITARIOS'!$Z74*CHIFFRAGE_TC!L89 -> 141409.4394 | P89: ='PRECIOS UNITARIOS'!$AA74*CHIFFRAGE_TC!L89 -> 33749.26955 | Q89: ='PRECIOS UNITARIOS'!$Z74*CHIFFRAGE_TC!M89 -> 141409.4394 | R89: ='PRECIOS UNITARIOS'!$AA74*CHIFFRAGE_TC!M89 -> 33749.26955 | U89: 0.25 | V89: 0.75
B90: ='PRECIOS UNITARIOS'!B75 -> Ingreso y circulaciones al piso tierra (y/c servicios, escaleras mecanicas, escaleras y ascencores) | C90: ='PRECIOS UNITARIOS'!C75 -> INFRA | D90: 40 | E90: ='PRECIOS UNITARIOS'!D75 -> m2 | F90: ='PRECIOS UNITARIOS'!L75 -> 1838.595373 | G90: 600 | H90: 600 | J90: =HLOOKUP($C90,PARAMETROS!$C$36:$F$38,3)*L90 -> 275789.306 | K90: =HLOOKUP($C90,PARAMETROS!$C$36:$F$38,3)*M90 -> 275789.306 | L90: 1103157.224 | M90: 1103157.224 | O90: ='PRECIOS UNITARIOS'!$Z75*CHIFFRAGE_TC!L90 -> 862107.4449 | P90: ='PRECIOS UNITARIOS'!$AA75*CHIFFRAGE_TC!L90 -> 241049.779 | Q90: ='PRECIOS UNITARIOS'!$Z75*CHIFFRAGE_TC!M90 -> 862107.4449 | R90: ='PRECIOS UNITARIOS'!$AA75*CHIFFRAGE_TC!M90 -> 241049.779 | U90: 0.25 | V90: 0.75
B91: ='PRECIOS UNITARIOS'!B76 -> Escaleras mecanicas, escaleras y ascencores adicionales (piso tierra sobrelevado) | C91: ='PRECIOS UNITARIOS'!C76 -> EQUIP | D91: 15 | E91: ='PRECIOS UNITARIOS'!D76 -> U | F91: ='PRECIOS UNITARIOS'!L76 -> 373031.25 | G91: 0 | H91: 0 | J91: =HLOOKUP($C91,PARAMETROS!$C$36:$F$38,3)*L91 -> 0 | K91: =HLOOKUP($C91,PARAMETROS!$C$36:$F$38,3)*M91 -> 0 | L91: 0 | M91: 0 | O91: ='PRECIOS UNITARIOS'!$Z76*CHIFFRAGE_TC!L91 -> 0 | P91: ='PRECIOS UNITARIOS'!$AA76*CHIFFRAGE_TC!L91 -> 0 | Q91: ='PRECIOS UNITARIOS'!$Z76*CHIFFRAGE_TC!M91 -> 0 | R91: ='PRECIOS UNITARIOS'!$AA76*CHIFFRAGE_TC!M91 -> 0 | U91: 0.25 | V91: 0.75
B92: ='PRECIOS UNITARIOS'!B77 -> Anden al primer piso | C92: ='PRECIOS UNITARIOS'!C77 -> INFRA | D92: 50 | E92: ='PRECIOS UNITARIOS'!D77 -> m2 | F92: ='PRECIOS UNITARIOS'!L77 -> 1051.223607 | G92: 250 | H92: 250 | J92: =HLOOKUP($C92,PARAMETROS!$C$36:$F$38,3)*L92 -> 65701.47546 | K92: =HLOOKUP($C92,PARAMETROS!$C$36:$F$38,3)*M92 -> 65701.47546 | L92: 262805.9019 | M92: 262805.9019 | O92: ='PRECIOS UNITARIOS'!$Z77*CHIFFRAGE_TC!L92 -> 212168.9265 | P92: ='PRECIOS UNITARIOS'!$AA77*CHIFFRAGE_TC!L92 -> 50636.97531 | Q92: ='PRECIOS UNITARIOS'!$Z77*CHIFFRAGE_TC!M92 -> 212168.9265 | R92: ='PRECIOS UNITARIOS'!$AA77*CHIFFRAGE_TC!M92 -> 50636.97531 | U92: 0.25 | V92: 0.75
B93: ='PRECIOS UNITARIOS'!B78 -> Centro de mando + Locales tecnicos cubiertos | C93: ='PRECIOS UNITARIOS'!C78 -> INFRA | D93: 50 | E93: ='PRECIOS UNITARIOS'!D78 -> m2 | F93: ='PRECIOS UNITARIOS'!L78 -> 1401.269672 | G93: 80 | H93: 80 | J93: =HLOOKUP($C93,PARAMETROS!$C$36:$F$38,3)*L93 -> 28025.39344 | K93: =HLOOKUP($C93,PARAMETROS!$C$36:$F$38,3)*M93 -> 28025.39344 | L93: 112101.5737 | M93: 112101.5737 | O93: ='PRECIOS UNITARIOS'!$Z78*CHIFFRAGE_TC!L93 -> 90502.04123 | P93: ='PRECIOS UNITARIOS'!$AA78*CHIFFRAGE_TC!L93 -> 21599.53251 | Q93: ='PRECIOS UNITARIOS'!$Z78*CHIFFRAGE_TC!M93 -> 90502.04123 | R93: ='PRECIOS UNITARIOS'!$AA78*CHIFFRAGE_TC!M93 -> 21599.53251 | U93: 0.25 | V93: 0.75
B94: ='PRECIOS UNITARIOS'!B79 -> Locales tecnicos non cerrados | C94: ='PRECIOS UNITARIOS'!C79 -> INFRA | D94: 50 | E94: ='PRECIOS UNITARIOS'!D79 -> m2 | F94: ='PRECIOS UNITARIOS'!L79 -> 700.6348359 | G94: 250 | H94: 250 | J94: =HLOOKUP($C94,PARAMETROS!$C$36:$F$38,3)*L94 -> 43789.67725 | K94: =HLOOKUP($C94,PARAMETROS!$C$36:$F$38,3)*M94 -> 43789.67725 | L94: 175158.709 | M94: 175158.709 | O94: ='PRECIOS UNITARIOS'!$Z79*CHIFFRAGE_TC!L94 -> 141409.4394 | P94: ='PRECIOS UNITARIOS'!$AA79*CHIFFRAGE_TC!L94 -> 33749.26955 | Q94: ='PRECIOS UNITARIOS'!$Z79*CHIFFRAGE_TC!M94 -> 141409.4394 | R94: ='PRECIOS UNITARIOS'!$AA79*CHIFFRAGE_TC!M94 -> 33749.26955 | U94: 0.25 | V94: 0.75
B95: ='PRECIOS UNITARIOS'!B80 -> Adecuacion urbana (demolicion, reconstruccion, mobiliario urbano, paisaje) | C95: ='PRECIOS UNITARIOS'!C80 -> INFRA | D95: 50 | E95: ='PRECIOS UNITARIOS'!D80 -> m2 | F95: ='PRECIOS UNITARIOS'!L80 -> 527.021901 | G95: 2000 | H95: 2000 | J95: =HLOOKUP($C95,PARAMETROS!$C$36:$F$38,3)*L95 -> 263510.9505 | K95: =HLOOKUP($C95,PARAMETROS!$C$36:$F$38,3)*M95 -> 263510.9505 | L95: 1054043.802 | M95: 1054043.802 | O95: ='PRECIOS UNITARIOS'!$Z80*CHIFFRAGE_TC!L95 -> 836542.7 | P95: ='PRECIOS UNITARIOS'!$AA80*CHIFFRAGE_TC!L95 -> 217501.102 | Q95: ='PRECIOS UNITARIOS'!$Z80*CHIFFRAGE_TC!M95 -> 836542.7 | R95: ='PRECIOS UNITARIOS'!$AA80*CHIFFRAGE_TC!M95 -> 217501.102 | U95: 0.25 | V95: 0.25 | W95: 0.5
B96: ='PRECIOS UNITARIOS'!B81 -> Pasarela | C96: ='PRECIOS UNITARIOS'!C81 -> INFRA | D96: 50 | E96: ='PRECIOS UNITARIOS'!D81 -> m2 | F96: ='PRECIOS UNITARIOS'!L81 -> 1356.767692 | G96: =200*2.5 -> 500 | H96: =200*2.5 -> 500 | J96: =HLOOKUP($C96,PARAMETROS!$C$36:$F$38,3)*L96 -> 169595.9614 | K96: =HLOOKUP($C96,PARAMETROS!$C$36:$F$38,3)*M96 -> 169595.9614 | L96: 678383.8458 | M96: 678383.8458 | O96: ='PRECIOS UNITARIOS'!$Z81*CHIFFRAGE_TC!L96 -> 547674.0489 | P96: ='PRECIOS UNITARIOS'!$AA81*CHIFFRAGE_TC!L96 -> 130709.7969 | Q96: ='PRECIOS UNITARIOS'!$Z81*CHIFFRAGE_TC!M96 -> 547674.0489 | R96: ='PRECIOS UNITARIOS'!$AA81*CHIFFRAGE_TC!M96 -> 130709.7969 | W96: 1
B97: Edificio - Estacion Samborondon (Terminal) | L97: =SUM(L98:L107) -> 0 | M97: =SUM(M98:M107) -> 3754556.192 | O97: =SUM(O98:O107) -> 0 | P97: =SUM(P98:P107) -> 0 | Q97: =SUM(Q98:Q107) -> 2988229.749 | R97: =SUM(R98:R107) -> 766326.4428 | T97: =T86 -> 2015 | U97: =U86 -> 2016 | V97: =V86 -> 2017 | W97: =W86 -> 2018
B98: ='PRECIOS UNITARIOS'!B83 -> Fundaciones tipicas (edificio con piso tierra y primer piso) | C98: ='PRECIOS UNITARIOS'!C83 -> INFRA | D98: 50 | E98: ='PRECIOS UNITARIOS'!D83 -> U | F98: ='PRECIOS UNITARIOS'!L83 -> 193746.4264 | G98: 0 | H98: 1 | J98: =HLOOKUP($C98,PARAMETROS!$C$36:$F$38,3)*L98 -> 0 | K98: =HLOOKUP($C98,PARAMETROS!$C$36:$F$38,3)*M98 -> 48436.60659 | L98: =$F98*G98 -> 0 | M98: =$F98*H98 -> 193746.4264 | O98: ='PRECIOS UNITARIOS'!$Z83*CHIFFRAGE_TC!L98 -> 0 | P98: ='PRECIOS UNITARIOS'!$AA83*CHIFFRAGE_TC!L98 -> 0 | Q98: ='PRECIOS UNITARIOS'!$Z83*CHIFFRAGE_TC!M98 -> 156415.7084 | R98: ='PRECIOS UNITARIOS'!$AA83*CHIFFRAGE_TC!M98 -> 37330.71799 | U98: 0.75 | V98: 0.25
B99: ='PRECIOS UNITARIOS'!B84 -> Piso tierra sobrelevado y fundaciones | C99: ='PRECIOS UNITARIOS'!C84 -> INFRA | D99: 50 | E99: ='PRECIOS UNITARIOS'!D84 -> m2 | F99: ='PRECIOS UNITARIOS'!L84 -> 2170.828306 | G99: 0 | H99: 0 | J99: =HLOOKUP($C99,PARAMETROS!$C$36:$F$38,3)*L99 -> 0 | K99: =HLOOKUP($C99,PARAMETROS!$C$36:$F$38,3)*M99 -> 0 | L99: 0 | M99: 0 | O99: ='PRECIOS UNITARIOS'!$Z84*CHIFFRAGE_TC!L99 -> 0 | P99: ='PRECIOS UNITARIOS'!$AA84*CHIFFRAGE_TC!L99 -> 0 | Q99: ='PRECIOS UNITARIOS'!$Z84*CHIFFRAGE_TC!M99 -> 0 | R99: ='PRECIOS UNITARIOS'!$AA84*CHIFFRAGE_TC!M99 -> 0 | U99: 0.5 | V99: 0.5
B100: ='PRECIOS UNITARIOS'!B85 -> Superficies comerciales | C100: ='PRECIOS UNITARIOS'!C85 -> INFRA | D100: 50 | E100: ='PRECIOS UNITARIOS'!D85 -> m2 | F100: ='PRECIOS UNITARIOS'!L85 -> 700.6348359 | G100: 0 | H100: 250 | J100: =HLOOKUP($C100,PARAMETROS!$C$36:$F$38,3)*L100 -> 0 | K100: =HLOOKUP($C100,PARAMETROS!$C$36:$F$38,3)*M100 -> 43789.67725 | L100: 0 | M100: 175158.709 | O100: ='PRECIOS UNITARIOS'!$Z85*CHIFFRAGE_TC!L100 -> 0 | P100: ='PRECIOS UNITARIOS'!$AA85*CHIFFRAGE_TC!L100 -> 0 | Q100: ='PRECIOS UNITARIOS'!$Z85*CHIFFRAGE_TC!M100 -> 141409.4394 | R100: ='PRECIOS UNITARIOS'!$AA85*CHIFFRAGE_TC!M100 -> 33749.26955 | U100: 0.25 | V100: 0.75
B101: ='PRECIOS UNITARIOS'!B86 -> Ingreso y circulaciones al piso tierra (y/c servicios, escaleras mecanicas, escaleras y ascencores) | C101: ='PRECIOS UNITARIOS'!C86 -> INFRA | D101: 40 | E101: ='PRECIOS UNITARIOS'!D86 -> m2 | F101: ='PRECIOS UNITARIOS'!L86 -> 1838.595373 | G101: 0 | H101: 600 | J101: =HLOOKUP($C101,PARAMETROS!$C$36:$F$38,3)*L101 -> 0 | K101: =HLOOKUP($C101,PARAMETROS!$C$36:$F$38,3)*M101 -> 275789.306 | L101: 0 | M101: 1103157.224 | O101: ='PRECIOS UNITARIOS'!$Z86*CHIFFRAGE_TC!L101 -> 0 | P101: ='PRECIOS UNITARIOS'!$AA86*CHIFFRAGE_TC!L101 -> 0 | Q101: ='PRECIOS UNITARIOS'!$Z86*CHIFFRAGE_TC!M101 -> 862107.4449 | R101: ='PRECIOS UNITARIOS'!$AA86*CHIFFRAGE_TC!M101 -> 241049.779 | U101: 0.25 | V101: 0.75
B102: ='PRECIOS UNITARIOS'!B87 -> Escaleras mecanicas, escaleras y ascencores adicionales (piso tierra sobrelevado) | C102: ='PRECIOS UNITARIOS'!C87 -> EQUIP | D102: 15 | E102: ='PRECIOS UNITARIOS'!D87 -> U | F102: ='PRECIOS UNITARIOS'!L87 -> 373031.25 | G102: 0 | H102: 0 | J102: =HLOOKUP($C102,PARAMETROS!$C$36:$F$38,3)*L102 -> 0 | K102: =HLOOKUP($C102,PARAMETROS!$C$36:$F$38,3)*M102 -> 0 | L102: 0 | M102: 0 | O102: ='PRECIOS UNITARIOS'!$Z87*CHIFFRAGE_TC!L102 -> 0 | P102: ='PRECIOS UNITARIOS'!$AA87*CHIFFRAGE_TC!L102 -> 0 | Q102: ='PRECIOS UNITARIOS'!$Z87*CHIFFRAGE_TC!M102 -> 0 | R102: ='PRECIOS UNITARIOS'!$AA87*CHIFFRAGE_TC!M102 -> 0 | U102: 0.25 | V102: 0.75
B103: ='PRECIOS UNITARIOS'!B88 -> Anden al primer piso | C103: ='PRECIOS UNITARIOS'!C88 -> INFRA | D103: 50 | E103: ='PRECIOS UNITARIOS'!D88 -> m2 | F103: ='PRECIOS UNITARIOS'!L88 -> 1051.223607 | G103: 0 | H103: 250 | J103: =HLOOKUP($C103,PARAMETROS!$C$36:$F$38,3)*L103 -> 0 | K103: =HLOOKUP($C103,PARAMETROS!$C$36:$F$38,3)*M103 -> 65701.47546 | L103: 0 | M103: 262805.9019 | O103: ='PRECIOS UNITARIOS'!$Z88*CHIFFRAGE_TC!L103 -> 0 | P103: ='PRECIOS UNITARIOS'!$AA88*CHIFFRAGE_TC!L103 -> 0 | Q103: ='PRECIOS UNITARIOS'!$Z88*CHIFFRAGE_TC!M103 -> 212168.9265 | R103: ='PRECIOS UNITARIOS'!$AA88*CHIFFRAGE_TC!M103 -> 50636.97531 | U103: 0.25 | V103: 0.75
B104: ='PRECIOS UNITARIOS'!B89 -> Centro de mando + Locales tecnicos cubiertos | C104: ='PRECIOS UNITARIOS'!C89 -> INFRA | D104: 50 | E104: ='PRECIOS UNITARIOS'!D89 -> m2 | F104: ='PRECIOS UNITARIOS'!L89 -> 1401.269672 | G104: 0 | H104: 80 | J104: =HLOOKUP($C104,PARAMETROS!$C$36:$F$38,3)*L104 -> 0 | K104: =HLOOKUP($C104,PARAMETROS!$C$36:$F$38,3)*M104 -> 28025.39344 | L104: 0 | M104: 112101.5737 | O104: ='PRECIOS UNITARIOS'!$Z89*CHIFFRAGE_TC!L104 -> 0 | P104: ='PRECIOS UNITARIOS'!$AA89*CHIFFRAGE_TC!L104 -> 0 | Q104: ='PRECIOS UNITARIOS'!$Z89*CHIFFRAGE_TC!M104 -> 90502.04123 | R104: ='PRECIOS UNITARIOS'!$AA89*CHIFFRAGE_TC!M104 -> 21599.53251 | U104: 0.25 | V104: 0.75
B105: ='PRECIOS UNITARIOS'!B90 -> Locales tecnicos non cerrados | C105: ='PRECIOS UNITARIOS'!C90 -> INFRA | D105: 50 | E105: ='PRECIOS UNITARIOS'!D90 -> m2 | F105: ='PRECIOS UNITARIOS'!L90 -> 700.6348359 | G105: 0 | H105: 250 | J105: =HLOOKUP($C105,PARAMETROS!$C$36:$F$38,3)*L105 -> 0 | K105: =HLOOKUP($C105,PARAMETROS!$C$36:$F$38,3)*M105 -> 43789.67725 | L105: 0 | M105: 175158.709 | O105: ='PRECIOS UNITARIOS'!$Z90*CHIFFRAGE_TC!L105 -> 0 | P105: ='PRECIOS UNITARIOS'!$AA90*CHIFFRAGE_TC!L105 -> 0 | Q105: ='PRECIOS UNITARIOS'!$Z90*CHIFFRAGE_TC!M105 -> 141409.4394 | R105: ='PRECIOS UNITARIOS'!$AA90*CHIFFRAGE_TC!M105 -> 33749.26955 | U105: 0.25 | V105: 0.75
B106: ='PRECIOS UNITARIOS'!B91 -> Adecuacion urbana (demolicion, reconstruccion, mobiliario urbano, paisaje) | C106: ='PRECIOS UNITARIOS'!C91 -> INFRA | D106: 50 | E106: ='PRECIOS UNITARIOS'!D91 -> m2 | F106: ='PRECIOS UNITARIOS'!L91 -> 527.021901 | G106: 0 | H106: 2000 | J106: =HLOOKUP($C106,PARAMETROS!$C$36:$F$38,3)*L106 -> 0 | K106: =HLOOKUP($C106,PARAMETROS!$C$36:$F$38,3)*M106 -> 263510.9505 | L106: 0 | M106: 1054043.802 | O106: ='PRECIOS UNITARIOS'!$Z91*CHIFFRAGE_TC!L106 -> 0 | P106: ='PRECIOS UNITARIOS'!$AA91*CHIFFRAGE_TC!L106 -> 0 | Q106: ='PRECIOS UNITARIOS'!$Z91*CHIFFRAGE_TC!M106 -> 836542.7 | R106: ='PRECIOS UNITARIOS'!$AA91*CHIFFRAGE_TC!M106 -> 217501.102 | U106: 0.25 | V106: 0.25 | W106: 0.5
B107: ='PRECIOS UNITARIOS'!B92 -> Pasarela | C107: ='PRECIOS UNITARIOS'!C92 -> INFRA | D107: 50 | E107: ='PRECIOS UNITARIOS'!D92 -> m2 | F107: ='PRECIOS UNITARIOS'!L92 -> 1356.767692 | G107: 0 | H107: =200*2.5 -> 500 | J107: =HLOOKUP($C107,PARAMETROS!$C$36:$F$38,3)*L107 -> 0 | K107: =HLOOKUP($C107,PARAMETROS!$C$36:$F$38,3)*M107 -> 169595.9614 | L107: 0 | M107: 678383.8458 | O107: ='PRECIOS UNITARIOS'!$Z92*CHIFFRAGE_TC!L107 -> 0 | P107: ='PRECIOS UNITARIOS'!$AA92*CHIFFRAGE_TC!L107 -> 0 | Q107: ='PRECIOS UNITARIOS'!$Z92*CHIFFRAGE_TC!M107 -> 547674.0489 | R107: ='PRECIOS UNITARIOS'!$AA92*CHIFFRAGE_TC!M107 -> 130709.7969 | W107: 1
B108: Edificio - Estacion Malecon (Terminal) | L108: =SUM(L109:L118) -> 0 | M108: =SUM(M109:M118) -> 5112952.004 | O108: =SUM(O109:O118) -> 0 | P108: =SUM(P109:P118) -> 0 | Q108: =SUM(Q109:Q118) -> 4084892.264 | R108: =SUM(R109:R118) -> 1028059.74 | T108: =T97 -> 2015 | U108: =U97 -> 2016 | V108: =V97 -> 2017 | W108: =W97 -> 2018
B109: =B98 -> Fundaciones tipicas (edificio con piso tierra y primer piso) | C109: INFRA | D109: 50 | E109: U | F109: 193746.4264 | G109: 0 | H109: 0 | J109: =HLOOKUP($C109,PARAMETROS!$C$36:$F$38,3)*L109 -> 0 | K109: =HLOOKUP($C109,PARAMETROS!$C$36:$F$38,3)*M109 -> 0 | L109: =$F109*G109 -> 0 | M109: =$F109*H109 -> 0 | O109: ='PRECIOS UNITARIOS'!$Z83*CHIFFRAGE_TC!L109 -> 0 | P109: ='PRECIOS UNITARIOS'!$AA83*CHIFFRAGE_TC!L109 -> 0 | Q109: ='PRECIOS UNITARIOS'!$Z83*CHIFFRAGE_TC!M109 -> 0 | R109: ='PRECIOS UNITARIOS'!$AA83*CHIFFRAGE_TC!M109 -> 0 | U109: 0.75 | V109: 0.25
B110: Piso tierra sobrelevado y fundaciones | C110: INFRA | D110: 50 | E110: m2 | F110: 2170.828306 | G110: =(G111+G112+G114+G115+G116)/2 -> 0 | H110: =(H111+H112+H114+H115+H116)/2 -> 715 | J110: =HLOOKUP($C110,PARAMETROS!$C$36:$F$38,3)*L110 -> 0 | K110: =HLOOKUP($C110,PARAMETROS!$C$36:$F$38,3)*M110 -> 388035.5598 | L110: 0 | M110: 1552142.239 | O110: ='PRECIOS UNITARIOS'!$Z84*CHIFFRAGE_TC!L110 -> 0 | P110: ='PRECIOS UNITARIOS'!$AA84*CHIFFRAGE_TC!L110 -> 0 | Q110: ='PRECIOS UNITARIOS'!$Z84*CHIFFRAGE_TC!M110 -> 1253078.224 | R110: ='PRECIOS UNITARIOS'!$AA84*CHIFFRAGE_TC!M110 -> 299064.0153 | U110: 0.5 | V110: 0.5
B111: Superficies comerciales | C111: INFRA | D111: 50 | E111: m2 | F111: 700.6348359 | G111: 0 | H111: 250 | J111: =HLOOKUP($C111,PARAMETROS!$C$36:$F$38,3)*L111 -> 0 | K111: =HLOOKUP($C111,PARAMETROS!$C$36:$F$38,3)*M111 -> 43789.67725 | L111: 0 | M111: 175158.709 | O111: ='PRECIOS UNITARIOS'!$Z85*CHIFFRAGE_TC!L111 -> 0 | P111: ='PRECIOS UNITARIOS'!$AA85*CHIFFRAGE_TC!L111 -> 0 | Q111: ='PRECIOS UNITARIOS'!$Z85*CHIFFRAGE_TC!M111 -> 141409.4394 | R111: ='PRECIOS UNITARIOS'!$AA85*CHIFFRAGE_TC!M111 -> 33749.26955 | U111: 0.25 | V111: 0.75
B112: Ingreso y circulaciones al piso tierra (y/c servicios, escaleras mecanicas, escaleras y ascencores) | C112: INFRA | D112: 40 | E112: m2 | F112: 1838.595373 | G112: 0 | H112: 600 | J112: =HLOOKUP($C112,PARAMETROS!$C$36:$F$38,3)*L112 -> 0 | K112: =HLOOKUP($C112,PARAMETROS!$C$36:$F$38,3)*M112 -> 275789.306 | L112: 0 | M112: 1103157.224 | O112: ='PRECIOS UNITARIOS'!$Z86*CHIFFRAGE_TC!L112 -> 0 | P112: ='PRECIOS UNITARIOS'!$AA86*CHIFFRAGE_TC!L112 -> 0 | Q112: ='PRECIOS UNITARIOS'!$Z86*CHIFFRAGE_TC!M112 -> 862107.4449 | R112: ='PRECIOS UNITARIOS'!$AA86*CHIFFRAGE_TC!M112 -> 241049.779 | U112: 0.25 | V112: 0.75
B113: Escaleras mecanicas, escaleras y ascencores adicionales (piso tierra sobrelevado) | C113: EQUIP | D113: 15 | E113: U | F113: 373031.25 | G113: 0 | H113: 0 | J113: =HLOOKUP($C113,PARAMETROS!$C$36:$F$38,3)*L113 -> 0 | K113: =HLOOKUP($C113,PARAMETROS!$C$36:$F$38,3)*M113 -> 0 | L113: 0 | M113: 0 | O113: ='PRECIOS UNITARIOS'!$Z87*CHIFFRAGE_TC!L113 -> 0 | P113: ='PRECIOS UNITARIOS'!$AA87*CHIFFRAGE_TC!L113 -> 0 | Q113: ='PRECIOS UNITARIOS'!$Z87*CHIFFRAGE_TC!M113 -> 0 | R113: ='PRECIOS UNITARIOS'!$AA87*CHIFFRAGE_TC!M113 -> 0 | U113: 0.25 | V113: 0.75
B114: Anden al primer piso | C114: INFRA | D114: 50 | E114: m2 | F114: 1051.223607 | G114: 0 | H114: 250 | J114: =HLOOKUP($C114,PARAMETROS!$C$36:$F$38,3)*L114 -> 0 | K114: =HLOOKUP($C114,PARAMETROS!$C$36:$F$38,3)*M114 -> 65701.47546 | L114: 0 | M114: 262805.9019 | O114: ='PRECIOS UNITARIOS'!$Z88*CHIFFRAGE_TC!L114 -> 0 | P114: ='PRECIOS UNITARIOS'!$AA88*CHIFFRAGE_TC!L114 -> 0 | Q114: ='PRECIOS UNITARIOS'!$Z88*CHIFFRAGE_TC!M114 -> 212168.9265 | R114: ='PRECIOS UNITARIOS'!$AA88*CHIFFRAGE_TC!M114 -> 50636.97531 | U114: 0.25 | V114: 0.75
B115: Centro de mando + Locales tecnicos cubiertos | C115: INFRA | D115: 50 | E115: m2 | F115: 1401.269672 | G115: 0 | H115: 80 | J115: =HLOOKUP($C115,PARAMETROS!$C$36:$F$38,3)*L115 -> 0 | K115: =HLOOKUP($C115,PARAMETROS!$C$36:$F$38,3)*M115 -> 28025.39344 | L115: 0 | M115: 112101.5737 | O115: ='PRECIOS UNITARIOS'!$Z89*CHIFFRAGE_TC!L115 -> 0 | P115: ='PRECIOS UNITARIOS'!$AA89*CHIFFRAGE_TC!L115 -> 0 | Q115: ='PRECIOS UNITARIOS'!$Z89*CHIFFRAGE_TC!M115 -> 90502.04123 | R115: ='PRECIOS UNITARIOS'!$AA89*CHIFFRAGE_TC!M115 -> 21599.53251 | U115: 0.25 | V115: 0.75
B116: Locales tecnicos non cerrados | C116: INFRA | D116: 50 | E116: m2 | F116: 700.6348359 | G116: 0 | H116: 250 | J116: =HLOOKUP($C116,PARAMETROS!$C$36:$F$38,3)*L116 -> 0 | K116: =HLOOKUP($C116,PARAMETROS!$C$36:$F$38,3)*M116 -> 43789.67725 | L116: 0 | M116: 175158.709 | O116: ='PRECIOS UNITARIOS'!$Z90*CHIFFRAGE_TC!L116 -> 0 | P116: ='PRECIOS UNITARIOS'!$AA90*CHIFFRAGE_TC!L116 -> 0 | Q116: ='PRECIOS UNITARIOS'!$Z90*CHIFFRAGE_TC!M116 -> 141409.4394 | R116: ='PRECIOS UNITARIOS'!$AA90*CHIFFRAGE_TC!M116 -> 33749.26955 | U116: 0.25 | V116: 0.75
B117: Adecuacion urbana (demolicion, reconstruccion, mobiliario urbano, paisaje) | C117: INFRA | D117: 50 | E117: m2 | F117: 527.021901 | G117: 0 | H117: 2000 | J117: =HLOOKUP($C117,PARAMETROS!$C$36:$F$38,3)*L117 -> 0 | K117: =HLOOKUP($C117,PARAMETROS!$C$36:$F$38,3)*M117 -> 263510.9505 | L117: 0 | M117: 1054043.802 | O117: ='PRECIOS UNITARIOS'!$Z91*CHIFFRAGE_TC!L117 -> 0 | P117: ='PRECIOS UNITARIOS'!$AA91*CHIFFRAGE_TC!L117 -> 0 | Q117: ='PRECIOS UNITARIOS'!$Z91*CHIFFRAGE_TC!M117 -> 836542.7 | R117: ='PRECIOS UNITARIOS'!$AA91*CHIFFRAGE_TC!M117 -> 217501.102 | U117: 0.25 | V117: 0.25 | W117: 0.5
B118: Pasarela | C118: INFRA | D118: 50 | E118: m2 | F118: 1356.767692 | G118: 0 | H118: =200*2.5 -> 500 | J118: =HLOOKUP($C118,PARAMETROS!$C$36:$F$38,3)*L118 -> 0 | K118: =HLOOKUP($C118,PARAMETROS!$C$36:$F$38,3)*M118 -> 169595.9614 | L118: 0 | M118: 678383.8458 | O118: ='PRECIOS UNITARIOS'!$Z92*CHIFFRAGE_TC!L118 -> 0 | P118: ='PRECIOS UNITARIOS'!$AA92*CHIFFRAGE_TC!L118 -> 0 | Q118: ='PRECIOS UNITARIOS'!$Z92*CHIFFRAGE_TC!M118 -> 547674.0489 | R118: ='PRECIOS UNITARIOS'!$AA92*CHIFFRAGE_TC!M118 -> 130709.7969 | W118: 1
B119: Edificio - Estacion Puerto Santa Ana (Sur) | L119: =SUM(L120:L129) -> 0 | M119: =SUM(M120:M129) -> 551070.1927 | O119: =SUM(O120:O129) -> 0 | P119: =SUM(P120:P129) -> 0 | Q119: =SUM(Q120:Q129) -> 444890.9648 | R119: =SUM(R120:R129) -> 106179.2279 | T119: =T108 -> 2015 | U119: =U108 -> 2016 | V119: =V108 -> 2017 | W119: =W108 -> 2018
B120: =B98 -> Fundaciones tipicas (edificio con piso tierra y primer piso) | C120: INFRA | D120: 50 | E120: U | F120: 193746.4264 | G120: 0 | H120: 1 | J120: =HLOOKUP($C120,PARAMETROS!$C$36:$F$38,3)*L120 -> 0 | K120: =HLOOKUP($C120,PARAMETROS!$C$36:$F$38,3)*M120 -> 48436.60659 | L120: =$F120*G120 -> 0 | M120: =$F120*H120 -> 193746.4264 | O120: ='PRECIOS UNITARIOS'!$Z83*CHIFFRAGE_TC!L120 -> 0 | P120: ='PRECIOS UNITARIOS'!$AA83*CHIFFRAGE_TC!L120 -> 0 | Q120: ='PRECIOS UNITARIOS'!$Z83*CHIFFRAGE_TC!M120 -> 156415.7084 | R120: ='PRECIOS UNITARIOS'!$AA83*CHIFFRAGE_TC!M120 -> 37330.71799 | U120: 0.75 | V120: 0.25
B121: Piso tierra sobrelevado y fundaciones | C121: INFRA | D121: 50 | E121: m2 | F121: 2170.828306 | G121: 0 | H121: 0 | J121: =HLOOKUP($C121,PARAMETROS!$C$36:$F$38,3)*L121 -> 0 | K121: =HLOOKUP($C121,PARAMETROS!$C$36:$F$38,3)*M121 -> 0 | L121: 0 | M121: 0 | O121: ='PRECIOS UNITARIOS'!$Z84*CHIFFRAGE_TC!L121 -> 0 | P121: ='PRECIOS UNITARIOS'!$AA84*CHIFFRAGE_TC!L121 -> 0 | Q121: ='PRECIOS UNITARIOS'!$Z84*CHIFFRAGE_TC!M121 -> 0 | R121: ='PRECIOS UNITARIOS'!$AA84*CHIFFRAGE_TC!M121 -> 0 | U121: 0.5 | V121: 0.5
B122: Superficies comerciales | C122: INFRA | D122: 50 | E122: m2 | F122: 700.6348359 | G122: 0 | H122: 0 | J122: =HLOOKUP($C122,PARAMETROS!$C$36:$F$38,3)*L122 -> 0 | K122: =HLOOKUP($C122,PARAMETROS!$C$36:$F$38,3)*M122 -> 0 | L122: 0 | M122: 0 | O122: ='PRECIOS UNITARIOS'!$Z85*CHIFFRAGE_TC!L122 -> 0 | P122: ='PRECIOS UNITARIOS'!$AA85*CHIFFRAGE_TC!L122 -> 0 | Q122: ='PRECIOS UNITARIOS'!$Z85*CHIFFRAGE_TC!M122 -> 0 | R122: ='PRECIOS UNITARIOS'!$AA85*CHIFFRAGE_TC!M122 -> 0 | U122: 0.25 | V122: 0.75
B123: Ingreso y circulaciones al piso tierra (y/c servicios, escaleras mecanicas, escaleras y ascencores) | C123: INFRA | D123: 40 | E123: m2 | F123: 1838.595373 | G123: 0 | H123: 0 | J123: =HLOOKUP($C123,PARAMETROS!$C$36:$F$38,3)*L123 -> 0 | K123: =HLOOKUP($C123,PARAMETROS!$C$36:$F$38,3)*M123 -> 0 | L123: 0 | M123: 0 | O123: ='PRECIOS UNITARIOS'!$Z86*CHIFFRAGE_TC!L123 -> 0 | P123: ='PRECIOS UNITARIOS'!$AA86*CHIFFRAGE_TC!L123 -> 0 | Q123: ='PRECIOS UNITARIOS'!$Z86*CHIFFRAGE_TC!M123 -> 0 | R123: ='PRECIOS UNITARIOS'!$AA86*CHIFFRAGE_TC!M123 -> 0 | U123: 0.25 | V123: 0.75
B124: Escaleras mecanicas, escaleras y ascencores adicionales (piso tierra sobrelevado) | C124: EQUIP | D124: 15 | E124: U | F124: 373031.25 | G124: 0 | H124: 0 | J124: =HLOOKUP($C124,PARAMETROS!$C$36:$F$38,3)*L124 -> 0 | K124: =HLOOKUP($C124,PARAMETROS!$C$36:$F$38,3)*M124 -> 0 | L124: 0 | M124: 0 | O124: ='PRECIOS UNITARIOS'!$Z87*CHIFFRAGE_TC!L124 -> 0 | P124: ='PRECIOS UNITARIOS'!$AA87*CHIFFRAGE_TC!L124 -> 0 | Q124: ='PRECIOS UNITARIOS'!$Z87*CHIFFRAGE_TC!M124 -> 0 | R124: ='PRECIOS UNITARIOS'!$AA87*CHIFFRAGE_TC!M124 -> 0 | U124: 0.25 | V124: 0.75
B125: Anden al primer piso | C125: INFRA | D125: 50 | E125: m2 | F125: 1051.223607 | G125: 0 | H125: 0 | J125: =HLOOKUP($C125,PARAMETROS!$C$36:$F$38,3)*L125 -> 0 | K125: =HLOOKUP($C125,PARAMETROS!$C$36:$F$38,3)*M125 -> 0 | L125: 0 | M125: 0 | O125: ='PRECIOS UNITARIOS'!$Z88*CHIFFRAGE_TC!L125 -> 0 | P125: ='PRECIOS UNITARIOS'!$AA88*CHIFFRAGE_TC!L125 -> 0 | Q125: ='PRECIOS UNITARIOS'!$Z88*CHIFFRAGE_TC!M125 -> 0 | R125: ='PRECIOS UNITARIOS'!$AA88*CHIFFRAGE_TC!M125 -> 0 | U125: 0.25 | V125: 0.75
B126: Centro de mando + Locales tecnicos cubiertos | C126: INFRA | D126: 50 | E126: m2 | F126: 1401.269672 | G126: 0 | H126: 80 | J126: =HLOOKUP($C126,PARAMETROS!$C$36:$F$38,3)*L126 -> 0 | K126: =HLOOKUP($C126,PARAMETROS!$C$36:$F$38,3)*M126 -> 28025.39344 | L126: 0 | M126: 112101.5737 | O126: ='PRECIOS UNITARIOS'!$Z89*CHIFFRAGE_TC!L126 -> 0 | P126: ='PRECIOS UNITARIOS'!$AA89*CHIFFRAGE_TC!L126 -> 0 | Q126: ='PRECIOS UNITARIOS'!$Z89*CHIFFRAGE_TC!M126 -> 90502.04123 | R126: ='PRECIOS UNITARIOS'!$AA89*CHIFFRAGE_TC!M126 -> 21599.53251 | U126: 0.25 | V126: 0.75
B127: Locales tecnicos non cerrados | C127: INFRA | D127: 50 | E127: m2 | F127: 700.6348359 | G127: 0 | H127: 350 | J127: =HLOOKUP($C127,PARAMETROS!$C$36:$F$38,3)*L127 -> 0 | K127: =HLOOKUP($C127,PARAMETROS!$C$36:$F$38,3)*M127 -> 61305.54814 | L127: 0 | M127: 245222.1926 | O127: ='PRECIOS UNITARIOS'!$Z90*CHIFFRAGE_TC!L127 -> 0 | P127: ='PRECIOS UNITARIOS'!$AA90*CHIFFRAGE_TC!L127 -> 0 | Q127: ='PRECIOS UNITARIOS'!$Z90*CHIFFRAGE_TC!M127 -> 197973.2152 | R127: ='PRECIOS UNITARIOS'!$AA90*CHIFFRAGE_TC!M127 -> 47248.97737 | U127: 0.25 | V127: 0.75
B128: Adecuacion urbana (demolicion, reconstruccion, mobiliario urbano, paisaje) | C128: INFRA | D128: 50 | E128: m2 | F128: 527.021901 | G128: 0 | H128: 0 | J128: =HLOOKUP($C128,PARAMETROS!$C$36:$F$38,3)*L128 -> 0 | K128: =HLOOKUP($C128,PARAMETROS!$C$36:$F$38,3)*M128 -> 0 | L128: 0 | M128: 0 | O128: ='PRECIOS UNITARIOS'!$Z91*CHIFFRAGE_TC!L128 -> 0 | P128: ='PRECIOS UNITARIOS'!$AA91*CHIFFRAGE_TC!L128 -> 0 | Q128: ='PRECIOS UNITARIOS'!$Z91*CHIFFRAGE_TC!M128 -> 0 | R128: ='PRECIOS UNITARIOS'!$AA91*CHIFFRAGE_TC!M128 -> 0 | U128: 0.25 | V128: 0.25 | W128: 0.5
B129: Pasarela | C129: INFRA | D129: 50 | E129: m2 | F129: 1356.767692 | G129: 0 | H129: 0 | J129: =HLOOKUP($C129,PARAMETROS!$C$36:$F$38,3)*L129 -> 0 | K129: =HLOOKUP($C129,PARAMETROS!$C$36:$F$38,3)*M129 -> 0 | L129: 0 | M129: 0 | O129: ='PRECIOS UNITARIOS'!$Z92*CHIFFRAGE_TC!L129 -> 0 | P129: ='PRECIOS UNITARIOS'!$AA92*CHIFFRAGE_TC!L129 -> 0 | Q129: ='PRECIOS UNITARIOS'!$Z92*CHIFFRAGE_TC!M129 -> 0 | R129: ='PRECIOS UNITARIOS'!$AA92*CHIFFRAGE_TC!M129 -> 0 | W129: 1
B130: Edificio - Estacion Malecon Centro Cultural | L130: =SUM(L131:L140) -> 7508471.522 | M130: =SUM(M131:M140) -> 7508471.522 | O130: =SUM(O131:O140) -> 5979787.735 | P130: =SUM(P131:P140) -> 1528683.787 | Q130: =SUM(Q131:Q140) -> 5979787.735 | R130: =SUM(R131:R140) -> 1528683.787 | T130: =T119 -> 2015 | U130: =U119 -> 2016 | V130: =V119 -> 2017 | W130: =W119 -> 2018
B131: =B98 -> Fundaciones tipicas (edificio con piso tierra y primer piso) | C131: INFRA | D131: 50 | E131: U | F131: 193746.4264 | G131: 0 | H131: 0 | J131: =HLOOKUP($C131,PARAMETROS!$C$36:$F$38,3)*L131 -> 0 | K131: =HLOOKUP($C131,PARAMETROS!$C$36:$F$38,3)*M131 -> 0 | L131: =$F131*G131 -> 0 | M131: =$F131*H131 -> 0 | O131: ='PRECIOS UNITARIOS'!$Z83*CHIFFRAGE_TC!L131 -> 0 | P131: ='PRECIOS UNITARIOS'!$AA83*CHIFFRAGE_TC!L131 -> 0 | Q131: ='PRECIOS UNITARIOS'!$Z83*CHIFFRAGE_TC!M131 -> 0 | R131: ='PRECIOS UNITARIOS'!$AA83*CHIFFRAGE_TC!M131 -> 0 | U131: 0.75 | V131: 0.25
B132: Piso tierra sobrelevado y fundaciones | C132: INFRA | D132: 50 | E132: m2 | F132: 2170.828306 | G132: 1200 | H132: 1200 | J132: =HLOOKUP($C132,PARAMETROS!$C$36:$F$38,3)*L132 -> 651248.4919 | K132: =HLOOKUP($C132,PARAMETROS!$C$36:$F$38,3)*M132 -> 651248.4919 | L132: 2604993.968 | M132: 2604993.968 | O132: ='PRECIOS UNITARIOS'!$Z84*CHIFFRAGE_TC!L132 -> 2103068.348 | P132: ='PRECIOS UNITARIOS'!$AA84*CHIFFRAGE_TC!L132 -> 501925.62 | Q132: ='PRECIOS UNITARIOS'!$Z84*CHIFFRAGE_TC!M132 -> 2103068.348 | R132: ='PRECIOS UNITARIOS'!$AA84*CHIFFRAGE_TC!M132 -> 501925.62 | U132: 0.5 | V132: 0.5
B133: Superficies comerciales | C133: INFRA | D133: 50 | E133: m2 | F133: 700.6348359 | G133: 500 | H133: 500 | J133: =HLOOKUP($C133,PARAMETROS!$C$36:$F$38,3)*L133 -> 87579.35449 | K133: =HLOOKUP($C133,PARAMETROS!$C$36:$F$38,3)*M133 -> 87579.35449 | L133: 350317.418 | M133: 350317.418 | O133: ='PRECIOS UNITARIOS'!$Z85*CHIFFRAGE_TC!L133 -> 282818.8789 | P133: ='PRECIOS UNITARIOS'!$AA85*CHIFFRAGE_TC!L133 -> 67498.53911 | Q133: ='PRECIOS UNITARIOS'!$Z85*CHIFFRAGE_TC!M133 -> 282818.8789 | R133: ='PRECIOS UNITARIOS'!$AA85*CHIFFRAGE_TC!M133 -> 67498.53911 | U133: 0.25 | V133: 0.75
B134: Ingreso y circulaciones al piso tierra (y/c servicios, escaleras mecanicas, escaleras y ascencores) | C134: INFRA | D134: 40 | E134: m2 | F134: 1838.595373 | G134: 1650 | H134: 1650 | J134: =HLOOKUP($C134,PARAMETROS!$C$36:$F$38,3)*L134 -> 758420.5914 | K134: =HLOOKUP($C134,PARAMETROS!$C$36:$F$38,3)*M134 -> 758420.5914 | L134: 3033682.366 | M134: 3033682.366 | O134: ='PRECIOS UNITARIOS'!$Z86*CHIFFRAGE_TC!L134 -> 2370795.474 | P134: ='PRECIOS UNITARIOS'!$AA86*CHIFFRAGE_TC!L134 -> 662886.8923 | Q134: ='PRECIOS UNITARIOS'!$Z86*CHIFFRAGE_TC!M134 -> 2370795.474 | R134: ='PRECIOS UNITARIOS'!$AA86*CHIFFRAGE_TC!M134 -> 662886.8923 | U134: 0.25 | V134: 0.75
B135: Escaleras mecanicas, escaleras y ascencores adicionales (piso tierra sobrelevado) | C135: EQUIP | D135: 15 | E135: U | F135: 373031.25 | G135: 1 | H135: 1 | J135: =HLOOKUP($C135,PARAMETROS!$C$36:$F$38,3)*L135 -> 93257.8125 | K135: =HLOOKUP($C135,PARAMETROS!$C$36:$F$38,3)*M135 -> 93257.8125 | L135: 373031.25 | M135: 373031.25 | O135: ='PRECIOS UNITARIOS'!$Z87*CHIFFRAGE_TC!L135 -> 301156.25 | P135: ='PRECIOS UNITARIOS'!$AA87*CHIFFRAGE_TC!L135 -> 71875 | Q135: ='PRECIOS UNITARIOS'!$Z87*CHIFFRAGE_TC!M135 -> 301156.25 | R135: ='PRECIOS UNITARIOS'!$AA87*CHIFFRAGE_TC!M135 -> 71875 | U135: 0.25 | V135: 0.75
B136: Anden al primer piso | C136: INFRA | D136: 50 | E136: m2 | F136: 1051.223607 | G136: 500 | H136: 500 | J136: =HLOOKUP($C136,PARAMETROS!$C$36:$F$38,3)*L136 -> 131402.9509 | K136: =HLOOKUP($C136,PARAMETROS!$C$36:$F$38,3)*M136 -> 131402.9509 | L136: 525611.8037 | M136: 525611.8037 | O136: ='PRECIOS UNITARIOS'!$Z88*CHIFFRAGE_TC!L136 -> 424337.8531 | P136: ='PRECIOS UNITARIOS'!$AA88*CHIFFRAGE_TC!L136 -> 101273.9506 | Q136: ='PRECIOS UNITARIOS'!$Z88*CHIFFRAGE_TC!M136 -> 424337.8531 | R136: ='PRECIOS UNITARIOS'!$AA88*CHIFFRAGE_TC!M136 -> 101273.9506 | U136: 0.25 | V136: 0.75
B137: Centro de mando + Locales tecnicos cubiertos | C137: INFRA | D137: 50 | E137: m2 | F137: 1401.269672 | G137: 80 | H137: 80 | J137: =HLOOKUP($C137,PARAMETROS!$C$36:$F$38,3)*L137 -> 28025.39344 | K137: =HLOOKUP($C137,PARAMETROS!$C$36:$F$38,3)*M137 -> 28025.39344 | L137: 112101.5737 | M137: 112101.5737 | O137: ='PRECIOS UNITARIOS'!$Z89*CHIFFRAGE_TC!L137 -> 90502.04123 | P137: ='PRECIOS UNITARIOS'!$AA89*CHIFFRAGE_TC!L137 -> 21599.53251 | Q137: ='PRECIOS UNITARIOS'!$Z89*CHIFFRAGE_TC!M137 -> 90502.04123 | R137: ='PRECIOS UNITARIOS'!$AA89*CHIFFRAGE_TC!M137 -> 21599.53251 | U137: 0.25 | V137: 0.75
B138: Locales tecnicos non cerrados | C138: INFRA | D138: 50 | E138: m2 | F138: 700.6348359 | G138: 350 | H138: 350 | J138: =HLOOKUP($C138,PARAMETROS!$C$36:$F$38,3)*L138 -> 61305.54814 | K138: =HLOOKUP($C138,PARAMETROS!$C$36:$F$38,3)*M138 -> 61305.54814 | L138: 245222.1926 | M138: 245222.1926 | O138: ='PRECIOS UNITARIOS'!$Z90*CHIFFRAGE_TC!L138 -> 197973.2152 | P138: ='PRECIOS UNITARIOS'!$AA90*CHIFFRAGE_TC!L138 -> 47248.97737 | Q138: ='PRECIOS UNITARIOS'!$Z90*CHIFFRAGE_TC!M138 -> 197973.2152 | R138: ='PRECIOS UNITARIOS'!$AA90*CHIFFRAGE_TC!M138 -> 47248.97737 | U138: 0.25 | V138: 0.75
B139: Adecuacion urbana (demolicion, reconstruccion, mobiliario urbano, paisaje) | C139: INFRA | D139: 50 | E139: m2 | F139: 527.021901 | G139: 500 | H139: 500 | J139: =HLOOKUP($C139,PARAMETROS!$C$36:$F$38,3)*L139 -> 65877.73762 | K139: =HLOOKUP($C139,PARAMETROS!$C$36:$F$38,3)*M139 -> 65877.73762 | L139: 263510.9505 | M139: 263510.9505 | O139: ='PRECIOS UNITARIOS'!$Z91*CHIFFRAGE_TC!L139 -> 209135.675 | P139: ='PRECIOS UNITARIOS'!$AA91*CHIFFRAGE_TC!L139 -> 54375.2755 | Q139: ='PRECIOS UNITARIOS'!$Z91*CHIFFRAGE_TC!M139 -> 209135.675 | R139: ='PRECIOS UNITARIOS'!$AA91*CHIFFRAGE_TC!M139 -> 54375.2755 | U139: 0.25 | V139: 0.25 | W139: 0.5
B140: Pasarela | C140: INFRA | D140: 50 | E140: m2 | F140: 1356.767692 | G140: 0 | H140: 0 | J140: =HLOOKUP($C140,PARAMETROS!$C$36:$F$38,3)*L140 -> 0 | K140: =HLOOKUP($C140,PARAMETROS!$C$36:$F$38,3)*M140 -> 0 | L140: 0 | M140: 0 | O140: ='PRECIOS UNITARIOS'!$Z92*CHIFFRAGE_TC!L140 -> 0 | P140: ='PRECIOS UNITARIOS'!$AA92*CHIFFRAGE_TC!L140 -> 0 | Q140: ='PRECIOS UNITARIOS'!$Z92*CHIFFRAGE_TC!M140 -> 0 | R140: ='PRECIOS UNITARIOS'!$AA92*CHIFFRAGE_TC!M140 -> 0 | W140: 1
B141: Edificio - Estacion Cimentero (Tecnica) | L141: =SUM(L142:L151) -> 551070.1927 | M141: =SUM(M142:M151) -> 551070.1927 | O141: =SUM(O142:O151) -> 444890.9648 | P141: =SUM(P142:P151) -> 106179.2279 | Q141: =SUM(Q142:Q151) -> 444890.9648 | R141: =SUM(R142:R151) -> 106179.2279 | T141: =T130 -> 2015 | U141: =U130 -> 2016 | V141: =V130 -> 2017 | W141: =W130 -> 2018
B142: =B98 -> Fundaciones tipicas (edificio con piso tierra y primer piso) | C142: INFRA | D142: 50 | E142: U | F142: 193746.4264 | G142: 1 | H142: 1 | J142: =HLOOKUP($C142,PARAMETROS!$C$36:$F$38,3)*L142 -> 48436.60659 | K142: =HLOOKUP($C142,PARAMETROS!$C$36:$F$38,3)*M142 -> 48436.60659 | L142: =$F142*G142 -> 193746.4264 | M142: =$F142*H142 -> 193746.4264 | O142: ='PRECIOS UNITARIOS'!$Z83*CHIFFRAGE_TC!L142 -> 156415.7084 | P142: ='PRECIOS UNITARIOS'!$AA83*CHIFFRAGE_TC!L142 -> 37330.71799 | Q142: ='PRECIOS UNITARIOS'!$Z83*CHIFFRAGE_TC!M142 -> 156415.7084 | R142: ='PRECIOS UNITARIOS'!$AA83*CHIFFRAGE_TC!M142 -> 37330.71799 | U142: 0.75 | V142: 0.25
B143: Piso tierra sobrelevado y fundaciones | C143: INFRA | D143: 50 | E143: m2 | F143: 2170.828306 | G143: 0 | H143: 0 | J143: =HLOOKUP($C143,PARAMETROS!$C$36:$F$38,3)*L143 -> 0 | K143: =HLOOKUP($C143,PARAMETROS!$C$36:$F$38,3)*M143 -> 0 | L143: 0 | M143: 0 | O143: ='PRECIOS UNITARIOS'!$Z84*CHIFFRAGE_TC!L143 -> 0 | P143: ='PRECIOS UNITARIOS'!$AA84*CHIFFRAGE_TC!L143 -> 0 | Q143: ='PRECIOS UNITARIOS'!$Z84*CHIFFRAGE_TC!M143 -> 0 | R143: ='PRECIOS UNITARIOS'!$AA84*CHIFFRAGE_TC!M143 -> 0 | U143: 0.5 | V143: 0.5
B144: Superficies comerciales | C144: INFRA | D144: 50 | E144: m2 | F144: 700.6348359 | G144: 0 | H144: 0 | J144: =HLOOKUP($C144,PARAMETROS!$C$36:$F$38,3)*L144 -> 0 | K144: =HLOOKUP($C144,PARAMETROS!$C$36:$F$38,3)*M144 -> 0 | L144: 0 | M144: 0 | O144: ='PRECIOS UNITARIOS'!$Z85*CHIFFRAGE_TC!L144 -> 0 | P144: ='PRECIOS UNITARIOS'!$AA85*CHIFFRAGE_TC!L144 -> 0 | Q144: ='PRECIOS UNITARIOS'!$Z85*CHIFFRAGE_TC!M144 -> 0 | R144: ='PRECIOS UNITARIOS'!$AA85*CHIFFRAGE_TC!M144 -> 0 | U144: 0.25 | V144: 0.75
B145: Ingreso y circulaciones al piso tierra (y/c servicios, escaleras mecanicas, escaleras y ascencores) | C145: INFRA | D145: 40 | E145: m2 | F145: 1838.595373 | G145: 0 | H145: 0 | J145: =HLOOKUP($C145,PARAMETROS!$C$36:$F$38,3)*L145 -> 0 | K145: =HLOOKUP($C145,PARAMETROS!$C$36:$F$38,3)*M145 -> 0 | L145: 0 | M145: 0 | O145: ='PRECIOS UNITARIOS'!$Z86*CHIFFRAGE_TC!L145 -> 0 | P145: ='PRECIOS UNITARIOS'!$AA86*CHIFFRAGE_TC!L145 -> 0 | Q145: ='PRECIOS UNITARIOS'!$Z86*CHIFFRAGE_TC!M145 -> 0 | R145: ='PRECIOS UNITARIOS'!$AA86*CHIFFRAGE_TC!M145 -> 0 | U145: 0.25 | V145: 0.75
B146: Escaleras mecanicas, escaleras y ascencores adicionales (piso tierra sobrelevado) | C146: EQUIP | D146: 15 | E146: U | F146: 373031.25 | G146: 0 | H146: 0 | J146: =HLOOKUP($C146,PARAMETROS!$C$36:$F$38,3)*L146 -> 0 | K146: =HLOOKUP($C146,PARAMETROS!$C$36:$F$38,3)*M146 -> 0 | L146: 0 | M146: 0 | O146: ='PRECIOS UNITARIOS'!$Z87*CHIFFRAGE_TC!L146 -> 0 | P146: ='PRECIOS UNITARIOS'!$AA87*CHIFFRAGE_TC!L146 -> 0 | Q146: ='PRECIOS UNITARIOS'!$Z87*CHIFFRAGE_TC!M146 -> 0 | R146: ='PRECIOS UNITARIOS'!$AA87*CHIFFRAGE_TC!M146 -> 0 | U146: 0.25 | V146: 0.75
B147: Anden al primer piso | C147: INFRA | D147: 50 | E147: m2 | F147: 1051.223607 | G147: 0 | H147: 0 | J147: =HLOOKUP($C147,PARAMETROS!$C$36:$F$38,3)*L147 -> 0 | K147: =HLOOKUP($C147,PARAMETROS!$C$36:$F$38,3)*M147 -> 0 | L147: 0 | M147: 0 | O147: ='PRECIOS UNITARIOS'!$Z88*CHIFFRAGE_TC!L147 -> 0 | P147: ='PRECIOS UNITARIOS'!$AA88*CHIFFRAGE_TC!L147 -> 0 | Q147: ='PRECIOS UNITARIOS'!$Z88*CHIFFRAGE_TC!M147 -> 0 | R147: ='PRECIOS UNITARIOS'!$AA88*CHIFFRAGE_TC!M147 -> 0 | U147: 0.25 | V147: 0.75
B148: Centro de mando + Locales tecnicos cubiertos | C148: INFRA | D148: 50 | E148: m2 | F148: 1401.269672 | G148: 80 | H148: 80 | J148: =HLOOKUP($C148,PARAMETROS!$C$36:$F$38,3)*L148 -> 28025.39344 | K148: =HLOOKUP($C148,PARAMETROS!$C$36:$F$38,3)*M148 -> 28025.39344 | L148: 112101.5737 | M148: 112101.5737 | O148: ='PRECIOS UNITARIOS'!$Z89*CHIFFRAGE_TC!L148 -> 90502.04123 | P148: ='PRECIOS UNITARIOS'!$AA89*CHIFFRAGE_TC!L148 -> 21599.53251 | Q148: ='PRECIOS UNITARIOS'!$Z89*CHIFFRAGE_TC!M148 -> 90502.04123 | R148: ='PRECIOS UNITARIOS'!$AA89*CHIFFRAGE_TC!M148 -> 21599.53251 | U148: 0.25 | V148: 0.75
B149: Locales tecnicos non cerrados | C149: INFRA | D149: 50 | E149: m2 | F149: 700.6348359 | G149: 350 | H149: 350 | J149: =HLOOKUP($C149,PARAMETROS!$C$36:$F$38,3)*L149 -> 61305.54814 | K149: =HLOOKUP($C149,PARAMETROS!$C$36:$F$38,3)*M149 -> 61305.54814 | L149: 245222.1926 | M149: 245222.1926 | O149: ='PRECIOS UNITARIOS'!$Z90*CHIFFRAGE_TC!L149 -> 197973.2152 | P149: ='PRECIOS UNITARIOS'!$AA90*CHIFFRAGE_TC!L149 -> 47248.97737 | Q149: ='PRECIOS UNITARIOS'!$Z90*CHIFFRAGE_TC!M149 -> 197973.2152 | R149: ='PRECIOS UNITARIOS'!$AA90*CHIFFRAGE_TC!M149 -> 47248.97737 | U149: 0.25 | V149: 0.75
B150: Adecuacion urbana (demolicion, reconstruccion, mobiliario urbano, paisaje) | C150: INFRA | D150: 50 | E150: m2 | F150: 527.021901 | G150: 0 | H150: 0 | J150: =HLOOKUP($C150,PARAMETROS!$C$36:$F$38,3)*L150 -> 0 | K150: =HLOOKUP($C150,PARAMETROS!$C$36:$F$38,3)*M150 -> 0 | L150: 0 | M150: 0 | O150: ='PRECIOS UNITARIOS'!$Z91*CHIFFRAGE_TC!L150 -> 0 | P150: ='PRECIOS UNITARIOS'!$AA91*CHIFFRAGE_TC!L150 -> 0 | Q150: ='PRECIOS UNITARIOS'!$Z91*CHIFFRAGE_TC!M150 -> 0 | R150: ='PRECIOS UNITARIOS'!$AA91*CHIFFRAGE_TC!M150 -> 0 | U150: 0.25 | V150: 0.25 | W150: 0.5
B151: Pasarela | C151: INFRA | D151: 50 | E151: m2 | F151: 1356.767692 | G151: 0 | H151: 0 | J151: =HLOOKUP($C151,PARAMETROS!$C$36:$F$38,3)*L151 -> 0 | K151: =HLOOKUP($C151,PARAMETROS!$C$36:$F$38,3)*M151 -> 0 | L151: 0 | M151: 0 | O151: ='PRECIOS UNITARIOS'!$Z92*CHIFFRAGE_TC!L151 -> 0 | P151: ='PRECIOS UNITARIOS'!$AA92*CHIFFRAGE_TC!L151 -> 0 | Q151: ='PRECIOS UNITARIOS'!$Z92*CHIFFRAGE_TC!M151 -> 0 | R151: ='PRECIOS UNITARIOS'!$AA92*CHIFFRAGE_TC!M151 -> 0 | W151: 1
B152: Edificio - Avenida Quito | L152: =SUM(L153:L162) -> 7284142.14 | M152: =SUM(M153:M162) -> 7284142.14 | O152: =SUM(O153:O162) -> 5817477.537 | P152: =SUM(P153:P162) -> 1466664.603 | Q152: =SUM(Q153:Q162) -> 5817477.537 | R152: =SUM(R153:R162) -> 1466664.603 | T152: =T141 -> 2015 | U152: =U141 -> 2016 | V152: =V141 -> 2017 | W152: =W141 -> 2018
B153: =B98 -> Fundaciones tipicas (edificio con piso tierra y primer piso) | C153: INFRA | D153: 50 | E153: U | F153: 193746.4264 | G153: 0 | H153: 0 | J153: =HLOOKUP($C153,PARAMETROS!$C$36:$F$38,3)*L153 -> 0 | K153: =HLOOKUP($C153,PARAMETROS!$C$36:$F$38,3)*M153 -> 0 | L153: =$F153*G153 -> 0 | M153: =$F153*H153 -> 0 | O153: ='PRECIOS UNITARIOS'!$Z83*CHIFFRAGE_TC!L153 -> 0 | P153: ='PRECIOS UNITARIOS'!$AA83*CHIFFRAGE_TC!L153 -> 0 | Q153: ='PRECIOS UNITARIOS'!$Z83*CHIFFRAGE_TC!M153 -> 0 | R153: ='PRECIOS UNITARIOS'!$AA83*CHIFFRAGE_TC!M153 -> 0 | U153: 0.75 | V153: 0.25
B154: Piso tierra sobrelevado y fundaciones | C154: INFRA | D154: 50 | E154: m2 | F154: 2170.828306 | G154: =(G155+G156+G158+G159+G160)/2 -> 1165 | H154: =(H155+H156+H158+H159+H160)/2 -> 1165 | J154: =HLOOKUP($C154,PARAMETROS!$C$36:$F$38,3)*L154 -> 632253.7443 | K154: =HLOOKUP($C154,PARAMETROS!$C$36:$F$38,3)*M154 -> 632253.7443 | L154: 2529014.977 | M154: 2529014.977 | O154: ='PRECIOS UNITARIOS'!$Z84*CHIFFRAGE_TC!L154 -> 2041728.854 | P154: ='PRECIOS UNITARIOS'!$AA84*CHIFFRAGE_TC!L154 -> 487286.1228 | Q154: ='PRECIOS UNITARIOS'!$Z84*CHIFFRAGE_TC!M154 -> 2041728.854 | R154: ='PRECIOS UNITARIOS'!$AA84*CHIFFRAGE_TC!M154 -> 487286.1228 | U154: 0.5 | V154: 0.5
B155: Superficies comerciales | C155: INFRA | D155: 50 | E155: m2 | F155: 700.6348359 | G155: 500 | H155: 500 | J155: =HLOOKUP($C155,PARAMETROS!$C$36:$F$38,3)*L155 -> 87579.35449 | K155: =HLOOKUP($C155,PARAMETROS!$C$36:$F$38,3)*M155 -> 87579.35449 | L155: 350317.418 | M155: 350317.418 | O155: ='PRECIOS UNITARIOS'!$Z85*CHIFFRAGE_TC!L155 -> 282818.8789 | P155: ='PRECIOS UNITARIOS'!$AA85*CHIFFRAGE_TC!L155 -> 67498.53911 | Q155: ='PRECIOS UNITARIOS'!$Z85*CHIFFRAGE_TC!M155 -> 282818.8789 | R155: ='PRECIOS UNITARIOS'!$AA85*CHIFFRAGE_TC!M155 -> 67498.53911 | U155: 0.25 | V155: 0.75
B156: Ingreso y circulaciones al piso tierra (y/c servicios, escaleras mecanicas, escaleras y ascencores) | C156: INFRA | D156: 40 | E156: m2 | F156: 1838.595373 | G156: 900 | H156: 900 | J156: =HLOOKUP($C156,PARAMETROS!$C$36:$F$38,3)*L156 -> 413683.959 | K156: =HLOOKUP($C156,PARAMETROS!$C$36:$F$38,3)*M156 -> 413683.959 | L156: 1654735.836 | M156: 1654735.836 | O156: ='PRECIOS UNITARIOS'!$Z86*CHIFFRAGE_TC!L156 -> 1293161.167 | P156: ='PRECIOS UNITARIOS'!$AA86*CHIFFRAGE_TC!L156 -> 361574.6685 | Q156: ='PRECIOS UNITARIOS'!$Z86*CHIFFRAGE_TC!M156 -> 1293161.167 | R156: ='PRECIOS UNITARIOS'!$AA86*CHIFFRAGE_TC!M156 -> 361574.6685 | U156: 0.25 | V156: 0.75
B157: Escaleras mecanicas, escaleras y ascencores adicionales (piso tierra sobrelevado) | C157: EQUIP | D157: 15 | E157: U | F157: 373031.25 | G157: 1 | H157: 1 | J157: =HLOOKUP($C157,PARAMETROS!$C$36:$F$38,3)*L157 -> 93257.8125 | K157: =HLOOKUP($C157,PARAMETROS!$C$36:$F$38,3)*M157 -> 93257.8125 | L157: 373031.25 | M157: 373031.25 | O157: ='PRECIOS UNITARIOS'!$Z87*CHIFFRAGE_TC!L157 -> 301156.25 | P157: ='PRECIOS UNITARIOS'!$AA87*CHIFFRAGE_TC!L157 -> 71875 | Q157: ='PRECIOS UNITARIOS'!$Z87*CHIFFRAGE_TC!M157 -> 301156.25 | R157: ='PRECIOS UNITARIOS'!$AA87*CHIFFRAGE_TC!M157 -> 71875 | U157: 0.25 | V157: 0.75
B158: Anden al primer piso | C158: INFRA | D158: 50 | E158: m2 | F158: 1051.223607 | G158: 500 | H158: 500 | J158: =HLOOKUP($C158,PARAMETROS!$C$36:$F$38,3)*L158 -> 131402.9509 | K158: =HLOOKUP($C158,PARAMETROS!$C$36:$F$38,3)*M158 -> 131402.9509 | L158: 525611.8037 | M158: 525611.8037 | O158: ='PRECIOS UNITARIOS'!$Z88*CHIFFRAGE_TC!L158 -> 424337.8531 | P158: ='PRECIOS UNITARIOS'!$AA88*CHIFFRAGE_TC!L158 -> 101273.9506 | Q158: ='PRECIOS UNITARIOS'!$Z88*CHIFFRAGE_TC!M158 -> 424337.8531 | R158: ='PRECIOS UNITARIOS'!$AA88*CHIFFRAGE_TC!M158 -> 101273.9506 | U158: 0.25 | V158: 0.75
B159: Centro de mando + Locales tecnicos cubiertos | C159: INFRA | D159: 50 | E159: m2 | F159: 1401.269672 | G159: 80 | H159: 80 | J159: =HLOOKUP($C159,PARAMETROS!$C$36:$F$38,3)*L159 -> 28025.39344 | K159: =HLOOKUP($C159,PARAMETROS!$C$36:$F$38,3)*M159 -> 28025.39344 | L159: 112101.5737 | M159: 112101.5737 | O159: ='PRECIOS UNITARIOS'!$Z89*CHIFFRAGE_TC!L159 -> 90502.04123 | P159: ='PRECIOS UNITARIOS'!$AA89*CHIFFRAGE_TC!L159 -> 21599.53251 | Q159: ='PRECIOS UNITARIOS'!$Z89*CHIFFRAGE_TC!M159 -> 90502.04123 | R159: ='PRECIOS UNITARIOS'!$AA89*CHIFFRAGE_TC!M159 -> 21599.53251 | U159: 0.25 | V159: 0.75
B160: Locales tecnicos non cerrados | C160: INFRA | D160: 50 | E160: m2 | F160: 700.6348359 | G160: 350 | H160: 350 | J160: =HLOOKUP($C160,PARAMETROS!$C$36:$F$38,3)*L160 -> 61305.54814 | K160: =HLOOKUP($C160,PARAMETROS!$C$36:$F$38,3)*M160 -> 61305.54814 | L160: 245222.1926 | M160: 245222.1926 | O160: ='PRECIOS UNITARIOS'!$Z90*CHIFFRAGE_TC!L160 -> 197973.2152 | P160: ='PRECIOS UNITARIOS'!$AA90*CHIFFRAGE_TC!L160 -> 47248.97737 | Q160: ='PRECIOS UNITARIOS'!$Z90*CHIFFRAGE_TC!M160 -> 197973.2152 | R160: ='PRECIOS UNITARIOS'!$AA90*CHIFFRAGE_TC!M160 -> 47248.97737 | U160: 0.25 | V160: 0.75
B161: Adecuacion urbana (demolicion, reconstruccion, mobiliario urbano, paisaje) | C161: INFRA | D161: 50 | E161: m2 | F161: 527.021901 | G161: =4000-(G155+G156+G158+G159+G160)/2 -> 2835 | H161: =4000-(H155+H156+H158+H159+H160)/2 -> 2835 | J161: =HLOOKUP($C161,PARAMETROS!$C$36:$F$38,3)*L161 -> 373526.7723 | K161: =HLOOKUP($C161,PARAMETROS!$C$36:$F$38,3)*M161 -> 373526.7723 | L161: 1494107.089 | M161: 1494107.089 | O161: ='PRECIOS UNITARIOS'!$Z91*CHIFFRAGE_TC!L161 -> 1185799.277 | P161: ='PRECIOS UNITARIOS'!$AA91*CHIFFRAGE_TC!L161 -> 308307.8121 | Q161: ='PRECIOS UNITARIOS'!$Z91*CHIFFRAGE_TC!M161 -> 1185799.277 | R161: ='PRECIOS UNITARIOS'!$AA91*CHIFFRAGE_TC!M161 -> 308307.8121 | U161: 0.25 | V161: 0.25 | W161: 0.5
B162: Pasarela | C162: INFRA | D162: 50 | E162: m2 | F162: 1356.767692 | G162: 0 | H162: 0 | J162: =HLOOKUP($C162,PARAMETROS!$C$36:$F$38,3)*L162 -> 0 | K162: =HLOOKUP($C162,PARAMETROS!$C$36:$F$38,3)*M162 -> 0 | L162: 0 | M162: 0 | O162: ='PRECIOS UNITARIOS'!$Z92*CHIFFRAGE_TC!L162 -> 0 | P162: ='PRECIOS UNITARIOS'!$AA92*CHIFFRAGE_TC!L162 -> 0 | Q162: ='PRECIOS UNITARIOS'!$Z92*CHIFFRAGE_TC!M162 -> 0 | R162: ='PRECIOS UNITARIOS'!$AA92*CHIFFRAGE_TC!M162 -> 0 | W162: 1
B163: Edificio - Estacion Centenario (Terminal) | L163: =SUM(L164:L173) -> 2252388.417 | M163: =SUM(M164:M173) -> 2252388.417 | O163: =SUM(O164:O173) -> 1806021.781 | P163: =SUM(P164:P173) -> 446366.6366 | Q163: =SUM(Q164:Q173) -> 1806021.781 | R163: =SUM(R164:R173) -> 446366.6366 | T163: =T152 -> 2015 | U163: =U152 -> 2016 | V163: =V152 -> 2017 | W163: =W152 -> 2018
B164: =B87 -> Fundaciones tipicas (edificio con piso tierra y primer piso) | C164: INFRA | D164: 50 | E164: U | F164: 161184.0018 | G164: 0 | H164: 0 | J164: =HLOOKUP($C164,PARAMETROS!$C$36:$F$38,3)*L164 -> 0 | K164: =HLOOKUP($C164,PARAMETROS!$C$36:$F$38,3)*M164 -> 0 | L164: =$F164*G164 -> 0 | M164: =$F164*H164 -> 0 | O164: ='PRECIOS UNITARIOS'!$Z72*CHIFFRAGE_TC!L164 -> 0 | P164: ='PRECIOS UNITARIOS'!$AA72*CHIFFRAGE_TC!L164 -> 0 | Q164: ='PRECIOS UNITARIOS'!$Z72*CHIFFRAGE_TC!M164 -> 0 | R164: ='PRECIOS UNITARIOS'!$AA72*CHIFFRAGE_TC!M164 -> 0 | U164: 0.75 | V164: 0.25
B165: Piso tierra sobrelevado y fundaciones | C165: INFRA | D165: 50 | E165: m2 | F165: 2170.828306 | G165: =(G166+G167+G169+G170+G171) -> 600 | H165: =(H166+H167+H169+H170+H171) -> 600 | J165: =HLOOKUP($C165,PARAMETROS!$C$36:$F$38,3)*L165 -> 325624.246 | K165: =HLOOKUP($C165,PARAMETROS!$C$36:$F$38,3)*M165 -> 325624.246 | L165: 1302496.984 | M165: 1302496.984 | O165: ='PRECIOS UNITARIOS'!$Z73*CHIFFRAGE_TC!L165 -> 1051534.174 | P165: ='PRECIOS UNITARIOS'!$AA73*CHIFFRAGE_TC!L165 -> 250962.81 | Q165: ='PRECIOS UNITARIOS'!$Z73*CHIFFRAGE_TC!M165 -> 1051534.174 | R165: ='PRECIOS UNITARIOS'!$AA73*CHIFFRAGE_TC!M165 -> 250962.81 | U165: 0.5 | V165: 0.5
B166: Superficies comerciales | C166: INFRA | D166: 50 | E166: m2 | F166: 700.6348359 | G166: 0 | H166: 0 | J166: =HLOOKUP($C166,PARAMETROS!$C$36:$F$38,3)*L166 -> 0 | K166: =HLOOKUP($C166,PARAMETROS!$C$36:$F$38,3)*M166 -> 0 | L166: 0 | M166: 0 | O166: ='PRECIOS UNITARIOS'!$Z74*CHIFFRAGE_TC!L166 -> 0 | P166: ='PRECIOS UNITARIOS'!$AA74*CHIFFRAGE_TC!L166 -> 0 | Q166: ='PRECIOS UNITARIOS'!$Z74*CHIFFRAGE_TC!M166 -> 0 | R166: ='PRECIOS UNITARIOS'!$AA74*CHIFFRAGE_TC!M166 -> 0 | U166: 0.25 | V166: 0.75
B167: Ingreso y circulaciones al piso tierra (y/c servicios, escaleras mecanicas, escaleras y ascencores) | C167: INFRA | D167: 40 | E167: m2 | F167: 1838.595373 | G167: 200 | H167: 200 | J167: =HLOOKUP($C167,PARAMETROS!$C$36:$F$38,3)*L167 -> 91929.76866 | K167: =HLOOKUP($C167,PARAMETROS!$C$36:$F$38,3)*M167 -> 91929.76866 | L167: 367719.0746 | M167: 367719.0746 | O167: ='PRECIOS UNITARIOS'!$Z75*CHIFFRAGE_TC!L167 -> 287369.1483 | P167: ='PRECIOS UNITARIOS'!$AA75*CHIFFRAGE_TC!L167 -> 80349.92633 | Q167: ='PRECIOS UNITARIOS'!$Z75*CHIFFRAGE_TC!M167 -> 287369.1483 | R167: ='PRECIOS UNITARIOS'!$AA75*CHIFFRAGE_TC!M167 -> 80349.92633 | U167: 0.25 | V167: 0.75
B168: Escaleras mecanicas, escaleras y ascencores adicionales (piso tierra sobrelevado) | C168: EQUIP | D168: 15 | E168: U | F168: 373031.25 | G168: 0 | H168: 0 | J168: =HLOOKUP($C168,PARAMETROS!$C$36:$F$38,3)*L168 -> 0 | K168: =HLOOKUP($C168,PARAMETROS!$C$36:$F$38,3)*M168 -> 0 | L168: 0 | M168: 0 | O168: ='PRECIOS UNITARIOS'!$Z76*CHIFFRAGE_TC!L168 -> 0 | P168: ='PRECIOS UNITARIOS'!$AA76*CHIFFRAGE_TC!L168 -> 0 | Q168: ='PRECIOS UNITARIOS'!$Z76*CHIFFRAGE_TC!M168 -> 0 | R168: ='PRECIOS UNITARIOS'!$AA76*CHIFFRAGE_TC!M168 -> 0 | U168: 0.25 | V168: 0.75
B169: Anden al primer piso | C169: INFRA | D169: 50 | E169: m2 | F169: 1051.223607 | G169: 100 | H169: 100 | J169: =HLOOKUP($C169,PARAMETROS!$C$36:$F$38,3)*L169 -> 26280.59019 | K169: =HLOOKUP($C169,PARAMETROS!$C$36:$F$38,3)*M169 -> 26280.59019 | L169: 105122.3607 | M169: 105122.3607 | O169: ='PRECIOS UNITARIOS'!$Z77*CHIFFRAGE_TC!L169 -> 84867.57062 | P169: ='PRECIOS UNITARIOS'!$AA77*CHIFFRAGE_TC!L169 -> 20254.79012 | Q169: ='PRECIOS UNITARIOS'!$Z77*CHIFFRAGE_TC!M169 -> 84867.57062 | R169: ='PRECIOS UNITARIOS'!$AA77*CHIFFRAGE_TC!M169 -> 20254.79012 | U169: 0.25 | V169: 0.75
B170: Centro de mando + Locales tecnicos cubiertos | C170: INFRA | D170: 50 | E170: m2 | F170: 1401.269672 | G170: 80 | H170: 80 | J170: =HLOOKUP($C170,PARAMETROS!$C$36:$F$38,3)*L170 -> 28025.39344 | K170: =HLOOKUP($C170,PARAMETROS!$C$36:$F$38,3)*M170 -> 28025.39344 | L170: 112101.5737 | M170: 112101.5737 | O170: ='PRECIOS UNITARIOS'!$Z78*CHIFFRAGE_TC!L170 -> 90502.04123 | P170: ='PRECIOS UNITARIOS'!$AA78*CHIFFRAGE_TC!L170 -> 21599.53251 | Q170: ='PRECIOS UNITARIOS'!$Z78*CHIFFRAGE_TC!M170 -> 90502.04123 | R170: ='PRECIOS UNITARIOS'!$AA78*CHIFFRAGE_TC!M170 -> 21599.53251 | U170: 0.25 | V170: 0.75
B171: Locales tecnicos non cerrados | C171: INFRA | D171: 50 | E171: m2 | F171: 700.6348359 | G171: 220 | H171: 220 | J171: =HLOOKUP($C171,PARAMETROS!$C$36:$F$38,3)*L171 -> 38534.91598 | K171: =HLOOKUP($C171,PARAMETROS!$C$36:$F$38,3)*M171 -> 38534.91598 | L171: 154139.6639 | M171: 154139.6639 | O171: ='PRECIOS UNITARIOS'!$Z79*CHIFFRAGE_TC!L171 -> 124440.3067 | P171: ='PRECIOS UNITARIOS'!$AA79*CHIFFRAGE_TC!L171 -> 29699.35721 | Q171: ='PRECIOS UNITARIOS'!$Z79*CHIFFRAGE_TC!M171 -> 124440.3067 | R171: ='PRECIOS UNITARIOS'!$AA79*CHIFFRAGE_TC!M171 -> 29699.35721 | U171: 0.25 | V171: 0.75
B172: Adecuacion urbana (demolicion, reconstruccion, mobiliario urbano, paisaje) | C172: INFRA | D172: 50 | E172: m2 | F172: 527.021901 | G172: 400 | H172: 400 | J172: =HLOOKUP($C172,PARAMETROS!$C$36:$F$38,3)*L172 -> 52702.1901 | K172: =HLOOKUP($C172,PARAMETROS!$C$36:$F$38,3)*M172 -> 52702.1901 | L172: 210808.7604 | M172: 210808.7604 | O172: ='PRECIOS UNITARIOS'!$Z80*CHIFFRAGE_TC!L172 -> 167308.54 | P172: ='PRECIOS UNITARIOS'!$AA80*CHIFFRAGE_TC!L172 -> 43500.2204 | Q172: ='PRECIOS UNITARIOS'!$Z80*CHIFFRAGE_TC!M172 -> 167308.54 | R172: ='PRECIOS UNITARIOS'!$AA80*CHIFFRAGE_TC!M172 -> 43500.2204 | U172: 0.25 | V172: 0.25 | W172: 0.5
B173: Pasarela | C173: INFRA | D173: 50 | E173: m2 | F173: 1356.767692 | G173: 0 | H173: 0 | J173: =HLOOKUP($C173,PARAMETROS!$C$36:$F$38,3)*L173 -> 0 | K173: =HLOOKUP($C173,PARAMETROS!$C$36:$F$38,3)*M173 -> 0 | L173: 0 | M173: 0 | O173: ='PRECIOS UNITARIOS'!$Z81*CHIFFRAGE_TC!L173 -> 0 | P173: ='PRECIOS UNITARIOS'!$AA81*CHIFFRAGE_TC!L173 -> 0 | Q173: ='PRECIOS UNITARIOS'!$Z81*CHIFFRAGE_TC!M173 -> 0 | R173: ='PRECIOS UNITARIOS'!$AA81*CHIFFRAGE_TC!M173 -> 0 | W173: 1
B175: Centro(s) de mantenimiento | J175: =SUM(J176:J182)/L175 -> 0.25 | K175: =SUM(K176:K182)/M175 -> 0.25 | L175: =SUM(L176:L182) -> 4768462.94 | M175: =SUM(M176:M182) -> 7578621.726 | O175: =SUM(O176:O182)/L175 -> 0.3387733336 | P175: =SUM(P176:P182)/L175 -> 0.6612266664 | Q175: =SUM(Q176:Q182)/M175 -> 0.3351106735 | R175: =SUM(R176:R182)/M175 -> 0.6648893265 | T175: =T$11 -> 2015 | U175: =U$11 -> 2016 | V175: =V$11 -> 2017 | W175: =W$11 -> 2018
B176: ='PRECIOS UNITARIOS'!B95 -> Zona de almacenamiento de tipo local industrial | C176: ='PRECIOS UNITARIOS'!C95 -> INFRA | D176: 50 | E176: ='PRECIOS UNITARIOS'!D95 -> m2 | F176: ='PRECIOS UNITARIOS'!L95 -> 700.6348359 | G176: =CANTIDADES!B74 -> 1876 | H176: =CANTIDADES!C74 -> 2702 | J176: =HLOOKUP($C176,PARAMETROS!$C$36:$F$38,3)*L176 -> 328597.738 | K176: =HLOOKUP($C176,PARAMETROS!$C$36:$F$38,3)*M176 -> 473278.8317 | L176: =$F176*G176 -> 1314390.952 | M176: 1893115.327 | O176: ='PRECIOS UNITARIOS'!$Z95*CHIFFRAGE_TC!L176 -> 1061136.433 | P176: ='PRECIOS UNITARIOS'!$AA95*CHIFFRAGE_TC!L176 -> 253254.5187 | Q176: ='PRECIOS UNITARIOS'!$Z95*CHIFFRAGE_TC!M176 -> 1528353.221 | R176: ='PRECIOS UNITARIOS'!$AA95*CHIFFRAGE_TC!M176 -> 364762.1053 | U176: 0.25 | V176: 0.75
B177: ='PRECIOS UNITARIOS'!B96 -> Almacen y taller | C177: ='PRECIOS UNITARIOS'!C96 -> INFRA | D177: 50 | E177: ='PRECIOS UNITARIOS'!D96 -> m2 | F177: ='PRECIOS UNITARIOS'!L96 -> 992.6112431 | G177: =CANTIDADES!B77 -> 250 | H177: =CANTIDADES!C77 -> 500 | J177: =HLOOKUP($C177,PARAMETROS!$C$36:$F$38,3)*L177 -> 62038.2027 | K177: =HLOOKUP($C177,PARAMETROS!$C$36:$F$38,3)*M177 -> 124076.4054 | L177: 248152.8108 | M177: 496305.6216 | O177: ='PRECIOS UNITARIOS'!$Z96*CHIFFRAGE_TC!L177 -> 200339.1671 | P177: ='PRECIOS UNITARIOS'!$AA96*CHIFFRAGE_TC!L177 -> 47813.6437 | Q177: ='PRECIOS UNITARIOS'!$Z96*CHIFFRAGE_TC!M177 -> 400678.3342 | R177: ='PRECIOS UNITARIOS'!$AA96*CHIFFRAGE_TC!M177 -> 95627.28739 | U177: 0.25 | V177: 0.75
B178: ='PRECIOS UNITARIOS'!B97 -> Local de supervision | C178: ='PRECIOS UNITARIOS'!C97 -> INFRA | D178: 50 | E178: ='PRECIOS UNITARIOS'!D97 -> m2 | F178: ='PRECIOS UNITARIOS'!L97 -> 992.6112431 | G178: =CANTIDADES!B80 -> 150 | H178: =CANTIDADES!C80 -> 300 | J178: =HLOOKUP($C178,PARAMETROS!$C$36:$F$38,3)*L178 -> 37222.92162 | K178: =HLOOKUP($C178,PARAMETROS!$C$36:$F$38,3)*M178 -> 74445.84324 | L178: 148891.6865 | M178: 297783.3729 | O178: ='PRECIOS UNITARIOS'!$Z97*CHIFFRAGE_TC!L178 -> 120203.5003 | P178: ='PRECIOS UNITARIOS'!$AA97*CHIFFRAGE_TC!L178 -> 28688.18622 | Q178: ='PRECIOS UNITARIOS'!$Z97*CHIFFRAGE_TC!M178 -> 240407.0005 | R178: ='PRECIOS UNITARIOS'!$AA97*CHIFFRAGE_TC!M178 -> 57376.37244 | U178: 0.25 | V178: 0.75
B179: ='PRECIOS UNITARIOS'!B98 -> Transporte cabinas | C179: ='PRECIOS UNITARIOS'!C98 -> EQUIP | D179: 40 | E179: ='PRECIOS UNITARIOS'!D98 -> m2 | F179: ='PRECIOS UNITARIOS'!L98 -> 1164.416739 | G179: =CANTIDADES!B83 -> 1876 | H179: =CANTIDADES!C83 -> 2702 | J179: =HLOOKUP($C179,PARAMETROS!$C$36:$F$38,3)*L179 -> 546111.4505 | K179: =HLOOKUP($C179,PARAMETROS!$C$36:$F$38,3)*M179 -> 786563.5071 | L179: 2184445.802 | M179: 3146254.028 | O179: ='PRECIOS UNITARIOS'!$Z98*CHIFFRAGE_TC!L179 -> 173770.3 | P179: ='PRECIOS UNITARIOS'!$AA98*CHIFFRAGE_TC!L179 -> 2010675.502 | Q179: ='PRECIOS UNITARIOS'!$Z98*CHIFFRAGE_TC!M179 -> 250281.1037 | R179: ='PRECIOS UNITARIOS'!$AA98*CHIFFRAGE_TC!M179 -> 2895972.925 | U179: 0.25 | V179: 0.5 | W179: 0.25
B180: ='PRECIOS UNITARIOS'!B99 -> Instrumentos, elevador y piezas de recambio | C180: ='PRECIOS UNITARIOS'!C99 -> EQUIP | D180: 15 | E180: ='PRECIOS UNITARIOS'!D99 -> U | F180: ='PRECIOS UNITARIOS'!L99 -> 144821.2265 | G180: =1 -> 1 | H180: =1*2 -> 2 | J180: =HLOOKUP($C180,PARAMETROS!$C$36:$F$38,3)*L180 -> 36205.30664 | K180: =HLOOKUP($C180,PARAMETROS!$C$36:$F$38,3)*M180 -> 72410.61327 | L180: 144821.2265 | M180: 289642.4531 | O180: ='PRECIOS UNITARIOS'!$Z99*CHIFFRAGE_TC!L180 -> 2086.128358 | P180: ='PRECIOS UNITARIOS'!$AA99*CHIFFRAGE_TC!L180 -> 142735.0982 | Q180: ='PRECIOS UNITARIOS'!$Z99*CHIFFRAGE_TC!M180 -> 4172.256716 | R180: ='PRECIOS UNITARIOS'!$AA99*CHIFFRAGE_TC!M180 -> 285470.1964 | V180: 0.75 | W180: 0.25
B181: ='PRECIOS UNITARIOS'!B100 -> Ascensores inclinados para las cabinas | C181: ='PRECIOS UNITARIOS'!C100 -> EQUIP | D181: 40 | E181: ='PRECIOS UNITARIOS'!D100 -> U | F181: ='PRECIOS UNITARIOS'!L100 -> 727760.4618 | G181: =1 -> 1 | H181: =1*2 -> 2 | J181: =HLOOKUP($C181,PARAMETROS!$C$36:$F$38,3)*L181 -> 181940.1154 | K181: =HLOOKUP($C181,PARAMETROS!$C$36:$F$38,3)*M181 -> 363880.2309 | L181: 727760.4618 | M181: 1455520.924 | O181: ='PRECIOS UNITARIOS'!$Z100*CHIFFRAGE_TC!L181 -> 57892.55731 | P181: ='PRECIOS UNITARIOS'!$AA100*CHIFFRAGE_TC!L181 -> 669867.9045 | Q181: ='PRECIOS UNITARIOS'!$Z100*CHIFFRAGE_TC!M181 -> 115785.1146 | R181: ='PRECIOS UNITARIOS'!$AA100*CHIFFRAGE_TC!M181 -> 1339735.809 | U181: 0.25 | V181: 0.5 | W181: 0.25
B182: ='PRECIOS UNITARIOS'!B101 -> Adecuacion urbana (demolicion, reconstruccion, mobiliario urbano, paisaje) | C182: ='PRECIOS UNITARIOS'!C101 -> INFRA | D182: 50 | E182: ='PRECIOS UNITARIOS'!D101 -> m2 | F182: ='PRECIOS UNITARIOS'!L101 -> 197.6332129 | G182: 0 | H182: 0 | J182: =HLOOKUP($C182,PARAMETROS!$C$36:$F$38,3)*L182 -> 0 | K182: =HLOOKUP($C182,PARAMETROS!$C$36:$F$38,3)*M182 -> 0 | L182: 0 | M182: 0 | O182: ='PRECIOS UNITARIOS'!$Z101*CHIFFRAGE_TC!L182 -> 0 | P182: ='PRECIOS UNITARIOS'!$AA101*CHIFFRAGE_TC!L182 -> 0 | Q182: ='PRECIOS UNITARIOS'!$Z101*CHIFFRAGE_TC!M182 -> 0 | R182: ='PRECIOS UNITARIOS'!$AA101*CHIFFRAGE_TC!M182 -> 0 | U182: 0.25 | V182: 0.5 | W182: 0.25
B184: Operaciones adicionales : estacionamiento incitativo y buses | J184: =SUM(J185:J191)/L184 -> 0.1717151459 | K184: =SUM(K185:K191)/M184 -> 0.1800517839 | L184: =SUM(L185:L191) -> 3321204.375 | M184: 5575553.201 | O184: =SUM(O185:O191)/L184 -> 0.8037592989 | P184: =SUM(P185:P191)/L184 -> 0.1962407011 | Q184: =SUM(Q185:Q191)/M184 -> 0.8032018027 | R184: =SUM(R185:R191)/M184 -> 0.1967981973 | T184: =T$11 -> 2015 | U184: =U$11 -> 2016 | V184: =V$11 -> 2017 | W184: =W$11 -> 2018
B185: ='PRECIOS UNITARIOS'!B104 -> Estacionamiento incitativo | C185: ='PRECIOS UNITARIOS'!C104 -> INFRA | D185: 10 | E185: ='PRECIOS UNITARIOS'!D104 -> Plaza | F185: ='PRECIOS UNITARIOS'!L104 -> 1899.474768 | G185: =DEMANDA!E16 -> 200 | H185: =DEMANDA!E17 -> 400 | J185: =HLOOKUP($C185,PARAMETROS!$C$36:$F$38,3)*L185 -> 94973.73841 | K185: =HLOOKUP($C185,PARAMETROS!$C$36:$F$38,3)*M185 -> 189947.4768 | L185: =$F185*G185 -> 379894.9536 | M185: 759789.9073 | O185: ='PRECIOS UNITARIOS'!$Z104*CHIFFRAGE_TC!L185 -> 306697.4674 | P185: ='PRECIOS UNITARIOS'!$AA104*CHIFFRAGE_TC!L185 -> 73197.48625 | Q185: ='PRECIOS UNITARIOS'!$Z104*CHIFFRAGE_TC!M185 -> 613394.9348 | R185: ='PRECIOS UNITARIOS'!$AA104*CHIFFRAGE_TC!M185 -> 146394.9725 | V185: 0.5 | W185: 0.5
B186: ='PRECIOS UNITARIOS'!B105 -> Creacion de vias de acceso en Samborondon | C186: ='PRECIOS UNITARIOS'!C105 -> INFRA | D186: 10 | E186: ='PRECIOS UNITARIOS'!D105 -> m² | F186: ='PRECIOS UNITARIOS'!L105 -> 197.6332129 | G186: 0 | H186: 2000 | J186: =HLOOKUP($C186,PARAMETROS!$C$36:$F$38,3)*L186 -> 0 | K186: =HLOOKUP($C186,PARAMETROS!$C$36:$F$38,3)*M186 -> 98816.60644 | L186: 0 | M186: 395266.4257 | O186: ='PRECIOS UNITARIOS'!$Z105*CHIFFRAGE_TC!L186 -> 0 | P186: ='PRECIOS UNITARIOS'!$AA105*CHIFFRAGE_TC!L186 -> 0 | Q186: ='PRECIOS UNITARIOS'!$Z105*CHIFFRAGE_TC!M186 -> 313703.5125 | R186: ='PRECIOS UNITARIOS'!$AA105*CHIFFRAGE_TC!M186 -> 81562.91325 | V186: 0.5 | W186: 0.5
B187: ='PRECIOS UNITARIOS'!B106 -> Compra de buses alimentadores para Samborondon (12 m) | C187: ='PRECIOS UNITARIOS'!C106 -> VEH | D187: 10 | E187: ='PRECIOS UNITARIOS'!D106 -> U | F187: ='PRECIOS UNITARIOS'!L106 -> 130000 | G187: 0 | H187: ='OFERTA ALIMENTADORA'!F31 -> 10 | J187: =HLOOKUP($C187,PARAMETROS!$C$36:$F$38,3)*L187 -> 0 | K187: =HLOOKUP($C187,PARAMETROS!$C$36:$F$38,3)*M187 -> 195000 | L187: 0 | M187: 1300000 | O187: ='PRECIOS UNITARIOS'!$Z106*CHIFFRAGE_TC!L187 -> 0 | P187: ='PRECIOS UNITARIOS'!$AA106*CHIFFRAGE_TC!L187 -> 0 | Q187: ='PRECIOS UNITARIOS'!$Z106*CHIFFRAGE_TC!M187 -> 1040000 | R187: ='PRECIOS UNITARIOS'!$AA106*CHIFFRAGE_TC!M187 -> 260000 | V187: 0.5 | W187: 0.5
B188: ='PRECIOS UNITARIOS'!B107 -> Compra de buses alimentadores para Duran (12 m) | C188: ='PRECIOS UNITARIOS'!C107 -> VEH | D188: 10 | E188: ='PRECIOS UNITARIOS'!D107 -> U | F188: ='PRECIOS UNITARIOS'!L107 -> 130000 | G188: ='OFERTA ALIMENTADORA'!F32+'OFERTA ALIMENTADORA'!F33 -> 20 | H188: ='OFERTA ALIMENTADORA'!F32+'OFERTA ALIMENTADORA'!F33 -> 20 | J188: =HLOOKUP($C188,PARAMETROS!$C$36:$F$38,3)*L188 -> 390000 | K188: =HLOOKUP($C188,PARAMETROS!$C$36:$F$38,3)*M188 -> 390000 | L188: 2600000 | M188: 2600000 | O188: ='PRECIOS UNITARIOS'!$Z107*CHIFFRAGE_TC!L188 -> 2080000 | P188: ='PRECIOS UNITARIOS'!$AA107*CHIFFRAGE_TC!L188 -> 520000 | Q188: ='PRECIOS UNITARIOS'!$Z107*CHIFFRAGE_TC!M188 -> 2080000 | R188: ='PRECIOS UNITARIOS'!$AA107*CHIFFRAGE_TC!M188 -> 520000 | V188: 0.5 | W188: 0.5
B189: ='PRECIOS UNITARIOS'!B108 -> Creacion de paraderos en Samborondon | C189: ='PRECIOS UNITARIOS'!C108 -> INFRA | D189: 10 | E189: ='PRECIOS UNITARIOS'!D108 -> U | F189: ='PRECIOS UNITARIOS'!L108 -> 4266.36777 | G189: 0 | H189: =ROUNDUP('OFERTA ALIMENTADORA'!C17/200*2,0) -> 38 | J189: =HLOOKUP($C189,PARAMETROS!$C$36:$F$38,3)*L189 -> 0 | K189: =HLOOKUP($C189,PARAMETROS!$C$36:$F$38,3)*M189 -> 40530.49381 | L189: 0 | M189: 162121.9753 | O189: ='PRECIOS UNITARIOS'!$Z108*CHIFFRAGE_TC!L189 -> 0 | P189: ='PRECIOS UNITARIOS'!$AA108*CHIFFRAGE_TC!L189 -> 0 | Q189: ='PRECIOS UNITARIOS'!$Z108*CHIFFRAGE_TC!M189 -> 134306.9305 | R189: ='PRECIOS UNITARIOS'!$AA108*CHIFFRAGE_TC!M189 -> 27815.04477 | W189: 1
B190: ='PRECIOS UNITARIOS'!B109 -> Creacion de paraderos en Duran | C190: ='PRECIOS UNITARIOS'!C109 -> INFRA | D190: 10 | E190: ='PRECIOS UNITARIOS'!D109 -> U | F190: ='PRECIOS UNITARIOS'!L109 -> 4266.36777 | G190: =ROUNDUP('OFERTA ALIMENTADORA'!C18/200*2,0) -> 72 | H190: =ROUNDUP('OFERTA ALIMENTADORA'!C18/200*2,0) -> 72 | J190: =HLOOKUP($C190,PARAMETROS!$C$36:$F$38,3)*L190 -> 76794.61986 | K190: =HLOOKUP($C190,PARAMETROS!$C$36:$F$38,3)*M190 -> 76794.61986 | L190: 307178.4794 | M190: 307178.4794 | O190: ='PRECIOS UNITARIOS'!$Z109*CHIFFRAGE_TC!L190 -> 254476.2893 | P190: ='PRECIOS UNITARIOS'!$AA109*CHIFFRAGE_TC!L190 -> 52702.1901 | Q190: ='PRECIOS UNITARIOS'!$Z109*CHIFFRAGE_TC!M190 -> 254476.2893 | R190: ='PRECIOS UNITARIOS'!$AA109*CHIFFRAGE_TC!M190 -> 52702.1901 | W190: 1
B191: ='PRECIOS UNITARIOS'!B110 -> Modificacion de parada de bus | C191: ='PRECIOS UNITARIOS'!C110 -> INFRA | D191: 10 | E191: ='PRECIOS UNITARIOS'!D110 -> forfait | F191: ='PRECIOS UNITARIOS'!L110 -> 4266.36777 | G191: =2*(CANTIDADES!B30+CANTIDADES!B31) -> 8 | H191: =2*(CANTIDADES!C30+CANTIDADES!C31) -> 12 | J191: =HLOOKUP($C191,PARAMETROS!$C$36:$F$38,3)*L191 -> 8532.73554 | K191: =HLOOKUP($C191,PARAMETROS!$C$36:$F$38,3)*M191 -> 12799.10331 | L191: 34130.94216 | M191: 51196.41324 | O191: ='PRECIOS UNITARIOS'!$Z110*CHIFFRAGE_TC!L191 -> 28275.14326 | P191: ='PRECIOS UNITARIOS'!$AA110*CHIFFRAGE_TC!L191 -> 5855.7989 | Q191: ='PRECIOS UNITARIOS'!$Z110*CHIFFRAGE_TC!M191 -> 42412.71489 | R191: ='PRECIOS UNITARIOS'!$AA110*CHIFFRAGE_TC!M191 -> 8783.69835 | W191: 1
B193: Gastos de estudios, gestion y administracion del proyecto | J193: =SUM(J194:J198)/L193 -> 0.1051481709 | K193: =SUM(K194:K198)/M193 -> 0.1034736769 | L193: =SUM(L194:L198) -> 17481937.29 | M193: 25909145.39 | O193: =SUM(O194:O198)/L193 -> 0.2757408543 | P193: =SUM(P194:P198)/L193 -> 0.7242591457 | Q193: =SUM(Q194:Q198)/M193 -> 0.2673683845 | R193: =SUM(R194:R198)/M193 -> 0.7326316155 | T193: =T$11 -> 2015 | U193: =U$11 -> 2016 | V193: =V$11 -> 2017 | W193: =W$11 -> 2018
B194: =PARAMETROS!B30 -> Estudios y diseños | C194: ESTUDIOS | D194: Infinida | E194: % costo de la obra | F194: =PARAMETROS!D30 -> 0.08 | G194: =L33+L38+L45+L53+L57+L61+L70+L85+L184+L175 -> 84409686.46 | H194: =M33+M38+M45+M53+M57+M61+M70+M85+M184+M175 -> 126545727 | J194: =PARAMETROS!$E30*L194 -> 675277.4917 | K194: =PARAMETROS!$E30*M194 -> 1012365.816 | L194: =$F194*G194 -> 6752774.917 | M194: 10123658.16 | O194: 0 | P194: =L194 -> 6752774.917 | Q194: 0 | R194: =M194 -> 10123658.16 | T194: 0.5 | U194: 0.5 | Y194: Consultor en asesoria al Municipio o Concesionario
B195: =PARAMETROS!B31 -> Supervision de obras | C195: ESTUDIOS | D195: Infinida | E195: % costo de la obra | F195: =PARAMETROS!D31 -> 0.04 | G195: =L33+L38+L45+L53+L57+L61+L70+L85+L184+L175 -> 84409686.46 | H195: =M33+M38+M45+M53+M57+M61+M70+M85+M184+M175 -> 126545727 | J195: =PARAMETROS!$E31*L195 -> 337638.7458 | K195: =PARAMETROS!$E31*M195 -> 506182.9078 | L195: 3376387.458 | M195: 5061829.078 | O195: 0 | P195: =L195 -> 3376387.458 | Q195: 0 | R195: =M195 -> 5061829.078 | T195: 0.5 | U195: 0.5
B196: =PARAMETROS!B32 -> Fiscalizacion del proyecto | C196: ESTUDIOS | D196: Infinida | E196: % costo de la obra | F196: =PARAMETROS!D32 -> 0.05 | G196: =L33+L38+L45+L53+L57+L61+L70+L85+L184+L175 -> 84409686.46 | H196: =M33+M38+M45+M53+M57+M61+M70+M85+M184+M175 -> 126545727 | J196: =PARAMETROS!$E32*L196 -> 422048.4323 | K196: =PARAMETROS!$E32*M196 -> 632728.6348 | L196: 4220484.323 | M196: 6327286.348 | O196: =L196 -> 4220484.323 | P196: 0 | Q196: =M196 -> 6327286.348 | R196: 0 | T196: 0.15 | U196: 0.25 | V196: 0.4 | W196: 0.2 | Y196: Consultor en asesoria al municipio
B197: =PARAMETROS!B33 -> % gastos de Gestión externalizados (auditores, seguros) | C197: ESTUDIOS | D197: Infinida | E197: % costo de obra | F197: =PARAMETROS!D33 -> 0.03 | G197: =L33+L38+L45+L53+L57+L61+L70+L85+L184+L175 -> 84409686.46 | H197: =M33+M38+M45+M53+M57+M61+M70+M85+M184+M175 -> 126545727 | J197: =PARAMETROS!$E33*L197 -> 253229.0594 | K197: =PARAMETROS!$E33*M197 -> 379637.1809 | L197: 2532290.594 | M197: 3796371.809 | O197: 0 | P197: =L197 -> 2532290.594 | Q197: 0 | R197: =M197 -> 3796371.809 | T197: 0.25 | U197: 0.25 | V197: 0.25 | W197: 0.25 | Y197: Municipio
B198: =PARAMETROS!B34 -> Tramites administrativos | C198: ESTUDIOS | D198: Infinida | E198: U | F198: =PARAMETROS!D34 -> 600000 | G198: 1 | H198: 1 | J198: =PARAMETROS!$E34*L198 -> 150000 | K198: =PARAMETROS!$E34*M198 -> 150000 | L198: 600000 | M198: 600000 | O198: =L198 -> 600000 | P198: 0 | Q198: =M198 -> 600000 | R198: 0 | T198: 1
K200: Costo total sin operaciones adicionales (sin contingencias) | L200: =L33+L38+L45+L53+L57+L61+L70+L85+L175+L194+L195+L197 -> 93749935.05 | M200: =M33+M38+M45+M53+M57+M61+M70+M85+M175+M194+M195+M197 -> 139952032.8
K201: Contingencias | L201: =L33*J33+L38*J38+L45*J45+L53*J53+L57*J57+L61*J61+L70*J70+L85*J85+L175*J175+(L194+L195+L197)*J193 -> 20968738.14 | M201: =M33*K33+M38*K38+M45*K45+M53*K53+M57*K57+M61*K61+M70*K70+M85*K85+M175*K175+(M194+M195+M197)*K193 -> 31292492.88
B202: Superficies comerciales | E202: m2 | G202: =G89+G100+G111+G122+G133+G144+G155+G166 -> 1250 | H202: =H89+H100+H111+H122+H133+H144+H155+H166 -> 1750 | K202: Costo total sin operaciones adicionales | L202: =L200+L201 -> 114718673.2 | M202: 171244525.7
B203: Superficies funcionales | E203: m2 | G203: =G90+G92+G101+G103+G112+G114+G123+G125+G134+G136+G145+G147+G156+G158+G167+G169 -> 4700 | H203: =H90+H92+H101+H103+H112+H114+H123+H125+H134+H136+H145+H147+H156+H158+H167+H169 -> 6400
B204: Superficies tecnicas | E204: m2 | G204: =G93+G94+G104+G105+G115+G116+G126+G127+G137+G138+G148+G149+G159+G160+G170+G171 -> 1920 | H204: =H93+H94+H104+H105+H115+H116+H126+H127+H137+H138+H148+H149+H159+H160+H170+H171 -> 3010 | K204: Costo total incluyendo operaciones adicionales (sin contingencias) | L204: =L23+L33+L38+L45+L53+L57+L61+L70+L85+L175+L184+L194+L195+L197 -> 97071139.43 | M204: =M23+M33+M38+M45+M53+M57+M61+M70+M85+M175+M184+M194+M195+M197 -> 145527586
K205: Contingencias | L205: =L201+L23*J23+L184*J184 -> 21539039.23 | M205: =M201+M23*K23+M184*K184 -> 32296381.18
K206: Costo total incluyendo operaciones adicionales | L206: =L204+L205 -> 118610178.7 | M206: 177823967.2
K209: costo/km | L209: =L204/CANTIDADES!B22*1000 -> 23675887.66 | M209: =M204/CANTIDADES!C22*1000 -> 17856145.52
L210: =L206/CANTIDADES!B22*1000 -> 28929311.87 | M210: =M206/CANTIDADES!C22*1000 -> 21818891.68
K213: Supervision | L213: =L193 -> 17481937.29 | M213: 25909145.39
L214: =J193*L213 -> 1838193.729 | M214: =K193*M213 -> 2680914.539
L215: =L213+L214 -> 19320131.02 | M215: =M213+M214 -> 28590059.93
K218: Sin depreciacion | L218: =SUMIF($D$12:$D$198,"Infinida",(L12:L198))/L204 -> 0.2074725211 | M218: =SUMIF($D$12:$D$198,"Infinida",(M12:M198))/M204 -> 0.2478348134
K219: Depreciacion 50 años | L219: =SUMIF($D$12:$D$198,50,(L12:L198))/L204 -> 0.2731690587 | M219: =SUMIF($D$12:$D$198,50,(M12:M198))/M204 -> 0.2710565703
K220: Depreciacion 40 años | L220: =SUMIF($D$12:$D$198,40,(L12:L198))/L204 -> 0.4610419689 | M220: =SUMIF($D$12:$D$198,40,(M12:M198))/M204 -> 0.4547932105
K221: Depreciacion 15 años | L221: =SUMIF($D$12:$D$198,15,(L12:L198))/L204 -> 0.09428713845 | M221: =SUMIF($D$12:$D$198,15,(M12:M198))/M204 -> 0.09696219308
K222: Depreciacion 10 años | L222: =SUMIF($D$12:$D$198,10,(L12:L198))/L204 -> 0.03421412785 | M222: =SUMIF($D$12:$D$198,10,(M12:M198))/M204 -> 0.0383126894
K223: Depreciacion 5 años | L223: =SUMIF($D$12:$D$198,5,(L12:L198))/L204 -> 0.005872645244 | M223: =SUMIF($D$12:$D$198,5,(M12:M198))/M204 -> 0.007786679881
L225: =SUM(L218:L223) -> 1.07605746 | M225: 1.116746157
... 11 more rows

Sheet INVERSION_ANUALIZADA_TC_Alt_23 (hidden)
B2: Legenda | C2: Dato de entrada
C3: Celda llave
C4: Error
C5: Dato calculado
E8: Alternativa B - Inversion anualizada
C9: Duracion de vida | D9: Contingencias | E9: 2015 | F9: 2016 | G9: 2017 | H9: 2018 | I9: 2019 | J9: 2020 | K9: 2021 | L9: 2022 | M9: 2023 | N9: 2024 | O9: 2025 | P9: 2026 | Q9: 2027 | R9: 2028 | S9: 2029 | T9: 2030 | U9: 2031 | V9: 2032 | W9: 2033 | X9: 2034 | Y9: 2035 | Z9: 2036 | AA9: 2037 | AB9: 2038 | AC9: 2039 | AD9: 2040 | AE9: 2041 | AF9: 2042 | AG9: 2043 | AH9: 2044 | AI9: 2045 | AJ9: 2046 | AK9: 2047 | AL9: 2048 | AM9: 2049 | AN9: 2050 | AO9: 2051 | AP9: 2052 | AQ9: 2053 | AR9: 2054 | AS9: 2055 | AT9: 2056 | AU9: 2057 | AV9: 2058 | AW9: 2059 | AX9: 2060
B11: =CHIFFRAGE_TC!B12 -> Compra de terrenos para estaciones y servidumbres | D11: =CHIFFRAGE_TC!J12 -> 0.25 | E11: =SUM(E12:E20) -> 0 | F11: 0 | G11: 0 | H11: 0 | I11: 0 | J11: 0 | K11: 0 | L11: 0 | M11: 0 | N11: 0 | O11: 0 | P11: 0 | Q11: 0 | R11: 0 | S11: 0 | T11: 0 | U11: 0 | V11: 0 | W11: 0 | X11: 0 | Y11: 0 | Z11: 0 | AA11: 0 | AB11: 0 | AC11: 0 | AD11: 0 | AE11: 0 | AF11: 0 | AG11: 0 | AH11: 0 | AI11: 0 | AJ11: 0 | AK11: 0 | AL11: 0 | AM11: 0 | AN11: 0 | AO11: 0 | AP11: 0 | AQ11: 0 | AR11: 0 | AS11: 0 | AT11: 0 | AU11: 0 | AV11: 0 | AW11: 0 | AX11: 0
B12: =CHIFFRAGE_TC!B13 -> Estacion Duran (Terminal) | C12: =CHIFFRAGE_TC!D13 -> Infinida | I12: 0 | J12: 0 | K12: 0 | L12: 0 | M12: 0 | N12: 0 | O12: 0 | P12: 0 | Q12: 0 | R12: 0 | S12: 0 | T12: 0 | U12: 0 | V12: 0 | W12: 0 | X12: 0 | Y12: 0 | Z12: 0 | AA12: 0 | AB12: 0 | AC12: 0 | AD12: 0 | AE12: 0 | AF12: 0 | AG12: 0 | AH12: 0 | AI12: 0 | AJ12: 0 | AK12: 0 | AL12: 0 | AM12: 0 | AN12: 0 | AO12: 0 | AP12: 0 | AQ12: 0 | AR12: 0 | AS12: 0 | AT12: 0 | AU12: 0 | AV12: 0 | AW12: 0 | AX12: 0
B13: =CHIFFRAGE_TC!B14 -> Estacion Samborondon (Terminal) | C13: =CHIFFRAGE_TC!D14 -> Infinida | I13: 0 | J13: 0 | K13: 0 | L13: 0 | M13: 0 | N13: 0 | O13: 0 | P13: 0 | Q13: 0 | R13: 0 | S13: 0 | T13: 0 | U13: 0 | V13: 0 | W13: 0 | X13: 0 | Y13: 0 | Z13: 0 | AA13: 0 | AB13: 0 | AC13: 0 | AD13: 0 | AE13: 0 | AF13: 0 | AG13: 0 | AH13: 0 | AI13: 0 | AJ13: 0 | AK13: 0 | AL13: 0 | AM13: 0 | AN13: 0 | AO13: 0 | AP13: 0 | AQ13: 0 | AR13: 0 | AS13: 0 | AT13: 0 | AU13: 0 | AV13: 0 | AW13: 0 | AX13: 0
B14: =CHIFFRAGE_TC!B15 -> Estacion Malecon (Terminal) | C14: =CHIFFRAGE_TC!D15 -> Infinida | I14: 0 | J14: 0 | K14: 0 | L14: 0 | M14: 0 | N14: 0 | O14: 0 | P14: 0 | Q14: 0 | R14: 0 | S14: 0 | T14: 0 | U14: 0 | V14: 0 | W14: 0 | X14: 0 | Y14: 0 | Z14: 0 | AA14: 0 | AB14: 0 | AC14: 0 | AD14: 0 | AE14: 0 | AF14: 0 | AG14: 0 | AH14: 0 | AI14: 0 | AJ14: 0 | AK14: 0 | AL14: 0 | AM14: 0 | AN14: 0 | AO14: 0 | AP14: 0 | AQ14: 0 | AR14: 0 | AS14: 0 | AT14: 0 | AU14: 0 | AV14: 0 | AW14: 0 | AX14: 0
B15: =CHIFFRAGE_TC!B16 -> Estacion Puerto Santa Ana (Sur) | C15: =CHIFFRAGE_TC!D16 -> Infinida | I15: 0 | J15: 0 | K15: 0 | L15: 0 | M15: 0 | N15: 0 | O15: 0 | P15: 0 | Q15: 0 | R15: 0 | S15: 0 | T15: 0 | U15: 0 | V15: 0 | W15: 0 | X15: 0 | Y15: 0 | Z15: 0 | AA15: 0 | AB15: 0 | AC15: 0 | AD15: 0 | AE15: 0 | AF15: 0 | AG15: 0 | AH15: 0 | AI15: 0 | AJ15: 0 | AK15: 0 | AL15: 0 | AM15: 0 | AN15: 0 | AO15: 0 | AP15: 0 | AQ15: 0 | AR15: 0 | AS15: 0 | AT15: 0 | AU15: 0 | AV15: 0 | AW15: 0 | AX15: 0
B16: =CHIFFRAGE_TC!B17 -> Estacion Malecon Centro Cultural | C16: =CHIFFRAGE_TC!D17 -> Infinida | I16: 0 | J16: 0 | K16: 0 | L16: 0 | M16: 0 | N16: 0 | O16: 0 | P16: 0 | Q16: 0 | R16: 0 | S16: 0 | T16: 0 | U16: 0 | V16: 0 | W16: 0 | X16: 0 | Y16: 0 | Z16: 0 | AA16: 0 | AB16: 0 | AC16: 0 | AD16: 0 | AE16: 0 | AF16: 0 | AG16: 0 | AH16: 0 | AI16: 0 | AJ16: 0 | AK16: 0 | AL16: 0 | AM16: 0 | AN16: 0 | AO16: 0 | AP16: 0 | AQ16: 0 | AR16: 0 | AS16: 0 | AT16: 0 | AU16: 0 | AV16: 0 | AW16: 0 | AX16: 0
B17: =CHIFFRAGE_TC!B18 -> Estacion Cimentero (Tecnica) | C17: =CHIFFRAGE_TC!D18 -> Infinida | I17: 0 | J17: 0 | K17: 0 | L17: 0 | M17: 0 | N17: 0 | O17: 0 | P17: 0 | Q17: 0 | R17: 0 | S17: 0 | T17: 0 | U17: 0 | V17: 0 | W17: 0 | X17: 0 | Y17: 0 | Z17: 0 | AA17: 0 | AB17: 0 | AC17: 0 | AD17: 0 | AE17: 0 | AF17: 0 | AG17: 0 | AH17: 0 | AI17: 0 | AJ17: 0 | AK17: 0 | AL17: 0 | AM17: 0 | AN17: 0 | AO17: 0 | AP17: 0 | AQ17: 0 | AR17: 0 | AS17: 0 | AT17: 0 | AU17: 0 | AV17: 0 | AW17: 0 | AX17: 0
B18: =CHIFFRAGE_TC!B19 -> Estacion Avenida Quito | C18: =CHIFFRAGE_TC!D19 -> Infinida | I18: 0 | J18: 0 | K18: 0 | L18: 0 | M18: 0 | N18: 0 | O18: 0 | P18: 0 | Q18: 0 | R18: 0 | S18: 0 | T18: 0 | U18: 0 | V18: 0 | W18: 0 | X18: 0 | Y18: 0 | Z18: 0 | AA18: 0 | AB18: 0 | AC18: 0 | AD18: 0 | AE18: 0 | AF18: 0 | AG18: 0 | AH18: 0 | AI18: 0 | AJ18: 0 | AK18: 0 | AL18: 0 | AM18: 0 | AN18: 0 | AO18: 0 | AP18: 0 | AQ18: 0 | AR18: 0 | AS18: 0 | AT18: 0 | AU18: 0 | AV18: 0 | AW18: 0 | AX18: 0
B19: =CHIFFRAGE_TC!B20 -> Estacion Centenario (Terminal) | C19: =CHIFFRAGE_TC!D20 -> Infinida | I19: 0 | J19: 0 | K19: 0 | L19: 0 | M19: 0 | N19: 0 | O19: 0 | P19: 0 | Q19: 0 | R19: 0 | S19: 0 | T19: 0 | U19: 0 | V19: 0 | W19: 0 | X19: 0 | Y19: 0 | Z19: 0 | AA19: 0 | AB19: 0 | AC19: 0 | AD19: 0 | AE19: 0 | AF19: 0 | AG19: 0 | AH19: 0 | AI19: 0 | AJ19: 0 | AK19: 0 | AL19: 0 | AM19: 0 | AN19: 0 | AO19: 0 | AP19: 0 | AQ19: 0 | AR19: 0 | AS19: 0 | AT19: 0 | AU19: 0 | AV19: 0 | AW19: 0 | AX19: 0
B20: =CHIFFRAGE_TC!B21 -> Servidumbres en linea | C20: =CHIFFRAGE_TC!D21 -> Infinida | I20: 0 | J20: 0 | K20: 0 | L20: 0 | M20: 0 | N20: 0 | O20: 0 | P20: 0 | Q20: 0 | R20: 0 | S20: 0 | T20: 0 | U20: 0 | V20: 0 | W20: 0 | X20: 0 | Y20: 0 | Z20: 0 | AA20: 0 | AB20: 0 | AC20: 0 | AD20: 0 | AE20: 0 | AF20: 0 | AG20: 0 | AH20: 0 | AI20: 0 | AJ20: 0 | AK20: 0 | AL20: 0 | AM20: 0 | AN20: 0 | AO20: 0 | AP20: 0 | AQ20: 0 | AR20: 0 | AS20: 0 | AT20: 0 | AU20: 0 | AV20: 0 | AW20: 0 | AX20: 0
B22: =CHIFFRAGE_TC!B23 -> Compra de terrenos para estacionamiento (operacion adicional) | D22: =CHIFFRAGE_TC!J23 -> 0 | I22: =SUM(I23:I30) -> 0 | J22: 0 | K22: 0 | L22: 0 | M22: 0 | N22: 0 | O22: 0 | P22: 0 | Q22: 0 | R22: 0 | S22: 0 | T22: 0 | U22: 0 | V22: 0 | W22: 0 | X22: 0 | Y22: 0 | Z22: 0 | AA22: 0 | AB22: 0 | AC22: 0 | AD22: 0 | AE22: 0 | AF22: 0 | AG22: 0 | AH22: 0 | AI22: 0 | AJ22: 0 | AK22: 0 | AL22: 0 | AM22: 0 | AN22: 0 | AO22: 0 | AP22: 0 | AQ22: 0 | AR22: 0 | AS22: 0 | AT22: 0 | AU22: 0 | AV22: 0 | AW22: 0 | AX22: 0
B23: =CHIFFRAGE_TC!B24 -> Estacion Duran (Terminal) | C23: =CHIFFRAGE_TC!D24 -> Infinida | I23: 0 | J23: 0 | K23: 0 | L23: 0 | M23: 0 | N23: 0 | O23: 0 | P23: 0 | Q23: 0 | R23: 0 | S23: 0 | T23: 0 | U23: 0 | V23: 0 | W23: 0 | X23: 0 | Y23: 0 | Z23: 0 | AA23: 0 | AB23: 0 | AC23: 0 | AD23: 0 | AE23: 0 | AF23: 0 | AG23: 0 | AH23: 0 | AI23: 0 | AJ23: 0 | AK23: 0 | AL23: 0 | AM23: 0 | AN23: 0 | AO23: 0 | AP23: 0 | AQ23: 0 | AR23: 0 | AS23: 0 | AT23: 0 | AU23: 0 | AV23: 0 | AW23: 0 | AX23: 0
B24: =CHIFFRAGE_TC!B25 -> Estacion Samborondon (Terminal) | C24: =CHIFFRAGE_TC!D25 -> Infinida | I24: 0 | J24: 0 | K24: 0 | L24: 0 | M24: 0 | N24: 0 | O24: 0 | P24: 0 | Q24: 0 | R24: 0 | S24: 0 | T24: 0 | U24: 0 | V24: 0 | W24: 0 | X24: 0 | Y24: 0 | Z24: 0 | AA24: 0 | AB24: 0 | AC24: 0 | AD24: 0 | AE24: 0 | AF24: 0 | AG24: 0 | AH24: 0 | AI24: 0 | AJ24: 0 | AK24: 0 | AL24: 0 | AM24: 0 | AN24: 0 | AO24: 0 | AP24: 0 | AQ24: 0 | AR24: 0 | AS24: 0 | AT24: 0 | AU24: 0 | AV24: 0 | AW24: 0 | AX24: 0
B25: =CHIFFRAGE_TC!B26 -> Estacion Malecon (Terminal) | C25: =CHIFFRAGE_TC!D26 -> Infinida | I25: 0 | J25: 0 | K25: 0 | L25: 0 | M25: 0 | N25: 0 | O25: 0 | P25: 0 | Q25: 0 | R25: 0 | S25: 0 | T25: 0 | U25: 0 | V25: 0 | W25: 0 | X25: 0 | Y25: 0 | Z25: 0 | AA25: 0 | AB25: 0 | AC25: 0 | AD25: 0 | AE25: 0 | AF25: 0 | AG25: 0 | AH25: 0 | AI25: 0 | AJ25: 0 | AK25: 0 | AL25: 0 | AM25: 0 | AN25: 0 | AO25: 0 | AP25: 0 | AQ25: 0 | AR25: 0 | AS25: 0 | AT25: 0 | AU25: 0 | AV25: 0 | AW25: 0 | AX25: 0
B26: =CHIFFRAGE_TC!B27 -> Estacion Puerto Santa Ana (Sur) | C26: =CHIFFRAGE_TC!D27 -> Infinida | I26: 0 | J26: 0 | K26: 0 | L26: 0 | M26: 0 | N26: 0 | O26: 0 | P26: 0 | Q26: 0 | R26: 0 | S26: 0 | T26: 0 | U26: 0 | V26: 0 | W26: 0 | X26: 0 | Y26: 0 | Z26: 0 | AA26: 0 | AB26: 0 | AC26: 0 | AD26: 0 | AE26: 0 | AF26: 0 | AG26: 0 | AH26: 0 | AI26: 0 | AJ26: 0 | AK26: 0 | AL26: 0 | AM26: 0 | AN26: 0 | AO26: 0 | AP26: 0 | AQ26: 0 | AR26: 0 | AS26: 0 | AT26: 0 | AU26: 0 | AV26: 0 | AW26: 0 | AX26: 0
B27: =CHIFFRAGE_TC!B28 -> Estacion Malecon Centro Cultural | C27: =CHIFFRAGE_TC!D28 -> Infinida | I27: 0 | J27: 0 | K27: 0 | L27: 0 | M27: 0 | N27: 0 | O27: 0 | P27: 0 | Q27: 0 | R27: 0 | S27: 0 | T27: 0 | U27: 0 | V27: 0 | W27: 0 | X27: 0 | Y27: 0 | Z27: 0 | AA27: 0 | AB27: 0 | AC27: 0 | AD27: 0 | AE27: 0 | AF27: 0 | AG27: 0 | AH27: 0 | AI27: 0 | AJ27: 0 | AK27: 0 | AL27: 0 | AM27: 0 | AN27: 0 | AO27: 0 | AP27: 0 | AQ27: 0 | AR27: 0 | AS27: 0 | AT27: 0 | AU27: 0 | AV27: 0 | AW27: 0 | AX27: 0
B28: =CHIFFRAGE_TC!B29 -> Estacion Cimentero (Tecnica) | C28: =CHIFFRAGE_TC!D29 -> Infinida | I28: 0 | J28: 0 | K28: 0 | L28: 0 | M28: 0 | N28: 0 | O28: 0 | P28: 0 | Q28: 0 | R28: 0 | S28: 0 | T28: 0 | U28: 0 | V28: 0 | W28: 0 | X28: 0 | Y28: 0 | Z28: 0 | AA28: 0 | AB28: 0 | AC28: 0 | AD28: 0 | AE28: 0 | AF28: 0 | AG28: 0 | AH28: 0 | AI28: 0 | AJ28: 0 | AK28: 0 | AL28: 0 | AM28: 0 | AN28: 0 | AO28: 0 | AP28: 0 | AQ28: 0 | AR28: 0 | AS28: 0 | AT28: 0 | AU28: 0 | AV28: 0 | AW28: 0 | AX28: 0
B29: =CHIFFRAGE_TC!B30 -> Estacion Avenida Quito | C29: =CHIFFRAGE_TC!D30 -> Infinida | I29: 0 | J29: 0 | K29: 0 | L29: 0 | M29: 0 | N29: 0 | O29: 0 | P29: 0 | Q29: 0 | R29: 0 | S29: 0 | T29: 0 | U29: 0 | V29: 0 | W29: 0 | X29: 0 | Y29: 0 | Z29: 0 | AA29: 0 | AB29: 0 | AC29: 0 | AD29: 0 | AE29: 0 | AF29: 0 | AG29: 0 | AH29: 0 | AI29: 0 | AJ29: 0 | AK29: 0 | AL29: 0 | AM29: 0 | AN29: 0 | AO29: 0 | AP29: 0 | AQ29: 0 | AR29: 0 | AS29: 0 | AT29: 0 | AU29: 0 | AV29: 0 | AW29: 0 | AX29: 0
B30: =CHIFFRAGE_TC!B31 -> Estacion Centenario (Terminal) | C30: =CHIFFRAGE_TC!D31 -> Infinida | I30: 0 | J30: 0 | K30: 0 | L30: 0 | M30: 0 | N30: 0 | O30: 0 | P30: 0 | Q30: 0 | R30: 0 | S30: 0 | T30: 0 | U30: 0 | V30: 0 | W30: 0 | X30: 0 | Y30: 0 | Z30: 0 | AA30: 0 | AB30: 0 | AC30: 0 | AD30: 0 | AE30: 0 | AF30: 0 | AG30: 0 | AH30: 0 | AI30: 0 | AJ30: 0 | AK30: 0 | AL30: 0 | AM30: 0 | AN30: 0 | AO30: 0 | AP30: 0 | AQ30: 0 | AR30: 0 | AS30: 0 | AT30: 0 | AU30: 0 | AV30: 0 | AW30: 0 | AX30: 0
B32: =CHIFFRAGE_TC!B33 -> Decontaminacion y proteccion | D32: =CHIFFRAGE_TC!J33 -> 0.25 | E32: =SUM(E33:E35) -> 0 | F32: =SUM(F33:F35) -> 987470.6883 | G32: =SUM(G33:G35) -> 892313.9561 | H32: =SUM(H33:H35) -> 1784627.912 | I32: =SUM(I33:I35) -> 0 | J32: 0 | K32: 0 | L32: 0 | M32: 0 | N32: 0 | O32: 0 | P32: 0 | Q32: 0 | R32: 0 | S32: 0 | T32: 0 | U32: 0 | V32: 0 | W32: 0 | X32: 0 | Y32: 0 | Z32: 0 | AA32: 0 | AB32: 0 | AC32: 0 | AD32: 0 | AE32: 0 | AF32: 0 | AG32: 0 | AH32: 0 | AI32: 0 | AJ32: 0 | AK32: 0 | AL32: 0 | AM32: 0 | AN32: 0 | AO32: 0 | AP32: 0 | AQ32: 0 | AR32: 0 | AS32: 0 | AT32: 0 | AU32: 0 | AV32: 0 | AW32: 0 | AX32: 0
B33: =CHIFFRAGE_TC!B34 -> Proteccion contra incendios (techos) | C33: =CHIFFRAGE_TC!D34 -> 40 | E33: =CHIFFRAGE_TC!$L34*CHIFFRAGE_TC!$T34 -> 0 | F33: =CHIFFRAGE_TC!$L34*CHIFFRAGE_TC!$U34 -> 387937.5274 | G33: =CHIFFRAGE_TC!$L34*CHIFFRAGE_TC!$V34 -> 387937.5274 | H33: =CHIFFRAGE_TC!$L34*CHIFFRAGE_TC!$W34 -> 775875.0549 | I33: 0 | J33: 0 | K33: 0 | L33: 0 | M33: 0 | N33: 0 | O33: 0 | P33: 0 | Q33: 0 | R33: 0 | S33: 0 | T33: 0 | U33: 0 | V33: 0 | W33: 0 | X33: 0 | Y33: 0 | Z33: 0 | AA33: 0 | AB33: 0 | AC33: 0 | AD33: 0 | AE33: 0 | AF33: 0 | AG33: 0 | AH33: 0 | AI33: 0 | AJ33: 0 | AK33: 0 | AL33: 0 | AM33: 0 | AN33: 0 | AO33: 0 | AP33: 0 | AQ33: 0 | AR33: 0 | AS33: 0 | AT33: 0 | AU33: 0 | AV33: 0 | AW33: 0 | AX33: 0
B34: =CHIFFRAGE_TC!B35 -> Proteccion contra incendios (fachadas) | C34: =CHIFFRAGE_TC!D35 -> 40 | E34: =CHIFFRAGE_TC!$L35*CHIFFRAGE_TC!$T35 -> 0 | F34: =CHIFFRAGE_TC!$L35*CHIFFRAGE_TC!$U35 -> 504376.4287 | G34: =CHIFFRAGE_TC!$L35*CHIFFRAGE_TC!$V35 -> 504376.4287 | H34: =CHIFFRAGE_TC!$L35*CHIFFRAGE_TC!$W35 -> 1008752.857 | I34: 0 | J34: 0 | K34: 0 | L34: 0 | M34: 0 | N34: 0 | O34: 0 | P34: 0 | Q34: 0 | R34: 0 | S34: 0 | T34: 0 | U34: 0 | V34: 0 | W34: 0 | X34: 0 | Y34: 0 | Z34: 0 | AA34: 0 | AB34: 0 | AC34: 0 | AD34: 0 | AE34: 0 | AF34: 0 | AG34: 0 | AH34: 0 | AI34: 0 | AJ34: 0 | AK34: 0 | AL34: 0 | AM34: 0 | AN34: 0 | AO34: 0 | AP34: 0 | AQ34: 0 | AR34: 0 | AS34: 0 | AT34: 0 | AU34: 0 | AV34: 0 | AW34: 0 | AX34: 0
B35: =CHIFFRAGE_TC!B36 -> Decontaminacion de suelo | C35: =CHIFFRAGE_TC!D36 -> Infinida | E35: =CHIFFRAGE_TC!$L36*CHIFFRAGE_TC!$T36 -> 0 | F35: =CHIFFRAGE_TC!$L36*CHIFFRAGE_TC!$U36 -> 95156.73212 | G35: =CHIFFRAGE_TC!$L36*CHIFFRAGE_TC!$V36 -> 0 | H35: =CHIFFRAGE_TC!$L36*CHIFFRAGE_TC!$W36 -> 0 | I35: 0 | J35: 0 | K35: 0 | L35: 0 | M35: 0 | N35: 0 | O35: 0 | P35: 0 | Q35: 0 | R35: 0 | S35: 0 | T35: 0 | U35: 0 | V35: 0 | W35: 0 | X35: 0 | Y35: 0 | Z35: 0 | AA35: 0 | AB35: 0 | AC35: 0 | AD35: 0 | AE35: 0 | AF35: 0 | AG35: 0 | AH35: 0 | AI35: 0 | AJ35: 0 | AK35: 0 | AL35: 0 | AM35: 0 | AN35: 0 | AO35: 0 | AP35: 0 | AQ35: 0 | AR35: 0 | AS35: 0 | AT35: 0 | AU35: 0 | AV35: 0 | AW35: 0 | AX35: 0
B37: =CHIFFRAGE_TC!B38 -> Infraestructura y estructuras de lineas | D37: =CHIFFRAGE_TC!J38 -> 0.25 | E37: =SUM(E38:E42) -> 0 | F37: =SUM(F38:F42) -> 2166014.892 | G37: 6498044.677 | H37: 2166014.892 | I37: 0 | J37: 0 | K37: 0 | L37: 0 | M37: 0 | N37: 0 | O37: 0 | P37: 0 | Q37: 0 | R37: 0 | S37: 0 | T37: 0 | U37: 0 | V37: 0 | W37: 0 | X37: 0 | Y37: 0 | Z37: 0 | AA37: 0 | AB37: 0 | AC37: 0 | AD37: 0 | AE37: 0 | AF37: 0 | AG37: 0 | AH37: 0 | AI37: 0 | AJ37: 0 | AK37: 0 | AL37: 0 | AM37: 0 | AN37: 0 | AO37: 0 | AP37: 0 | AQ37: 0 | AR37: 0 | AS37: 0 | AT37: 0 | AU37: 0 | AV37: 0 | AW37: 0 | AX37: 0
B38: =CHIFFRAGE_TC!B39 -> Cables de soportes | C38: =CHIFFRAGE_TC!D39 -> 10 | E38: =CHIFFRAGE_TC!$L39*CHIFFRAGE_TC!$T39 -> 0 | F38: =CHIFFRAGE_TC!$L39*CHIFFRAGE_TC!$U39 -> 0 | G38: =CHIFFRAGE_TC!$L39*CHIFFRAGE_TC!$V39 -> 0 | H38: =CHIFFRAGE_TC!$L39*CHIFFRAGE_TC!$W39 -> 0 | I38: 0 | J38: 0 | K38: 0 | L38: 0 | M38: 0 | N38: 0 | O38: 0 | P38: 0 | Q38: 0 | R38: 0 | S38: 0 | T38: 0 | U38: 0 | V38: 0 | W38: 0 | X38: 0 | Y38: 0 | Z38: 0 | AA38: 0 | AB38: 0 | AC38: 0 | AD38: 0 | AE38: 0 | AF38: 0 | AG38: 0 | AH38: 0 | AI38: 0 | AJ38: 0 | AK38: 0 | AL38: 0 | AM38: 0 | AN38: 0 | AO38: 0 | AP38: 0 | AQ38: 0 | AR38: 0 | AS38: 0 | AT38: 0 | AU38: 0 | AV38: 0 | AW38: 0 | AX38: 0
B39: =CHIFFRAGE_TC!B40 -> Cable de traccion | C39: =CHIFFRAGE_TC!D40 -> 5 | E39: =CHIFFRAGE_TC!$L40*CHIFFRAGE_TC!$T40 -> 0 | F39: =CHIFFRAGE_TC!$L40*CHIFFRAGE_TC!$U40 -> 114012.873 | G39: =CHIFFRAGE_TC!$L40*CHIFFRAGE_TC!$V40 -> 342038.6191 | H39: =CHIFFRAGE_TC!$L40*CHIFFRAGE_TC!$W40 -> 114012.873 | I39: 0 | J39: 0 | K39: 0 | L39: 0 | M39: 0 | N39: 0 | O39: 0 | P39: 0 | Q39: 0 | R39: 0 | S39: 0 | T39: 0 | U39: 0 | V39: 0 | W39: 0 | X39: 0 | Y39: 0 | Z39: 0 | AA39: 0 | AB39: 0 | AC39: 0 | AD39: 0 | AE39: 0 | AF39: 0 | AG39: 0 | AH39: 0 | AI39: 0 | AJ39: 0 | AK39: 0 | AL39: 0 | AM39: 0 | AN39: 0 | AO39: 0 | AP39: 0 | AQ39: 0 | AR39: 0 | AS39: 0 | AT39: 0 | AU39: 0 | AV39: 0 | AW39: 0 | AX39: 0
B40: =CHIFFRAGE_TC!B41 -> Cabeza de poste (patibulo + pendulos y equipamientos) | C40: =CHIFFRAGE_TC!D41 -> 40 | E40: =CHIFFRAGE_TC!$L41*CHIFFRAGE_TC!$T41 -> 0 | F40: =CHIFFRAGE_TC!$L41*CHIFFRAGE_TC!$U41 -> 540001.8642 | G40: =CHIFFRAGE_TC!$L41*CHIFFRAGE_TC!$V41 -> 1620005.593 | H40: =CHIFFRAGE_TC!$L41*CHIFFRAGE_TC!$W41 -> 540001.8642 | I40: 0 | J40: 0 | K40: 0 | L40: 0 | M40: 0 | N40: 0 | O40: 0 | P40: 0 | Q40: 0 | R40: 0 | S40: 0 | T40: 0 | U40: 0 | V40: 0 | W40: 0 | X40: 0 | Y40: 0 | Z40: 0 | AA40: 0 | AB40: 0 | AC40: 0 | AD40: 0 | AE40: 0 | AF40: 0 | AG40: 0 | AH40: 0 | AI40: 0 | AJ40: 0 | AK40: 0 | AL40: 0 | AM40: 0 | AN40: 0 | AO40: 0 | AP40: 0 | AQ40: 0 | AR40: 0 | AS40: 0 | AT40: 0 | AU40: 0 | AV40: 0 | AW40: 0 | AX40: 0
B41: =CHIFFRAGE_TC!B42 -> Postes y fundaciones | C41: =CHIFFRAGE_TC!D42 -> 50 | E41: =CHIFFRAGE_TC!$L42*CHIFFRAGE_TC!$T42 -> 0 | F41: =CHIFFRAGE_TC!$L42*CHIFFRAGE_TC!$U42 -> 540000.155 | G41: =CHIFFRAGE_TC!$L42*CHIFFRAGE_TC!$V42 -> 1620000.465 | H41: =CHIFFRAGE_TC!$L42*CHIFFRAGE_TC!$W42 -> 540000.155 | I41: 0 | J41: 0 | K41: 0 | L41: 0 | M41: 0 | N41: 0 | O41: 0 | P41: 0 | Q41: 0 | R41: 0 | S41: 0 | T41: 0 | U41: 0 | V41: 0 | W41: 0 | X41: 0 | Y41: 0 | Z41: 0 | AA41: 0 | AB41: 0 | AC41: 0 | AD41: 0 | AE41: 0 | AF41: 0 | AG41: 0 | AH41: 0 | AI41: 0 | AJ41: 0 | AK41: 0 | AL41: 0 | AM41: 0 | AN41: 0 | AO41: 0 | AP41: 0 | AQ41: 0 | AR41: 0 | AS41: 0 | AT41: 0 | AU41: 0 | AV41: 0 | AW41: 0 | AX41: 0
B42: =CHIFFRAGE_TC!B43 -> Sobrecostos para fundaciones con pilotes | C42: =CHIFFRAGE_TC!D43 -> 50 | E42: =CHIFFRAGE_TC!$L43*CHIFFRAGE_TC!$T43 -> 0 | F42: =CHIFFRAGE_TC!$L43*CHIFFRAGE_TC!$U43 -> 972000 | G42: =CHIFFRAGE_TC!$L43*CHIFFRAGE_TC!$V43 -> 2916000 | H42: =CHIFFRAGE_TC!$L43*CHIFFRAGE_TC!$W43 -> 972000 | I42: 0 | J42: 0 | K42: 0 | L42: 0 | M42: 0 | N42: 0 | O42: 0 | P42: 0 | Q42: 0 | R42: 0 | S42: 0 | T42: 0 | U42: 0 | V42: 0 | W42: 0 | X42: 0 | Y42: 0 | Z42: 0 | AA42: 0 | AB42: 0 | AC42: 0 | AD42: 0 | AE42: 0 | AF42: 0 | AG42: 0 | AH42: 0 | AI42: 0 | AJ42: 0 | AK42: 0 | AL42: 0 | AM42: 0 | AN42: 0 | AO42: 0 | AP42: 0 | AQ42: 0 | AR42: 0 | AS42: 0 | AT42: 0 | AU42: 0 | AV42: 0 | AW42: 0 | AX42: 0
B44: =CHIFFRAGE_TC!B45 -> Obras de via y reubicacion de redes | D44: =CHIFFRAGE_TC!J45 -> 0.25 | E44: =SUM(E45:E50) -> 0 | F44: =SUM(F45:F50) -> 888778.4556 | G44: 552949.8242 | H44: 0 | I44: 0 | J44: 0 | K44: 0 | L44: 0 | M44: 0 | N44: 0 | O44: 0 | P44: 0 | Q44: 0 | R44: 0 | S44: 0 | T44: 0 | U44: 0 | V44: 0 | W44: 0 | X44: 0 | Y44: 0 | Z44: 0 | AA44: 0 | AB44: 0 | AC44: 0 | AD44: 0 | AE44: 0 | AF44: 0 | AG44: 0 | AH44: 0 | AI44: 0 | AJ44: 0 | AK44: 0 | AL44: 0 | AM44: 0 | AN44: 0 | AO44: 0 | AP44: 0 | AQ44: 0 | AR44: 0 | AS44: 0 | AT44: 0 | AU44: 0 | AV44: 0 | AW44: 0 | AX44: 0
B45: =CHIFFRAGE_TC!B46 -> Obras de via | C45: =CHIFFRAGE_TC!D46 -> 50 | E45: =CHIFFRAGE_TC!$L46*CHIFFRAGE_TC!$T46 -> 0 | F45: =CHIFFRAGE_TC!$L46*CHIFFRAGE_TC!$U46 -> 393092.4604 | G45: =CHIFFRAGE_TC!$L46*CHIFFRAGE_TC!$V46 -> 393092.4604 | H45: =CHIFFRAGE_TC!$L46*CHIFFRAGE_TC!$W46 -> 0 | I45: 0 | J45: 0 | K45: 0 | L45: 0 | M45: 0 | N45: 0 | O45: 0 | P45: 0 | Q45: 0 | R45: 0 | S45: 0 | T45: 0 | U45: 0 | V45: 0 | W45: 0 | X45: 0 | Y45: 0 | Z45: 0 | AA45: 0 | AB45: 0 | AC45: 0 | AD45: 0 | AE45: 0 | AF45: 0 | AG45: 0 | AH45: 0 | AI45: 0 | AJ45: 0 | AK45: 0 | AL45: 0 | AM45: 0 | AN45: 0 | AO45: 0 | AP45: 0 | AQ45: 0 | AR45: 0 | AS45: 0 | AT45: 0 | AU45: 0 | AV45: 0 | AW45: 0 | AX45: 0
B46: =CHIFFRAGE_TC!B47 -> Redes aereas de alta tension | C46: =CHIFFRAGE_TC!D47 -> 50 | E46: =CHIFFRAGE_TC!$L47*CHIFFRAGE_TC!$T47 -> 0 | F46: =CHIFFRAGE_TC!$L47*CHIFFRAGE_TC!$U47 -> 0 | G46: =CHIFFRAGE_TC!$L47*CHIFFRAGE_TC!$V47 -> 0 | H46: =CHIFFRAGE_TC!$L47*CHIFFRAGE_TC!$W47 -> 0 | I46: 0 | J46: 0 | K46: 0 | L46: 0 | M46: 0 | N46: 0 | O46: 0 | P46: 0 | Q46: 0 | R46: 0 | S46: 0 | T46: 0 | U46: 0 | V46: 0 | W46: 0 | X46: 0 | Y46: 0 | Z46: 0 | AA46: 0 | AB46: 0 | AC46: 0 | AD46: 0 | AE46: 0 | AF46: 0 | AG46: 0 | AH46: 0 | AI46: 0 | AJ46: 0 | AK46: 0 | AL46: 0 | AM46: 0 | AN46: 0 | AO46: 0 | AP46: 0 | AQ46: 0 | AR46: 0 | AS46: 0 | AT46: 0 | AU46: 0 | AV46: 0 | AW46: 0 | AX46: 0
B47: =CHIFFRAGE_TC!B48 -> Redes aereas | C47: =CHIFFRAGE_TC!D48 -> 50 | E47: =CHIFFRAGE_TC!$L48*CHIFFRAGE_TC!$T48 -> 0 | F47: =CHIFFRAGE_TC!$L48*CHIFFRAGE_TC!$U48 -> 257706 | G47: =CHIFFRAGE_TC!$L48*CHIFFRAGE_TC!$V48 -> 0 | H47: =CHIFFRAGE_TC!$L48*CHIFFRAGE_TC!$W48 -> 0 | I47: 0 | J47: 0 | K47: 0 | L47: 0 | M47: 0 | N47: 0 | O47: 0 | P47: 0 | Q47: 0 | R47: 0 | S47: 0 | T47: 0 | U47: 0 | V47: 0 | W47: 0 | X47: 0 | Y47: 0 | Z47: 0 | AA47: 0 | AB47: 0 | AC47: 0 | AD47: 0 | AE47: 0 | AF47: 0 | AG47: 0 | AH47: 0 | AI47: 0 | AJ47: 0 | AK47: 0 | AL47: 0 | AM47: 0 | AN47: 0 | AO47: 0 | AP47: 0 | AQ47: 0 | AR47: 0 | AS47: 0 | AT47: 0 | AU47: 0 | AV47: 0 | AW47: 0 | AX47: 0
B48: =CHIFFRAGE_TC!B49 -> Desplazamiento de lamparas | C48: =CHIFFRAGE_TC!D49 -> 50 | E48: =CHIFFRAGE_TC!$L49*CHIFFRAGE_TC!$T49 -> 0 | F48: =CHIFFRAGE_TC!$L49*CHIFFRAGE_TC!$U49 -> 78122.6314 | G48: =CHIFFRAGE_TC!$L49*CHIFFRAGE_TC!$V49 -> 0 | H48: =CHIFFRAGE_TC!$L49*CHIFFRAGE_TC!$W49 -> 0 | I48: 0 | J48: 0 | K48: 0 | L48: 0 | M48: 0 | N48: 0 | O48: 0 | P48: 0 | Q48: 0 | R48: 0 | S48: 0 | T48: 0 | U48: 0 | V48: 0 | W48: 0 | X48: 0 | Y48: 0 | Z48: 0 | AA48: 0 | AB48: 0 | AC48: 0 | AD48: 0 | AE48: 0 | AF48: 0 | AG48: 0 | AH48: 0 | AI48: 0 | AJ48: 0 | AK48: 0 | AL48: 0 | AM48: 0 | AN48: 0 | AO48: 0 | AP48: 0 | AQ48: 0 | AR48: 0 | AS48: 0 | AT48: 0 | AU48: 0 | AV48: 0 | AW48: 0 | AX48: 0
B49: =CHIFFRAGE_TC!B50 -> Redes subterraneas | C49: =CHIFFRAGE_TC!D50 -> 50 | E49: =CHIFFRAGE_TC!$L50*CHIFFRAGE_TC!$T50 -> 0 | F49: =CHIFFRAGE_TC!$L50*CHIFFRAGE_TC!$U50 -> 128853 | G49: =CHIFFRAGE_TC!$L50*CHIFFRAGE_TC!$V50 -> 128853 | H49: =CHIFFRAGE_TC!$L50*CHIFFRAGE_TC!$W50 -> 0 | I49: 0 | J49: 0 | K49: 0 | L49: 0 | M49: 0 | N49: 0 | O49: 0 | P49: 0 | Q49: 0 | R49: 0 | S49: 0 | T49: 0 | U49: 0 | V49: 0 | W49: 0 | X49: 0 | Y49: 0 | Z49: 0 | AA49: 0 | AB49: 0 | AC49: 0 | AD49: 0 | AE49: 0 | AF49: 0 | AG49: 0 | AH49: 0 | AI49: 0 | AJ49: 0 | AK49: 0 | AL49: 0 | AM49: 0 | AN49: 0 | AO49: 0 | AP49: 0 | AQ49: 0 | AR49: 0 | AS49: 0 | AT49: 0 | AU49: 0 | AV49: 0 | AW49: 0 | AX49: 0
B50: =CHIFFRAGE_TC!B51 -> Mantenimiento de transito | C50: =CHIFFRAGE_TC!D51 -> 50 | E50: =CHIFFRAGE_TC!$L51*CHIFFRAGE_TC!$T51 -> 0 | F50: =CHIFFRAGE_TC!$L51*CHIFFRAGE_TC!$U51 -> 31004.36382 | G50: =CHIFFRAGE_TC!$L51*CHIFFRAGE_TC!$V51 -> 31004.36382 | H50: =CHIFFRAGE_TC!$L51*CHIFFRAGE_TC!$W51 -> 0 | I50: 0 | J50: 0 | K50: 0 | L50: 0 | M50: 0 | N50: 0 | O50: 0 | P50: 0 | Q50: 0 | R50: 0 | S50: 0 | T50: 0 | U50: 0 | V50: 0 | W50: 0 | X50: 0 | Y50: 0 | Z50: 0 | AA50: 0 | AB50: 0 | AC50: 0 | AD50: 0 | AE50: 0 | AF50: 0 | AG50: 0 | AH50: 0 | AI50: 0 | AJ50: 0 | AK50: 0 | AL50: 0 | AM50: 0 | AN50: 0 | AO50: 0 | AP50: 0 | AQ50: 0 | AR50: 0 | AS50: 0 | AT50: 0 | AU50: 0 | AV50: 0 | AW50: 0 | AX50: 0
B52: =CHIFFRAGE_TC!B53 -> Cabinas | D52: =CHIFFRAGE_TC!J53 -> 0.15 | E52: =SUM(E53:E54) -> 0 | F52: =SUM(F53:F54) -> 1269422.002 | G52: 3808266.006 | H52: 1269422.002 | I52: 0 | J52: 0 | K52: 0 | L52: 0 | M52: 0 | N52: 0 | O52: 0 | P52: 0 | Q52: 0 | R52: 0 | S52: 0 | T52: 0 | U52: 0 | V52: 0 | W52: 263200.657 | X52: 789601.9711 | Y52: 263200.657 | Z52: 0 | AA52: 0 | AB52: 0 | AC52: 0 | AD52: 0 | AE52: 0 | AF52: 0 | AG52: 0 | AH52: 0 | AI52: 0 | AJ52: 0 | AK52: 0 | AL52: 0 | AM52: 0 | AN52: 263200.657 | AO52: 789601.9711 | AP52: 263200.657 | AQ52: 0 | AR52: 0 | AS52: 0 | AT52: 0 | AU52: 0 | AV52: 0 | AW52: 0 | AX52: 0
B53: =CHIFFRAGE_TC!B54 -> Cabinas y soportes | C53: =CHIFFRAGE_TC!D54 -> 40 | E53: =CHIFFRAGE_TC!$L54*CHIFFRAGE_TC!$T54 -> 0 | F53: =CHIFFRAGE_TC!$L54*CHIFFRAGE_TC!$U54 -> 1006221.345 | G53: =CHIFFRAGE_TC!$L54*CHIFFRAGE_TC!$V54 -> 3018664.035 | H53: =CHIFFRAGE_TC!$L54*CHIFFRAGE_TC!$W54 -> 1006221.345 | I53: 0 | J53: 0 | K53: 0 | L53: 0 | M53: 0 | N53: 0 | O53: 0 | P53: 0 | Q53: 0 | R53: 0 | S53: 0 | T53: 0 | U53: 0 | V53: 0 | W53: 0 | X53: 0 | Y53: 0 | Z53: 0 | AA53: 0 | AB53: 0 | AC53: 0 | AD53: 0 | AE53: 0 | AF53: 0 | AG53: 0 | AH53: 0 | AI53: 0 | AJ53: 0 | AK53: 0 | AL53: 0 | AM53: 0 | AN53: 0 | AO53: 0 | AP53: 0 | AQ53: 0 | AR53: 0 | AS53: 0 | AT53: 0 | AU53: 0 | AV53: 0 | AW53: 0 | AX53: 0
B54: =CHIFFRAGE_TC!B55 -> Equipamiento de conforte en las cabinas | C54: =CHIFFRAGE_TC!D55 -> 15 | E54: =CHIFFRAGE_TC!$L55*CHIFFRAGE_TC!$T55 -> 0 | F54: =CHIFFRAGE_TC!$L55*CHIFFRAGE_TC!$U55 -> 263200.657 | G54: =CHIFFRAGE_TC!$L55*CHIFFRAGE_TC!$V55 -> 789601.9711 | H54: =CHIFFRAGE_TC!$L55*CHIFFRAGE_TC!$W55 -> 263200.657 | I54: 0 | J54: 0 | K54: 0 | L54: 0 | M54: 0 | N54: 0 | O54: 0 | P54: 0 | Q54: 0 | R54: 0 | S54: 0 | T54: 0 | U54: 0 | V54: 0 | W54: =F54 -> 263200.657 | X54: =G54 -> 789601.9711 | Y54: 263200.657 | Z54: 0 | AA54: 0 | AB54: 0 | AC54: 0 | AD54: 0 | AE54: 0 | AF54: 0 | AG54: 0 | AH54: 0 | AI54: 0 | AJ54: 0 | AK54: 0 | AL54: 0 | AM54: 0 | AN54: =F54 -> 263200.657 | AO54: =G54 -> 789601.9711 | AP54: 263200.657 | AQ54: 0 | AR54: 0 | AS54: 0 | AT54: 0 | AU54: 0 | AV54: 0 | AW54: 0 | AX54: 0
B56: =CHIFFRAGE_TC!B57 -> Tecnologias en las estaciones | D56: =CHIFFRAGE_TC!J57 -> 0.25 | E56: =SUM(E57:E58) -> 0 | F56: =SUM(F57:F58) -> 0 | G56: 15793816.82 | H56: 6768778.636 | I56: 0 | J56: 0 | K56: 0 | L56: 0 | M56: 0 | N56: 0 | O56: 0 | P56: 0 | Q56: 0 | R56: 0 | S56: 0 | T56: 0 | U56: 0 | V56: 0 | W56: 0 | X56: 0 | Y56: 0 | Z56: 0 | AA56: 0 | AB56: 0 | AC56: 0 | AD56: 0 | AE56: 0 | AF56: 0 | AG56: 0 | AH56: 0 | AI56: 0 | AJ56: 0 | AK56: 0 | AL56: 0 | AM56: 0 | AN56: 0 | AO56: 0 | AP56: 0 | AQ56: 0 | AR56: 0 | AS56: 0 | AT56: 0 | AU56: 0 | AV56: 0 | AW56: 0 | AX56: 0
B57: =CHIFFRAGE_TC!B58 -> Lanzador (por ramita y por media-estacion) | C57: =CHIFFRAGE_TC!D58 -> 40 | E57: =CHIFFRAGE_TC!$L58*CHIFFRAGE_TC!$T58 -> 0 | F57: =CHIFFRAGE_TC!$L58*CHIFFRAGE_TC!$U58 -> 0 | G57: =CHIFFRAGE_TC!$L58*CHIFFRAGE_TC!$V58 -> 7944483.581 | H57: =CHIFFRAGE_TC!$L58*CHIFFRAGE_TC!$W58 -> 3404778.677 | I57: 0 | J57: 0 | K57: 0 | L57: 0 | M57: 0 | N57: 0 | O57: 0 | P57: 0 | Q57: 0 | R57: 0 | S57: 0 | T57: 0 | U57: 0 | V57: 0 | W57: 0 | X57: 0 | Y57: 0 | Z57: 0 | AA57: 0 | AB57: 0 | AC57: 0 | AD57: 0 | AE57: 0 | AF57: 0 | AG57: 0 | AH57: 0 | AI57: 0 | AJ57: 0 | AK57: 0 | AL57: 0 | AM57: 0 | AN57: 0 | AO57: 0 | AP57: 0 | AQ57: 0 | AR57: 0 | AS57: 0 | AT57: 0 | AU57: 0 | AV57: 0 | AW57: 0 | AX57: 0
B58: =CHIFFRAGE_TC!B59 -> Cola y andenes (por numero de andenes, y/c puertas de anden) | C58: =CHIFFRAGE_TC!D59 -> 40 | E58: =CHIFFRAGE_TC!$L59*CHIFFRAGE_TC!$T59 -> 0 | F58: =CHIFFRAGE_TC!$L59*CHIFFRAGE_TC!$U59 -> 0 | G58: =CHIFFRAGE_TC!$L59*CHIFFRAGE_TC!$V59 -> 7849333.237 | H58: =CHIFFRAGE_TC!$L59*CHIFFRAGE_TC!$W59 -> 3363999.959 | I58: 0 | J58: 0 | K58: 0 | L58: 0 | M58: 0 | N58: 0 | O58: 0 | P58: 0 | Q58: 0 | R58: 0 | S58: 0 | T58: 0 | U58: 0 | V58: 0 | W58: 0 | X58: 0 | Y58: 0 | Z58: 0 | AA58: 0 | AB58: 0 | AC58: 0 | AD58: 0 | AE58: 0 | AF58: 0 | AG58: 0 | AH58: 0 | AI58: 0 | AJ58: 0 | AK58: 0 | AL58: 0 | AM58: 0 | AN58: 0 | AO58: 0 | AP58: 0 | AQ58: 0 | AR58: 0 | AS58: 0 | AT58: 0 | AU58: 0 | AV58: 0 | AW58: 0 | AX58: 0
B60: =CHIFFRAGE_TC!B61 -> Equipamiento electrico | D60: =CHIFFRAGE_TC!J61 -> 0.25 | E60: =SUM(E61:E67) -> 0 | F60: =SUM(F61:F67) -> 1114235.703 | G60: 2760291.901 | H60: 616667.1951 | I60: =SUM(I61:I67) -> 0 | J60: 0 | K60: 0 | L60: 0 | M60: 0 | N60: 0 | O60: 0 | P60: 0 | Q60: 0 | R60: 0 | S60: 0 | T60: 0 | U60: 0 | V60: 0 | W60: 1114235.703 | X60: 940890.747 | Y60: 616667.1951 | Z60: 0 | AA60: 0 | AB60: 0 | AC60: 0 | AD60: 0 | AE60: 0 | AF60: 0 | AG60: 0 | AH60: 0 | AI60: 0 | AJ60: 0 | AK60: 0 | AL60: 0 | AM60: 0 | AN60: 1114235.703 | AO60: 940890.747 | AP60: 616667.1951 | AQ60: 0 | AR60: 0 | AS60: 0 | AT60: 0 | AU60: 0 | AV60: 0 | AW60: 0 | AX60: 0
B61: =CHIFFRAGE_TC!B62 -> Cuarto de mandos | C61: =CHIFFRAGE_TC!D62 -> 15 | E61: =CHIFFRAGE_TC!$L62*CHIFFRAGE_TC!$T62 -> 0 | F61: =CHIFFRAGE_TC!$L62*CHIFFRAGE_TC!$U62 -> 523987.5325 | G61: =CHIFFRAGE_TC!$L62*CHIFFRAGE_TC!$V62 -> 523987.5325 | H61: =CHIFFRAGE_TC!$L62*CHIFFRAGE_TC!$W62 -> 0 | I61: 0 | J61: 0 | K61: 0 | L61: 0 | M61: 0 | N61: 0 | O61: 0 | P61: 0 | Q61: 0 | R61: 0 | S61: 0 | T61: 0 | U61: 0 | V61: 0 | W61: =F61 -> 523987.5325 | X61: 523987.5325 | Y61: 0 | Z61: 0 | AA61: 0 | AB61: 0 | AC61: 0 | AD61: 0 | AE61: 0 | AF61: 0 | AG61: 0 | AH61: 0 | AI61: 0 | AJ61: 0 | AK61: 0 | AL61: 0 | AM61: 0 | AN61: =F61 -> 523987.5325 | AO61: 523987.5325 | AP61: 0 | AQ61: 0 | AR61: 0 | AS61: 0 | AT61: 0 | AU61: 0 | AV61: 0 | AW61: 0 | AX61: 0
B62: =CHIFFRAGE_TC!B63 -> Cuarto de electricidad (400V tres fases) | C62: =CHIFFRAGE_TC!D63 -> 15 | E62: =CHIFFRAGE_TC!$L63*CHIFFRAGE_TC!$T63 -> 0 | F62: =CHIFFRAGE_TC!$L63*CHIFFRAGE_TC!$U63 -> 179471.3639 | G62: =CHIFFRAGE_TC!$L63*CHIFFRAGE_TC!$V63 -> 179471.3639 | H62: =CHIFFRAGE_TC!$L63*CHIFFRAGE_TC!$W63 -> 0 | I62: 0 | J62: 0 | K62: 0 | L62: 0 | M62: 0 | N62: 0 | O62: 0 | P62: 0 | Q62: 0 | R62: 0 | S62: 0 | T62: 0 | U62: 0 | V62: 0 | W62: 179471.3639 | X62: 179471.3639 | Y62: 0 | Z62: 0 | AA62: 0 | AB62: 0 | AC62: 0 | AD62: 0 | AE62: 0 | AF62: 0 | AG62: 0 | AH62: 0 | AI62: 0 | AJ62: 0 | AK62: 0 | AL62: 0 | AM62: 0 | AN62: 179471.3639 | AO62: 179471.3639 | AP62: 0 | AQ62: 0 | AR62: 0 | AS62: 0 | AT62: 0 | AU62: 0 | AV62: 0 | AW62: 0 | AX62: 0
B63: =CHIFFRAGE_TC!B64 -> Cuarto de manejo del traslado y zona de mantenimiento | C63: =CHIFFRAGE_TC!D64 -> 15 | E63: =CHIFFRAGE_TC!$L64*CHIFFRAGE_TC!$T64 -> 0 | F63: =CHIFFRAGE_TC!$L64*CHIFFRAGE_TC!$U64 -> 0 | G63: =CHIFFRAGE_TC!$L64*CHIFFRAGE_TC!$V64 -> 0 | H63: =CHIFFRAGE_TC!$L64*CHIFFRAGE_TC!$W64 -> 72776.04618 | I63: 0 | J63: 0 | K63: 0 | L63: 0 | M63: 0 | N63: 0 | O63: 0 | P63: 0 | Q63: 0 | R63: 0 | S63: 0 | T63: 0 | U63: 0 | V63: 0 | W63: =F63 -> 0 | X63: 0 | Y63: 72776.04618 | Z63: 0 | AA63: 0 | AB63: 0 | AC63: 0 | AD63: 0 | AE63: 0 | AF63: 0 | AG63: 0 | AH63: 0 | AI63: 0 | AJ63: 0 | AK63: 0 | AL63: 0 | AM63: 0 | AN63: =F63 -> 0 | AO63: 0 | AP63: 72776.04618 | AQ63: 0 | AR63: 0 | AS63: 0 | AT63: 0 | AU63: 0 | AV63: 0 | AW63: 0 | AX63: 0
